Workbook

Sheet Start
G2: Risk Dashboard Interactive Tool
G3: =+'Reference Dates'!$C$4 -> Q12022 Data
E4: Please enable macros to ensure the correct functioning of the tool
O5: List showing in Dropdown menu | P5: RI number | Q5: RI Code | R5: Name for tables - change if needs to be different from dropdown names | T5: Tables name for dropdown
O6: Tier 1 capital ratio | P6: 1 | Q6: SVC_1 | R6: Tier 1 capital ratio | T6: RU Exposures
B7: Choose a Risk Indicator: | E7: RI Number (*) | G7: RI Code | O7: Total capital ratio | P7: 2 | Q7: SVC_2 | R7: Total capital ratio | T7: UA Exposures
B8: Tier 1 capital ratio | E8: =IFERROR(VLOOKUP(B8,$O$6:$Q$26,2,0),"") -> 1 | G8: =IFERROR(VLOOKUP(B8,$O$6:$Q$26,3,0),"") -> SVC_1 | O8: CET1 ratio | P8: 3 | Q8: SVC_3 | R8: CET1 ratio | T8: BY Exposures
O9: CET1 ratio (fully loaded) | P9: 4 | Q9: SVC_29 | R9: CET1 ratio (fully loaded) | T9: Assets
B10: Choose a set of Tables from the statistical Annex: | O10: Leverage ratio | P10: 5 | Q10: SVC_13 | R10: Leverage ratio (transitional definition of Tier 1) | T10: Loans Composition
B11: RU Exposures | I11: =IFERROR((LEFT($B$11,FIND(" ",$B$11)-1)),$B$11) -> RU | O11: Leverage ratio (fully phased-in definition of Tier 1) | P11: 6 | Q11: SVC_12 | R11: Leverage ratio (fully phased-in definition of Tier 1) | T11: Loans NPL and coverage ratio
O12: Ratio of non-performing loans and advances (NPL ratio) | P12: 7 | Q12: AQT_3.2 | R12: Ratio of non-performing loans and advances (NPL ratio) | T12: NACE composition
O13: Coverage ratio of non-performing loans and advances | P13: 8 | Q13: AQT_41.2 | R13: Coverage ratio of non-performing loans and advances | T13: NPL ratio by NACE
O14: Forbearance ratio for loans and advances | P14: 9 | Q14: AQT_42.2 | R14: Forbearance ratio for loans and advances | T14: RE and Construction Exposures
B15: (*) In order of appearance in the Risk Dashboard | O15: Ratio of non-performing exposures (NPE ratio) | P15: 10 | Q15: AQT_3.1 | R15: Ratio of non-performing exposures (NPE ratio) | T15: IFRS9
O16: Return on equity | P16: 11 | Q16: PFT_21 | R16: Return on equity | T16: Sovereigns
O17: Return on assets | P17: 12 | Q17: PFT_24 | R17: Return on assets | T17: Liabilities
O18: Cost to income ratio | P18: 13 | Q18: PFT_23 | R18: Cost to income ratio | T18: Own funds and RWA
O19: Net interest income to total net operating income | P19: 14 | Q19: PFT_25 | R19: Net interest income to total net operating income | T19: Profitability
O20: Net fee and commission income to total net operating income | P20: 15 | Q20: PFT_26 | R20: Net fee and commission income to total net operating income | T20: Moratoria
O21: Net trading income to total net operating income | P21: 16 | Q21: PFT_29 | R21: Net trading income to total net operating income
O22: Net interest margin | P22: 17 | Q22: PFT_41 | R22: Net interest margin
O23: Cost of Risk | P23: 18 | Q23: PFT_43 | R23: Cost of Risk
O24: Loan-to-deposit ratio for households and non-financial corporations | P24: 19 | Q24: FND_32 | R24: Loan-to-deposit ratio for households and non-financial corporations
O25: Asset encumbrance ratio | P25: 20 | Q25: FND_33 | R25: Asset encumbrance ratio
O26: Liquidity coverage ratio (%) | P26: 21 | Q26: LIQ_17 | R26: Liquidity coverage ratio (%)

Sheet Charts
B2: =$AR$21 -> Solvency
B3: =AM21&" - "&$AO$20 -> 1 - Tier 1 capital ratio
B4: Due to the automation of this file, charts axis are not scaled as in the booklet version. User may need to manually adjust it.
B5: Dispersion | J5: Numerator and denominator: trends
B7: 5th and 95th pct, interquartile range and median. | J7: =IF(AK21="PFT_43","Total numerator and denominator. 2018Q1=100.","Total numerator and denominator. "& IF(NOT(ISNA($AS$25)), YEAR($AM$25), IF(NOT(ISNA($AS$26)), YEAR($AM$26), IF(NOT(ISNA($AS$27)), YEAR($AM$27), IF(NOT(ISNA($AS$28)), YEAR($AM$28), IF(NOT(ISNA(#REF!)), YEAR($AM$29),IF(NOT(ISNA($AS$30)), YEAR($AM$30),IF(NOT(ISNA($AS$31)), YEAR($AM$31),IF(NOT(ISNA($AS$32)), YEAR($AM$32),IF(NOT(ISNA($AS$33)), YEAR($AM$33),IF(NOT(ISNA($AS$34)), YEAR($AM$34),IF(NOT(ISNA($AS$35)), YEAR($AM$35),YEAR($AM$36)))))))))))) &"Q"& IF(NOT(ISNA($AS$25)),ROUNDUP(MONTH($AM$25)/3,0), IF(NOT(ISNA($AS$26)),ROUNDUP(MONTH($AM$26)/3,0), IF(NOT(ISNA($AS$27)), ROUNDUP(MONTH($AM$27)/3,0), IF(NOT(ISNA($AS$28)), ROUNDUP(MONTH($AM$28)/3,0),NOT(ISNA($AS$29)))))) &" = 100.") -> Total numerator and denominator. 2019Q2 = 100.
B9: ="Country dispersion (as of "& YEAR(MAX(AM25:AM45))&" Q"&(ROUNDUP((MONTH(MAX(AM25:AM45))/3),0))&")" -> Country dispersion (as of 2022 Q1) | J9: KRI by size class
B11: ( * ) Not reported. Weighted Averages by country. Norwegian banks have not implemented yet the reporting framework based on CRR2/CRD5. Therefore, Norwegian figures are included in the EBA Risk dashboard only until March 2021. | J11: ="Weighted average. Banks are classified in the size class according to the their average total assets between 2014Q4 and "&YEAR(MAX(AM25:AM45))&"Q"&(ROUNDUP(MONTH(MAX(AM25:AM45))/3,0))&IF(AN48="Y",". Non-FINREP banks are assigned to the bucket of small banks.",". ") -> Weighted average. Banks are classified in the size class according to the their average total assets between 2014Q4 and 2022Q1.
B14: Period | E14: Weighted average | H14: 25th percentile | K14: 50th percentile | N14: 75th percentile
C16: =AM25 -> 2019-06-01 | F16: =IF(AND(YEAR(C16)<2018,$AK$21="PFT_43"),"",IFERROR(VLOOKUP($C16,$AM$25:$BB$42,8,FALSE), "")) -> 0.1617222784 | I16: =IF(AND(YEAR(C16)<2018,$AK$21="PFT_43"),"",IFERROR(VLOOKUP($C16,$AM$25:$BB$42,5,FALSE), "")) -> 0.1464257216 | L16: =IF(AND(YEAR(C16)<2018,$AK$21="PFT_43"),"",IFERROR(VLOOKUP($C16,$AM$25:$BB$42,6,FALSE), "")) -> 0.165238908 | O16: =IF(AND(YEAR(C16)<2018,$AK$21="PFT_43"),"",IFERROR(VLOOKUP($C16,$AM$25:$BB$42,9,FALSE), "")) -> 0.1975077077
C17: =AM26 -> 2019-09-01 | F17: =IF(AND(YEAR(C17)<2018,$AK$21="PFT_43"),"",IFERROR(VLOOKUP($C17,$AM$25:$BB$42,8,FALSE), "")) -> 0.1613677389 | I17: =IF(AND(YEAR(C17)<2018,$AK$21="PFT_43"),"",IFERROR(VLOOKUP($C17,$AM$25:$BB$42,5,FALSE), "")) -> 0.147537046 | L17: =IF(AND(YEAR(C17)<2018,$AK$21="PFT_43"),"",IFERROR(VLOOKUP($C17,$AM$25:$BB$42,6,FALSE), "")) -> 0.1638160644 | O17: =IF(AND(YEAR(C17)<2018,$AK$21="PFT_43"),"",IFERROR(VLOOKUP($C17,$AM$25:$BB$42,9,FALSE), "")) -> 0.1945912543
C18: =AM27 -> 2019-12-01 | F18: 0.1678534559 | I18: 0.152002714 | L18: 0.1717275433 | O18: 0.2041354545
C19: =AM28 -> 2020-03-01 | F19: 0.1581940407 | I19: 0.1427134004 | L19: 0.162881694 | O19: 0.1989703886
C20: 2020-06-01 | F20: 0.1630563226 | I20: 0.1479937941 | L20: 0.1696146986 | O20: 0.2011049692 | AN20: dashboard name | AO20: =VLOOKUP($AM$21*1,List!$A$3:$M$23,8,FALSE) -> Tier 1 capital ratio
C21: 2020-09-01 | F21: 0.1671962406 | I21: 0.1529035899 | L21: 0.172888396 | O21: 0.2052266468 | AK21: =VLOOKUP($AM$21*1,List!$A$3:$F$23,6,0) -> SVC_1 | AM21: =Start!E8 -> 1 | AN21: =VLOOKUP($AM$21*1,List!$A$3:$F$23,4,0) -> 1 | AO21: =VLOOKUP($AM$21*1,List!$A$3:$E$23,5,0) -> Tier 1 capital ratio | AP21: =VLOOKUP($AM$21*1,List!$A$3:$K$23,11,FALSE) -> 0 | AR21: =VLOOKUP($AM$21*1,List!$A$3:$M$23,13,FALSE) -> Solvency
C22: 2020-12-01 | F22: 0.1719856936 | I22: 0.1583604907 | L22: 0.1803584264 | O22: 0.212919732 | AT22: WA
C23: 2021-03-01 | F23: =IF(AND(YEAR(C23)<2018,$AK$21="PFT_43"),"",IFERROR(VLOOKUP($C23,$AM$25:$BB$42,8,FALSE), "")) -> 0.1705119204 | I23: 0.1574664782 | L23: 0.1802804216 | O23: 0.2109595522 | AP23: 5 | AQ23: 6 | AR23: 7 | AS23: 8 | AT23: 9 | AU23: 10 | AV23: 11 | AW23: 14 | AX23: 15 | AY23: Dispersion chart | BD23: 12 | BE23: 13 | BJ23: 16
C24: 2021-06-01 | F24: 0.1708495524 | I24: 0.1559383138 | L24: 0.1760116964 | O24: 0.2125969098 | AL24: =+'Reference Dates'!$C$6 -> 2022-03-30 | AP24: 5^ pct | AQ24: First quartile | AR24: Median | AS24: Average | AT24: All banks | AU24: Third quartile | AV24: 95^ pct | AW24: Small | AX24: Medium | AY24: Q1 | AZ24: Q1 Neg | BA24: Q2 | BB24: Q3 | BC24: 5pct | BD24: 95 pct | BE24: Numeratir | BF24: Denominator | BG24: =VLOOKUP($AN$21,List!$D:$L,6,0) -> Tier 1 capital | BH24: =VLOOKUP($AN$21,List!$D:$L,7,0) -> Total risk exposure amount | BI24: Quarter | BJ24: Large
C25: 2021-09-01 | F25: 0.1700241092 | I25: 0.1555245461 | L25: 0.1754100082 | O25: 0.2129016755 | AK25: 1 | AL25: =(+AN25)*1 -> 201906 | AM25: =+'Reference Dates'!$C$7 -> 2019-06-01 | AN25: =+IF(MONTH(AM25)=12,YEAR(AM25)&MONTH(AM25),YEAR(AM25)&0&MONTH(AM25)) -> 201906 | AO25: =CONCATENATE($AO$21,AN25) -> Tier 1 capital ratio201906 | AP25: =VLOOKUP($AO25,Data!$A$1:$P$688,Charts!AP$23,FALSE) -> 0.1286853066 | AQ25: =VLOOKUP($AO25,Data!$A$1:$P$688,Charts!AQ$23,FALSE) -> 0.1464257216 | AR25: =VLOOKUP($AO25,Data!$A$1:$P$688,Charts!AR$23,FALSE) -> 0.165238908 | AS25: =VLOOKUP($AO25,Data!$A$1:$P$688,Charts!AS$23,FALSE) -> 0.2029240713 | AT25: =VLOOKUP($AO25,Data!$A$1:$P$688,Charts!AT$23,FALSE) -> 0.1617222784 | AU25: =VLOOKUP($AO25,Data!$A$1:$P$688,Charts!AU$23,FALSE) -> 0.1975077077 | AV25: =VLOOKUP($AO25,Data!$A$1:$P$688,Charts!AV$23,FALSE) -> 0.4361673222 | AW25: =VLOOKUP($AO25,Data!$A$1:$P$688,Charts!AW$23,FALSE) -> 0.1821048056 | AX25: =VLOOKUP($AO25,Data!$A$1:$P$688,Charts!AX$23,FALSE) -> 0.1701416522 | AY25: =IF(AQ25<0,0,AQ25) -> 0.1464257216 | AZ25: =IF(AQ25<0,AQ25,0) -> 0 | BA25: =AR25-AY25 -> 0.01881318643 | BB25: =AU25-AR25 -> 0.03226879974 | BC25: =AQ25-AP25 -> 0.01774041494 | BD25: =AV25-AU25 -> 0.2386596144 | BE25: =VLOOKUP($AO25,Data!$A$1:$P$688,BD$23,FALSE) -> 1.278111537e+12 | BF25: =VLOOKUP($AO25,Data!$A$1:$P$688,BE$23,FALSE) -> 8.217206204e+12 | BG25: =IFERROR(IF($AP$21=0,BE25/BE$25*100,(100*(BE25*12/$BI25)/BE$25)),IFERROR(IF($AP$21=0, BE25/BE$26*100, 100*(BE25*12/$BI25)/BE$26), IFERROR(IF($AP$21=0, BE25/BE$27*100, 100*(BE25*12/$BI25)/BE$27),IFERROR(IF($AP$21=0, BE25/BE$28*100, 100*(BE25*12/$BI25)/BE$28), IFERROR(IF($AP$21=0, BE25/BE$29*100, 100*(BE25*12/$BI25)/BE$29),IFERROR(IF($AP$21=0, BE25/BE$30*100, 100*(BE25*12/$BI25)/#REF!),IFERROR(IF($AP$21=0, BE25/BE$31*100, 100*(BE25*12/$BI25)/BE$31),IFERROR(IF($AP$21=0, BE25/BE$31*100, 100*(BE25*12/$BI25)/BE$31),IFERROR(IF($AP$21=0, BE25/BE$32*100, 100*(BE25*12/$BI25)/BE$32),IFERROR(IF($AP$21=0, BE25/BE$33*100, 100*(BE25*12/$BI25)/BE$33),IF($AP$21=0, BE25/BE$34*100, 100*(BE25*12/$BI25)/BE$34))))))))))) -> 100 | BH25: =IFERROR(IF($AP$21=0,BF25/BF$25*100,(100*(BF25*12/$BI25)/BF$25)),IFERROR(IF($AP$21=0, BF25/BF$26*100, 100*(BF25*12/$BI25)/BF$26), IFERROR(IF($AP$21=0, BF25/BF$27*100, 100*(BF25*12/$BI25)/BF$27),IFERROR(IF($AP$21=0, BF25/BF$28*100, 100*(BF25*12/$BI25)/BF$28), IFERROR(IF($AP$21=0, BF25/BF$29*100, 100*(BF25*12/$BI25)/BF$29),IFERROR(IF($AP$21=0, BF25/BF$30*100, 100*(BF25*12/$BI25)/#REF!),IFERROR(IF($AP$21=0, BF25/BF$31*100, 100*(BF25*12/$BI25)/BF$31),IFERROR(IF($AP$21=0, BF25/BF$31*100, 100*(BF25*12/$BI25)/BF$31),IFERROR(IF($AP$21=0, BF25/BF$32*100, 100*(BF25*12/$BI25)/BF$32),IFERROR(IF($AP$21=0, BF25/BF$33*100, 100*(BF25*12/$BI25)/BF$33),IF($AP$21=0, BF25/BF$34*100, 100*(BF25*12/$BI25)/BF$34))))))))))) -> 100 | BI25: =MONTH(AM25) -> 6 | BJ25: =VLOOKUP($AO25,Data!$A$1:$P$688,Charts!BJ$23,FALSE) -> 0.1577054917
C26: =AM35 -> 2021-12-01 | F26: 0.1709944629 | I26: 0.1565749599 | L26: 0.1789129166 | O26: 0.2132876528 | AL26: 201909 | AM26: =IF(AM25<$AL$24,+DATE(YEAR(AM25),MONTH(AM25)+3,DAY(AM25)),"") -> 2019-09-01 | AN26: =+IF(MONTH(AM26)=12,YEAR(AM26)&MONTH(AM26),YEAR(AM26)&0&MONTH(AM26)) -> 201909 | AO26: =CONCATENATE($AO$21,AN26) -> Tier 1 capital ratio201909 | AP26: =VLOOKUP($AO26,Data!$A$1:$P$688,Charts!AP$23,FALSE) -> 0.1301158391 | AQ26: =VLOOKUP($AO26,Data!$A$1:$P$688,Charts!AQ$23,FALSE) -> 0.147537046 | AR26: =VLOOKUP($AO26,Data!$A$1:$P$688,Charts!AR$23,FALSE) -> 0.1638160644 | AS26: =VLOOKUP($AO26,Data!$A$1:$P$688,Charts!AS$23,FALSE) -> 0.2011495804 | AT26: =VLOOKUP($AO26,Data!$A$1:$P$688,Charts!AT$23,FALSE) -> 0.1613677389 | AU26: =VLOOKUP($AO26,Data!$A$1:$P$688,Charts!AU$23,FALSE) -> 0.1945912543 | AV26: =VLOOKUP($AO26,Data!$A$1:$P$688,Charts!AV$23,FALSE) -> 0.4122195248 | AW26: =VLOOKUP($AO26,Data!$A$1:$P$688,Charts!AW$23,FALSE) -> 0.1790053384 | AX26: =VLOOKUP($AO26,Data!$A$1:$P$688,Charts!AX$23,FALSE) -> 0.1694406973 | AY26: =IF(AQ26<0,0,AQ26) -> 0.147537046 | AZ26: =IF(AQ26<0,AQ26,0) -> 0 | BA26: =AR26-AY26 -> 0.0162790184 | BB26: =AU26-AR26 -> 0.03077518984 | BC26: =AQ26-AP26 -> 0.01742120696 | BD26: =AV26-AU26 -> 0.2176282706 | BE26: =VLOOKUP($AO26,Data!$A$1:$P$688,BD$23,FALSE) -> 1.292409104e+12 | BF26: =VLOOKUP($AO26,Data!$A$1:$P$688,BE$23,FALSE) -> 8.305931527e+12 | BG26: =IFERROR(IF($AP$21=0,BE26/BE$25*100,(100*(BE26*12/$BI26)/BE$25)),IFERROR(IF($AP$21=0, BE26/BE$26*100, 100*(BE26*12/$BI26)/BE$26), IFERROR(IF($AP$21=0, BE26/BE$27*100, 100*(BE26*12/$BI26)/BE$27),IFERROR(IF($AP$21=0, BE26/BE$28*100, 100*(BE26*12/$BI26)/BE$28), IFERROR(IF($AP$21=0, BE26/BE$29*100, 100*(BE26*12/$BI26)/BE$29),IFERROR(IF($AP$21=0, BE26/BE$30*100, 100*(BE26*12/$BI26)/#REF!),IFERROR(IF($AP$21=0, BE26/BE$31*100, 100*(BE26*12/$BI26)/BE$31),IFERROR(IF($AP$21=0, BE26/BE$31*100, 100*(BE26*12/$BI26)/BE$31),IFERROR(IF($AP$21=0, BE26/BE$32*100, 100*(BE26*12/$BI26)/BE$32),IFERROR(IF($AP$21=0, BE26/BE$33*100, 100*(BE26*12/$BI26)/BE$33),IF($AP$21=0, BE26/BE$34*100, 100*(BE26*12/$BI26)/BE$34))))))))))) -> 101.1186479 | BH26: =IFERROR(IF($AP$21=0,BF26/BF$25*100,(100*(BF26*12/$BI26)/BF$25)),IFERROR(IF($AP$21=0, BF26/BF$26*100, 100*(BF26*12/$BI26)/BF$26), IFERROR(IF($AP$21=0, BF26/BF$27*100, 100*(BF26*12/$BI26)/BF$27),IFERROR(IF($AP$21=0, BF26/BF$28*100, 100*(BF26*12/$BI26)/BF$28), IFERROR(IF($AP$21=0, BF26/BF$29*100, 100*(BF26*12/$BI26)/BF$29),IFERROR(IF($AP$21=0, BF26/BF$30*100, 100*(BF26*12/$BI26)/#REF!),IFERROR(IF($AP$21=0, BF26/BF$31*100, 100*(BF26*12/$BI26)/BF$31),IFERROR(IF($AP$21=0, BF26/BF$31*100, 100*(BF26*12/$BI26)/BF$31),IFERROR(IF($AP$21=0, BF26/BF$32*100, 100*(BF26*12/$BI26)/BF$32),IFERROR(IF($AP$21=0, BF26/BF$33*100, 100*(BF26*12/$BI26)/BF$33),IF($AP$21=0, BF26/BF$34*100, 100*(BF26*12/$BI26)/BF$34))))))))))) -> 101.0797505 | BI26: 9 | BJ26: =VLOOKUP($AO26,Data!$A$1:$P$688,Charts!BJ$23,FALSE) -> 0.1576366462
C27: =AM36 -> 2022-03-01 | F27: 0.1641236937 | I27: 0.1529304941 | L27: 0.1694540415 | O27: 0.2022011372 | AL27: 201912 | AM27: =IF(AM26<$AL$24,+DATE(YEAR(AM26),MONTH(AM26)+3,DAY(AM26)),"") -> 2019-12-01 | AN27: 201912 | AO27: Tier 1 capital ratio201912 | AP27: =VLOOKUP($AO27,Data!$A$1:$P$688,Charts!AP$23,FALSE) -> 0.132043229 | AQ27: =VLOOKUP($AO27,Data!$A$1:$P$688,Charts!AQ$23,FALSE) -> 0.152002714 | AR27: =VLOOKUP($AO27,Data!$A$1:$P$688,Charts!AR$23,FALSE) -> 0.1717275433 | AS27: =VLOOKUP($AO27,Data!$A$1:$P$688,Charts!AS$23,FALSE) -> 0.2063098402 | AT27: =VLOOKUP($AO27,Data!$A$1:$P$688,Charts!AT$23,FALSE) -> 0.1678534559 | AU27: =VLOOKUP($AO27,Data!$A$1:$P$688,Charts!AU$23,FALSE) -> 0.2041354545 | AV27: =VLOOKUP($AO27,Data!$A$1:$P$688,Charts!AV$23,FALSE) -> 0.388349476 | AW27: =VLOOKUP($AO27,Data!$A$1:$P$688,Charts!AW$23,FALSE) -> 0.1938528918 | AX27: =VLOOKUP($AO27,Data!$A$1:$P$688,Charts!AX$23,FALSE) -> 0.1749168562 | AY27: 0.152002714 | AZ27: 0 | BA27: 0.01972482922 | BB27: 0.0324079112 | BC27: 0.01995948503 | BD27: 0.1842140215 | BE27: =VLOOKUP($AO27,Data!$A$1:$P$688,BD$23,FALSE) -> 1.327366681e+12 | BF27: =VLOOKUP($AO27,Data!$A$1:$P$688,BE$23,FALSE) -> 8.232475198e+12 | BG27: =IFERROR(IF($AP$21=0,BE27/BE$25*100,(100*(BE27*12/$BI27)/BE$25)),IFERROR(IF($AP$21=0, BE27/BE$26*100, 100*(BE27*12/$BI27)/BE$26), IFERROR(IF($AP$21=0, BE27/BE$27*100, 100*(BE27*12/$BI27)/BE$27),IFERROR(IF($AP$21=0, BE27/BE$28*100, 100*(BE27*12/$BI27)/BE$28), IFERROR(IF($AP$21=0, BE27/BE$29*100, 100*(BE27*12/$BI27)/BE$29),IFERROR(IF($AP$21=0, BE27/BE$30*100, 100*(BE27*12/$BI27)/#REF!),IFERROR(IF($AP$21=0, BE27/BE$31*100, 100*(BE27*12/$BI27)/BE$31),IFERROR(IF($AP$21=0, BE27/BE$31*100, 100*(BE27*12/$BI27)/BE$31),IFERROR(IF($AP$21=0, BE27/BE$32*100, 100*(BE27*12/$BI27)/BE$32),IFERROR(IF($AP$21=0, BE27/BE$33*100, 100*(BE27*12/$BI27)/BE$33),IF($AP$21=0, BE27/BE$34*100, 100*(BE27*12/$BI27)/BE$34))))))))))) -> 103.8537438 | BH27: =IFERROR(IF($AP$21=0,BF27/BF$25*100,(100*(BF27*12/$BI27)/BF$25)),IFERROR(IF($AP$21=0, BF27/BF$26*100, 100*(BF27*12/$BI27)/BF$26), IFERROR(IF($AP$21=0, BF27/BF$27*100, 100*(BF27*12/$BI27)/BF$27),IFERROR(IF($AP$21=0, BF27/BF$28*100, 100*(BF27*12/$BI27)/BF$28), IFERROR(IF($AP$21=0, BF27/BF$29*100, 100*(BF27*12/$BI27)/BF$29),IFERROR(IF($AP$21=0, BF27/BF$30*100, 100*(BF27*12/$BI27)/#REF!),IFERROR(IF($AP$21=0, BF27/BF$31*100, 100*(BF27*12/$BI27)/BF$31),IFERROR(IF($AP$21=0, BF27/BF$31*100, 100*(BF27*12/$BI27)/BF$31),IFERROR(IF($AP$21=0, BF27/BF$32*100, 100*(BF27*12/$BI27)/BF$32),IFERROR(IF($AP$21=0, BF27/BF$33*100, 100*(BF27*12/$BI27)/BF$33),IF($AP$21=0, BF27/BF$34*100, 100*(BF27*12/$BI27)/BF$34))))))))))) -> 100.1858173 | BI27: 12 | BJ27: =VLOOKUP($AO27,Data!$A$1:$P$688,Charts!BJ$23,FALSE) -> 0.1634109893
B28: =IF($AK$21="PFT_43","Data for Cost of Risk are shown here as a positive value, even though they are commonly expenses.","") ->  | AL28: 202003 | AM28: 2020-03-01 | AN28: 202003 | AO28: Tier 1 capital ratio202003 | AP28: =VLOOKUP($AO28,Data!$A$1:$P$688,Charts!AP$23,FALSE) -> 0.1310134759 | AQ28: =VLOOKUP($AO28,Data!$A$1:$P$688,Charts!AQ$23,FALSE) -> 0.1427134004 | AR28: =VLOOKUP($AO28,Data!$A$1:$P$688,Charts!AR$23,FALSE) -> 0.162881694 | AS28: =VLOOKUP($AO28,Data!$A$1:$P$688,Charts!AS$23,FALSE) -> 0.1985415454 | AT28: =VLOOKUP($AO28,Data!$A$1:$P$688,Charts!AT$23,FALSE) -> 0.1581940407 | AU28: =VLOOKUP($AO28,Data!$A$1:$P$688,Charts!AU$23,FALSE) -> 0.1989703886 | AV28: =VLOOKUP($AO28,Data!$A$1:$P$688,Charts!AV$23,FALSE) -> 0.3691135761 | AW28: =VLOOKUP($AO28,Data!$A$1:$P$688,Charts!AW$23,FALSE) -> 0.2011248002 | AX28: =VLOOKUP($AO28,Data!$A$1:$P$688,Charts!AX$23,FALSE) -> 0.1684993154 | AY28: 0.1427134004 | AZ28: 0 | BA28: 0.02016829364 | BB28: 0.03608869459 | BC28: 0.01169992444 | BD28: 0.1701431875 | BE28: =VLOOKUP($AO28,Data!$A$1:$P$688,BD$23,FALSE) -> 1.310432796e+12 | BF28: =VLOOKUP($AO28,Data!$A$1:$P$688,BE$23,FALSE) -> 8.39325203e+12 | BG28: =IFERROR(IF($AP$21=0,BE28/BE$25*100,(100*(BE28*12/$BI28)/BE$25)),IFERROR(IF($AP$21=0, BE28/BE$26*100, 100*(BE28*12/$BI28)/BE$26), IFERROR(IF($AP$21=0, BE28/BE$27*100, 100*(BE28*12/$BI28)/BE$27),IFERROR(IF($AP$21=0, BE28/BE$28*100, 100*(BE28*12/$BI28)/BE$28), IFERROR(IF($AP$21=0, BE28/BE$29*100, 100*(BE28*12/$BI28)/BE$29),IFERROR(IF($AP$21=0, BE28/BE$30*100, 100*(BE28*12/$BI28)/#REF!),IFERROR(IF($AP$21=0, BE28/BE$31*100, 100*(BE28*12/$BI28)/BE$31),IFERROR(IF($AP$21=0, BE28/BE$31*100, 100*(BE28*12/$BI28)/BE$31),IFERROR(IF($AP$21=0, BE28/BE$32*100, 100*(BE28*12/$BI28)/BE$32),IFERROR(IF($AP$21=0, BE28/BE$33*100, 100*(BE28*12/$BI28)/BE$33),IF($AP$21=0, BE28/BE$34*100, 100*(BE28*12/$BI28)/BE$34))))))))))) -> 102.5288293 | BH28: =IFERROR(IF($AP$21=0,BF28/BF$25*100,(100*(BF28*12/$BI28)/BF$25)),IFERROR(IF($AP$21=0, BF28/BF$26*100, 100*(BF28*12/$BI28)/BF$26), IFERROR(IF($AP$21=0, BF28/BF$27*100, 100*(BF28*12/$BI28)/BF$27),IFERROR(IF($AP$21=0, BF28/BF$28*100, 100*(BF28*12/$BI28)/BF$28), IFERROR(IF($AP$21=0, BF28/BF$29*100, 100*(BF28*12/$BI28)/BF$29),IFERROR(IF($AP$21=0, BF28/BF$30*100, 100*(BF28*12/$BI28)/#REF!),IFERROR(IF($AP$21=0, BF28/BF$31*100, 100*(BF28*12/$BI28)/BF$31),IFERROR(IF($AP$21=0, BF28/BF$31*100, 100*(BF28*12/$BI28)/BF$31),IFERROR(IF($AP$21=0, BF28/BF$32*100, 100*(BF28*12/$BI28)/BF$32),IFERROR(IF($AP$21=0, BF28/BF$33*100, 100*(BF28*12/$BI28)/BF$33),IF($AP$21=0, BF28/BF$34*100, 100*(BF28*12/$BI28)/BF$34))))))))))) -> 102.1424049 | BI28: 3 | BJ28: =VLOOKUP($AO28,Data!$A$1:$P$688,Charts!BJ$23,FALSE) -> 0.1540963595
AL29: 202006 | AM29: 2020-06-01 | AN29: 202006 | AO29: Tier 1 capital ratio202006 | AP29: =VLOOKUP($AO29,Data!$A$1:$P$688,Charts!AP$23,FALSE) -> 0.1330936645 | AQ29: =VLOOKUP($AO29,Data!$A$1:$P$688,Charts!AQ$23,FALSE) -> 0.1479937941 | AR29: =VLOOKUP($AO29,Data!$A$1:$P$688,Charts!AR$23,FALSE) -> 0.1696146986 | AS29: =VLOOKUP($AO29,Data!$A$1:$P$688,Charts!AS$23,FALSE) -> 0.2065639391 | AT29: =VLOOKUP($AO29,Data!$A$1:$P$688,Charts!AT$23,FALSE) -> 0.1630563226 | AU29: =VLOOKUP($AO29,Data!$A$1:$P$688,Charts!AU$23,FALSE) -> 0.2011049692 | AV29: =VLOOKUP($AO29,Data!$A$1:$P$688,Charts!AV$23,FALSE) -> 0.3597325392 | AW29: =VLOOKUP($AO29,Data!$A$1:$P$688,Charts!AW$23,FALSE) -> 0.2077145219 | AX29: =VLOOKUP($AO29,Data!$A$1:$P$688,Charts!AX$23,FALSE) -> 0.1730901202 | AY29: =IF(AQ29<0,0,AQ29) -> 0.1479937941 | AZ29: =IF(AQ29<0,AQ29,0) -> 0 | BA29: =AR29-AY29 -> 0.02162090451 | BB29: =AU29-AR29 -> 0.0314902706 | BC29: =AQ29-AP29 -> 0.01490012965 | BD29: =AV29-AU29 -> 0.1586275699 | BE29: =VLOOKUP($AO29,Data!$A$1:$P$688,BD$23,FALSE) -> 1.342077516e+12 | BF29: =VLOOKUP($AO29,Data!$A$1:$P$688,BE$23,FALSE) -> 8.341730097e+12 | BG29: =IFERROR(IF($AP$21=0,BE29/BE$25*100,(100*(BE29*12/$BI29)/BE$25)),IFERROR(IF($AP$21=0, BE29/BE$26*100, 100*(BE29*12/$BI29)/BE$26), IFERROR(IF($AP$21=0, BE29/BE$27*100, 100*(BE29*12/$BI29)/BE$27),IFERROR(IF($AP$21=0, BE29/BE$28*100, 100*(BE29*12/$BI29)/BE$28), IFERROR(IF($AP$21=0, BE29/BE$29*100, 100*(BE29*12/$BI29)/BE$29),IFERROR(IF($AP$21=0, BE29/BE$30*100, 100*(BE29*12/$BI29)/#REF!),IFERROR(IF($AP$21=0, BE29/BE$31*100, 100*(BE29*12/$BI29)/BE$31),IFERROR(IF($AP$21=0, BE29/BE$31*100, 100*(BE29*12/$BI29)/BE$31),IFERROR(IF($AP$21=0, BE29/BE$32*100, 100*(BE29*12/$BI29)/BE$32),IFERROR(IF($AP$21=0, BE29/BE$33*100, 100*(BE29*12/$BI29)/BE$33),IF($AP$21=0, BE29/BE$34*100, 100*(BE29*12/$BI29)/BE$34))))))))))) -> 105.0047259 | BH29: =IFERROR(IF($AP$21=0,BF29/BF$25*100,(100*(BF29*12/$BI29)/BF$25)),IFERROR(IF($AP$21=0, BF29/BF$26*100, 100*(BF29*12/$BI29)/BF$26), IFERROR(IF($AP$21=0, BF29/BF$27*100, 100*(BF29*12/$BI29)/BF$27),IFERROR(IF($AP$21=0, BF29/BF$28*100, 100*(BF29*12/$BI29)/BF$28), IFERROR(IF($AP$21=0, BF29/BF$29*100, 100*(BF29*12/$BI29)/BF$29),IFERROR(IF($AP$21=0, BF29/BF$30*100, 100*(BF29*12/$BI29)/#REF!),IFERROR(IF($AP$21=0, BF29/BF$31*100, 100*(BF29*12/$BI29)/BF$31),IFERROR(IF($AP$21=0, BF29/BF$31*100, 100*(BF29*12/$BI29)/BF$31),IFERROR(IF($AP$21=0, BF29/BF$32*100, 100*(BF29*12/$BI29)/BF$32),IFERROR(IF($AP$21=0, BF29/BF$33*100, 100*(BF29*12/$BI29)/BF$33),IF($AP$21=0, BF29/BF$34*100, 100*(BF29*12/$BI29)/BF$34))))))))))) -> 101.5154043 | BI29: 6 | BJ29: =VLOOKUP($AO29,Data!$A$1:$P$688,Charts!BJ$23,FALSE) -> 0.1589869672
AL30: 202009 | AM30: 2020-09-01 | AN30: 202009 | AO30: Tier 1 capital ratio202009 | AP30: =VLOOKUP($AO30,Data!$A$1:$P$688,Charts!AP$23,FALSE) -> 0.1338801773 | AQ30: =VLOOKUP($AO30,Data!$A$1:$P$688,Charts!AQ$23,FALSE) -> 0.1529035899 | AR30: =VLOOKUP($AO30,Data!$A$1:$P$688,Charts!AR$23,FALSE) -> 0.172888396 | AS30: =VLOOKUP($AO30,Data!$A$1:$P$688,Charts!AS$23,FALSE) -> 0.2147456218 | AT30: =VLOOKUP($AO30,Data!$A$1:$P$688,Charts!AT$23,FALSE) -> 0.1671962406 | AU30: =VLOOKUP($AO30,Data!$A$1:$P$688,Charts!AU$23,FALSE) -> 0.2052266468 | AV30: =VLOOKUP($AO30,Data!$A$1:$P$688,Charts!AV$23,FALSE) -> 0.4015620238 | AW30: =VLOOKUP($AO30,Data!$A$1:$P$688,Charts!AW$23,FALSE) -> 0.2221660828 | AX30: =VLOOKUP($AO30,Data!$A$1:$P$688,Charts!AX$23,FALSE) -> 0.1773664726 | AY30: 0.1529035899 | AZ30: 0 | BA30: 0.01998480614 | BB30: 0.0323382508 | BC30: 0.01902341254 | BD30: 0.196335377 | BE30: =VLOOKUP($AO30,Data!$A$1:$P$688,BD$23,FALSE) -> 1.352343935e+12 | BF30: =VLOOKUP($AO30,Data!$A$1:$P$688,BE$23,FALSE) -> 8.223774646e+12 | BG30: =IFERROR(IF($AP$21=0,BE30/BE$25*100,(100*(BE30*12/$BI30)/BE$25)),IFERROR(IF($AP$21=0, BE30/BE$26*100, 100*(BE30*12/$BI30)/BE$26), IFERROR(IF($AP$21=0, BE30/BE$27*100, 100*(BE30*12/$BI30)/BE$27),IFERROR(IF($AP$21=0, BE30/BE$28*100, 100*(BE30*12/$BI30)/BE$28), IFERROR(IF($AP$21=0, BE30/BE$29*100, 100*(BE30*12/$BI30)/BE$29),IFERROR(IF($AP$21=0, BE30/BE$30*100, 100*(BE30*12/$BI30)/#REF!),IFERROR(IF($AP$21=0, BE30/BE$31*100, 100*(BE30*12/$BI30)/BE$31),IFERROR(IF($AP$21=0, BE30/BE$31*100, 100*(BE30*12/$BI30)/BE$31),IFERROR(IF($AP$21=0, BE30/BE$32*100, 100*(BE30*12/$BI30)/BE$32),IFERROR(IF($AP$21=0, BE30/BE$33*100, 100*(BE30*12/$BI30)/BE$33),IF($AP$21=0, BE30/BE$34*100, 100*(BE30*12/$BI30)/BE$34))))))))))) -> 105.807975 | BH30: =IFERROR(IF($AP$21=0,BF30/BF$25*100,(100*(BF30*12/$BI30)/BF$25)),IFERROR(IF($AP$21=0, BF30/BF$26*100, 100*(BF30*12/$BI30)/BF$26), IFERROR(IF($AP$21=0, BF30/BF$27*100, 100*(BF30*12/$BI30)/BF$27),IFERROR(IF($AP$21=0, BF30/BF$28*100, 100*(BF30*12/$BI30)/BF$28), IFERROR(IF($AP$21=0, BF30/BF$29*100, 100*(BF30*12/$BI30)/BF$29),IFERROR(IF($AP$21=0, BF30/BF$30*100, 100*(BF30*12/$BI30)/#REF!),IFERROR(IF($AP$21=0, BF30/BF$31*100, 100*(BF30*12/$BI30)/BF$31),IFERROR(IF($AP$21=0, BF30/BF$31*100, 100*(BF30*12/$BI30)/BF$31),IFERROR(IF($AP$21=0, BF30/BF$32*100, 100*(BF30*12/$BI30)/BF$32),IFERROR(IF($AP$21=0, BF30/BF$33*100, 100*(BF30*12/$BI30)/BF$33),IF($AP$21=0, BF30/BF$34*100, 100*(BF30*12/$BI30)/BF$34))))))))))) -> 100.0799352 | BI30: 9 | BJ30: =VLOOKUP($AO30,Data!$A$1:$P$688,Charts!BJ$23,FALSE) -> 0.1627480842
AL31: 202012 | AM31: 2020-12-01 | AN31: 202012 | AO31: =CONCATENATE($AO$21,AN31) -> Tier 1 capital ratio202012 | AP31: =VLOOKUP($AO31,Data!$A$1:$P$688,Charts!AP$23,FALSE) -> 0.1378822295 | AQ31: =VLOOKUP($AO31,Data!$A$1:$P$688,Charts!AQ$23,FALSE) -> 0.1583604907 | AR31: =VLOOKUP($AO31,Data!$A$1:$P$688,Charts!AR$23,FALSE) -> 0.1803584264 | AS31: =VLOOKUP($AO31,Data!$A$1:$P$688,Charts!AS$23,FALSE) -> 0.2341510742 | AT31: =VLOOKUP($AO31,Data!$A$1:$P$688,Charts!AT$23,FALSE) -> 0.1719856936 | AU31: =VLOOKUP($AO31,Data!$A$1:$P$688,Charts!AU$23,FALSE) -> 0.212919732 | AV31: =VLOOKUP($AO31,Data!$A$1:$P$688,Charts!AV$23,FALSE) -> 0.3869305403 | AW31: =VLOOKUP($AO31,Data!$A$1:$P$688,Charts!AW$23,FALSE) -> 0.2211264 | AX31: =VLOOKUP($AO31,Data!$A$1:$P$688,Charts!AX$23,FALSE) -> 0.1829495549 | AY31: =IF(AQ31<0,0,AQ31) -> 0.1583604907 | AZ31: =IF(AQ31<0,AQ31,0) -> 0 | BA31: =AR31-AY31 -> 0.02199793567 | BB31: =AU31-AR31 -> 0.03256130555 | BC31: =AQ31-AP31 -> 0.0204782612 | BD31: =AV31-AU31 -> 0.1740108083 | BE31: =VLOOKUP($AO31,Data!$A$1:$P$688,BD$23,FALSE) -> 1.401970523e+12 | BF31: =VLOOKUP($AO31,Data!$A$1:$P$688,BE$23,FALSE) -> 8.287380305e+12 | BG31: =IFERROR(IF($AP$21=0,BE31/BE$25*100,(100*(BE31*12/$BI31)/BE$25)),IFERROR(IF($AP$21=0, BE31/BE$26*100, 100*(BE31*12/$BI31)/BE$26), IFERROR(IF($AP$21=0, BE31/BE$27*100, 100*(BE31*12/$BI31)/BE$27),IFERROR(IF($AP$21=0, BE31/BE$28*100, 100*(BE31*12/$BI31)/BE$28), IFERROR(IF($AP$21=0, BE31/BE$29*100, 100*(BE31*12/$BI31)/BE$29),IFERROR(IF($AP$21=0, BE31/BE$30*100, 100*(BE31*12/$BI31)/#REF!),IFERROR(IF($AP$21=0, BE31/BE$31*100, 100*(BE31*12/$BI31)/BE$31),IFERROR(IF($AP$21=0, BE31/BE$31*100, 100*(BE31*12/$BI31)/BE$31),IFERROR(IF($AP$21=0, BE31/BE$32*100, 100*(BE31*12/$BI31)/BE$32),IFERROR(IF($AP$21=0, BE31/BE$33*100, 100*(BE31*12/$BI31)/BE$33),IF($AP$21=0, BE31/BE$34*100, 100*(BE31*12/$BI31)/BE$34))))))))))) -> 109.6907807 | BH31: =IFERROR(IF($AP$21=0,BF31/BF$25*100,(100*(BF31*12/$BI31)/BF$25)),IFERROR(IF($AP$21=0, BF31/BF$26*100, 100*(BF31*12/$BI31)/BF$26), IFERROR(IF($AP$21=0, BF31/BF$27*100, 100*(BF31*12/$BI31)/BF$27),IFERROR(IF($AP$21=0, BF31/BF$28*100, 100*(BF31*12/$BI31)/BF$28), IFERROR(IF($AP$21=0, BF31/BF$29*100, 100*(BF31*12/$BI31)/BF$29),IFERROR(IF($AP$21=0, BF31/BF$30*100, 100*(BF31*12/$BI31)/#REF!),IFERROR(IF($AP$21=0, BF31/BF$31*100, 100*(BF31*12/$BI31)/BF$31),IFERROR(IF($AP$21=0, BF31/BF$31*100, 100*(BF31*12/$BI31)/BF$31),IFERROR(IF($AP$21=0, BF31/BF$32*100, 100*(BF31*12/$BI31)/BF$32),IFERROR(IF($AP$21=0, BF31/BF$33*100, 100*(BF31*12/$BI31)/BF$33),IF($AP$21=0, BF31/BF$34*100, 100*(BF31*12/$BI31)/BF$34))))))))))) -> 100.8539898 | BI31: =MONTH(AM31) -> 12 | BJ31: =VLOOKUP($AO31,Data!$A$1:$P$688,Charts!BJ$23,FALSE) -> 0.1674183198
AL32: 202103 | AM32: =IF(AM31<$AL$24,+DATE(YEAR(AM31),MONTH(AM31)+3,DAY(AM31)),"") -> 2021-03-01 | AN32: 202103 | AO32: Tier 1 capital ratio202103 | AP32: =VLOOKUP($AO32,Data!$A$1:$P$688,Charts!AP$23,FALSE) -> 0.1374039246 | AQ32: =VLOOKUP($AO32,Data!$A$1:$P$688,Charts!AQ$23,FALSE) -> 0.1574664782 | AR32: =VLOOKUP($AO32,Data!$A$1:$P$688,Charts!AR$23,FALSE) -> 0.1802804216 | AS32: =VLOOKUP($AO32,Data!$A$1:$P$688,Charts!AS$23,FALSE) -> 0.2300505233 | AT32: =VLOOKUP($AO32,Data!$A$1:$P$688,Charts!AT$23,FALSE) -> 0.1705119204 | AU32: =VLOOKUP($AO32,Data!$A$1:$P$688,Charts!AU$23,FALSE) -> 0.2109595522 | AV32: =VLOOKUP($AO32,Data!$A$1:$P$688,Charts!AV$23,FALSE) -> 0.3839784168 | AW32: =VLOOKUP($AO32,Data!$A$1:$P$688,Charts!AW$23,FALSE) -> 0.2092172915 | AX32: =VLOOKUP($AO32,Data!$A$1:$P$688,Charts!AX$23,FALSE) -> 0.1808925222 | AY32: 0.1574664782 | AZ32: 0 | BA32: 0.02281394334 | BB32: 0.03067913059 | BC32: 0.02006255361 | BD32: 0.1730188647 | BE32: =VLOOKUP($AO32,Data!$A$1:$P$688,BD$23,FALSE) -> 1.40970514e+12 | BF32: =VLOOKUP($AO32,Data!$A$1:$P$688,BE$23,FALSE) -> 8.408026097e+12 | BG32: =IFERROR(IF($AP$21=0,BE32/BE$25*100,(100*(BE32*12/$BI32)/BE$25)),IFERROR(IF($AP$21=0, BE32/BE$26*100, 100*(BE32*12/$BI32)/BE$26), IFERROR(IF($AP$21=0, BE32/BE$27*100, 100*(BE32*12/$BI32)/BE$27),IFERROR(IF($AP$21=0, BE32/BE$28*100, 100*(BE32*12/$BI32)/BE$28), IFERROR(IF($AP$21=0, BE32/BE$29*100, 100*(BE32*12/$BI32)/BE$29),IFERROR(IF($AP$21=0, BE32/BE$30*100, 100*(BE32*12/$BI32)/#REF!),IFERROR(IF($AP$21=0, BE32/BE$31*100, 100*(BE32*12/$BI32)/BE$31),IFERROR(IF($AP$21=0, BE32/BE$31*100, 100*(BE32*12/$BI32)/BE$31),IFERROR(IF($AP$21=0, BE32/BE$32*100, 100*(BE32*12/$BI32)/BE$32),IFERROR(IF($AP$21=0, BE32/BE$33*100, 100*(BE32*12/$BI32)/BE$33),IF($AP$21=0, BE32/BE$34*100, 100*(BE32*12/$BI32)/BE$34))))))))))) -> 110.2959405 | BH32: =IFERROR(IF($AP$21=0,BF32/BF$25*100,(100*(BF32*12/$BI32)/BF$25)),IFERROR(IF($AP$21=0, BF32/BF$26*100, 100*(BF32*12/$BI32)/BF$26), IFERROR(IF($AP$21=0, BF32/BF$27*100, 100*(BF32*12/$BI32)/BF$27),IFERROR(IF($AP$21=0, BF32/BF$28*100, 100*(BF32*12/$BI32)/BF$28), IFERROR(IF($AP$21=0, BF32/BF$29*100, 100*(BF32*12/$BI32)/BF$29),IFERROR(IF($AP$21=0, BF32/BF$30*100, 100*(BF32*12/$BI32)/#REF!),IFERROR(IF($AP$21=0, BF32/BF$31*100, 100*(BF32*12/$BI32)/BF$31),IFERROR(IF($AP$21=0, BF32/BF$31*100, 100*(BF32*12/$BI32)/BF$31),IFERROR(IF($AP$21=0, BF32/BF$32*100, 100*(BF32*12/$BI32)/BF$32),IFERROR(IF($AP$21=0, BF32/BF$33*100, 100*(BF32*12/$BI32)/BF$33),IF($AP$21=0, BF32/BF$34*100, 100*(BF32*12/$BI32)/BF$34))))))))))) -> 102.3221992 | BI32: 3 | BJ32: =VLOOKUP($AO32,Data!$A$1:$P$688,Charts!BJ$23,FALSE) -> 0.1663589183
AL33: 202106 | AM33: =IF(AM32<$AL$24,+DATE(YEAR(AM32),MONTH(AM32)+3,DAY(AM32)),"") -> 2021-06-01 | AN33: 202106 | AO33: Tier 1 capital ratio202106 | AP33: =VLOOKUP($AO33,Data!$A$1:$P$688,Charts!AP$23,FALSE) -> 0.1321016093 | AQ33: =VLOOKUP($AO33,Data!$A$1:$P$688,Charts!AQ$23,FALSE) -> 0.1559383138 | AR33: =VLOOKUP($AO33,Data!$A$1:$P$688,Charts!AR$23,FALSE) -> 0.1760116964 | AS33: =VLOOKUP($AO33,Data!$A$1:$P$688,Charts!AS$23,FALSE) -> 0.2269004369 | AT33: =VLOOKUP($AO33,Data!$A$1:$P$688,Charts!AT$23,FALSE) -> 0.1708495524 | AU33: =VLOOKUP($AO33,Data!$A$1:$P$688,Charts!AU$23,FALSE) -> 0.2125969098 | AV33: =VLOOKUP($AO33,Data!$A$1:$P$688,Charts!AV$23,FALSE) -> 0.3374986853 | AW33: =VLOOKUP($AO33,Data!$A$1:$P$688,Charts!AW$23,FALSE) -> 0.214273471 | AX33: =VLOOKUP($AO33,Data!$A$1:$P$688,Charts!AX$23,FALSE) -> 0.181106144 | AY33: 0.1559383138 | AZ33: 0 | BA33: 0.02007338259 | BB33: 0.03658521341 | BC33: 0.02383670454 | BD33: 0.1249017754 | BE33: =VLOOKUP($AO33,Data!$A$1:$P$688,BD$23,FALSE) -> 1.423332776e+12 | BF33: =VLOOKUP($AO33,Data!$A$1:$P$688,BE$23,FALSE) -> 8.444308874e+12 | BG33: =IFERROR(IF($AP$21=0,BE33/BE$25*100,(100*(BE33*12/$BI33)/BE$25)),IFERROR(IF($AP$21=0, BE33/BE$26*100, 100*(BE33*12/$BI33)/BE$26), IFERROR(IF($AP$21=0, BE33/BE$27*100, 100*(BE33*12/$BI33)/BE$27),IFERROR(IF($AP$21=0, BE33/BE$28*100, 100*(BE33*12/$BI33)/BE$28), IFERROR(IF($AP$21=0, BE33/BE$29*100, 100*(BE33*12/$BI33)/BE$29),IFERROR(IF($AP$21=0, BE33/BE$30*100, 100*(BE33*12/$BI33)/#REF!),IFERROR(IF($AP$21=0, BE33/BE$31*100, 100*(BE33*12/$BI33)/BE$31),IFERROR(IF($AP$21=0, BE33/BE$31*100, 100*(BE33*12/$BI33)/BE$31),IFERROR(IF($AP$21=0, BE33/BE$32*100, 100*(BE33*12/$BI33)/BE$32),IFERROR(IF($AP$21=0, BE33/BE$33*100, 100*(BE33*12/$BI33)/BE$33),IF($AP$21=0, BE33/BE$34*100, 100*(BE33*12/$BI33)/BE$34))))))))))) -> 111.3621727 | BH33: =IFERROR(IF($AP$21=0,BF33/BF$25*100,(100*(BF33*12/$BI33)/BF$25)),IFERROR(IF($AP$21=0, BF33/BF$26*100, 100*(BF33*12/$BI33)/BF$26), IFERROR(IF($AP$21=0, BF33/BF$27*100, 100*(BF33*12/$BI33)/BF$27),IFERROR(IF($AP$21=0, BF33/BF$28*100, 100*(BF33*12/$BI33)/BF$28), IFERROR(IF($AP$21=0, BF33/BF$29*100, 100*(BF33*12/$BI33)/BF$29),IFERROR(IF($AP$21=0, BF33/BF$30*100, 100*(BF33*12/$BI33)/#REF!),IFERROR(IF($AP$21=0, BF33/BF$31*100, 100*(BF33*12/$BI33)/BF$31),IFERROR(IF($AP$21=0, BF33/BF$31*100, 100*(BF33*12/$BI33)/BF$31),IFERROR(IF($AP$21=0, BF33/BF$32*100, 100*(BF33*12/$BI33)/BF$32),IFERROR(IF($AP$21=0, BF33/BF$33*100, 100*(BF33*12/$BI33)/BF$33),IF($AP$21=0, BF33/BF$34*100, 100*(BF33*12/$BI33)/BF$34))))))))))) -> 102.7637455 | BI33: 6 | BJ33: =VLOOKUP($AO33,Data!$A$1:$P$688,Charts!BJ$23,FALSE) -> 0.1665277532
AL34: 202109 | AM34: 2021-09-01 | AN34: 202109 | AO34: Tier 1 capital ratio202109 | AP34: =VLOOKUP($AO34,Data!$A$1:$P$688,Charts!AP$23,FALSE) -> 0.1313591355 | AQ34: =VLOOKUP($AO34,Data!$A$1:$P$688,Charts!AQ$23,FALSE) -> 0.1555245461 | AR34: =VLOOKUP($AO34,Data!$A$1:$P$688,Charts!AR$23,FALSE) -> 0.1754100082 | AS34: =VLOOKUP($AO34,Data!$A$1:$P$688,Charts!AS$23,FALSE) -> 0.2242529536 | AT34: =VLOOKUP($AO34,Data!$A$1:$P$688,Charts!AT$23,FALSE) -> 0.1700241092 | AU34: =VLOOKUP($AO34,Data!$A$1:$P$688,Charts!AU$23,FALSE) -> 0.2129016755 | AV34: =VLOOKUP($AO34,Data!$A$1:$P$688,Charts!AV$23,FALSE) -> 0.3315302694 | AW34: =VLOOKUP($AO34,Data!$A$1:$P$688,Charts!AW$23,FALSE) -> 0.2099619803 | AX34: =VLOOKUP($AO34,Data!$A$1:$P$688,Charts!AX$23,FALSE) -> 0.1787843874 | AY34: 0.1555245461 | AZ34: 0 | BA34: 0.01988546214 | BB34: 0.03749166729 | BC34: 0.02416541054 | BD34: 0.1186285939 | BE34: =VLOOKUP($AO34,Data!$A$1:$P$688,BD$23,FALSE) -> 1.420788143e+12 | BF34: =VLOOKUP($AO34,Data!$A$1:$P$688,BE$23,FALSE) -> 8.466386979e+12 | BG34: =IFERROR(IF($AP$21=0,BE34/BE$25*100,(100*(BE34*12/$BI34)/BE$25)),IFERROR(IF($AP$21=0, BE34/BE$26*100, 100*(BE34*12/$BI34)/BE$26), IFERROR(IF($AP$21=0, BE34/BE$27*100, 100*(BE34*12/$BI34)/BE$27),IFERROR(IF($AP$21=0, BE34/BE$28*100, 100*(BE34*12/$BI34)/BE$28), IFERROR(IF($AP$21=0, BE34/BE$29*100, 100*(BE34*12/$BI34)/BE$29),IFERROR(IF($AP$21=0, BE34/BE$30*100, 100*(BE34*12/$BI34)/#REF!),IFERROR(IF($AP$21=0, BE34/BE$31*100, 100*(BE34*12/$BI34)/BE$31),IFERROR(IF($AP$21=0, BE34/BE$31*100, 100*(BE34*12/$BI34)/BE$31),IFERROR(IF($AP$21=0, BE34/BE$32*100, 100*(BE34*12/$BI34)/BE$32),IFERROR(IF($AP$21=0, BE34/BE$33*100, 100*(BE34*12/$BI34)/BE$33),IF($AP$21=0, BE34/BE$34*100, 100*(BE34*12/$BI34)/BE$34))))))))))) -> 111.1630795 | BH34: =IFERROR(IF($AP$21=0,BF34/BF$25*100,(100*(BF34*12/$BI34)/BF$25)),IFERROR(IF($AP$21=0, BF34/BF$26*100, 100*(BF34*12/$BI34)/BF$26), IFERROR(IF($AP$21=0, BF34/BF$27*100, 100*(BF34*12/$BI34)/BF$27),IFERROR(IF($AP$21=0, BF34/BF$28*100, 100*(BF34*12/$BI34)/BF$28), IFERROR(IF($AP$21=0, BF34/BF$29*100, 100*(BF34*12/$BI34)/BF$29),IFERROR(IF($AP$21=0, BF34/BF$30*100, 100*(BF34*12/$BI34)/#REF!),IFERROR(IF($AP$21=0, BF34/BF$31*100, 100*(BF34*12/$BI34)/BF$31),IFERROR(IF($AP$21=0, BF34/BF$31*100, 100*(BF34*12/$BI34)/BF$31),IFERROR(IF($AP$21=0, BF34/BF$32*100, 100*(BF34*12/$BI34)/BF$32),IFERROR(IF($AP$21=0, BF34/BF$33*100, 100*(BF34*12/$BI34)/BF$33),IF($AP$21=0, BF34/BF$34*100, 100*(BF34*12/$BI34)/BF$34))))))))))) -> 103.0324269 | BI34: 9 | BJ34: =VLOOKUP($AO34,Data!$A$1:$P$688,Charts!BJ$23,FALSE) -> 0.1661512521
AL35: 202112 | AM35: 2021-12-01 | AN35: 202112 | AO35: Tier 1 capital ratio202112 | AP35: =VLOOKUP($AO35,Data!$A$1:$P$688,Charts!AP$23,FALSE) -> 0.130419147 | AQ35: =VLOOKUP($AO35,Data!$A$1:$P$688,Charts!AQ$23,FALSE) -> 0.1565749599 | AR35: =VLOOKUP($AO35,Data!$A$1:$P$688,Charts!AR$23,FALSE) -> 0.1789129166 | AS35: =VLOOKUP($AO35,Data!$A$1:$P$688,Charts!AS$23,FALSE) -> 0.2321424115 | AT35: =VLOOKUP($AO35,Data!$A$1:$P$688,Charts!AT$23,FALSE) -> 0.1709944629 | AU35: =VLOOKUP($AO35,Data!$A$1:$P$688,Charts!AU$23,FALSE) -> 0.2132876528 | AV35: =VLOOKUP($AO35,Data!$A$1:$P$688,Charts!AV$23,FALSE) -> 0.3393697998 | AW35: =VLOOKUP($AO35,Data!$A$1:$P$688,Charts!AW$23,FALSE) -> 0.1996029602 | AX35: =VLOOKUP($AO35,Data!$A$1:$P$688,Charts!AX$23,FALSE) -> 0.1811120287 | AY35: 0.1565749599 | AZ35: 0 | BA35: 0.02233795664 | BB35: 0.0343747362 | BC35: 0.02615581294 | BD35: 0.126082147 | BE35: =VLOOKUP($AO35,Data!$A$1:$P$688,BD$23,FALSE) -> 1.437032134e+12 | BF35: =VLOOKUP($AO35,Data!$A$1:$P$688,BE$23,FALSE) -> 8.491450986e+12 | BG35: =IFERROR(IF($AP$21=0,BE35/BE$25*100,(100*(BE35*12/$BI35)/BE$25)),IFERROR(IF($AP$21=0, BE35/BE$26*100, 100*(BE35*12/$BI35)/BE$26), IFERROR(IF($AP$21=0, BE35/BE$27*100, 100*(BE35*12/$BI35)/BE$27),IFERROR(IF($AP$21=0, BE35/BE$28*100, 100*(BE35*12/$BI35)/BE$28), IFERROR(IF($AP$21=0, BE35/BE$29*100, 100*(BE35*12/$BI35)/BE$29),IFERROR(IF($AP$21=0, BE35/BE$30*100, 100*(BE35*12/$BI35)/#REF!),IFERROR(IF($AP$21=0, BE35/BE$31*100, 100*(BE35*12/$BI35)/BE$31),IFERROR(IF($AP$21=0, BE35/BE$31*100, 100*(BE35*12/$BI35)/BE$31),IFERROR(IF($AP$21=0, BE35/BE$32*100, 100*(BE35*12/$BI35)/BE$32),IFERROR(IF($AP$21=0, BE35/BE$33*100, 100*(BE35*12/$BI35)/BE$33),IF($AP$21=0, BE35/BE$34*100, 100*(BE35*12/$BI35)/BE$34))))))))))) -> 112.4340164 | BH35: =IFERROR(IF($AP$21=0,BF35/BF$25*100,(100*(BF35*12/$BI35)/BF$25)),IFERROR(IF($AP$21=0, BF35/BF$26*100, 100*(BF35*12/$BI35)/BF$26), IFERROR(IF($AP$21=0, BF35/BF$27*100, 100*(BF35*12/$BI35)/BF$27),IFERROR(IF($AP$21=0, BF35/BF$28*100, 100*(BF35*12/$BI35)/BF$28), IFERROR(IF($AP$21=0, BF35/BF$29*100, 100*(BF35*12/$BI35)/BF$29),IFERROR(IF($AP$21=0, BF35/BF$30*100, 100*(BF35*12/$BI35)/#REF!),IFERROR(IF($AP$21=0, BF35/BF$31*100, 100*(BF35*12/$BI35)/BF$31),IFERROR(IF($AP$21=0, BF35/BF$31*100, 100*(BF35*12/$BI35)/BF$31),IFERROR(IF($AP$21=0, BF35/BF$32*100, 100*(BF35*12/$BI35)/BF$32),IFERROR(IF($AP$21=0, BF35/BF$33*100, 100*(BF35*12/$BI35)/BF$33),IF($AP$21=0, BF35/BF$34*100, 100*(BF35*12/$BI35)/BF$34))))))))))) -> 103.3374455 | BI35: 12 | BJ35: =VLOOKUP($AO35,Data!$A$1:$P$688,Charts!BJ$23,FALSE) -> 0.1672776667
AL36: 202203 | AM36: =IF(AM35<$AL$24,+DATE(YEAR(AM35),MONTH(AM35)+3,DAY(AM35)),"") -> 2022-03-01 | AN36: =+IF(MONTH(AM36)=12,YEAR(AM36)&MONTH(AM36),YEAR(AM36)&0&MONTH(AM36)) -> 202203 | AO36: Tier 1 capital ratio202203 | AP36: =VLOOKUP($AO36,Data!$A$1:$P$688,Charts!AP$23,FALSE) -> 0.1311664396 | AQ36: =VLOOKUP($AO36,Data!$A$1:$P$688,Charts!AQ$23,FALSE) -> 0.1529304941 | AR36: =VLOOKUP($AO36,Data!$A$1:$P$688,Charts!AR$23,FALSE) -> 0.1694540415 | AS36: =VLOOKUP($AO36,Data!$A$1:$P$688,Charts!AS$23,FALSE) -> 0.219354234 | AT36: =VLOOKUP($AO36,Data!$A$1:$P$688,Charts!AT$23,FALSE) -> 0.1641236937 | AU36: =VLOOKUP($AO36,Data!$A$1:$P$688,Charts!AU$23,FALSE) -> 0.2022011372 | AV36: =VLOOKUP($AO36,Data!$A$1:$P$688,Charts!AV$23,FALSE) -> 0.357436876 | AW36: =VLOOKUP($AO36,Data!$A$1:$P$688,Charts!AW$23,FALSE) -> 0.2051660146 | AX36: =VLOOKUP($AO36,Data!$A$1:$P$688,Charts!AX$23,FALSE) -> 0.1764646551 | AY36: 0.1529304941 | AZ36: 0 | BA36: 0.01652354741 | BB36: 0.0327470957 | BC36: 0.02176405449 | BD36: 0.1552357388 | BE36: =VLOOKUP($AO36,Data!$A$1:$P$688,BD$23,FALSE) -> 1.411538633e+12 | BF36: =VLOOKUP($AO36,Data!$A$1:$P$688,BE$23,FALSE) -> 8.723904961e+12 | BG36: =IFERROR(IF($AP$21=0,BE36/BE$25*100,(100*(BE36*12/$BI36)/BE$25)),IFERROR(IF($AP$21=0, BE36/BE$26*100, 100*(BE36*12/$BI36)/BE$26), IFERROR(IF($AP$21=0, BE36/BE$27*100, 100*(BE36*12/$BI36)/BE$27),IFERROR(IF($AP$21=0, BE36/BE$28*100, 100*(BE36*12/$BI36)/BE$28), IFERROR(IF($AP$21=0, BE36/BE$29*100, 100*(BE36*12/$BI36)/BE$29),IFERROR(IF($AP$21=0, BE36/BE$30*100, 100*(BE36*12/$BI36)/#REF!),IFERROR(IF($AP$21=0, BE36/BE$31*100, 100*(BE36*12/$BI36)/BE$31),IFERROR(IF($AP$21=0, BE36/BE$31*100, 100*(BE36*12/$BI36)/BE$31),IFERROR(IF($AP$21=0, BE36/BE$32*100, 100*(BE36*12/$BI36)/BE$32),IFERROR(IF($AP$21=0, BE36/BE$33*100, 100*(BE36*12/$BI36)/BE$33),IF($AP$21=0, BE36/BE$34*100, 100*(BE36*12/$BI36)/BE$34))))))))))) -> 110.4393938 | BH36: =IFERROR(IF($AP$21=0,BF36/BF$25*100,(100*(BF36*12/$BI36)/BF$25)),IFERROR(IF($AP$21=0, BF36/BF$26*100, 100*(BF36*12/$BI36)/BF$26), IFERROR(IF($AP$21=0, BF36/BF$27*100, 100*(BF36*12/$BI36)/BF$27),IFERROR(IF($AP$21=0, BF36/BF$28*100, 100*(BF36*12/$BI36)/BF$28), IFERROR(IF($AP$21=0, BF36/BF$29*100, 100*(BF36*12/$BI36)/BF$29),IFERROR(IF($AP$21=0, BF36/BF$30*100, 100*(BF36*12/$BI36)/#REF!),IFERROR(IF($AP$21=0, BF36/BF$31*100, 100*(BF36*12/$BI36)/BF$31),IFERROR(IF($AP$21=0, BF36/BF$31*100, 100*(BF36*12/$BI36)/BF$31),IFERROR(IF($AP$21=0, BF36/BF$32*100, 100*(BF36*12/$BI36)/BF$32),IFERROR(IF($AP$21=0, BF36/BF$33*100, 100*(BF36*12/$BI36)/BF$33),IF($AP$21=0, BF36/BF$34*100, 100*(BF36*12/$BI36)/BF$34))))))))))) -> 106.1663142 | BI36: 3 | BJ36: =VLOOKUP($AO36,Data!$A$1:$P$688,Charts!BJ$23,FALSE) -> 0.1591803486
AN48: =VLOOKUP(AM21*1,List!$A$1:$I$100,9,FALSE) -> 9 | AO48: Indicator | AP48: Country | AQ48: Country name | AR48: Value | AS48: EU value
AO49: 2 | AQ49: 5 | AR49: 8
AN50: =MAX($AL$25:$AL$45) -> 202203 | AO50: =CONCATENATE(VLOOKUP($AN$21*1,Data!$W$1:$AB$688,AO$49,FALSE),AP50) -> Tier 1 Capital Ratio1 | AP50: 1 | AQ50: =VLOOKUP($AO50,Data!$U$1:$AC$688,AQ$49,FALSE)&IF(AR50="","*","") -> LV | AR50: =VLOOKUP($AO50,Data!$U$1:$AC$688,AR$49,FALSE) -> 0.2964912853 | AS50: =VLOOKUP($AO$79,Data!$U$1:$AC$688,$AR$49,FALSE) -> 0.1641236937
AN51: =MAX($AL$25:$AL$45) -> 202203 | AO51: =CONCATENATE(VLOOKUP($AN$21*1,Data!$W$1:$AB$688,AO$49,FALSE),AP51) -> Tier 1 Capital Ratio2 | AP51: 2 | AQ51: =VLOOKUP($AO51,Data!$U$1:$AC$688,AQ$49,FALSE)&IF(AR51="","*","") -> EE | AR51: =VLOOKUP($AO51,Data!$U$1:$AC$688,AR$49,FALSE) -> 0.2517962143 | AS51: =VLOOKUP($AO$79,Data!$U$1:$AC$688,$AR$49,FALSE) -> 0.1641236937
AN52: 202203 | AO52: =CONCATENATE(VLOOKUP($AN$21*1,Data!$W$1:$AB$688,AO$49,FALSE),AP52) -> Tier 1 Capital Ratio3 | AP52: 3 | AQ52: =VLOOKUP($AO52,Data!$U$1:$AC$688,AQ$49,FALSE)&IF(AR52="","*","") -> HR | AR52: =VLOOKUP($AO52,Data!$U$1:$AC$688,AR$49,FALSE) -> 0.2470624551 | AS52: =VLOOKUP($AO$79,Data!$U$1:$AC$688,$AR$49,FALSE) -> 0.1641236937
AN53: 202203 | AO53: =CONCATENATE(VLOOKUP($AN$21*1,Data!$W$1:$AB$688,AO$49,FALSE),AP53) -> Tier 1 Capital Ratio4 | AP53: 4 | AQ53: =VLOOKUP($AO53,Data!$U$1:$AC$688,AQ$49,FALSE)&IF(AR53="","*","") -> BG | AR53: =VLOOKUP($AO53,Data!$U$1:$AC$688,AR$49,FALSE) -> 0.2294068017 | AS53: =VLOOKUP($AO$79,Data!$U$1:$AC$688,$AR$49,FALSE) -> 0.1641236937
AN54: 202203 | AO54: =CONCATENATE(VLOOKUP($AN$21*1,Data!$W$1:$AB$688,AO$49,FALSE),AP54) -> Tier 1 Capital Ratio5 | AP54: 5 | AQ54: =VLOOKUP($AO54,Data!$U$1:$AC$688,AQ$49,FALSE)&IF(AR54="","*","") -> LT | AR54: =VLOOKUP($AO54,Data!$U$1:$AC$688,AR$49,FALSE) -> 0.2272092096 | AS54: =VLOOKUP($AO$79,Data!$U$1:$AC$688,$AR$49,FALSE) -> 0.1641236937
AN55: 202203 | AO55: =CONCATENATE(VLOOKUP($AN$21*1,Data!$W$1:$AB$688,AO$49,FALSE),AP55) -> Tier 1 Capital Ratio6 | AP55: 6 | AQ55: =VLOOKUP($AO55,Data!$U$1:$AC$688,AQ$49,FALSE)&IF(AR55="","*","") -> LU | AR55: =VLOOKUP($AO55,Data!$U$1:$AC$688,AR$49,FALSE) -> 0.2123983155 | AS55: =VLOOKUP($AO$79,Data!$U$1:$AC$688,$AR$49,FALSE) -> 0.1641236937
AN56: 202203 | AO56: =CONCATENATE(VLOOKUP($AN$21*1,Data!$W$1:$AB$688,AO$49,FALSE),AP56) -> Tier 1 Capital Ratio7 | AP56: 7 | AQ56: =VLOOKUP($AO56,Data!$U$1:$AC$688,AQ$49,FALSE)&IF(AR56="","*","") -> IS | AR56: =VLOOKUP($AO56,Data!$U$1:$AC$688,AR$49,FALSE) -> 0.2095520606 | AS56: =VLOOKUP($AO$79,Data!$U$1:$AC$688,$AR$49,FALSE) -> 0.1641236937
AN57: 202203 | AO57: =CONCATENATE(VLOOKUP($AN$21*1,Data!$W$1:$AB$688,AO$49,FALSE),AP57) -> Tier 1 Capital Ratio8 | AP57: 8 | AQ57: =VLOOKUP($AO57,Data!$U$1:$AC$688,AQ$49,FALSE)&IF(AR57="","*","") -> CZ | AR57: =VLOOKUP($AO57,Data!$U$1:$AC$688,AR$49,FALSE) -> 0.2064408493 | AS57: =VLOOKUP($AO$79,Data!$U$1:$AC$688,$AR$49,FALSE) -> 0.1641236937
AN58: 202203 | AO58: =CONCATENATE(VLOOKUP($AN$21*1,Data!$W$1:$AB$688,AO$49,FALSE),AP58) -> Tier 1 Capital Ratio9 | AP58: 9 | AQ58: =VLOOKUP($AO58,Data!$U$1:$AC$688,AQ$49,FALSE)&IF(AR58="","*","") -> IE | AR58: =VLOOKUP($AO58,Data!$U$1:$AC$688,AR$49,FALSE) -> 0.2014180015 | AS58: =VLOOKUP($AO$79,Data!$U$1:$AC$688,$AR$49,FALSE) -> 0.1641236937
AN59: 202203 | AO59: =CONCATENATE(VLOOKUP($AN$21*1,Data!$W$1:$AB$688,AO$49,FALSE),AP59) -> Tier 1 Capital Ratio10 | AP59: 10 | AQ59: =VLOOKUP($AO59,Data!$U$1:$AC$688,AQ$49,FALSE)&IF(AR59="","*","") -> SE | AR59: =VLOOKUP($AO59,Data!$U$1:$AC$688,AR$49,FALSE) -> 0.1992134222 | AS59: =VLOOKUP($AO$79,Data!$U$1:$AC$688,$AR$49,FALSE) -> 0.1641236937
AN60: 202203 | AO60: =CONCATENATE(VLOOKUP($AN$21*1,Data!$W$1:$AB$688,AO$49,FALSE),AP60) -> Tier 1 Capital Ratio11 | AP60: 11 | AQ60: =VLOOKUP($AO60,Data!$U$1:$AC$688,AQ$49,FALSE)&IF(AR60="","*","") -> MT | AR60: =VLOOKUP($AO60,Data!$U$1:$AC$688,AR$49,FALSE) -> 0.196472672 | AS60: =VLOOKUP($AO$79,Data!$U$1:$AC$688,$AR$49,FALSE) -> 0.1641236937
AN61: 202203 | AO61: =CONCATENATE(VLOOKUP($AN$21*1,Data!$W$1:$AB$688,AO$49,FALSE),AP61) -> Tier 1 Capital Ratio12 | AP61: 12 | AQ61: =VLOOKUP($AO61,Data!$U$1:$AC$688,AQ$49,FALSE)&IF(AR61="","*","") -> DK | AR61: =VLOOKUP($AO61,Data!$U$1:$AC$688,AR$49,FALSE) -> 0.1939790394 | AS61: =VLOOKUP($AO$79,Data!$U$1:$AC$688,$AR$49,FALSE) -> 0.1641236937
AN62: 202203 | AO62: =CONCATENATE(VLOOKUP($AN$21*1,Data!$W$1:$AB$688,AO$49,FALSE),AP62) -> Tier 1 Capital Ratio13 | AP62: 13 | AQ62: =VLOOKUP($AO62,Data!$U$1:$AC$688,AQ$49,FALSE)&IF(AR62="","*","") -> FI | AR62: =VLOOKUP($AO62,Data!$U$1:$AC$688,AR$49,FALSE) -> 0.1889298419 | AS62: =VLOOKUP($AO$79,Data!$U$1:$AC$688,$AR$49,FALSE) -> 0.1641236937
AN63: 202203 | AO63: =CONCATENATE(VLOOKUP($AN$21*1,Data!$W$1:$AB$688,AO$49,FALSE),AP63) -> Tier 1 Capital Ratio14 | AP63: 14 | AQ63: =VLOOKUP($AO63,Data!$U$1:$AC$688,AQ$49,FALSE)&IF(AR63="","*","") -> BE | AR63: =VLOOKUP($AO63,Data!$U$1:$AC$688,AR$49,FALSE) -> 0.1849945136 | AS63: =VLOOKUP($AO$79,Data!$U$1:$AC$688,$AR$49,FALSE) -> 0.1641236937
AN64: 202203 | AO64: =CONCATENATE(VLOOKUP($AN$21*1,Data!$W$1:$AB$688,AO$49,FALSE),AP64) -> Tier 1 Capital Ratio15 | AP64: 15 | AQ64: =VLOOKUP($AO64,Data!$U$1:$AC$688,AQ$49,FALSE)&IF(AR64="","*","") -> RO | AR64: =VLOOKUP($AO64,Data!$U$1:$AC$688,AR$49,FALSE) -> 0.1833362779 | AS64: =VLOOKUP($AO$79,Data!$U$1:$AC$688,$AR$49,FALSE) -> 0.1641236937
AN65: 202203 | AO65: =CONCATENATE(VLOOKUP($AN$21*1,Data!$W$1:$AB$688,AO$49,FALSE),AP65) -> Tier 1 Capital Ratio16 | AP65: 16 | AQ65: =VLOOKUP($AO65,Data!$U$1:$AC$688,AQ$49,FALSE)&IF(AR65="","*","") -> CY | AR65: =VLOOKUP($AO65,Data!$U$1:$AC$688,AR$49,FALSE) -> 0.1819347281 | AS65: =VLOOKUP($AO$79,Data!$U$1:$AC$688,$AR$49,FALSE) -> 0.1641236937
AN66: 202203 | AO66: =CONCATENATE(VLOOKUP($AN$21*1,Data!$W$1:$AB$688,AO$49,FALSE),AP66) -> Tier 1 Capital Ratio17 | AP66: 17 | AQ66: =VLOOKUP($AO66,Data!$U$1:$AC$688,AQ$49,FALSE)&IF(AR66="","*","") -> SK | AR66: =VLOOKUP($AO66,Data!$U$1:$AC$688,AR$49,FALSE) -> 0.1793083085 | AS66: =VLOOKUP($AO$79,Data!$U$1:$AC$688,$AR$49,FALSE) -> 0.1641236937
AN67: 202203 | AO67: =CONCATENATE(VLOOKUP($AN$21*1,Data!$W$1:$AB$688,AO$49,FALSE),AP67) -> Tier 1 Capital Ratio18 | AP67: 18 | AQ67: =VLOOKUP($AO67,Data!$U$1:$AC$688,AQ$49,FALSE)&IF(AR67="","*","") -> NL | AR67: =VLOOKUP($AO67,Data!$U$1:$AC$688,AR$49,FALSE) -> 0.1731696952 | AS67: =VLOOKUP($AO$79,Data!$U$1:$AC$688,$AR$49,FALSE) -> 0.1641236937
AN68: 202203 | AO68: =CONCATENATE(VLOOKUP($AN$21*1,Data!$W$1:$AB$688,AO$49,FALSE),AP68) -> Tier 1 Capital Ratio19 | AP68: 19 | AQ68: =VLOOKUP($AO68,Data!$U$1:$AC$688,AQ$49,FALSE)&IF(AR68="","*","") -> HU | AR68: =VLOOKUP($AO68,Data!$U$1:$AC$688,AR$49,FALSE) -> 0.1698040745 | AS68: =VLOOKUP($AO$79,Data!$U$1:$AC$688,$AR$49,FALSE) -> 0.1641236937
AN69: 202203 | AO69: =CONCATENATE(VLOOKUP($AN$21*1,Data!$W$1:$AB$688,AO$49,FALSE),AP69) -> Tier 1 Capital Ratio20 | AP69: 20 | AQ69: =VLOOKUP($AO69,Data!$U$1:$AC$688,AQ$49,FALSE)&IF(AR69="","*","") -> DE | AR69: =VLOOKUP($AO69,Data!$U$1:$AC$688,AR$49,FALSE) -> 0.164116739 | AS69: =VLOOKUP($AO$79,Data!$U$1:$AC$688,$AR$49,FALSE) -> 0.1641236937
AN70: 202203 | AO70: =CONCATENATE(VLOOKUP($AN$21*1,Data!$W$1:$AB$688,AO$49,FALSE),AP70) -> Tier 1 Capital Ratio21 | AP70: 21 | AQ70: =VLOOKUP($AO70,Data!$U$1:$AC$688,AQ$49,FALSE)&IF(AR70="","*","") -> FR | AR70: =VLOOKUP($AO70,Data!$U$1:$AC$688,AR$49,FALSE) -> 0.1628470253 | AS70: =VLOOKUP($AO$79,Data!$U$1:$AC$688,$AR$49,FALSE) -> 0.1641236937
AN71: 202203 | AO71: =CONCATENATE(VLOOKUP($AN$21*1,Data!$W$1:$AB$688,AO$49,FALSE),AP71) -> Tier 1 Capital Ratio22 | AP71: 22 | AQ71: =VLOOKUP($AO71,Data!$U$1:$AC$688,AQ$49,FALSE)&IF(AR71="","*","") -> IT | AR71: =VLOOKUP($AO71,Data!$U$1:$AC$688,AR$49,FALSE) -> 0.1613298187 | AS71: =VLOOKUP($AO$79,Data!$U$1:$AC$688,$AR$49,FALSE) -> 0.1641236937
AN72: 202203 | AO72: =CONCATENATE(VLOOKUP($AN$21*1,Data!$W$1:$AB$688,AO$49,FALSE),AP72) -> Tier 1 Capital Ratio23 | AP72: 23 | AQ72: =VLOOKUP($AO72,Data!$U$1:$AC$688,AQ$49,FALSE)&IF(AR72="","*","") -> PL | AR72: =VLOOKUP($AO72,Data!$U$1:$AC$688,AR$49,FALSE) -> 0.1591893348 | AS72: =VLOOKUP($AO$79,Data!$U$1:$AC$688,$AR$49,FALSE) -> 0.1641236937
AN73: 202203 | AO73: =CONCATENATE(VLOOKUP($AN$21*1,Data!$W$1:$AB$688,AO$49,FALSE),AP73) -> Tier 1 Capital Ratio24 | AP73: 24 | AQ73: =VLOOKUP($AO73,Data!$U$1:$AC$688,AQ$49,FALSE)&IF(AR73="","*","") -> AT | AR73: =VLOOKUP($AO73,Data!$U$1:$AC$688,AR$49,FALSE) -> 0.1526271242 | AS73: =VLOOKUP($AO$79,Data!$U$1:$AC$688,$AR$49,FALSE) -> 0.1641236937
AN74: 202203 | AO74: =CONCATENATE(VLOOKUP($AN$21*1,Data!$W$1:$AB$688,AO$49,FALSE),AP74) -> Tier 1 Capital Ratio25 | AP74: 25 | AQ74: =VLOOKUP($AO74,Data!$U$1:$AC$688,AQ$49,FALSE)&IF(AR74="","*","") -> PT | AR74: =VLOOKUP($AO74,Data!$U$1:$AC$688,AR$49,FALSE) -> 0.1513789756 | AS74: =VLOOKUP($AO$79,Data!$U$1:$AC$688,$AR$49,FALSE) -> 0.1641236937
AN75: 202203 | AO75: =CONCATENATE(VLOOKUP($AN$21*1,Data!$W$1:$AB$688,AO$49,FALSE),AP75) -> Tier 1 Capital Ratio26 | AP75: 26 | AQ75: =VLOOKUP($AO75,Data!$U$1:$AC$688,AQ$49,FALSE)&IF(AR75="","*","") -> SI | AR75: =VLOOKUP($AO75,Data!$U$1:$AC$688,AR$49,FALSE) -> 0.1488764459 | AS75: =VLOOKUP($AO$79,Data!$U$1:$AC$688,$AR$49,FALSE) -> 0.1641236937
AN76: 202203 | AO76: =CONCATENATE(VLOOKUP($AN$21*1,Data!$W$1:$AB$688,AO$49,FALSE),AP76) -> Tier 1 Capital Ratio27 | AP76: 27 | AQ76: =VLOOKUP($AO76,Data!$U$1:$AC$688,AQ$49,FALSE)&IF(AR76="","*","") -> ES | AR76: =VLOOKUP($AO76,Data!$U$1:$AC$688,AR$49,FALSE) -> 0.144445632 | AS76: =VLOOKUP($AO$79,Data!$U$1:$AC$688,$AR$49,FALSE) -> 0.1641236937
AN77: 202203 | AO77: =CONCATENATE(VLOOKUP($AN$21*1,Data!$W$1:$AB$688,AO$49,FALSE),AP77) -> Tier 1 Capital Ratio28 | AP77: 28 | AQ77: =VLOOKUP($AO77,Data!$U$1:$AC$688,AQ$49,FALSE)&IF(AR77="","*","") -> GR | AR77: =VLOOKUP($AO77,Data!$U$1:$AC$688,AR$49,FALSE) -> 0.1281172381 | AS77: =VLOOKUP($AO$79,Data!$U$1:$AC$688,$AR$49,FALSE) -> 0.1641236937
AN78: 202203 | AO78: =CONCATENATE(VLOOKUP($AN$21*1,Data!$W$1:$AB$688,AO$49,FALSE),AP78) -> Tier 1 Capital Ratio29 | AP78: 29 | AQ78: =VLOOKUP($AO78,Data!$U$1:$AC$688,AQ$49,FALSE)&IF(AR78="","*","") -> NO | AR78: =VLOOKUP($AO78,Data!$U$1:$AC$688,AR$49,FALSE) -> 0 | AS78: =VLOOKUP($AO$79,Data!$U$1:$AC$688,$AR$49,FALSE) -> 0.1641236937
AN79: =MAX($AL$25:$AL$45) -> 202203 | AO79: =CONCATENATE(VLOOKUP($AN$21*1,Data!$W$1:$AB$688,AO$49,FALSE),AP79) -> Tier 1 Capital Ratio99 | AP79: 99 | AQ79: =VLOOKUP($AO79,Data!$U$1:$AC$688,AQ$49,FALSE)&IF(AR79="","*","") -> EU | AR79: =VLOOKUP($AO79,Data!$U$1:$AC$688,AR$49,FALSE) -> 0.1641236937 | AS79: =VLOOKUP($AO$79,Data!$U$1:$AC$688,$AR$49,FALSE) -> 0.1641236937

Sheet RU Exposures
F1: T50_1 | G1: T50_1 | H1: T50_2 | I1: T50_2 | J1: T50_3 | K1: T50_3 | L1: T50_4 | M1: T50_4 | N1: T50_5 | O1: T50_5 | P1: T50_6 | Q1: T50_6 | R1: T50_7 | S1: T50_7 | T1: T50_8 | U1: T50_8
A2: ='Reference Dates'!$C$8 -> 202203 | F2: =TEXT(F11,"YYYYMM")+0 -> 202112 | G2: 202203 | H2: 202112 | I2: 202203 | J2: 202112 | K2: 202203 | L2: =TEXT(J11,"YYYYMM")+0 -> 202112 | M2: =TEXT(K11,"YYYYMM")+0 -> 202203 | N2: =TEXT(J11,"YYYYMM")+0 -> 202112 | O2: =TEXT(K11,"YYYYMM")+0 -> 202203 | P2: =TEXT(L11,"YYYYMM")+0 -> 202112 | Q2: 202203 | R2: 202112 | S2: 202203 | T2: 202112 | U2: 202203
A3: =DATE(LEFT(A2,4),RIGHT(A2,2),1) -> 2022-03-01 | D3: Statistical Annex
D4: Exposures to Russian counterparts
B7: CH_1 | D7: Breakdown of exposures towards Russian counterparts
D9: (million EUR) | F9: Exposures towards Russian counterparts | H9: Cash balances at central banks and other demand deposits | J9: Debt securities | L9: of which: | N9: Loans and advances | P9: of which:
L10: Central banks and general governments | P10: Credit institutions and other financial corporations | R10: Non-financial corporations | T10: Households
F11: =EOMONTH($A$3,-3) -> 2021-12-31 | G11: =$A$3 -> 2022-03-01 | H11: =EOMONTH($A$3,-3) -> 2021-12-31 | I11: =$A$3 -> 2022-03-01 | J11: =EOMONTH($A$3,-3) -> 2021-12-31 | K11: =$A$3 -> 2022-03-01 | L11: =EOMONTH($A$3,-3) -> 2021-12-31 | M11: =$A$3 -> 2022-03-01 | N11: =EOMONTH($A$3,-3) -> 2021-12-31 | O11: =$A$3 -> 2022-03-01 | P11: =EOMONTH($A$3,-3) -> 2021-12-31 | Q11: =$A$3 -> 2022-03-01 | R11: =EOMONTH($A$3,-3) -> 2021-12-31 | S11: =$A$3 -> 2022-03-01 | T11: =EOMONTH($A$3,-3) -> 2021-12-31 | U11: =$A$3 -> 2022-03-01
A12: 1 | B12: AT | D12: =B12 -> AT | F12: =IFERROR(INDEX('Data Annex'!$K$1:$AS$6265,MATCH(F$1&"|"&$B12,'Data Annex'!$K$1:$K$6265,0),MATCH(F$2,'Data Annex'!$K$1:$AS$1,0)),"") -> 16693.21192 | G12: =IFERROR(INDEX('Data Annex'!$K$1:$AS$6265,MATCH(G$1&"|"&$B12,'Data Annex'!$K$1:$K$6265,0),MATCH(G$2,'Data Annex'!$K$1:$AS$1,0)),"") -> 14982.62396 | H12: =IFERROR(INDEX('Data Annex'!$K$1:$AS$6265,MATCH(H$1&"|"&$B12,'Data Annex'!$K$1:$K$6265,0),MATCH(H$2,'Data Annex'!$K$1:$AS$1,0)),"") -> 532.8663319 | I12: =IFERROR(INDEX('Data Annex'!$K$1:$AS$6265,MATCH(I$1&"|"&$B12,'Data Annex'!$K$1:$K$6265,0),MATCH(I$2,'Data Annex'!$K$1:$AS$1,0)),"") -> 398.0348363 | J12: =IFERROR(INDEX('Data Annex'!$K$1:$AS$6265,MATCH(J$1&"|"&$B12,'Data Annex'!$K$1:$K$6265,0),MATCH(J$2,'Data Annex'!$K$1:$AS$1,0)),"") -> 1005.894581 | K12: =IFERROR(INDEX('Data Annex'!$K$1:$AS$6265,MATCH(K$1&"|"&$B12,'Data Annex'!$K$1:$K$6265,0),MATCH(K$2,'Data Annex'!$K$1:$AS$1,0)),"") -> 1133.428851 | L12: =IFERROR(INDEX('Data Annex'!$K$1:$AS$6265,MATCH(L$1&"|"&$B12,'Data Annex'!$K$1:$K$6265,0),MATCH(L$2,'Data Annex'!$K$1:$AS$1,0)),"") -> 882.9099577 | M12: =IFERROR(INDEX('Data Annex'!$K$1:$AS$6265,MATCH(M$1&"|"&$B12,'Data Annex'!$K$1:$K$6265,0),MATCH(M$2,'Data Annex'!$K$1:$AS$1,0)),"") -> 1023.53624 | N12: =IFERROR(INDEX('Data Annex'!$K$1:$AS$6265,MATCH(N$1&"|"&$B12,'Data Annex'!$K$1:$K$6265,0),MATCH(N$2,'Data Annex'!$K$1:$AS$1,0)),"") -> 15137.80535 | O12: =IFERROR(INDEX('Data Annex'!$K$1:$AS$6265,MATCH(O$1&"|"&$B12,'Data Annex'!$K$1:$K$6265,0),MATCH(O$2,'Data Annex'!$K$1:$AS$1,0)),"") -> 13447.19679 | P12: =IFERROR(INDEX('Data Annex'!$K$1:$AS$6265,MATCH(P$1&"|"&$B12,'Data Annex'!$K$1:$K$6265,0),MATCH(P$2,'Data Annex'!$K$1:$AS$1,0)),"") -> 1612.866414 | Q12: =IFERROR(INDEX('Data Annex'!$K$1:$AS$6265,MATCH(Q$1&"|"&$B12,'Data Annex'!$K$1:$K$6265,0),MATCH(Q$2,'Data Annex'!$K$1:$AS$1,0)),"") -> 2419.418037 | R12: =IFERROR(INDEX('Data Annex'!$K$1:$AS$6265,MATCH(R$1&"|"&$B12,'Data Annex'!$K$1:$K$6265,0),MATCH(R$2,'Data Annex'!$K$1:$AS$1,0)),"") -> 7778.679453 | S12: =IFERROR(INDEX('Data Annex'!$K$1:$AS$6265,MATCH(S$1&"|"&$B12,'Data Annex'!$K$1:$K$6265,0),MATCH(S$2,'Data Annex'!$K$1:$AS$1,0)),"") -> 7039.980759 | T12: =IFERROR(INDEX('Data Annex'!$K$1:$AS$6265,MATCH(T$1&"|"&$B12,'Data Annex'!$K$1:$K$6265,0),MATCH(T$2,'Data Annex'!$K$1:$AS$1,0)),"") -> 4295.153535 | U12: =IFERROR(INDEX('Data Annex'!$K$1:$AS$6265,MATCH(U$1&"|"&$B12,'Data Annex'!$K$1:$K$6265,0),MATCH(U$2,'Data Annex'!$K$1:$AS$1,0)),"") -> 3927.517492
A13: 2 | B13: BE | D13: =B13 -> BE | F13: =IFERROR(INDEX('Data Annex'!$K$1:$AS$6265,MATCH(F$1&"|"&$B13,'Data Annex'!$K$1:$K$6265,0),MATCH(F$2,'Data Annex'!$K$1:$AS$1,0)),"") -> 640.750247 | G13: =IFERROR(INDEX('Data Annex'!$K$1:$AS$6265,MATCH(G$1&"|"&$B13,'Data Annex'!$K$1:$K$6265,0),MATCH(G$2,'Data Annex'!$K$1:$AS$1,0)),"") -> 547.3018843 | H13: =IFERROR(INDEX('Data Annex'!$K$1:$AS$6265,MATCH(H$1&"|"&$B13,'Data Annex'!$K$1:$K$6265,0),MATCH(H$2,'Data Annex'!$K$1:$AS$1,0)),"") -> 16.5222235 | I13: =IFERROR(INDEX('Data Annex'!$K$1:$AS$6265,MATCH(I$1&"|"&$B13,'Data Annex'!$K$1:$K$6265,0),MATCH(I$2,'Data Annex'!$K$1:$AS$1,0)),"") -> 26.37057984 | J13: =IFERROR(INDEX('Data Annex'!$K$1:$AS$6265,MATCH(J$1&"|"&$B13,'Data Annex'!$K$1:$K$6265,0),MATCH(J$2,'Data Annex'!$K$1:$AS$1,0)),"") ->  | K13: =IFERROR(INDEX('Data Annex'!$K$1:$AS$6265,MATCH(K$1&"|"&$B13,'Data Annex'!$K$1:$K$6265,0),MATCH(K$2,'Data Annex'!$K$1:$AS$1,0)),"") ->  | L13: =IFERROR(INDEX('Data Annex'!$K$1:$AS$6265,MATCH(L$1&"|"&$B13,'Data Annex'!$K$1:$K$6265,0),MATCH(L$2,'Data Annex'!$K$1:$AS$1,0)),"") ->  | M13: =IFERROR(INDEX('Data Annex'!$K$1:$AS$6265,MATCH(M$1&"|"&$B13,'Data Annex'!$K$1:$K$6265,0),MATCH(M$2,'Data Annex'!$K$1:$AS$1,0)),"") ->  | N13: =IFERROR(INDEX('Data Annex'!$K$1:$AS$6265,MATCH(N$1&"|"&$B13,'Data Annex'!$K$1:$K$6265,0),MATCH(N$2,'Data Annex'!$K$1:$AS$1,0)),"") -> 624.2280235 | O13: =IFERROR(INDEX('Data Annex'!$K$1:$AS$6265,MATCH(O$1&"|"&$B13,'Data Annex'!$K$1:$K$6265,0),MATCH(O$2,'Data Annex'!$K$1:$AS$1,0)),"") -> 520.9313044 | P13: =IFERROR(INDEX('Data Annex'!$K$1:$AS$6265,MATCH(P$1&"|"&$B13,'Data Annex'!$K$1:$K$6265,0),MATCH(P$2,'Data Annex'!$K$1:$AS$1,0)),"") -> 12.648601 | Q13: =IFERROR(INDEX('Data Annex'!$K$1:$AS$6265,MATCH(Q$1&"|"&$B13,'Data Annex'!$K$1:$K$6265,0),MATCH(Q$2,'Data Annex'!$K$1:$AS$1,0)),"") -> 11.629888 | R13: =IFERROR(INDEX('Data Annex'!$K$1:$AS$6265,MATCH(R$1&"|"&$B13,'Data Annex'!$K$1:$K$6265,0),MATCH(R$2,'Data Annex'!$K$1:$AS$1,0)),"") -> 592.315838 | S13: =IFERROR(INDEX('Data Annex'!$K$1:$AS$6265,MATCH(S$1&"|"&$B13,'Data Annex'!$K$1:$K$6265,0),MATCH(S$2,'Data Annex'!$K$1:$AS$1,0)),"") -> 489.188855 | T13: =IFERROR(INDEX('Data Annex'!$K$1:$AS$6265,MATCH(T$1&"|"&$B13,'Data Annex'!$K$1:$K$6265,0),MATCH(T$2,'Data Annex'!$K$1:$AS$1,0)),"") -> 19.25464351 | U13: =IFERROR(INDEX('Data Annex'!$K$1:$AS$6265,MATCH(U$1&"|"&$B13,'Data Annex'!$K$1:$K$6265,0),MATCH(U$2,'Data Annex'!$K$1:$AS$1,0)),"") -> 20.11254042
A14: 3 | B14: BG | D14: BG | F14: =IFERROR(INDEX('Data Annex'!$K$1:$AS$6265,MATCH(F$1&"|"&$B14,'Data Annex'!$K$1:$K$6265,0),MATCH(F$2,'Data Annex'!$K$1:$AS$1,0)),"") -> 104.0556294 | G14: =IFERROR(INDEX('Data Annex'!$K$1:$AS$6265,MATCH(G$1&"|"&$B14,'Data Annex'!$K$1:$K$6265,0),MATCH(G$2,'Data Annex'!$K$1:$AS$1,0)),"") -> 43.60568565 | H14: =IFERROR(INDEX('Data Annex'!$K$1:$AS$6265,MATCH(H$1&"|"&$B14,'Data Annex'!$K$1:$K$6265,0),MATCH(H$2,'Data Annex'!$K$1:$AS$1,0)),"") -> 0.6498619491 | I14: =IFERROR(INDEX('Data Annex'!$K$1:$AS$6265,MATCH(I$1&"|"&$B14,'Data Annex'!$K$1:$K$6265,0),MATCH(I$2,'Data Annex'!$K$1:$AS$1,0)),"") -> 0.03885877902 | J14: =IFERROR(INDEX('Data Annex'!$K$1:$AS$6265,MATCH(J$1&"|"&$B14,'Data Annex'!$K$1:$K$6265,0),MATCH(J$2,'Data Annex'!$K$1:$AS$1,0)),"") -> 93.8899683 | K14: =IFERROR(INDEX('Data Annex'!$K$1:$AS$6265,MATCH(K$1&"|"&$B14,'Data Annex'!$K$1:$K$6265,0),MATCH(K$2,'Data Annex'!$K$1:$AS$1,0)),"") -> 38.16801309 | L14: =IFERROR(INDEX('Data Annex'!$K$1:$AS$6265,MATCH(L$1&"|"&$B14,'Data Annex'!$K$1:$K$6265,0),MATCH(L$2,'Data Annex'!$K$1:$AS$1,0)),"") -> 93.8899683 | M14: =IFERROR(INDEX('Data Annex'!$K$1:$AS$6265,MATCH(M$1&"|"&$B14,'Data Annex'!$K$1:$K$6265,0),MATCH(M$2,'Data Annex'!$K$1:$AS$1,0)),"") -> 38.16801309 | N14: =IFERROR(INDEX('Data Annex'!$K$1:$AS$6265,MATCH(N$1&"|"&$B14,'Data Annex'!$K$1:$K$6265,0),MATCH(N$2,'Data Annex'!$K$1:$AS$1,0)),"") -> 9.515799161 | O14: =IFERROR(INDEX('Data Annex'!$K$1:$AS$6265,MATCH(O$1&"|"&$B14,'Data Annex'!$K$1:$K$6265,0),MATCH(O$2,'Data Annex'!$K$1:$AS$1,0)),"") -> 5.398813785 | P14: =IFERROR(INDEX('Data Annex'!$K$1:$AS$6265,MATCH(P$1&"|"&$B14,'Data Annex'!$K$1:$K$6265,0),MATCH(P$2,'Data Annex'!$K$1:$AS$1,0)),"") -> 0.0005112997239 | Q14: =IFERROR(INDEX('Data Annex'!$K$1:$AS$6265,MATCH(Q$1&"|"&$B14,'Data Annex'!$K$1:$K$6265,0),MATCH(Q$2,'Data Annex'!$K$1:$AS$1,0)),"") -> 0 | R14: =IFERROR(INDEX('Data Annex'!$K$1:$AS$6265,MATCH(R$1&"|"&$B14,'Data Annex'!$K$1:$K$6265,0),MATCH(R$2,'Data Annex'!$K$1:$AS$1,0)),"") -> 0 | S14: =IFERROR(INDEX('Data Annex'!$K$1:$AS$6265,MATCH(S$1&"|"&$B14,'Data Annex'!$K$1:$K$6265,0),MATCH(S$2,'Data Annex'!$K$1:$AS$1,0)),"") -> 0 | T14: =IFERROR(INDEX('Data Annex'!$K$1:$AS$6265,MATCH(T$1&"|"&$B14,'Data Annex'!$K$1:$K$6265,0),MATCH(T$2,'Data Annex'!$K$1:$AS$1,0)),"") -> 9.515287862 | U14: =IFERROR(INDEX('Data Annex'!$K$1:$AS$6265,MATCH(U$1&"|"&$B14,'Data Annex'!$K$1:$K$6265,0),MATCH(U$2,'Data Annex'!$K$1:$AS$1,0)),"") -> 5.398813785
A15: 4 | B15: CY | D15: CY | F15: =IFERROR(INDEX('Data Annex'!$K$1:$AS$6265,MATCH(F$1&"|"&$B15,'Data Annex'!$K$1:$K$6265,0),MATCH(F$2,'Data Annex'!$K$1:$AS$1,0)),"") -> 95.508257 | G15: =IFERROR(INDEX('Data Annex'!$K$1:$AS$6265,MATCH(G$1&"|"&$B15,'Data Annex'!$K$1:$K$6265,0),MATCH(G$2,'Data Annex'!$K$1:$AS$1,0)),"") -> 73.704369 | H15: =IFERROR(INDEX('Data Annex'!$K$1:$AS$6265,MATCH(H$1&"|"&$B15,'Data Annex'!$K$1:$K$6265,0),MATCH(H$2,'Data Annex'!$K$1:$AS$1,0)),"") -> 16.362685 | I15: =IFERROR(INDEX('Data Annex'!$K$1:$AS$6265,MATCH(I$1&"|"&$B15,'Data Annex'!$K$1:$K$6265,0),MATCH(I$2,'Data Annex'!$K$1:$AS$1,0)),"") -> 18.073444 | J15: =IFERROR(INDEX('Data Annex'!$K$1:$AS$6265,MATCH(J$1&"|"&$B15,'Data Annex'!$K$1:$K$6265,0),MATCH(J$2,'Data Annex'!$K$1:$AS$1,0)),"") -> 0 | K15: =IFERROR(INDEX('Data Annex'!$K$1:$AS$6265,MATCH(K$1&"|"&$B15,'Data Annex'!$K$1:$K$6265,0),MATCH(K$2,'Data Annex'!$K$1:$AS$1,0)),"") -> 0 | L15: =IFERROR(INDEX('Data Annex'!$K$1:$AS$6265,MATCH(L$1&"|"&$B15,'Data Annex'!$K$1:$K$6265,0),MATCH(L$2,'Data Annex'!$K$1:$AS$1,0)),"") -> 0 | M15: =IFERROR(INDEX('Data Annex'!$K$1:$AS$6265,MATCH(M$1&"|"&$B15,'Data Annex'!$K$1:$K$6265,0),MATCH(M$2,'Data Annex'!$K$1:$AS$1,0)),"") -> 0 | N15: =IFERROR(INDEX('Data Annex'!$K$1:$AS$6265,MATCH(N$1&"|"&$B15,'Data Annex'!$K$1:$K$6265,0),MATCH(N$2,'Data Annex'!$K$1:$AS$1,0)),"") -> 79.145572 | O15: =IFERROR(INDEX('Data Annex'!$K$1:$AS$6265,MATCH(O$1&"|"&$B15,'Data Annex'!$K$1:$K$6265,0),MATCH(O$2,'Data Annex'!$K$1:$AS$1,0)),"") -> 55.630925 | P15: =IFERROR(INDEX('Data Annex'!$K$1:$AS$6265,MATCH(P$1&"|"&$B15,'Data Annex'!$K$1:$K$6265,0),MATCH(P$2,'Data Annex'!$K$1:$AS$1,0)),"") -> 11.961716 | Q15: =IFERROR(INDEX('Data Annex'!$K$1:$AS$6265,MATCH(Q$1&"|"&$B15,'Data Annex'!$K$1:$K$6265,0),MATCH(Q$2,'Data Annex'!$K$1:$AS$1,0)),"") -> 1.015926 | R15: =IFERROR(INDEX('Data Annex'!$K$1:$AS$6265,MATCH(R$1&"|"&$B15,'Data Annex'!$K$1:$K$6265,0),MATCH(R$2,'Data Annex'!$K$1:$AS$1,0)),"") -> 20.479735 | S15: =IFERROR(INDEX('Data Annex'!$K$1:$AS$6265,MATCH(S$1&"|"&$B15,'Data Annex'!$K$1:$K$6265,0),MATCH(S$2,'Data Annex'!$K$1:$AS$1,0)),"") -> 20.141244 | T15: =IFERROR(INDEX('Data Annex'!$K$1:$AS$6265,MATCH(T$1&"|"&$B15,'Data Annex'!$K$1:$K$6265,0),MATCH(T$2,'Data Annex'!$K$1:$AS$1,0)),"") -> 46.704121 | U15: =IFERROR(INDEX('Data Annex'!$K$1:$AS$6265,MATCH(U$1&"|"&$B15,'Data Annex'!$K$1:$K$6265,0),MATCH(U$2,'Data Annex'!$K$1:$AS$1,0)),"") -> 34.473755
A16: 5 | B16: CZ | D16: CZ | F16: =IFERROR(INDEX('Data Annex'!$K$1:$AS$6265,MATCH(F$1&"|"&$B16,'Data Annex'!$K$1:$K$6265,0),MATCH(F$2,'Data Annex'!$K$1:$AS$1,0)),"") -> 81.46753138 | G16: =IFERROR(INDEX('Data Annex'!$K$1:$AS$6265,MATCH(G$1&"|"&$B16,'Data Annex'!$K$1:$K$6265,0),MATCH(G$2,'Data Annex'!$K$1:$AS$1,0)),"") -> 81.80341801 | H16: =IFERROR(INDEX('Data Annex'!$K$1:$AS$6265,MATCH(H$1&"|"&$B16,'Data Annex'!$K$1:$K$6265,0),MATCH(H$2,'Data Annex'!$K$1:$AS$1,0)),"") -> 1.663239279 | I16: =IFERROR(INDEX('Data Annex'!$K$1:$AS$6265,MATCH(I$1&"|"&$B16,'Data Annex'!$K$1:$K$6265,0),MATCH(I$2,'Data Annex'!$K$1:$AS$1,0)),"") -> 6.05155241 | J16: =IFERROR(INDEX('Data Annex'!$K$1:$AS$6265,MATCH(J$1&"|"&$B16,'Data Annex'!$K$1:$K$6265,0),MATCH(J$2,'Data Annex'!$K$1:$AS$1,0)),"") -> 0 | K16: =IFERROR(INDEX('Data Annex'!$K$1:$AS$6265,MATCH(K$1&"|"&$B16,'Data Annex'!$K$1:$K$6265,0),MATCH(K$2,'Data Annex'!$K$1:$AS$1,0)),"") -> 0 | L16: =IFERROR(INDEX('Data Annex'!$K$1:$AS$6265,MATCH(L$1&"|"&$B16,'Data Annex'!$K$1:$K$6265,0),MATCH(L$2,'Data Annex'!$K$1:$AS$1,0)),"") -> 0 | M16: =IFERROR(INDEX('Data Annex'!$K$1:$AS$6265,MATCH(M$1&"|"&$B16,'Data Annex'!$K$1:$K$6265,0),MATCH(M$2,'Data Annex'!$K$1:$AS$1,0)),"") -> 0 | N16: =IFERROR(INDEX('Data Annex'!$K$1:$AS$6265,MATCH(N$1&"|"&$B16,'Data Annex'!$K$1:$K$6265,0),MATCH(N$2,'Data Annex'!$K$1:$AS$1,0)),"") -> 79.8042921 | O16: =IFERROR(INDEX('Data Annex'!$K$1:$AS$6265,MATCH(O$1&"|"&$B16,'Data Annex'!$K$1:$K$6265,0),MATCH(O$2,'Data Annex'!$K$1:$AS$1,0)),"") -> 75.7518656 | P16: =IFERROR(INDEX('Data Annex'!$K$1:$AS$6265,MATCH(P$1&"|"&$B16,'Data Annex'!$K$1:$K$6265,0),MATCH(P$2,'Data Annex'!$K$1:$AS$1,0)),"") -> 22.42688555 | Q16: =IFERROR(INDEX('Data Annex'!$K$1:$AS$6265,MATCH(Q$1&"|"&$B16,'Data Annex'!$K$1:$K$6265,0),MATCH(Q$2,'Data Annex'!$K$1:$AS$1,0)),"") -> 21.8046928 | R16: =IFERROR(INDEX('Data Annex'!$K$1:$AS$6265,MATCH(R$1&"|"&$B16,'Data Annex'!$K$1:$K$6265,0),MATCH(R$2,'Data Annex'!$K$1:$AS$1,0)),"") -> 18.78375465 | S16: =IFERROR(INDEX('Data Annex'!$K$1:$AS$6265,MATCH(S$1&"|"&$B16,'Data Annex'!$K$1:$K$6265,0),MATCH(S$2,'Data Annex'!$K$1:$AS$1,0)),"") -> 18.46879979 | T16: =IFERROR(INDEX('Data Annex'!$K$1:$AS$6265,MATCH(T$1&"|"&$B16,'Data Annex'!$K$1:$K$6265,0),MATCH(T$2,'Data Annex'!$K$1:$AS$1,0)),"") -> 38.5936519 | U16: =IFERROR(INDEX('Data Annex'!$K$1:$AS$6265,MATCH(U$1&"|"&$B16,'Data Annex'!$K$1:$K$6265,0),MATCH(U$2,'Data Annex'!$K$1:$AS$1,0)),"") -> 35.47835278
A17: 6 | B17: DE | D17: DE | F17: =IFERROR(INDEX('Data Annex'!$K$1:$AS$6265,MATCH(F$1&"|"&$B17,'Data Annex'!$K$1:$K$6265,0),MATCH(F$2,'Data Annex'!$K$1:$AS$1,0)),"") -> 4494.684316 | G17: =IFERROR(INDEX('Data Annex'!$K$1:$AS$6265,MATCH(G$1&"|"&$B17,'Data Annex'!$K$1:$K$6265,0),MATCH(G$2,'Data Annex'!$K$1:$AS$1,0)),"") -> 5106.938683 | H17: =IFERROR(INDEX('Data Annex'!$K$1:$AS$6265,MATCH(H$1&"|"&$B17,'Data Annex'!$K$1:$K$6265,0),MATCH(H$2,'Data Annex'!$K$1:$AS$1,0)),"") -> 570.9041951 | I17: =IFERROR(INDEX('Data Annex'!$K$1:$AS$6265,MATCH(I$1&"|"&$B17,'Data Annex'!$K$1:$K$6265,0),MATCH(I$2,'Data Annex'!$K$1:$AS$1,0)),"") -> 1286.202415 | J17: =IFERROR(INDEX('Data Annex'!$K$1:$AS$6265,MATCH(J$1&"|"&$B17,'Data Annex'!$K$1:$K$6265,0),MATCH(J$2,'Data Annex'!$K$1:$AS$1,0)),"") -> 136.777536 | K17: =IFERROR(INDEX('Data Annex'!$K$1:$AS$6265,MATCH(K$1&"|"&$B17,'Data Annex'!$K$1:$K$6265,0),MATCH(K$2,'Data Annex'!$K$1:$AS$1,0)),"") -> 231.6905471 | L17: =IFERROR(INDEX('Data Annex'!$K$1:$AS$6265,MATCH(L$1&"|"&$B17,'Data Annex'!$K$1:$K$6265,0),MATCH(L$2,'Data Annex'!$K$1:$AS$1,0)),"") -> 47.19917284 | M17: =IFERROR(INDEX('Data Annex'!$K$1:$AS$6265,MATCH(M$1&"|"&$B17,'Data Annex'!$K$1:$K$6265,0),MATCH(M$2,'Data Annex'!$K$1:$AS$1,0)),"") -> 120.742059 | N17: =IFERROR(INDEX('Data Annex'!$K$1:$AS$6265,MATCH(N$1&"|"&$B17,'Data Annex'!$K$1:$K$6265,0),MATCH(N$2,'Data Annex'!$K$1:$AS$1,0)),"") -> 3781.102696 | O17: =IFERROR(INDEX('Data Annex'!$K$1:$AS$6265,MATCH(O$1&"|"&$B17,'Data Annex'!$K$1:$K$6265,0),MATCH(O$2,'Data Annex'!$K$1:$AS$1,0)),"") -> 3575.797354 | P17: =IFERROR(INDEX('Data Annex'!$K$1:$AS$6265,MATCH(P$1&"|"&$B17,'Data Annex'!$K$1:$K$6265,0),MATCH(P$2,'Data Annex'!$K$1:$AS$1,0)),"") -> 917.1205864 | Q17: =IFERROR(INDEX('Data Annex'!$K$1:$AS$6265,MATCH(Q$1&"|"&$B17,'Data Annex'!$K$1:$K$6265,0),MATCH(Q$2,'Data Annex'!$K$1:$AS$1,0)),"") -> 759.0515956 | R17: =IFERROR(INDEX('Data Annex'!$K$1:$AS$6265,MATCH(R$1&"|"&$B17,'Data Annex'!$K$1:$K$6265,0),MATCH(R$2,'Data Annex'!$K$1:$AS$1,0)),"") -> 2799.61762 | S17: =IFERROR(INDEX('Data Annex'!$K$1:$AS$6265,MATCH(S$1&"|"&$B17,'Data Annex'!$K$1:$K$6265,0),MATCH(S$2,'Data Annex'!$K$1:$AS$1,0)),"") -> 2756.593346 | T17: =IFERROR(INDEX('Data Annex'!$K$1:$AS$6265,MATCH(T$1&"|"&$B17,'Data Annex'!$K$1:$K$6265,0),MATCH(T$2,'Data Annex'!$K$1:$AS$1,0)),"") -> 64.36383657 | U17: =IFERROR(INDEX('Data Annex'!$K$1:$AS$6265,MATCH(U$1&"|"&$B17,'Data Annex'!$K$1:$K$6265,0),MATCH(U$2,'Data Annex'!$K$1:$AS$1,0)),"") -> 60.1521086
A18: 7 | B18: DK | D18: DK | F18: =IFERROR(INDEX('Data Annex'!$K$1:$AS$6265,MATCH(F$1&"|"&$B18,'Data Annex'!$K$1:$K$6265,0),MATCH(F$2,'Data Annex'!$K$1:$AS$1,0)),"") -> 3.2648566 | G18: =IFERROR(INDEX('Data Annex'!$K$1:$AS$6265,MATCH(G$1&"|"&$B18,'Data Annex'!$K$1:$K$6265,0),MATCH(G$2,'Data Annex'!$K$1:$AS$1,0)),"") -> 20.56753948 | H18: =IFERROR(INDEX('Data Annex'!$K$1:$AS$6265,MATCH(H$1&"|"&$B18,'Data Annex'!$K$1:$K$6265,0),MATCH(H$2,'Data Annex'!$K$1:$AS$1,0)),"") -> 0.7985717323 | I18: =IFERROR(INDEX('Data Annex'!$K$1:$AS$6265,MATCH(I$1&"|"&$B18,'Data Annex'!$K$1:$K$6265,0),MATCH(I$2,'Data Annex'!$K$1:$AS$1,0)),"") -> 18.87865248 | J18: =IFERROR(INDEX('Data Annex'!$K$1:$AS$6265,MATCH(J$1&"|"&$B18,'Data Annex'!$K$1:$K$6265,0),MATCH(J$2,'Data Annex'!$K$1:$AS$1,0)),"") -> 1.404645379 | K18: =IFERROR(INDEX('Data Annex'!$K$1:$AS$6265,MATCH(K$1&"|"&$B18,'Data Annex'!$K$1:$K$6265,0),MATCH(K$2,'Data Annex'!$K$1:$AS$1,0)),"") -> 0.0003659783003 | L18: =IFERROR(INDEX('Data Annex'!$K$1:$AS$6265,MATCH(L$1&"|"&$B18,'Data Annex'!$K$1:$K$6265,0),MATCH(L$2,'Data Annex'!$K$1:$AS$1,0)),"") -> 1.404645379 | M18: =IFERROR(INDEX('Data Annex'!$K$1:$AS$6265,MATCH(M$1&"|"&$B18,'Data Annex'!$K$1:$K$6265,0),MATCH(M$2,'Data Annex'!$K$1:$AS$1,0)),"") -> 0.0003659783003 | N18: =IFERROR(INDEX('Data Annex'!$K$1:$AS$6265,MATCH(N$1&"|"&$B18,'Data Annex'!$K$1:$K$6265,0),MATCH(N$2,'Data Annex'!$K$1:$AS$1,0)),"") -> 1.060847783 | O18: =IFERROR(INDEX('Data Annex'!$K$1:$AS$6265,MATCH(O$1&"|"&$B18,'Data Annex'!$K$1:$K$6265,0),MATCH(O$2,'Data Annex'!$K$1:$AS$1,0)),"") -> 1.687843395 | P18: =IFERROR(INDEX('Data Annex'!$K$1:$AS$6265,MATCH(P$1&"|"&$B18,'Data Annex'!$K$1:$K$6265,0),MATCH(P$2,'Data Annex'!$K$1:$AS$1,0)),"") -> 0 | Q18: =IFERROR(INDEX('Data Annex'!$K$1:$AS$6265,MATCH(Q$1&"|"&$B18,'Data Annex'!$K$1:$K$6265,0),MATCH(Q$2,'Data Annex'!$K$1:$AS$1,0)),"") -> 0 | R18: =IFERROR(INDEX('Data Annex'!$K$1:$AS$6265,MATCH(R$1&"|"&$B18,'Data Annex'!$K$1:$K$6265,0),MATCH(R$2,'Data Annex'!$K$1:$AS$1,0)),"") -> 0.1026283 | S18: =IFERROR(INDEX('Data Annex'!$K$1:$AS$6265,MATCH(S$1&"|"&$B18,'Data Annex'!$K$1:$K$6265,0),MATCH(S$2,'Data Annex'!$K$1:$AS$1,0)),"") -> 0.1031836325 | T18: =IFERROR(INDEX('Data Annex'!$K$1:$AS$6265,MATCH(T$1&"|"&$B18,'Data Annex'!$K$1:$K$6265,0),MATCH(T$2,'Data Annex'!$K$1:$AS$1,0)),"") -> 0.9579812208 | U18: =IFERROR(INDEX('Data Annex'!$K$1:$AS$6265,MATCH(U$1&"|"&$B18,'Data Annex'!$K$1:$K$6265,0),MATCH(U$2,'Data Annex'!$K$1:$AS$1,0)),"") -> 1.58453305
A19: 8 | B19: EE | D19: EE | F19: =IFERROR(INDEX('Data Annex'!$K$1:$AS$6265,MATCH(F$1&"|"&$B19,'Data Annex'!$K$1:$K$6265,0),MATCH(F$2,'Data Annex'!$K$1:$AS$1,0)),"") -> 6.283914068 | G19: =IFERROR(INDEX('Data Annex'!$K$1:$AS$6265,MATCH(G$1&"|"&$B19,'Data Annex'!$K$1:$K$6265,0),MATCH(G$2,'Data Annex'!$K$1:$AS$1,0)),"") -> 3.887749792 | H19: =IFERROR(INDEX('Data Annex'!$K$1:$AS$6265,MATCH(H$1&"|"&$B19,'Data Annex'!$K$1:$K$6265,0),MATCH(H$2,'Data Annex'!$K$1:$AS$1,0)),"") -> 2.90165911 | I19: =IFERROR(INDEX('Data Annex'!$K$1:$AS$6265,MATCH(I$1&"|"&$B19,'Data Annex'!$K$1:$K$6265,0),MATCH(I$2,'Data Annex'!$K$1:$AS$1,0)),"") -> 1.00908943 | J19: =IFERROR(INDEX('Data Annex'!$K$1:$AS$6265,MATCH(J$1&"|"&$B19,'Data Annex'!$K$1:$K$6265,0),MATCH(J$2,'Data Annex'!$K$1:$AS$1,0)),"") -> 0 | K19: =IFERROR(INDEX('Data Annex'!$K$1:$AS$6265,MATCH(K$1&"|"&$B19,'Data Annex'!$K$1:$K$6265,0),MATCH(K$2,'Data Annex'!$K$1:$AS$1,0)),"") -> 0 | L19: =IFERROR(INDEX('Data Annex'!$K$1:$AS$6265,MATCH(L$1&"|"&$B19,'Data Annex'!$K$1:$K$6265,0),MATCH(L$2,'Data Annex'!$K$1:$AS$1,0)),"") -> 0 | M19: =IFERROR(INDEX('Data Annex'!$K$1:$AS$6265,MATCH(M$1&"|"&$B19,'Data Annex'!$K$1:$K$6265,0),MATCH(M$2,'Data Annex'!$K$1:$AS$1,0)),"") -> 0 | N19: =IFERROR(INDEX('Data Annex'!$K$1:$AS$6265,MATCH(N$1&"|"&$B19,'Data Annex'!$K$1:$K$6265,0),MATCH(N$2,'Data Annex'!$K$1:$AS$1,0)),"") -> 3.382254958 | O19: =IFERROR(INDEX('Data Annex'!$K$1:$AS$6265,MATCH(O$1&"|"&$B19,'Data Annex'!$K$1:$K$6265,0),MATCH(O$2,'Data Annex'!$K$1:$AS$1,0)),"") -> 2.878546542 | P19: =IFERROR(INDEX('Data Annex'!$K$1:$AS$6265,MATCH(P$1&"|"&$B19,'Data Annex'!$K$1:$K$6265,0),MATCH(P$2,'Data Annex'!$K$1:$AS$1,0)),"") -> 0 | Q19: =IFERROR(INDEX('Data Annex'!$K$1:$AS$6265,MATCH(Q$1&"|"&$B19,'Data Annex'!$K$1:$K$6265,0),MATCH(Q$2,'Data Annex'!$K$1:$AS$1,0)),"") -> 0 | R19: =IFERROR(INDEX('Data Annex'!$K$1:$AS$6265,MATCH(R$1&"|"&$B19,'Data Annex'!$K$1:$K$6265,0),MATCH(R$2,'Data Annex'!$K$1:$AS$1,0)),"") -> 0 | S19: =IFERROR(INDEX('Data Annex'!$K$1:$AS$6265,MATCH(S$1&"|"&$B19,'Data Annex'!$K$1:$K$6265,0),MATCH(S$2,'Data Annex'!$K$1:$AS$1,0)),"") -> 0 | T19: =IFERROR(INDEX('Data Annex'!$K$1:$AS$6265,MATCH(T$1&"|"&$B19,'Data Annex'!$K$1:$K$6265,0),MATCH(T$2,'Data Annex'!$K$1:$AS$1,0)),"") -> 3.382254958 | U19: =IFERROR(INDEX('Data Annex'!$K$1:$AS$6265,MATCH(U$1&"|"&$B19,'Data Annex'!$K$1:$K$6265,0),MATCH(U$2,'Data Annex'!$K$1:$AS$1,0)),"") -> 2.878546542
A20: 9 | B20: ES | D20: ES | F20: =IFERROR(INDEX('Data Annex'!$K$1:$AS$6265,MATCH(F$1&"|"&$B20,'Data Annex'!$K$1:$K$6265,0),MATCH(F$2,'Data Annex'!$K$1:$AS$1,0)),"") -> 671.603912 | G20: =IFERROR(INDEX('Data Annex'!$K$1:$AS$6265,MATCH(G$1&"|"&$B20,'Data Annex'!$K$1:$K$6265,0),MATCH(G$2,'Data Annex'!$K$1:$AS$1,0)),"") -> 611.585383 | H20: =IFERROR(INDEX('Data Annex'!$K$1:$AS$6265,MATCH(H$1&"|"&$B20,'Data Annex'!$K$1:$K$6265,0),MATCH(H$2,'Data Annex'!$K$1:$AS$1,0)),"") -> 14.88 | I20: =IFERROR(INDEX('Data Annex'!$K$1:$AS$6265,MATCH(I$1&"|"&$B20,'Data Annex'!$K$1:$K$6265,0),MATCH(I$2,'Data Annex'!$K$1:$AS$1,0)),"") -> 6.831 | J20: =IFERROR(INDEX('Data Annex'!$K$1:$AS$6265,MATCH(J$1&"|"&$B20,'Data Annex'!$K$1:$K$6265,0),MATCH(J$2,'Data Annex'!$K$1:$AS$1,0)),"") -> 0 | K20: =IFERROR(INDEX('Data Annex'!$K$1:$AS$6265,MATCH(K$1&"|"&$B20,'Data Annex'!$K$1:$K$6265,0),MATCH(K$2,'Data Annex'!$K$1:$AS$1,0)),"") -> 0 | L20: =IFERROR(INDEX('Data Annex'!$K$1:$AS$6265,MATCH(L$1&"|"&$B20,'Data Annex'!$K$1:$K$6265,0),MATCH(L$2,'Data Annex'!$K$1:$AS$1,0)),"") -> 0 | M20: =IFERROR(INDEX('Data Annex'!$K$1:$AS$6265,MATCH(M$1&"|"&$B20,'Data Annex'!$K$1:$K$6265,0),MATCH(M$2,'Data Annex'!$K$1:$AS$1,0)),"") -> 0 | N20: =IFERROR(INDEX('Data Annex'!$K$1:$AS$6265,MATCH(N$1&"|"&$B20,'Data Annex'!$K$1:$K$6265,0),MATCH(N$2,'Data Annex'!$K$1:$AS$1,0)),"") -> 656.723912 | O20: =IFERROR(INDEX('Data Annex'!$K$1:$AS$6265,MATCH(O$1&"|"&$B20,'Data Annex'!$K$1:$K$6265,0),MATCH(O$2,'Data Annex'!$K$1:$AS$1,0)),"") -> 604.7543831 | P20: =IFERROR(INDEX('Data Annex'!$K$1:$AS$6265,MATCH(P$1&"|"&$B20,'Data Annex'!$K$1:$K$6265,0),MATCH(P$2,'Data Annex'!$K$1:$AS$1,0)),"") -> 2.859 | Q20: =IFERROR(INDEX('Data Annex'!$K$1:$AS$6265,MATCH(Q$1&"|"&$B20,'Data Annex'!$K$1:$K$6265,0),MATCH(Q$2,'Data Annex'!$K$1:$AS$1,0)),"") -> 1.085 | R20: =IFERROR(INDEX('Data Annex'!$K$1:$AS$6265,MATCH(R$1&"|"&$B20,'Data Annex'!$K$1:$K$6265,0),MATCH(R$2,'Data Annex'!$K$1:$AS$1,0)),"") -> 15.098105 | S20: =IFERROR(INDEX('Data Annex'!$K$1:$AS$6265,MATCH(S$1&"|"&$B20,'Data Annex'!$K$1:$K$6265,0),MATCH(S$2,'Data Annex'!$K$1:$AS$1,0)),"") -> 9.012843 | T20: =IFERROR(INDEX('Data Annex'!$K$1:$AS$6265,MATCH(T$1&"|"&$B20,'Data Annex'!$K$1:$K$6265,0),MATCH(T$2,'Data Annex'!$K$1:$AS$1,0)),"") -> 638.766807 | U20: =IFERROR(INDEX('Data Annex'!$K$1:$AS$6265,MATCH(U$1&"|"&$B20,'Data Annex'!$K$1:$K$6265,0),MATCH(U$2,'Data Annex'!$K$1:$AS$1,0)),"") -> 594.656541
A21: 10 | B21: FI | D21: FI | F21: =IFERROR(INDEX('Data Annex'!$K$1:$AS$6265,MATCH(F$1&"|"&$B21,'Data Annex'!$K$1:$K$6265,0),MATCH(F$2,'Data Annex'!$K$1:$AS$1,0)),"") -> 361.2545999 | G21: =IFERROR(INDEX('Data Annex'!$K$1:$AS$6265,MATCH(G$1&"|"&$B21,'Data Annex'!$K$1:$K$6265,0),MATCH(G$2,'Data Annex'!$K$1:$AS$1,0)),"") -> 127.8758228 | H21: =IFERROR(INDEX('Data Annex'!$K$1:$AS$6265,MATCH(H$1&"|"&$B21,'Data Annex'!$K$1:$K$6265,0),MATCH(H$2,'Data Annex'!$K$1:$AS$1,0)),"") -> 207.1799793 | I21: =IFERROR(INDEX('Data Annex'!$K$1:$AS$6265,MATCH(I$1&"|"&$B21,'Data Annex'!$K$1:$K$6265,0),MATCH(I$2,'Data Annex'!$K$1:$AS$1,0)),"") -> 24.48071926 | J21: =IFERROR(INDEX('Data Annex'!$K$1:$AS$6265,MATCH(J$1&"|"&$B21,'Data Annex'!$K$1:$K$6265,0),MATCH(J$2,'Data Annex'!$K$1:$AS$1,0)),"") -> 0 | K21: =IFERROR(INDEX('Data Annex'!$K$1:$AS$6265,MATCH(K$1&"|"&$B21,'Data Annex'!$K$1:$K$6265,0),MATCH(K$2,'Data Annex'!$K$1:$AS$1,0)),"") -> 0 | L21: =IFERROR(INDEX('Data Annex'!$K$1:$AS$6265,MATCH(L$1&"|"&$B21,'Data Annex'!$K$1:$K$6265,0),MATCH(L$2,'Data Annex'!$K$1:$AS$1,0)),"") -> 0 | M21: =IFERROR(INDEX('Data Annex'!$K$1:$AS$6265,MATCH(M$1&"|"&$B21,'Data Annex'!$K$1:$K$6265,0),MATCH(M$2,'Data Annex'!$K$1:$AS$1,0)),"") -> 0 | N21: =IFERROR(INDEX('Data Annex'!$K$1:$AS$6265,MATCH(N$1&"|"&$B21,'Data Annex'!$K$1:$K$6265,0),MATCH(N$2,'Data Annex'!$K$1:$AS$1,0)),"") -> 141.3522776 | O21: =IFERROR(INDEX('Data Annex'!$K$1:$AS$6265,MATCH(O$1&"|"&$B21,'Data Annex'!$K$1:$K$6265,0),MATCH(O$2,'Data Annex'!$K$1:$AS$1,0)),"") -> 103.3402976 | P21: =IFERROR(INDEX('Data Annex'!$K$1:$AS$6265,MATCH(P$1&"|"&$B21,'Data Annex'!$K$1:$K$6265,0),MATCH(P$2,'Data Annex'!$K$1:$AS$1,0)),"") -> 35.71470767 | Q21: =IFERROR(INDEX('Data Annex'!$K$1:$AS$6265,MATCH(Q$1&"|"&$B21,'Data Annex'!$K$1:$K$6265,0),MATCH(Q$2,'Data Annex'!$K$1:$AS$1,0)),"") -> 19.5937319 | R21: =IFERROR(INDEX('Data Annex'!$K$1:$AS$6265,MATCH(R$1&"|"&$B21,'Data Annex'!$K$1:$K$6265,0),MATCH(R$2,'Data Annex'!$K$1:$AS$1,0)),"") -> 88.180737 | S21: =IFERROR(INDEX('Data Annex'!$K$1:$AS$6265,MATCH(S$1&"|"&$B21,'Data Annex'!$K$1:$K$6265,0),MATCH(S$2,'Data Annex'!$K$1:$AS$1,0)),"") -> 67.642604 | T21: =IFERROR(INDEX('Data Annex'!$K$1:$AS$6265,MATCH(T$1&"|"&$B21,'Data Annex'!$K$1:$K$6265,0),MATCH(T$2,'Data Annex'!$K$1:$AS$1,0)),"") -> 17.45322095 | U21: =IFERROR(INDEX('Data Annex'!$K$1:$AS$6265,MATCH(U$1&"|"&$B21,'Data Annex'!$K$1:$K$6265,0),MATCH(U$2,'Data Annex'!$K$1:$AS$1,0)),"") -> 16.10381665
A22: 11 | B22: FR | D22: FR | F22: =IFERROR(INDEX('Data Annex'!$K$1:$AS$6265,MATCH(F$1&"|"&$B22,'Data Annex'!$K$1:$K$6265,0),MATCH(F$2,'Data Annex'!$K$1:$AS$1,0)),"") -> 24233.93354 | G22: =IFERROR(INDEX('Data Annex'!$K$1:$AS$6265,MATCH(G$1&"|"&$B22,'Data Annex'!$K$1:$K$6265,0),MATCH(G$2,'Data Annex'!$K$1:$AS$1,0)),"") -> 23730.79278 | H22: =IFERROR(INDEX('Data Annex'!$K$1:$AS$6265,MATCH(H$1&"|"&$B22,'Data Annex'!$K$1:$K$6265,0),MATCH(H$2,'Data Annex'!$K$1:$AS$1,0)),"") -> 3054.081644 | I22: =IFERROR(INDEX('Data Annex'!$K$1:$AS$6265,MATCH(I$1&"|"&$B22,'Data Annex'!$K$1:$K$6265,0),MATCH(I$2,'Data Annex'!$K$1:$AS$1,0)),"") -> 3901.275319 | J22: =IFERROR(INDEX('Data Annex'!$K$1:$AS$6265,MATCH(J$1&"|"&$B22,'Data Annex'!$K$1:$K$6265,0),MATCH(J$2,'Data Annex'!$K$1:$AS$1,0)),"") -> 1368.226738 | K22: =IFERROR(INDEX('Data Annex'!$K$1:$AS$6265,MATCH(K$1&"|"&$B22,'Data Annex'!$K$1:$K$6265,0),MATCH(K$2,'Data Annex'!$K$1:$AS$1,0)),"") -> 1128.077504 | L22: =IFERROR(INDEX('Data Annex'!$K$1:$AS$6265,MATCH(L$1&"|"&$B22,'Data Annex'!$K$1:$K$6265,0),MATCH(L$2,'Data Annex'!$K$1:$AS$1,0)),"") -> 1314.793146 | M22: =IFERROR(INDEX('Data Annex'!$K$1:$AS$6265,MATCH(M$1&"|"&$B22,'Data Annex'!$K$1:$K$6265,0),MATCH(M$2,'Data Annex'!$K$1:$AS$1,0)),"") -> 1093.485068 | N22: =IFERROR(INDEX('Data Annex'!$K$1:$AS$6265,MATCH(N$1&"|"&$B22,'Data Annex'!$K$1:$K$6265,0),MATCH(N$2,'Data Annex'!$K$1:$AS$1,0)),"") -> 19162.04163 | O22: =IFERROR(INDEX('Data Annex'!$K$1:$AS$6265,MATCH(O$1&"|"&$B22,'Data Annex'!$K$1:$K$6265,0),MATCH(O$2,'Data Annex'!$K$1:$AS$1,0)),"") -> 18699.6728 | P22: =IFERROR(INDEX('Data Annex'!$K$1:$AS$6265,MATCH(P$1&"|"&$B22,'Data Annex'!$K$1:$K$6265,0),MATCH(P$2,'Data Annex'!$K$1:$AS$1,0)),"") -> 1182.152747 | Q22: =IFERROR(INDEX('Data Annex'!$K$1:$AS$6265,MATCH(Q$1&"|"&$B22,'Data Annex'!$K$1:$K$6265,0),MATCH(Q$2,'Data Annex'!$K$1:$AS$1,0)),"") -> 850.9952567 | R22: =IFERROR(INDEX('Data Annex'!$K$1:$AS$6265,MATCH(R$1&"|"&$B22,'Data Annex'!$K$1:$K$6265,0),MATCH(R$2,'Data Annex'!$K$1:$AS$1,0)),"") -> 10066.155 | S22: =IFERROR(INDEX('Data Annex'!$K$1:$AS$6265,MATCH(S$1&"|"&$B22,'Data Annex'!$K$1:$K$6265,0),MATCH(S$2,'Data Annex'!$K$1:$AS$1,0)),"") -> 9800.048295 | T22: =IFERROR(INDEX('Data Annex'!$K$1:$AS$6265,MATCH(T$1&"|"&$B22,'Data Annex'!$K$1:$K$6265,0),MATCH(T$2,'Data Annex'!$K$1:$AS$1,0)),"") -> 6963.161903 | U22: =IFERROR(INDEX('Data Annex'!$K$1:$AS$6265,MATCH(U$1&"|"&$B22,'Data Annex'!$K$1:$K$6265,0),MATCH(U$2,'Data Annex'!$K$1:$AS$1,0)),"") -> 6340.986126
A23: 12 | B23: GR | D23: GR | F23: =IFERROR(INDEX('Data Annex'!$K$1:$AS$6265,MATCH(F$1&"|"&$B23,'Data Annex'!$K$1:$K$6265,0),MATCH(F$2,'Data Annex'!$K$1:$AS$1,0)),"") ->  | G23: =IFERROR(INDEX('Data Annex'!$K$1:$AS$6265,MATCH(G$1&"|"&$B23,'Data Annex'!$K$1:$K$6265,0),MATCH(G$2,'Data Annex'!$K$1:$AS$1,0)),"") ->  | H23: =IFERROR(INDEX('Data Annex'!$K$1:$AS$6265,MATCH(H$1&"|"&$B23,'Data Annex'!$K$1:$K$6265,0),MATCH(H$2,'Data Annex'!$K$1:$AS$1,0)),"") ->  | I23: =IFERROR(INDEX('Data Annex'!$K$1:$AS$6265,MATCH(I$1&"|"&$B23,'Data Annex'!$K$1:$K$6265,0),MATCH(I$2,'Data Annex'!$K$1:$AS$1,0)),"") ->  | J23: =IFERROR(INDEX('Data Annex'!$K$1:$AS$6265,MATCH(J$1&"|"&$B23,'Data Annex'!$K$1:$K$6265,0),MATCH(J$2,'Data Annex'!$K$1:$AS$1,0)),"") ->  | K23: =IFERROR(INDEX('Data Annex'!$K$1:$AS$6265,MATCH(K$1&"|"&$B23,'Data Annex'!$K$1:$K$6265,0),MATCH(K$2,'Data Annex'!$K$1:$AS$1,0)),"") ->  | L23: =IFERROR(INDEX('Data Annex'!$K$1:$AS$6265,MATCH(L$1&"|"&$B23,'Data Annex'!$K$1:$K$6265,0),MATCH(L$2,'Data Annex'!$K$1:$AS$1,0)),"") ->  | M23: =IFERROR(INDEX('Data Annex'!$K$1:$AS$6265,MATCH(M$1&"|"&$B23,'Data Annex'!$K$1:$K$6265,0),MATCH(M$2,'Data Annex'!$K$1:$AS$1,0)),"") ->  | N23: =IFERROR(INDEX('Data Annex'!$K$1:$AS$6265,MATCH(N$1&"|"&$B23,'Data Annex'!$K$1:$K$6265,0),MATCH(N$2,'Data Annex'!$K$1:$AS$1,0)),"") ->  | O23: =IFERROR(INDEX('Data Annex'!$K$1:$AS$6265,MATCH(O$1&"|"&$B23,'Data Annex'!$K$1:$K$6265,0),MATCH(O$2,'Data Annex'!$K$1:$AS$1,0)),"") ->  | P23: =IFERROR(INDEX('Data Annex'!$K$1:$AS$6265,MATCH(P$1&"|"&$B23,'Data Annex'!$K$1:$K$6265,0),MATCH(P$2,'Data Annex'!$K$1:$AS$1,0)),"") ->  | Q23: =IFERROR(INDEX('Data Annex'!$K$1:$AS$6265,MATCH(Q$1&"|"&$B23,'Data Annex'!$K$1:$K$6265,0),MATCH(Q$2,'Data Annex'!$K$1:$AS$1,0)),"") ->  | R23: =IFERROR(INDEX('Data Annex'!$K$1:$AS$6265,MATCH(R$1&"|"&$B23,'Data Annex'!$K$1:$K$6265,0),MATCH(R$2,'Data Annex'!$K$1:$AS$1,0)),"") ->  | S23: =IFERROR(INDEX('Data Annex'!$K$1:$AS$6265,MATCH(S$1&"|"&$B23,'Data Annex'!$K$1:$K$6265,0),MATCH(S$2,'Data Annex'!$K$1:$AS$1,0)),"") ->  | T23: =IFERROR(INDEX('Data Annex'!$K$1:$AS$6265,MATCH(T$1&"|"&$B23,'Data Annex'!$K$1:$K$6265,0),MATCH(T$2,'Data Annex'!$K$1:$AS$1,0)),"") ->  | U23: =IFERROR(INDEX('Data Annex'!$K$1:$AS$6265,MATCH(U$1&"|"&$B23,'Data Annex'!$K$1:$K$6265,0),MATCH(U$2,'Data Annex'!$K$1:$AS$1,0)),"") -> 
A24: 13 | B24: HR | D24: HR | F24: =IFERROR(INDEX('Data Annex'!$K$1:$AS$6265,MATCH(F$1&"|"&$B24,'Data Annex'!$K$1:$K$6265,0),MATCH(F$2,'Data Annex'!$K$1:$AS$1,0)),"") -> 8.45609848 | G24: =IFERROR(INDEX('Data Annex'!$K$1:$AS$6265,MATCH(G$1&"|"&$B24,'Data Annex'!$K$1:$K$6265,0),MATCH(G$2,'Data Annex'!$K$1:$AS$1,0)),"") -> 7.663941207 | H24: =IFERROR(INDEX('Data Annex'!$K$1:$AS$6265,MATCH(H$1&"|"&$B24,'Data Annex'!$K$1:$K$6265,0),MATCH(H$2,'Data Annex'!$K$1:$AS$1,0)),"") -> 0.02064859758 | I24: =IFERROR(INDEX('Data Annex'!$K$1:$AS$6265,MATCH(I$1&"|"&$B24,'Data Annex'!$K$1:$K$6265,0),MATCH(I$2,'Data Annex'!$K$1:$AS$1,0)),"") -> 0 | J24: =IFERROR(INDEX('Data Annex'!$K$1:$AS$6265,MATCH(J$1&"|"&$B24,'Data Annex'!$K$1:$K$6265,0),MATCH(J$2,'Data Annex'!$K$1:$AS$1,0)),"") ->  | K24: =IFERROR(INDEX('Data Annex'!$K$1:$AS$6265,MATCH(K$1&"|"&$B24,'Data Annex'!$K$1:$K$6265,0),MATCH(K$2,'Data Annex'!$K$1:$AS$1,0)),"") ->  | L24: =IFERROR(INDEX('Data Annex'!$K$1:$AS$6265,MATCH(L$1&"|"&$B24,'Data Annex'!$K$1:$K$6265,0),MATCH(L$2,'Data Annex'!$K$1:$AS$1,0)),"") ->  | M24: =IFERROR(INDEX('Data Annex'!$K$1:$AS$6265,MATCH(M$1&"|"&$B24,'Data Annex'!$K$1:$K$6265,0),MATCH(M$2,'Data Annex'!$K$1:$AS$1,0)),"") ->  | N24: =IFERROR(INDEX('Data Annex'!$K$1:$AS$6265,MATCH(N$1&"|"&$B24,'Data Annex'!$K$1:$K$6265,0),MATCH(N$2,'Data Annex'!$K$1:$AS$1,0)),"") -> 8.435449883 | O24: =IFERROR(INDEX('Data Annex'!$K$1:$AS$6265,MATCH(O$1&"|"&$B24,'Data Annex'!$K$1:$K$6265,0),MATCH(O$2,'Data Annex'!$K$1:$AS$1,0)),"") -> 7.663941207 | P24: =IFERROR(INDEX('Data Annex'!$K$1:$AS$6265,MATCH(P$1&"|"&$B24,'Data Annex'!$K$1:$K$6265,0),MATCH(P$2,'Data Annex'!$K$1:$AS$1,0)),"") -> 0 | Q24: =IFERROR(INDEX('Data Annex'!$K$1:$AS$6265,MATCH(Q$1&"|"&$B24,'Data Annex'!$K$1:$K$6265,0),MATCH(Q$2,'Data Annex'!$K$1:$AS$1,0)),"") -> 1.600607341e-05 | R24: =IFERROR(INDEX('Data Annex'!$K$1:$AS$6265,MATCH(R$1&"|"&$B24,'Data Annex'!$K$1:$K$6265,0),MATCH(R$2,'Data Annex'!$K$1:$AS$1,0)),"") -> 8.160871604 | S24: =IFERROR(INDEX('Data Annex'!$K$1:$AS$6265,MATCH(S$1&"|"&$B24,'Data Annex'!$K$1:$K$6265,0),MATCH(S$2,'Data Annex'!$K$1:$AS$1,0)),"") -> 7.420053256 | T24: =IFERROR(INDEX('Data Annex'!$K$1:$AS$6265,MATCH(T$1&"|"&$B24,'Data Annex'!$K$1:$K$6265,0),MATCH(T$2,'Data Annex'!$K$1:$AS$1,0)),"") -> 0.2745636955 | U24: =IFERROR(INDEX('Data Annex'!$K$1:$AS$6265,MATCH(U$1&"|"&$B24,'Data Annex'!$K$1:$K$6265,0),MATCH(U$2,'Data Annex'!$K$1:$AS$1,0)),"") -> 0.2438567613
A25: 14 | B25: HU | D25: HU | F25: =IFERROR(INDEX('Data Annex'!$K$1:$AS$6265,MATCH(F$1&"|"&$B25,'Data Annex'!$K$1:$K$6265,0),MATCH(F$2,'Data Annex'!$K$1:$AS$1,0)),"") -> 2733.246569 | G25: =IFERROR(INDEX('Data Annex'!$K$1:$AS$6265,MATCH(G$1&"|"&$B25,'Data Annex'!$K$1:$K$6265,0),MATCH(G$2,'Data Annex'!$K$1:$AS$1,0)),"") -> 2449.078778 | H25: =IFERROR(INDEX('Data Annex'!$K$1:$AS$6265,MATCH(H$1&"|"&$B25,'Data Annex'!$K$1:$K$6265,0),MATCH(H$2,'Data Annex'!$K$1:$AS$1,0)),"") -> 38.31119956 | I25: =IFERROR(INDEX('Data Annex'!$K$1:$AS$6265,MATCH(I$1&"|"&$B25,'Data Annex'!$K$1:$K$6265,0),MATCH(I$2,'Data Annex'!$K$1:$AS$1,0)),"") -> 35.64773319 | J25: =IFERROR(INDEX('Data Annex'!$K$1:$AS$6265,MATCH(J$1&"|"&$B25,'Data Annex'!$K$1:$K$6265,0),MATCH(J$2,'Data Annex'!$K$1:$AS$1,0)),"") -> 459.5454059 | K25: =IFERROR(INDEX('Data Annex'!$K$1:$AS$6265,MATCH(K$1&"|"&$B25,'Data Annex'!$K$1:$K$6265,0),MATCH(K$2,'Data Annex'!$K$1:$AS$1,0)),"") -> 239.4899145 | L25: =IFERROR(INDEX('Data Annex'!$K$1:$AS$6265,MATCH(L$1&"|"&$B25,'Data Annex'!$K$1:$K$6265,0),MATCH(L$2,'Data Annex'!$K$1:$AS$1,0)),"") -> 450.3662475 | M25: =IFERROR(INDEX('Data Annex'!$K$1:$AS$6265,MATCH(M$1&"|"&$B25,'Data Annex'!$K$1:$K$6265,0),MATCH(M$2,'Data Annex'!$K$1:$AS$1,0)),"") -> 239.4899145 | N25: =IFERROR(INDEX('Data Annex'!$K$1:$AS$6265,MATCH(N$1&"|"&$B25,'Data Annex'!$K$1:$K$6265,0),MATCH(N$2,'Data Annex'!$K$1:$AS$1,0)),"") -> 2235.389963 | O25: =IFERROR(INDEX('Data Annex'!$K$1:$AS$6265,MATCH(O$1&"|"&$B25,'Data Annex'!$K$1:$K$6265,0),MATCH(O$2,'Data Annex'!$K$1:$AS$1,0)),"") -> 2173.941131 | P25: =IFERROR(INDEX('Data Annex'!$K$1:$AS$6265,MATCH(P$1&"|"&$B25,'Data Annex'!$K$1:$K$6265,0),MATCH(P$2,'Data Annex'!$K$1:$AS$1,0)),"") -> 114.8076958 | Q25: =IFERROR(INDEX('Data Annex'!$K$1:$AS$6265,MATCH(Q$1&"|"&$B25,'Data Annex'!$K$1:$K$6265,0),MATCH(Q$2,'Data Annex'!$K$1:$AS$1,0)),"") -> 293.8742225 | R25: =IFERROR(INDEX('Data Annex'!$K$1:$AS$6265,MATCH(R$1&"|"&$B25,'Data Annex'!$K$1:$K$6265,0),MATCH(R$2,'Data Annex'!$K$1:$AS$1,0)),"") -> 411.2952759 | S25: =IFERROR(INDEX('Data Annex'!$K$1:$AS$6265,MATCH(S$1&"|"&$B25,'Data Annex'!$K$1:$K$6265,0),MATCH(S$2,'Data Annex'!$K$1:$AS$1,0)),"") -> 341.3588514 | T25: =IFERROR(INDEX('Data Annex'!$K$1:$AS$6265,MATCH(T$1&"|"&$B25,'Data Annex'!$K$1:$K$6265,0),MATCH(T$2,'Data Annex'!$K$1:$AS$1,0)),"") -> 1708.800403 | U25: =IFERROR(INDEX('Data Annex'!$K$1:$AS$6265,MATCH(U$1&"|"&$B25,'Data Annex'!$K$1:$K$6265,0),MATCH(U$2,'Data Annex'!$K$1:$AS$1,0)),"") -> 1538.376827
A26: 15 | B26: IE | D26: IE | F26: =IFERROR(INDEX('Data Annex'!$K$1:$AS$6265,MATCH(F$1&"|"&$B26,'Data Annex'!$K$1:$K$6265,0),MATCH(F$2,'Data Annex'!$K$1:$AS$1,0)),"") -> 101.3280698 | G26: =IFERROR(INDEX('Data Annex'!$K$1:$AS$6265,MATCH(G$1&"|"&$B26,'Data Annex'!$K$1:$K$6265,0),MATCH(G$2,'Data Annex'!$K$1:$AS$1,0)),"") -> 83.11961306 | H26: =IFERROR(INDEX('Data Annex'!$K$1:$AS$6265,MATCH(H$1&"|"&$B26,'Data Annex'!$K$1:$K$6265,0),MATCH(H$2,'Data Annex'!$K$1:$AS$1,0)),"") -> 4.235007394 | I26: =IFERROR(INDEX('Data Annex'!$K$1:$AS$6265,MATCH(I$1&"|"&$B26,'Data Annex'!$K$1:$K$6265,0),MATCH(I$2,'Data Annex'!$K$1:$AS$1,0)),"") -> 8.715256471 | J26: =IFERROR(INDEX('Data Annex'!$K$1:$AS$6265,MATCH(J$1&"|"&$B26,'Data Annex'!$K$1:$K$6265,0),MATCH(J$2,'Data Annex'!$K$1:$AS$1,0)),"") -> 4e-08 | K26: =IFERROR(INDEX('Data Annex'!$K$1:$AS$6265,MATCH(K$1&"|"&$B26,'Data Annex'!$K$1:$K$6265,0),MATCH(K$2,'Data Annex'!$K$1:$AS$1,0)),"") -> 4e-08 | L26: =IFERROR(INDEX('Data Annex'!$K$1:$AS$6265,MATCH(L$1&"|"&$B26,'Data Annex'!$K$1:$K$6265,0),MATCH(L$2,'Data Annex'!$K$1:$AS$1,0)),"") ->  | M26: =IFERROR(INDEX('Data Annex'!$K$1:$AS$6265,MATCH(M$1&"|"&$B26,'Data Annex'!$K$1:$K$6265,0),MATCH(M$2,'Data Annex'!$K$1:$AS$1,0)),"") ->  | N26: =IFERROR(INDEX('Data Annex'!$K$1:$AS$6265,MATCH(N$1&"|"&$B26,'Data Annex'!$K$1:$K$6265,0),MATCH(N$2,'Data Annex'!$K$1:$AS$1,0)),"") -> 97.0930624 | O26: =IFERROR(INDEX('Data Annex'!$K$1:$AS$6265,MATCH(O$1&"|"&$B26,'Data Annex'!$K$1:$K$6265,0),MATCH(O$2,'Data Annex'!$K$1:$AS$1,0)),"") -> 74.40435655 | P26: =IFERROR(INDEX('Data Annex'!$K$1:$AS$6265,MATCH(P$1&"|"&$B26,'Data Annex'!$K$1:$K$6265,0),MATCH(P$2,'Data Annex'!$K$1:$AS$1,0)),"") -> 1.77270055 | Q26: =IFERROR(INDEX('Data Annex'!$K$1:$AS$6265,MATCH(Q$1&"|"&$B26,'Data Annex'!$K$1:$K$6265,0),MATCH(Q$2,'Data Annex'!$K$1:$AS$1,0)),"") -> 0.69667363 | R26: =IFERROR(INDEX('Data Annex'!$K$1:$AS$6265,MATCH(R$1&"|"&$B26,'Data Annex'!$K$1:$K$6265,0),MATCH(R$2,'Data Annex'!$K$1:$AS$1,0)),"") -> 52.73682193 | S26: =IFERROR(INDEX('Data Annex'!$K$1:$AS$6265,MATCH(S$1&"|"&$B26,'Data Annex'!$K$1:$K$6265,0),MATCH(S$2,'Data Annex'!$K$1:$AS$1,0)),"") -> 56.95877525 | T26: =IFERROR(INDEX('Data Annex'!$K$1:$AS$6265,MATCH(T$1&"|"&$B26,'Data Annex'!$K$1:$K$6265,0),MATCH(T$2,'Data Annex'!$K$1:$AS$1,0)),"") -> 42.58353992 | U26: =IFERROR(INDEX('Data Annex'!$K$1:$AS$6265,MATCH(U$1&"|"&$B26,'Data Annex'!$K$1:$K$6265,0),MATCH(U$2,'Data Annex'!$K$1:$AS$1,0)),"") -> 16.74890767
A27: 16 | B27: IS | D27: IS | F27: =IFERROR(INDEX('Data Annex'!$K$1:$AS$6265,MATCH(F$1&"|"&$B27,'Data Annex'!$K$1:$K$6265,0),MATCH(F$2,'Data Annex'!$K$1:$AS$1,0)),"") -> 0.009127086721 | G27: =IFERROR(INDEX('Data Annex'!$K$1:$AS$6265,MATCH(G$1&"|"&$B27,'Data Annex'!$K$1:$K$6265,0),MATCH(G$2,'Data Annex'!$K$1:$AS$1,0)),"") -> 0.01017949296 | H27: =IFERROR(INDEX('Data Annex'!$K$1:$AS$6265,MATCH(H$1&"|"&$B27,'Data Annex'!$K$1:$K$6265,0),MATCH(H$2,'Data Annex'!$K$1:$AS$1,0)),"") ->  | I27: =IFERROR(INDEX('Data Annex'!$K$1:$AS$6265,MATCH(I$1&"|"&$B27,'Data Annex'!$K$1:$K$6265,0),MATCH(I$2,'Data Annex'!$K$1:$AS$1,0)),"") ->  | J27: =IFERROR(INDEX('Data Annex'!$K$1:$AS$6265,MATCH(J$1&"|"&$B27,'Data Annex'!$K$1:$K$6265,0),MATCH(J$2,'Data Annex'!$K$1:$AS$1,0)),"") ->  | K27: =IFERROR(INDEX('Data Annex'!$K$1:$AS$6265,MATCH(K$1&"|"&$B27,'Data Annex'!$K$1:$K$6265,0),MATCH(K$2,'Data Annex'!$K$1:$AS$1,0)),"") ->  | L27: =IFERROR(INDEX('Data Annex'!$K$1:$AS$6265,MATCH(L$1&"|"&$B27,'Data Annex'!$K$1:$K$6265,0),MATCH(L$2,'Data Annex'!$K$1:$AS$1,0)),"") ->  | M27: =IFERROR(INDEX('Data Annex'!$K$1:$AS$6265,MATCH(M$1&"|"&$B27,'Data Annex'!$K$1:$K$6265,0),MATCH(M$2,'Data Annex'!$K$1:$AS$1,0)),"") ->  | N27: =IFERROR(INDEX('Data Annex'!$K$1:$AS$6265,MATCH(N$1&"|"&$B27,'Data Annex'!$K$1:$K$6265,0),MATCH(N$2,'Data Annex'!$K$1:$AS$1,0)),"") -> 0.009127086721 | O27: =IFERROR(INDEX('Data Annex'!$K$1:$AS$6265,MATCH(O$1&"|"&$B27,'Data Annex'!$K$1:$K$6265,0),MATCH(O$2,'Data Annex'!$K$1:$AS$1,0)),"") -> 0.01017949296 | P27: =IFERROR(INDEX('Data Annex'!$K$1:$AS$6265,MATCH(P$1&"|"&$B27,'Data Annex'!$K$1:$K$6265,0),MATCH(P$2,'Data Annex'!$K$1:$AS$1,0)),"") -> 0 | Q27: =IFERROR(INDEX('Data Annex'!$K$1:$AS$6265,MATCH(Q$1&"|"&$B27,'Data Annex'!$K$1:$K$6265,0),MATCH(Q$2,'Data Annex'!$K$1:$AS$1,0)),"") -> 0 | R27: =IFERROR(INDEX('Data Annex'!$K$1:$AS$6265,MATCH(R$1&"|"&$B27,'Data Annex'!$K$1:$K$6265,0),MATCH(R$2,'Data Annex'!$K$1:$AS$1,0)),"") -> 0 | S27: =IFERROR(INDEX('Data Annex'!$K$1:$AS$6265,MATCH(S$1&"|"&$B27,'Data Annex'!$K$1:$K$6265,0),MATCH(S$2,'Data Annex'!$K$1:$AS$1,0)),"") -> 0 | T27: =IFERROR(INDEX('Data Annex'!$K$1:$AS$6265,MATCH(T$1&"|"&$B27,'Data Annex'!$K$1:$K$6265,0),MATCH(T$2,'Data Annex'!$K$1:$AS$1,0)),"") -> 0.009127086721 | U27: =IFERROR(INDEX('Data Annex'!$K$1:$AS$6265,MATCH(U$1&"|"&$B27,'Data Annex'!$K$1:$K$6265,0),MATCH(U$2,'Data Annex'!$K$1:$AS$1,0)),"") -> 0.01017949296
A28: 17 | B28: IT | D28: IT | F28: =IFERROR(INDEX('Data Annex'!$K$1:$AS$6265,MATCH(F$1&"|"&$B28,'Data Annex'!$K$1:$K$6265,0),MATCH(F$2,'Data Annex'!$K$1:$AS$1,0)),"") -> 21799.83411 | G28: =IFERROR(INDEX('Data Annex'!$K$1:$AS$6265,MATCH(G$1&"|"&$B28,'Data Annex'!$K$1:$K$6265,0),MATCH(G$2,'Data Annex'!$K$1:$AS$1,0)),"") -> 22863.86539 | H28: =IFERROR(INDEX('Data Annex'!$K$1:$AS$6265,MATCH(H$1&"|"&$B28,'Data Annex'!$K$1:$K$6265,0),MATCH(H$2,'Data Annex'!$K$1:$AS$1,0)),"") -> 406.53146 | I28: =IFERROR(INDEX('Data Annex'!$K$1:$AS$6265,MATCH(I$1&"|"&$B28,'Data Annex'!$K$1:$K$6265,0),MATCH(I$2,'Data Annex'!$K$1:$AS$1,0)),"") -> 589.023676 | J28: =IFERROR(INDEX('Data Annex'!$K$1:$AS$6265,MATCH(J$1&"|"&$B28,'Data Annex'!$K$1:$K$6265,0),MATCH(J$2,'Data Annex'!$K$1:$AS$1,0)),"") -> 1279.542129 | K28: =IFERROR(INDEX('Data Annex'!$K$1:$AS$6265,MATCH(K$1&"|"&$B28,'Data Annex'!$K$1:$K$6265,0),MATCH(K$2,'Data Annex'!$K$1:$AS$1,0)),"") -> 968.058246 | L28: =IFERROR(INDEX('Data Annex'!$K$1:$AS$6265,MATCH(L$1&"|"&$B28,'Data Annex'!$K$1:$K$6265,0),MATCH(L$2,'Data Annex'!$K$1:$AS$1,0)),"") -> 1156.549129 | M28: =IFERROR(INDEX('Data Annex'!$K$1:$AS$6265,MATCH(M$1&"|"&$B28,'Data Annex'!$K$1:$K$6265,0),MATCH(M$2,'Data Annex'!$K$1:$AS$1,0)),"") -> 921.468246 | N28: =IFERROR(INDEX('Data Annex'!$K$1:$AS$6265,MATCH(N$1&"|"&$B28,'Data Annex'!$K$1:$K$6265,0),MATCH(N$2,'Data Annex'!$K$1:$AS$1,0)),"") -> 20111.88252 | O28: =IFERROR(INDEX('Data Annex'!$K$1:$AS$6265,MATCH(O$1&"|"&$B28,'Data Annex'!$K$1:$K$6265,0),MATCH(O$2,'Data Annex'!$K$1:$AS$1,0)),"") -> 21305.42746 | P28: =IFERROR(INDEX('Data Annex'!$K$1:$AS$6265,MATCH(P$1&"|"&$B28,'Data Annex'!$K$1:$K$6265,0),MATCH(P$2,'Data Annex'!$K$1:$AS$1,0)),"") -> 2385.594485 | Q28: =IFERROR(INDEX('Data Annex'!$K$1:$AS$6265,MATCH(Q$1&"|"&$B28,'Data Annex'!$K$1:$K$6265,0),MATCH(Q$2,'Data Annex'!$K$1:$AS$1,0)),"") -> 1138.691106 | R28: =IFERROR(INDEX('Data Annex'!$K$1:$AS$6265,MATCH(R$1&"|"&$B28,'Data Annex'!$K$1:$K$6265,0),MATCH(R$2,'Data Annex'!$K$1:$AS$1,0)),"") -> 15564.21606 | S28: =IFERROR(INDEX('Data Annex'!$K$1:$AS$6265,MATCH(S$1&"|"&$B28,'Data Annex'!$K$1:$K$6265,0),MATCH(S$2,'Data Annex'!$K$1:$AS$1,0)),"") -> 15439.82032 | T28: =IFERROR(INDEX('Data Annex'!$K$1:$AS$6265,MATCH(T$1&"|"&$B28,'Data Annex'!$K$1:$K$6265,0),MATCH(T$2,'Data Annex'!$K$1:$AS$1,0)),"") -> 1980.257399 | U28: =IFERROR(INDEX('Data Annex'!$K$1:$AS$6265,MATCH(U$1&"|"&$B28,'Data Annex'!$K$1:$K$6265,0),MATCH(U$2,'Data Annex'!$K$1:$AS$1,0)),"") -> 1784.276555
A29: 19 | B29: LT | D29: LT | F29: =IFERROR(INDEX('Data Annex'!$K$1:$AS$6265,MATCH(F$1&"|"&$B29,'Data Annex'!$K$1:$K$6265,0),MATCH(F$2,'Data Annex'!$K$1:$AS$1,0)),"") -> 5.123 | G29: =IFERROR(INDEX('Data Annex'!$K$1:$AS$6265,MATCH(G$1&"|"&$B29,'Data Annex'!$K$1:$K$6265,0),MATCH(G$2,'Data Annex'!$K$1:$AS$1,0)),"") -> 0.243 | H29: =IFERROR(INDEX('Data Annex'!$K$1:$AS$6265,MATCH(H$1&"|"&$B29,'Data Annex'!$K$1:$K$6265,0),MATCH(H$2,'Data Annex'!$K$1:$AS$1,0)),"") -> 3.468 | I29: =IFERROR(INDEX('Data Annex'!$K$1:$AS$6265,MATCH(I$1&"|"&$B29,'Data Annex'!$K$1:$K$6265,0),MATCH(I$2,'Data Annex'!$K$1:$AS$1,0)),"") -> 0.078 | J29: =IFERROR(INDEX('Data Annex'!$K$1:$AS$6265,MATCH(J$1&"|"&$B29,'Data Annex'!$K$1:$K$6265,0),MATCH(J$2,'Data Annex'!$K$1:$AS$1,0)),"") ->  | K29: =IFERROR(INDEX('Data Annex'!$K$1:$AS$6265,MATCH(K$1&"|"&$B29,'Data Annex'!$K$1:$K$6265,0),MATCH(K$2,'Data Annex'!$K$1:$AS$1,0)),"") ->  | L29: =IFERROR(INDEX('Data Annex'!$K$1:$AS$6265,MATCH(L$1&"|"&$B29,'Data Annex'!$K$1:$K$6265,0),MATCH(L$2,'Data Annex'!$K$1:$AS$1,0)),"") ->  | M29: =IFERROR(INDEX('Data Annex'!$K$1:$AS$6265,MATCH(M$1&"|"&$B29,'Data Annex'!$K$1:$K$6265,0),MATCH(M$2,'Data Annex'!$K$1:$AS$1,0)),"") ->  | N29: =IFERROR(INDEX('Data Annex'!$K$1:$AS$6265,MATCH(N$1&"|"&$B29,'Data Annex'!$K$1:$K$6265,0),MATCH(N$2,'Data Annex'!$K$1:$AS$1,0)),"") -> 1.655 | O29: =IFERROR(INDEX('Data Annex'!$K$1:$AS$6265,MATCH(O$1&"|"&$B29,'Data Annex'!$K$1:$K$6265,0),MATCH(O$2,'Data Annex'!$K$1:$AS$1,0)),"") -> 0.165 | P29: =IFERROR(INDEX('Data Annex'!$K$1:$AS$6265,MATCH(P$1&"|"&$B29,'Data Annex'!$K$1:$K$6265,0),MATCH(P$2,'Data Annex'!$K$1:$AS$1,0)),"") -> 0 | Q29: =IFERROR(INDEX('Data Annex'!$K$1:$AS$6265,MATCH(Q$1&"|"&$B29,'Data Annex'!$K$1:$K$6265,0),MATCH(Q$2,'Data Annex'!$K$1:$AS$1,0)),"") -> 0 | R29: =IFERROR(INDEX('Data Annex'!$K$1:$AS$6265,MATCH(R$1&"|"&$B29,'Data Annex'!$K$1:$K$6265,0),MATCH(R$2,'Data Annex'!$K$1:$AS$1,0)),"") ->  | S29: =IFERROR(INDEX('Data Annex'!$K$1:$AS$6265,MATCH(S$1&"|"&$B29,'Data Annex'!$K$1:$K$6265,0),MATCH(S$2,'Data Annex'!$K$1:$AS$1,0)),"") ->  | T29: =IFERROR(INDEX('Data Annex'!$K$1:$AS$6265,MATCH(T$1&"|"&$B29,'Data Annex'!$K$1:$K$6265,0),MATCH(T$2,'Data Annex'!$K$1:$AS$1,0)),"") -> 1.655 | U29: =IFERROR(INDEX('Data Annex'!$K$1:$AS$6265,MATCH(U$1&"|"&$B29,'Data Annex'!$K$1:$K$6265,0),MATCH(U$2,'Data Annex'!$K$1:$AS$1,0)),"") -> 0.165
A30: 20 | B30: LU | D30: LU | F30: =IFERROR(INDEX('Data Annex'!$K$1:$AS$6265,MATCH(F$1&"|"&$B30,'Data Annex'!$K$1:$K$6265,0),MATCH(F$2,'Data Annex'!$K$1:$AS$1,0)),"") -> 686.0828404 | G30: =IFERROR(INDEX('Data Annex'!$K$1:$AS$6265,MATCH(G$1&"|"&$B30,'Data Annex'!$K$1:$K$6265,0),MATCH(G$2,'Data Annex'!$K$1:$AS$1,0)),"") -> 677.9722173 | H30: =IFERROR(INDEX('Data Annex'!$K$1:$AS$6265,MATCH(H$1&"|"&$B30,'Data Annex'!$K$1:$K$6265,0),MATCH(H$2,'Data Annex'!$K$1:$AS$1,0)),"") -> 16.86859069 | I30: =IFERROR(INDEX('Data Annex'!$K$1:$AS$6265,MATCH(I$1&"|"&$B30,'Data Annex'!$K$1:$K$6265,0),MATCH(I$2,'Data Annex'!$K$1:$AS$1,0)),"") -> 3.555836 | J30: =IFERROR(INDEX('Data Annex'!$K$1:$AS$6265,MATCH(J$1&"|"&$B30,'Data Annex'!$K$1:$K$6265,0),MATCH(J$2,'Data Annex'!$K$1:$AS$1,0)),"") -> 0 | K30: =IFERROR(INDEX('Data Annex'!$K$1:$AS$6265,MATCH(K$1&"|"&$B30,'Data Annex'!$K$1:$K$6265,0),MATCH(K$2,'Data Annex'!$K$1:$AS$1,0)),"") -> 0 | L30: =IFERROR(INDEX('Data Annex'!$K$1:$AS$6265,MATCH(L$1&"|"&$B30,'Data Annex'!$K$1:$K$6265,0),MATCH(L$2,'Data Annex'!$K$1:$AS$1,0)),"") -> 0 | M30: =IFERROR(INDEX('Data Annex'!$K$1:$AS$6265,MATCH(M$1&"|"&$B30,'Data Annex'!$K$1:$K$6265,0),MATCH(M$2,'Data Annex'!$K$1:$AS$1,0)),"") -> 0 | N30: =IFERROR(INDEX('Data Annex'!$K$1:$AS$6265,MATCH(N$1&"|"&$B30,'Data Annex'!$K$1:$K$6265,0),MATCH(N$2,'Data Annex'!$K$1:$AS$1,0)),"") -> 669.2142497 | O30: =IFERROR(INDEX('Data Annex'!$K$1:$AS$6265,MATCH(O$1&"|"&$B30,'Data Annex'!$K$1:$K$6265,0),MATCH(O$2,'Data Annex'!$K$1:$AS$1,0)),"") -> 674.4163813 | P30: =IFERROR(INDEX('Data Annex'!$K$1:$AS$6265,MATCH(P$1&"|"&$B30,'Data Annex'!$K$1:$K$6265,0),MATCH(P$2,'Data Annex'!$K$1:$AS$1,0)),"") -> 1.04379323 | Q30: =IFERROR(INDEX('Data Annex'!$K$1:$AS$6265,MATCH(Q$1&"|"&$B30,'Data Annex'!$K$1:$K$6265,0),MATCH(Q$2,'Data Annex'!$K$1:$AS$1,0)),"") -> 0 | R30: =IFERROR(INDEX('Data Annex'!$K$1:$AS$6265,MATCH(R$1&"|"&$B30,'Data Annex'!$K$1:$K$6265,0),MATCH(R$2,'Data Annex'!$K$1:$AS$1,0)),"") -> 617.9458619 | S30: =IFERROR(INDEX('Data Annex'!$K$1:$AS$6265,MATCH(S$1&"|"&$B30,'Data Annex'!$K$1:$K$6265,0),MATCH(S$2,'Data Annex'!$K$1:$AS$1,0)),"") -> 622.1656891 | T30: =IFERROR(INDEX('Data Annex'!$K$1:$AS$6265,MATCH(T$1&"|"&$B30,'Data Annex'!$K$1:$K$6265,0),MATCH(T$2,'Data Annex'!$K$1:$AS$1,0)),"") -> 50.22459451 | U30: =IFERROR(INDEX('Data Annex'!$K$1:$AS$6265,MATCH(U$1&"|"&$B30,'Data Annex'!$K$1:$K$6265,0),MATCH(U$2,'Data Annex'!$K$1:$AS$1,0)),"") -> 52.2506922
A31: 21 | B31: LV | D31: LV | F31: =IFERROR(INDEX('Data Annex'!$K$1:$AS$6265,MATCH(F$1&"|"&$B31,'Data Annex'!$K$1:$K$6265,0),MATCH(F$2,'Data Annex'!$K$1:$AS$1,0)),"") -> 9.81841566 | G31: =IFERROR(INDEX('Data Annex'!$K$1:$AS$6265,MATCH(G$1&"|"&$B31,'Data Annex'!$K$1:$K$6265,0),MATCH(G$2,'Data Annex'!$K$1:$AS$1,0)),"") -> 6.71565625 | H31: =IFERROR(INDEX('Data Annex'!$K$1:$AS$6265,MATCH(H$1&"|"&$B31,'Data Annex'!$K$1:$K$6265,0),MATCH(H$2,'Data Annex'!$K$1:$AS$1,0)),"") -> 1.20615237 | I31: =IFERROR(INDEX('Data Annex'!$K$1:$AS$6265,MATCH(I$1&"|"&$B31,'Data Annex'!$K$1:$K$6265,0),MATCH(I$2,'Data Annex'!$K$1:$AS$1,0)),"") -> 0.02939011 | J31: =IFERROR(INDEX('Data Annex'!$K$1:$AS$6265,MATCH(J$1&"|"&$B31,'Data Annex'!$K$1:$K$6265,0),MATCH(J$2,'Data Annex'!$K$1:$AS$1,0)),"") -> 0 | K31: =IFERROR(INDEX('Data Annex'!$K$1:$AS$6265,MATCH(K$1&"|"&$B31,'Data Annex'!$K$1:$K$6265,0),MATCH(K$2,'Data Annex'!$K$1:$AS$1,0)),"") -> 0 | L31: =IFERROR(INDEX('Data Annex'!$K$1:$AS$6265,MATCH(L$1&"|"&$B31,'Data Annex'!$K$1:$K$6265,0),MATCH(L$2,'Data Annex'!$K$1:$AS$1,0)),"") ->  | M31: =IFERROR(INDEX('Data Annex'!$K$1:$AS$6265,MATCH(M$1&"|"&$B31,'Data Annex'!$K$1:$K$6265,0),MATCH(M$2,'Data Annex'!$K$1:$AS$1,0)),"") ->  | N31: =IFERROR(INDEX('Data Annex'!$K$1:$AS$6265,MATCH(N$1&"|"&$B31,'Data Annex'!$K$1:$K$6265,0),MATCH(N$2,'Data Annex'!$K$1:$AS$1,0)),"") -> 8.61226329 | O31: =IFERROR(INDEX('Data Annex'!$K$1:$AS$6265,MATCH(O$1&"|"&$B31,'Data Annex'!$K$1:$K$6265,0),MATCH(O$2,'Data Annex'!$K$1:$AS$1,0)),"") -> 6.68626614 | P31: =IFERROR(INDEX('Data Annex'!$K$1:$AS$6265,MATCH(P$1&"|"&$B31,'Data Annex'!$K$1:$K$6265,0),MATCH(P$2,'Data Annex'!$K$1:$AS$1,0)),"") -> 0 | Q31: =IFERROR(INDEX('Data Annex'!$K$1:$AS$6265,MATCH(Q$1&"|"&$B31,'Data Annex'!$K$1:$K$6265,0),MATCH(Q$2,'Data Annex'!$K$1:$AS$1,0)),"") -> 0 | R31: =IFERROR(INDEX('Data Annex'!$K$1:$AS$6265,MATCH(R$1&"|"&$B31,'Data Annex'!$K$1:$K$6265,0),MATCH(R$2,'Data Annex'!$K$1:$AS$1,0)),"") -> 0.27165298 | S31: =IFERROR(INDEX('Data Annex'!$K$1:$AS$6265,MATCH(S$1&"|"&$B31,'Data Annex'!$K$1:$K$6265,0),MATCH(S$2,'Data Annex'!$K$1:$AS$1,0)),"") -> 0 | T31: =IFERROR(INDEX('Data Annex'!$K$1:$AS$6265,MATCH(T$1&"|"&$B31,'Data Annex'!$K$1:$K$6265,0),MATCH(T$2,'Data Annex'!$K$1:$AS$1,0)),"") -> 8.34061031 | U31: =IFERROR(INDEX('Data Annex'!$K$1:$AS$6265,MATCH(U$1&"|"&$B31,'Data Annex'!$K$1:$K$6265,0),MATCH(U$2,'Data Annex'!$K$1:$AS$1,0)),"") -> 6.68626614
A32: 22 | B32: MT | D32: MT | F32: =IFERROR(INDEX('Data Annex'!$K$1:$AS$6265,MATCH(F$1&"|"&$B32,'Data Annex'!$K$1:$K$6265,0),MATCH(F$2,'Data Annex'!$K$1:$AS$1,0)),"") -> 2.56565023 | G32: =IFERROR(INDEX('Data Annex'!$K$1:$AS$6265,MATCH(G$1&"|"&$B32,'Data Annex'!$K$1:$K$6265,0),MATCH(G$2,'Data Annex'!$K$1:$AS$1,0)),"") -> 2.40456759 | H32: =IFERROR(INDEX('Data Annex'!$K$1:$AS$6265,MATCH(H$1&"|"&$B32,'Data Annex'!$K$1:$K$6265,0),MATCH(H$2,'Data Annex'!$K$1:$AS$1,0)),"") -> 0 | I32: =IFERROR(INDEX('Data Annex'!$K$1:$AS$6265,MATCH(I$1&"|"&$B32,'Data Annex'!$K$1:$K$6265,0),MATCH(I$2,'Data Annex'!$K$1:$AS$1,0)),"") -> 0 | J32: =IFERROR(INDEX('Data Annex'!$K$1:$AS$6265,MATCH(J$1&"|"&$B32,'Data Annex'!$K$1:$K$6265,0),MATCH(J$2,'Data Annex'!$K$1:$AS$1,0)),"") -> 0 | K32: =IFERROR(INDEX('Data Annex'!$K$1:$AS$6265,MATCH(K$1&"|"&$B32,'Data Annex'!$K$1:$K$6265,0),MATCH(K$2,'Data Annex'!$K$1:$AS$1,0)),"") -> 0 | L32: =IFERROR(INDEX('Data Annex'!$K$1:$AS$6265,MATCH(L$1&"|"&$B32,'Data Annex'!$K$1:$K$6265,0),MATCH(L$2,'Data Annex'!$K$1:$AS$1,0)),"") -> 0 | M32: =IFERROR(INDEX('Data Annex'!$K$1:$AS$6265,MATCH(M$1&"|"&$B32,'Data Annex'!$K$1:$K$6265,0),MATCH(M$2,'Data Annex'!$K$1:$AS$1,0)),"") -> 0 | N32: =IFERROR(INDEX('Data Annex'!$K$1:$AS$6265,MATCH(N$1&"|"&$B32,'Data Annex'!$K$1:$K$6265,0),MATCH(N$2,'Data Annex'!$K$1:$AS$1,0)),"") -> 2.56565023 | O32: =IFERROR(INDEX('Data Annex'!$K$1:$AS$6265,MATCH(O$1&"|"&$B32,'Data Annex'!$K$1:$K$6265,0),MATCH(O$2,'Data Annex'!$K$1:$AS$1,0)),"") -> 2.40456759 | P32: =IFERROR(INDEX('Data Annex'!$K$1:$AS$6265,MATCH(P$1&"|"&$B32,'Data Annex'!$K$1:$K$6265,0),MATCH(P$2,'Data Annex'!$K$1:$AS$1,0)),"") -> 0 | Q32: =IFERROR(INDEX('Data Annex'!$K$1:$AS$6265,MATCH(Q$1&"|"&$B32,'Data Annex'!$K$1:$K$6265,0),MATCH(Q$2,'Data Annex'!$K$1:$AS$1,0)),"") -> 0 | R32: =IFERROR(INDEX('Data Annex'!$K$1:$AS$6265,MATCH(R$1&"|"&$B32,'Data Annex'!$K$1:$K$6265,0),MATCH(R$2,'Data Annex'!$K$1:$AS$1,0)),"") -> 0 | S32: =IFERROR(INDEX('Data Annex'!$K$1:$AS$6265,MATCH(S$1&"|"&$B32,'Data Annex'!$K$1:$K$6265,0),MATCH(S$2,'Data Annex'!$K$1:$AS$1,0)),"") -> 0 | T32: =IFERROR(INDEX('Data Annex'!$K$1:$AS$6265,MATCH(T$1&"|"&$B32,'Data Annex'!$K$1:$K$6265,0),MATCH(T$2,'Data Annex'!$K$1:$AS$1,0)),"") -> 2.56565023 | U32: =IFERROR(INDEX('Data Annex'!$K$1:$AS$6265,MATCH(U$1&"|"&$B32,'Data Annex'!$K$1:$K$6265,0),MATCH(U$2,'Data Annex'!$K$1:$AS$1,0)),"") -> 2.40456759
A33: 23 | B33: NL | D33: NL | F33: =IFERROR(INDEX('Data Annex'!$K$1:$AS$6265,MATCH(F$1&"|"&$B33,'Data Annex'!$K$1:$K$6265,0),MATCH(F$2,'Data Annex'!$K$1:$AS$1,0)),"") -> 4607.065959 | G33: =IFERROR(INDEX('Data Annex'!$K$1:$AS$6265,MATCH(G$1&"|"&$B33,'Data Annex'!$K$1:$K$6265,0),MATCH(G$2,'Data Annex'!$K$1:$AS$1,0)),"") -> 4586.665174 | H33: =IFERROR(INDEX('Data Annex'!$K$1:$AS$6265,MATCH(H$1&"|"&$B33,'Data Annex'!$K$1:$K$6265,0),MATCH(H$2,'Data Annex'!$K$1:$AS$1,0)),"") -> 45.29989684 | I33: =IFERROR(INDEX('Data Annex'!$K$1:$AS$6265,MATCH(I$1&"|"&$B33,'Data Annex'!$K$1:$K$6265,0),MATCH(I$2,'Data Annex'!$K$1:$AS$1,0)),"") -> 446.9479623 | J33: =IFERROR(INDEX('Data Annex'!$K$1:$AS$6265,MATCH(J$1&"|"&$B33,'Data Annex'!$K$1:$K$6265,0),MATCH(J$2,'Data Annex'!$K$1:$AS$1,0)),"") -> 182.443 | K33: =IFERROR(INDEX('Data Annex'!$K$1:$AS$6265,MATCH(K$1&"|"&$B33,'Data Annex'!$K$1:$K$6265,0),MATCH(K$2,'Data Annex'!$K$1:$AS$1,0)),"") -> 196.076 | L33: =IFERROR(INDEX('Data Annex'!$K$1:$AS$6265,MATCH(L$1&"|"&$B33,'Data Annex'!$K$1:$K$6265,0),MATCH(L$2,'Data Annex'!$K$1:$AS$1,0)),"") -> 180.059 | M33: =IFERROR(INDEX('Data Annex'!$K$1:$AS$6265,MATCH(M$1&"|"&$B33,'Data Annex'!$K$1:$K$6265,0),MATCH(M$2,'Data Annex'!$K$1:$AS$1,0)),"") -> 195.496 | N33: =IFERROR(INDEX('Data Annex'!$K$1:$AS$6265,MATCH(N$1&"|"&$B33,'Data Annex'!$K$1:$K$6265,0),MATCH(N$2,'Data Annex'!$K$1:$AS$1,0)),"") -> 4095.515062 | O33: =IFERROR(INDEX('Data Annex'!$K$1:$AS$6265,MATCH(O$1&"|"&$B33,'Data Annex'!$K$1:$K$6265,0),MATCH(O$2,'Data Annex'!$K$1:$AS$1,0)),"") -> 3943.446211 | P33: =IFERROR(INDEX('Data Annex'!$K$1:$AS$6265,MATCH(P$1&"|"&$B33,'Data Annex'!$K$1:$K$6265,0),MATCH(P$2,'Data Annex'!$K$1:$AS$1,0)),"") -> 485.4555167 | Q33: =IFERROR(INDEX('Data Annex'!$K$1:$AS$6265,MATCH(Q$1&"|"&$B33,'Data Annex'!$K$1:$K$6265,0),MATCH(Q$2,'Data Annex'!$K$1:$AS$1,0)),"") -> 517.3157911 | R33: =IFERROR(INDEX('Data Annex'!$K$1:$AS$6265,MATCH(R$1&"|"&$B33,'Data Annex'!$K$1:$K$6265,0),MATCH(R$2,'Data Annex'!$K$1:$AS$1,0)),"") -> 3604.284343 | S33: =IFERROR(INDEX('Data Annex'!$K$1:$AS$6265,MATCH(S$1&"|"&$B33,'Data Annex'!$K$1:$K$6265,0),MATCH(S$2,'Data Annex'!$K$1:$AS$1,0)),"") -> 3420.546948 | T33: =IFERROR(INDEX('Data Annex'!$K$1:$AS$6265,MATCH(T$1&"|"&$B33,'Data Annex'!$K$1:$K$6265,0),MATCH(T$2,'Data Annex'!$K$1:$AS$1,0)),"") -> 5.767203 | U33: =IFERROR(INDEX('Data Annex'!$K$1:$AS$6265,MATCH(U$1&"|"&$B33,'Data Annex'!$K$1:$K$6265,0),MATCH(U$2,'Data Annex'!$K$1:$AS$1,0)),"") -> 5.583472
A34: 24 | B34: NO | D34: NO* | F34: =IFERROR(INDEX('Data Annex'!$K$1:$AS$6265,MATCH(F$1&"|"&$B34,'Data Annex'!$K$1:$K$6265,0),MATCH(F$2,'Data Annex'!$K$1:$AS$1,0)),"") -> n.a. | G34: =IFERROR(INDEX('Data Annex'!$K$1:$AS$6265,MATCH(G$1&"|"&$B34,'Data Annex'!$K$1:$K$6265,0),MATCH(G$2,'Data Annex'!$K$1:$AS$1,0)),"") -> n.a. | H34: n.a. | I34: n.a. | J34: n.a. | K34: n.a. | L34: n.a. | M34: n.a. | N34: =IFERROR(INDEX('Data Annex'!$K$1:$AS$6265,MATCH(N$1&"|"&$B34,'Data Annex'!$K$1:$K$6265,0),MATCH(N$2,'Data Annex'!$K$1:$AS$1,0)),"") -> n.a. | O34: =IFERROR(INDEX('Data Annex'!$K$1:$AS$6265,MATCH(O$1&"|"&$B34,'Data Annex'!$K$1:$K$6265,0),MATCH(O$2,'Data Annex'!$K$1:$AS$1,0)),"") -> n.a. | P34: =IFERROR(INDEX('Data Annex'!$K$1:$AS$6265,MATCH(P$1&"|"&$B34,'Data Annex'!$K$1:$K$6265,0),MATCH(P$2,'Data Annex'!$K$1:$AS$1,0)),"") -> n.a. | Q34: =IFERROR(INDEX('Data Annex'!$K$1:$AS$6265,MATCH(Q$1&"|"&$B34,'Data Annex'!$K$1:$K$6265,0),MATCH(Q$2,'Data Annex'!$K$1:$AS$1,0)),"") -> n.a. | R34: n.a. | S34: n.a. | T34: =IFERROR(INDEX('Data Annex'!$K$1:$AS$6265,MATCH(T$1&"|"&$B34,'Data Annex'!$K$1:$K$6265,0),MATCH(T$2,'Data Annex'!$K$1:$AS$1,0)),"") -> n.a. | U34: =IFERROR(INDEX('Data Annex'!$K$1:$AS$6265,MATCH(U$1&"|"&$B34,'Data Annex'!$K$1:$K$6265,0),MATCH(U$2,'Data Annex'!$K$1:$AS$1,0)),"") -> n.a.
A35: 25 | B35: PL | D35: PL | F35: =IFERROR(INDEX('Data Annex'!$K$1:$AS$6265,MATCH(F$1&"|"&$B35,'Data Annex'!$K$1:$K$6265,0),MATCH(F$2,'Data Annex'!$K$1:$AS$1,0)),"") ->  | G35: =IFERROR(INDEX('Data Annex'!$K$1:$AS$6265,MATCH(G$1&"|"&$B35,'Data Annex'!$K$1:$K$6265,0),MATCH(G$2,'Data Annex'!$K$1:$AS$1,0)),"") ->  | H35: =IFERROR(INDEX('Data Annex'!$K$1:$AS$6265,MATCH(H$1&"|"&$B35,'Data Annex'!$K$1:$K$6265,0),MATCH(H$2,'Data Annex'!$K$1:$AS$1,0)),"") ->  | I35: =IFERROR(INDEX('Data Annex'!$K$1:$AS$6265,MATCH(I$1&"|"&$B35,'Data Annex'!$K$1:$K$6265,0),MATCH(I$2,'Data Annex'!$K$1:$AS$1,0)),"") ->  | J35: =IFERROR(INDEX('Data Annex'!$K$1:$AS$6265,MATCH(J$1&"|"&$B35,'Data Annex'!$K$1:$K$6265,0),MATCH(J$2,'Data Annex'!$K$1:$AS$1,0)),"") ->  | K35: =IFERROR(INDEX('Data Annex'!$K$1:$AS$6265,MATCH(K$1&"|"&$B35,'Data Annex'!$K$1:$K$6265,0),MATCH(K$2,'Data Annex'!$K$1:$AS$1,0)),"") ->  | L35: =IFERROR(INDEX('Data Annex'!$K$1:$AS$6265,MATCH(L$1&"|"&$B35,'Data Annex'!$K$1:$K$6265,0),MATCH(L$2,'Data Annex'!$K$1:$AS$1,0)),"") ->  | M35: =IFERROR(INDEX('Data Annex'!$K$1:$AS$6265,MATCH(M$1&"|"&$B35,'Data Annex'!$K$1:$K$6265,0),MATCH(M$2,'Data Annex'!$K$1:$AS$1,0)),"") ->  | N35: =IFERROR(INDEX('Data Annex'!$K$1:$AS$6265,MATCH(N$1&"|"&$B35,'Data Annex'!$K$1:$K$6265,0),MATCH(N$2,'Data Annex'!$K$1:$AS$1,0)),"") ->  | O35: =IFERROR(INDEX('Data Annex'!$K$1:$AS$6265,MATCH(O$1&"|"&$B35,'Data Annex'!$K$1:$K$6265,0),MATCH(O$2,'Data Annex'!$K$1:$AS$1,0)),"") ->  | P35: =IFERROR(INDEX('Data Annex'!$K$1:$AS$6265,MATCH(P$1&"|"&$B35,'Data Annex'!$K$1:$K$6265,0),MATCH(P$2,'Data Annex'!$K$1:$AS$1,0)),"") ->  | Q35: =IFERROR(INDEX('Data Annex'!$K$1:$AS$6265,MATCH(Q$1&"|"&$B35,'Data Annex'!$K$1:$K$6265,0),MATCH(Q$2,'Data Annex'!$K$1:$AS$1,0)),"") ->  | R35: =IFERROR(INDEX('Data Annex'!$K$1:$AS$6265,MATCH(R$1&"|"&$B35,'Data Annex'!$K$1:$K$6265,0),MATCH(R$2,'Data Annex'!$K$1:$AS$1,0)),"") ->  | S35: =IFERROR(INDEX('Data Annex'!$K$1:$AS$6265,MATCH(S$1&"|"&$B35,'Data Annex'!$K$1:$K$6265,0),MATCH(S$2,'Data Annex'!$K$1:$AS$1,0)),"") ->  | T35: =IFERROR(INDEX('Data Annex'!$K$1:$AS$6265,MATCH(T$1&"|"&$B35,'Data Annex'!$K$1:$K$6265,0),MATCH(T$2,'Data Annex'!$K$1:$AS$1,0)),"") ->  | U35: =IFERROR(INDEX('Data Annex'!$K$1:$AS$6265,MATCH(U$1&"|"&$B35,'Data Annex'!$K$1:$K$6265,0),MATCH(U$2,'Data Annex'!$K$1:$AS$1,0)),"") -> 
A36: 26 | B36: PT | D36: PT | F36: =IFERROR(INDEX('Data Annex'!$K$1:$AS$6265,MATCH(F$1&"|"&$B36,'Data Annex'!$K$1:$K$6265,0),MATCH(F$2,'Data Annex'!$K$1:$AS$1,0)),"") -> 12.12785604 | G36: =IFERROR(INDEX('Data Annex'!$K$1:$AS$6265,MATCH(G$1&"|"&$B36,'Data Annex'!$K$1:$K$6265,0),MATCH(G$2,'Data Annex'!$K$1:$AS$1,0)),"") -> 13.04344049 | H36: =IFERROR(INDEX('Data Annex'!$K$1:$AS$6265,MATCH(H$1&"|"&$B36,'Data Annex'!$K$1:$K$6265,0),MATCH(H$2,'Data Annex'!$K$1:$AS$1,0)),"") -> 0.149 | I36: =IFERROR(INDEX('Data Annex'!$K$1:$AS$6265,MATCH(I$1&"|"&$B36,'Data Annex'!$K$1:$K$6265,0),MATCH(I$2,'Data Annex'!$K$1:$AS$1,0)),"") -> 0.574 | J36: =IFERROR(INDEX('Data Annex'!$K$1:$AS$6265,MATCH(J$1&"|"&$B36,'Data Annex'!$K$1:$K$6265,0),MATCH(J$2,'Data Annex'!$K$1:$AS$1,0)),"") ->  | K36: =IFERROR(INDEX('Data Annex'!$K$1:$AS$6265,MATCH(K$1&"|"&$B36,'Data Annex'!$K$1:$K$6265,0),MATCH(K$2,'Data Annex'!$K$1:$AS$1,0)),"") ->  | L36: =IFERROR(INDEX('Data Annex'!$K$1:$AS$6265,MATCH(L$1&"|"&$B36,'Data Annex'!$K$1:$K$6265,0),MATCH(L$2,'Data Annex'!$K$1:$AS$1,0)),"") ->  | M36: =IFERROR(INDEX('Data Annex'!$K$1:$AS$6265,MATCH(M$1&"|"&$B36,'Data Annex'!$K$1:$K$6265,0),MATCH(M$2,'Data Annex'!$K$1:$AS$1,0)),"") ->  | N36: =IFERROR(INDEX('Data Annex'!$K$1:$AS$6265,MATCH(N$1&"|"&$B36,'Data Annex'!$K$1:$K$6265,0),MATCH(N$2,'Data Annex'!$K$1:$AS$1,0)),"") -> 11.97885604 | O36: =IFERROR(INDEX('Data Annex'!$K$1:$AS$6265,MATCH(O$1&"|"&$B36,'Data Annex'!$K$1:$K$6265,0),MATCH(O$2,'Data Annex'!$K$1:$AS$1,0)),"") -> 12.46944049 | P36: =IFERROR(INDEX('Data Annex'!$K$1:$AS$6265,MATCH(P$1&"|"&$B36,'Data Annex'!$K$1:$K$6265,0),MATCH(P$2,'Data Annex'!$K$1:$AS$1,0)),"") -> 0 | Q36: =IFERROR(INDEX('Data Annex'!$K$1:$AS$6265,MATCH(Q$1&"|"&$B36,'Data Annex'!$K$1:$K$6265,0),MATCH(Q$2,'Data Annex'!$K$1:$AS$1,0)),"") -> 0 | R36: =IFERROR(INDEX('Data Annex'!$K$1:$AS$6265,MATCH(R$1&"|"&$B36,'Data Annex'!$K$1:$K$6265,0),MATCH(R$2,'Data Annex'!$K$1:$AS$1,0)),"") -> 1.127568 | S36: =IFERROR(INDEX('Data Annex'!$K$1:$AS$6265,MATCH(S$1&"|"&$B36,'Data Annex'!$K$1:$K$6265,0),MATCH(S$2,'Data Annex'!$K$1:$AS$1,0)),"") -> 0.989635 | T36: =IFERROR(INDEX('Data Annex'!$K$1:$AS$6265,MATCH(T$1&"|"&$B36,'Data Annex'!$K$1:$K$6265,0),MATCH(T$2,'Data Annex'!$K$1:$AS$1,0)),"") -> 10.85128804 | U36: =IFERROR(INDEX('Data Annex'!$K$1:$AS$6265,MATCH(U$1&"|"&$B36,'Data Annex'!$K$1:$K$6265,0),MATCH(U$2,'Data Annex'!$K$1:$AS$1,0)),"") -> 11.47980549
A37: 27 | B37: RO | D37: RO | F37: =IFERROR(INDEX('Data Annex'!$K$1:$AS$6265,MATCH(F$1&"|"&$B37,'Data Annex'!$K$1:$K$6265,0),MATCH(F$2,'Data Annex'!$K$1:$AS$1,0)),"") -> 1.178861386 | G37: =IFERROR(INDEX('Data Annex'!$K$1:$AS$6265,MATCH(G$1&"|"&$B37,'Data Annex'!$K$1:$K$6265,0),MATCH(G$2,'Data Annex'!$K$1:$AS$1,0)),"") -> 0.6194923478 | H37: =IFERROR(INDEX('Data Annex'!$K$1:$AS$6265,MATCH(H$1&"|"&$B37,'Data Annex'!$K$1:$K$6265,0),MATCH(H$2,'Data Annex'!$K$1:$AS$1,0)),"") -> 1.133254193 | I37: =IFERROR(INDEX('Data Annex'!$K$1:$AS$6265,MATCH(I$1&"|"&$B37,'Data Annex'!$K$1:$K$6265,0),MATCH(I$2,'Data Annex'!$K$1:$AS$1,0)),"") -> 0.5751343428 | J37: =IFERROR(INDEX('Data Annex'!$K$1:$AS$6265,MATCH(J$1&"|"&$B37,'Data Annex'!$K$1:$K$6265,0),MATCH(J$2,'Data Annex'!$K$1:$AS$1,0)),"") -> 0 | K37: =IFERROR(INDEX('Data Annex'!$K$1:$AS$6265,MATCH(K$1&"|"&$B37,'Data Annex'!$K$1:$K$6265,0),MATCH(K$2,'Data Annex'!$K$1:$AS$1,0)),"") -> 0 | L37: =IFERROR(INDEX('Data Annex'!$K$1:$AS$6265,MATCH(L$1&"|"&$B37,'Data Annex'!$K$1:$K$6265,0),MATCH(L$2,'Data Annex'!$K$1:$AS$1,0)),"") -> 0 | M37: =IFERROR(INDEX('Data Annex'!$K$1:$AS$6265,MATCH(M$1&"|"&$B37,'Data Annex'!$K$1:$K$6265,0),MATCH(M$2,'Data Annex'!$K$1:$AS$1,0)),"") -> 0 | N37: =IFERROR(INDEX('Data Annex'!$K$1:$AS$6265,MATCH(N$1&"|"&$B37,'Data Annex'!$K$1:$K$6265,0),MATCH(N$2,'Data Annex'!$K$1:$AS$1,0)),"") -> 0.04560719337 | O37: =IFERROR(INDEX('Data Annex'!$K$1:$AS$6265,MATCH(O$1&"|"&$B37,'Data Annex'!$K$1:$K$6265,0),MATCH(O$2,'Data Annex'!$K$1:$AS$1,0)),"") -> 0.04435800497 | P37: =IFERROR(INDEX('Data Annex'!$K$1:$AS$6265,MATCH(P$1&"|"&$B37,'Data Annex'!$K$1:$K$6265,0),MATCH(P$2,'Data Annex'!$K$1:$AS$1,0)),"") -> 0 | Q37: =IFERROR(INDEX('Data Annex'!$K$1:$AS$6265,MATCH(Q$1&"|"&$B37,'Data Annex'!$K$1:$K$6265,0),MATCH(Q$2,'Data Annex'!$K$1:$AS$1,0)),"") -> 0 | R37: =IFERROR(INDEX('Data Annex'!$K$1:$AS$6265,MATCH(R$1&"|"&$B37,'Data Annex'!$K$1:$K$6265,0),MATCH(R$2,'Data Annex'!$K$1:$AS$1,0)),"") -> 3.435037381e-06 | S37: =IFERROR(INDEX('Data Annex'!$K$1:$AS$6265,MATCH(S$1&"|"&$B37,'Data Annex'!$K$1:$K$6265,0),MATCH(S$2,'Data Annex'!$K$1:$AS$1,0)),"") -> 3.43691244e-06 | T37: =IFERROR(INDEX('Data Annex'!$K$1:$AS$6265,MATCH(T$1&"|"&$B37,'Data Annex'!$K$1:$K$6265,0),MATCH(T$2,'Data Annex'!$K$1:$AS$1,0)),"") -> 0.04559971711 | U37: =IFERROR(INDEX('Data Annex'!$K$1:$AS$6265,MATCH(U$1&"|"&$B37,'Data Annex'!$K$1:$K$6265,0),MATCH(U$2,'Data Annex'!$K$1:$AS$1,0)),"") -> 0.04435456806
A38: 28 | B38: SE | D38: SE | F38: =IFERROR(INDEX('Data Annex'!$K$1:$AS$6265,MATCH(F$1&"|"&$B38,'Data Annex'!$K$1:$K$6265,0),MATCH(F$2,'Data Annex'!$K$1:$AS$1,0)),"") -> 726.7223646 | G38: =IFERROR(INDEX('Data Annex'!$K$1:$AS$6265,MATCH(G$1&"|"&$B38,'Data Annex'!$K$1:$K$6265,0),MATCH(G$2,'Data Annex'!$K$1:$AS$1,0)),"") -> 1040.66627 | H38: =IFERROR(INDEX('Data Annex'!$K$1:$AS$6265,MATCH(H$1&"|"&$B38,'Data Annex'!$K$1:$K$6265,0),MATCH(H$2,'Data Annex'!$K$1:$AS$1,0)),"") -> 4.070238725 | I38: =IFERROR(INDEX('Data Annex'!$K$1:$AS$6265,MATCH(I$1&"|"&$B38,'Data Annex'!$K$1:$K$6265,0),MATCH(I$2,'Data Annex'!$K$1:$AS$1,0)),"") -> 849.5644728 | J38: =IFERROR(INDEX('Data Annex'!$K$1:$AS$6265,MATCH(J$1&"|"&$B38,'Data Annex'!$K$1:$K$6265,0),MATCH(J$2,'Data Annex'!$K$1:$AS$1,0)),"") -> 0 | K38: =IFERROR(INDEX('Data Annex'!$K$1:$AS$6265,MATCH(K$1&"|"&$B38,'Data Annex'!$K$1:$K$6265,0),MATCH(K$2,'Data Annex'!$K$1:$AS$1,0)),"") -> 0 | L38: =IFERROR(INDEX('Data Annex'!$K$1:$AS$6265,MATCH(L$1&"|"&$B38,'Data Annex'!$K$1:$K$6265,0),MATCH(L$2,'Data Annex'!$K$1:$AS$1,0)),"") -> 0 | M38: =IFERROR(INDEX('Data Annex'!$K$1:$AS$6265,MATCH(M$1&"|"&$B38,'Data Annex'!$K$1:$K$6265,0),MATCH(M$2,'Data Annex'!$K$1:$AS$1,0)),"") -> 0 | N38: =IFERROR(INDEX('Data Annex'!$K$1:$AS$6265,MATCH(N$1&"|"&$B38,'Data Annex'!$K$1:$K$6265,0),MATCH(N$2,'Data Annex'!$K$1:$AS$1,0)),"") -> 722.6521239 | O38: =IFERROR(INDEX('Data Annex'!$K$1:$AS$6265,MATCH(O$1&"|"&$B38,'Data Annex'!$K$1:$K$6265,0),MATCH(O$2,'Data Annex'!$K$1:$AS$1,0)),"") -> 191.101796 | P38: =IFERROR(INDEX('Data Annex'!$K$1:$AS$6265,MATCH(P$1&"|"&$B38,'Data Annex'!$K$1:$K$6265,0),MATCH(P$2,'Data Annex'!$K$1:$AS$1,0)),"") -> 646.6745352 | Q38: =IFERROR(INDEX('Data Annex'!$K$1:$AS$6265,MATCH(Q$1&"|"&$B38,'Data Annex'!$K$1:$K$6265,0),MATCH(Q$2,'Data Annex'!$K$1:$AS$1,0)),"") -> 133.9300832 | R38: =IFERROR(INDEX('Data Annex'!$K$1:$AS$6265,MATCH(R$1&"|"&$B38,'Data Annex'!$K$1:$K$6265,0),MATCH(R$2,'Data Annex'!$K$1:$AS$1,0)),"") -> 33.44661707 | S38: =IFERROR(INDEX('Data Annex'!$K$1:$AS$6265,MATCH(S$1&"|"&$B38,'Data Annex'!$K$1:$K$6265,0),MATCH(S$2,'Data Annex'!$K$1:$AS$1,0)),"") -> 48.01742227 | T38: =IFERROR(INDEX('Data Annex'!$K$1:$AS$6265,MATCH(T$1&"|"&$B38,'Data Annex'!$K$1:$K$6265,0),MATCH(T$2,'Data Annex'!$K$1:$AS$1,0)),"") -> 10.71108172 | U38: =IFERROR(INDEX('Data Annex'!$K$1:$AS$6265,MATCH(U$1&"|"&$B38,'Data Annex'!$K$1:$K$6265,0),MATCH(U$2,'Data Annex'!$K$1:$AS$1,0)),"") -> 8.279501983
A39: 29 | B39: SI | D39: SI | F39: =IFERROR(INDEX('Data Annex'!$K$1:$AS$6265,MATCH(F$1&"|"&$B39,'Data Annex'!$K$1:$K$6265,0),MATCH(F$2,'Data Annex'!$K$1:$AS$1,0)),"") -> 21.043 | G39: =IFERROR(INDEX('Data Annex'!$K$1:$AS$6265,MATCH(G$1&"|"&$B39,'Data Annex'!$K$1:$K$6265,0),MATCH(G$2,'Data Annex'!$K$1:$AS$1,0)),"") -> 24.2241878 | H39: =IFERROR(INDEX('Data Annex'!$K$1:$AS$6265,MATCH(H$1&"|"&$B39,'Data Annex'!$K$1:$K$6265,0),MATCH(H$2,'Data Annex'!$K$1:$AS$1,0)),"") -> 0.73 | I39: =IFERROR(INDEX('Data Annex'!$K$1:$AS$6265,MATCH(I$1&"|"&$B39,'Data Annex'!$K$1:$K$6265,0),MATCH(I$2,'Data Annex'!$K$1:$AS$1,0)),"") -> 3.3335859 | J39: =IFERROR(INDEX('Data Annex'!$K$1:$AS$6265,MATCH(J$1&"|"&$B39,'Data Annex'!$K$1:$K$6265,0),MATCH(J$2,'Data Annex'!$K$1:$AS$1,0)),"") -> 20.132 | K39: =IFERROR(INDEX('Data Annex'!$K$1:$AS$6265,MATCH(K$1&"|"&$B39,'Data Annex'!$K$1:$K$6265,0),MATCH(K$2,'Data Annex'!$K$1:$AS$1,0)),"") -> 20.222 | L39: =IFERROR(INDEX('Data Annex'!$K$1:$AS$6265,MATCH(L$1&"|"&$B39,'Data Annex'!$K$1:$K$6265,0),MATCH(L$2,'Data Annex'!$K$1:$AS$1,0)),"") -> 20.132 | M39: =IFERROR(INDEX('Data Annex'!$K$1:$AS$6265,MATCH(M$1&"|"&$B39,'Data Annex'!$K$1:$K$6265,0),MATCH(M$2,'Data Annex'!$K$1:$AS$1,0)),"") -> 20.222 | N39: =IFERROR(INDEX('Data Annex'!$K$1:$AS$6265,MATCH(N$1&"|"&$B39,'Data Annex'!$K$1:$K$6265,0),MATCH(N$2,'Data Annex'!$K$1:$AS$1,0)),"") -> 0.181 | O39: =IFERROR(INDEX('Data Annex'!$K$1:$AS$6265,MATCH(O$1&"|"&$B39,'Data Annex'!$K$1:$K$6265,0),MATCH(O$2,'Data Annex'!$K$1:$AS$1,0)),"") -> 0.6686019 | P39: =IFERROR(INDEX('Data Annex'!$K$1:$AS$6265,MATCH(P$1&"|"&$B39,'Data Annex'!$K$1:$K$6265,0),MATCH(P$2,'Data Annex'!$K$1:$AS$1,0)),"") -> 0 | Q39: =IFERROR(INDEX('Data Annex'!$K$1:$AS$6265,MATCH(Q$1&"|"&$B39,'Data Annex'!$K$1:$K$6265,0),MATCH(Q$2,'Data Annex'!$K$1:$AS$1,0)),"") -> 0.001055 | R39: =IFERROR(INDEX('Data Annex'!$K$1:$AS$6265,MATCH(R$1&"|"&$B39,'Data Annex'!$K$1:$K$6265,0),MATCH(R$2,'Data Annex'!$K$1:$AS$1,0)),"") -> 0 | S39: =IFERROR(INDEX('Data Annex'!$K$1:$AS$6265,MATCH(S$1&"|"&$B39,'Data Annex'!$K$1:$K$6265,0),MATCH(S$2,'Data Annex'!$K$1:$AS$1,0)),"") -> 0.18002422 | T39: =IFERROR(INDEX('Data Annex'!$K$1:$AS$6265,MATCH(T$1&"|"&$B39,'Data Annex'!$K$1:$K$6265,0),MATCH(T$2,'Data Annex'!$K$1:$AS$1,0)),"") -> 0.181 | U39: =IFERROR(INDEX('Data Annex'!$K$1:$AS$6265,MATCH(U$1&"|"&$B39,'Data Annex'!$K$1:$K$6265,0),MATCH(U$2,'Data Annex'!$K$1:$AS$1,0)),"") -> 0.48752268
A40: 30 | B40: SK | D40: SK | F40: =IFERROR(INDEX('Data Annex'!$K$1:$AS$6265,MATCH(F$1&"|"&$B40,'Data Annex'!$K$1:$K$6265,0),MATCH(F$2,'Data Annex'!$K$1:$AS$1,0)),"") -> 66.196284 | G40: =IFERROR(INDEX('Data Annex'!$K$1:$AS$6265,MATCH(G$1&"|"&$B40,'Data Annex'!$K$1:$K$6265,0),MATCH(G$2,'Data Annex'!$K$1:$AS$1,0)),"") -> 69.63104 | H40: =IFERROR(INDEX('Data Annex'!$K$1:$AS$6265,MATCH(H$1&"|"&$B40,'Data Annex'!$K$1:$K$6265,0),MATCH(H$2,'Data Annex'!$K$1:$AS$1,0)),"") -> 0.130752 | I40: =IFERROR(INDEX('Data Annex'!$K$1:$AS$6265,MATCH(I$1&"|"&$B40,'Data Annex'!$K$1:$K$6265,0),MATCH(I$2,'Data Annex'!$K$1:$AS$1,0)),"") -> 4.25598 | J40: =IFERROR(INDEX('Data Annex'!$K$1:$AS$6265,MATCH(J$1&"|"&$B40,'Data Annex'!$K$1:$K$6265,0),MATCH(J$2,'Data Annex'!$K$1:$AS$1,0)),"") -> 0 | K40: =IFERROR(INDEX('Data Annex'!$K$1:$AS$6265,MATCH(K$1&"|"&$B40,'Data Annex'!$K$1:$K$6265,0),MATCH(K$2,'Data Annex'!$K$1:$AS$1,0)),"") -> 0 | L40: =IFERROR(INDEX('Data Annex'!$K$1:$AS$6265,MATCH(L$1&"|"&$B40,'Data Annex'!$K$1:$K$6265,0),MATCH(L$2,'Data Annex'!$K$1:$AS$1,0)),"") -> 0 | M40: =IFERROR(INDEX('Data Annex'!$K$1:$AS$6265,MATCH(M$1&"|"&$B40,'Data Annex'!$K$1:$K$6265,0),MATCH(M$2,'Data Annex'!$K$1:$AS$1,0)),"") -> 0 | N40: =IFERROR(INDEX('Data Annex'!$K$1:$AS$6265,MATCH(N$1&"|"&$B40,'Data Annex'!$K$1:$K$6265,0),MATCH(N$2,'Data Annex'!$K$1:$AS$1,0)),"") -> 66.065532 | O40: =IFERROR(INDEX('Data Annex'!$K$1:$AS$6265,MATCH(O$1&"|"&$B40,'Data Annex'!$K$1:$K$6265,0),MATCH(O$2,'Data Annex'!$K$1:$AS$1,0)),"") -> 65.37506 | P40: =IFERROR(INDEX('Data Annex'!$K$1:$AS$6265,MATCH(P$1&"|"&$B40,'Data Annex'!$K$1:$K$6265,0),MATCH(P$2,'Data Annex'!$K$1:$AS$1,0)),"") -> 0 | Q40: =IFERROR(INDEX('Data Annex'!$K$1:$AS$6265,MATCH(Q$1&"|"&$B40,'Data Annex'!$K$1:$K$6265,0),MATCH(Q$2,'Data Annex'!$K$1:$AS$1,0)),"") -> 0 | R40: =IFERROR(INDEX('Data Annex'!$K$1:$AS$6265,MATCH(R$1&"|"&$B40,'Data Annex'!$K$1:$K$6265,0),MATCH(R$2,'Data Annex'!$K$1:$AS$1,0)),"") -> 58.838178 | S40: =IFERROR(INDEX('Data Annex'!$K$1:$AS$6265,MATCH(S$1&"|"&$B40,'Data Annex'!$K$1:$K$6265,0),MATCH(S$2,'Data Annex'!$K$1:$AS$1,0)),"") -> 58.408572 | T40: =IFERROR(INDEX('Data Annex'!$K$1:$AS$6265,MATCH(T$1&"|"&$B40,'Data Annex'!$K$1:$K$6265,0),MATCH(T$2,'Data Annex'!$K$1:$AS$1,0)),"") -> 7.227354 | U40: =IFERROR(INDEX('Data Annex'!$K$1:$AS$6265,MATCH(U$1&"|"&$B40,'Data Annex'!$K$1:$K$6265,0),MATCH(U$2,'Data Annex'!$K$1:$AS$1,0)),"") -> 6.966488
A41: 99 | B41: EU | D41: EU/EEA | F41: =IFERROR(INDEX('Data Annex'!$K$1:$AS$6265,MATCH(F$1&"|"&$B41,'Data Annex'!$K$1:$K$6265,0),MATCH(F$2,'Data Annex'!$K$1:$AS$1,0)),"") -> 76179.26223 | G41: =IFERROR(INDEX('Data Annex'!$K$1:$AS$6265,MATCH(G$1&"|"&$B41,'Data Annex'!$K$1:$K$6265,0),MATCH(G$2,'Data Annex'!$K$1:$AS$1,0)),"") -> 75300.98333 | H41: =IFERROR(INDEX('Data Annex'!$K$1:$AS$6265,MATCH(H$1&"|"&$B41,'Data Annex'!$K$1:$K$6265,0),MATCH(H$2,'Data Annex'!$K$1:$AS$1,0)),"") -> 4908.522624 | I41: =IFERROR(INDEX('Data Annex'!$K$1:$AS$6265,MATCH(I$1&"|"&$B41,'Data Annex'!$K$1:$K$6265,0),MATCH(I$2,'Data Annex'!$K$1:$AS$1,0)),"") -> 7589.341888 | J41: =IFERROR(INDEX('Data Annex'!$K$1:$AS$6265,MATCH(J$1&"|"&$B41,'Data Annex'!$K$1:$K$6265,0),MATCH(J$2,'Data Annex'!$K$1:$AS$1,0)),"") -> 4453.966035 | K41: =IFERROR(INDEX('Data Annex'!$K$1:$AS$6265,MATCH(K$1&"|"&$B41,'Data Annex'!$K$1:$K$6265,0),MATCH(K$2,'Data Annex'!$K$1:$AS$1,0)),"") -> 3917.043429 | L41: =IFERROR(INDEX('Data Annex'!$K$1:$AS$6265,MATCH(L$1&"|"&$B41,'Data Annex'!$K$1:$K$6265,0),MATCH(L$2,'Data Annex'!$K$1:$AS$1,0)),"") -> 4053.413298 | M41: =IFERROR(INDEX('Data Annex'!$K$1:$AS$6265,MATCH(M$1&"|"&$B41,'Data Annex'!$K$1:$K$6265,0),MATCH(M$2,'Data Annex'!$K$1:$AS$1,0)),"") -> 3614.439893 | N41: =IFERROR(INDEX('Data Annex'!$K$1:$AS$6265,MATCH(N$1&"|"&$B41,'Data Annex'!$K$1:$K$6265,0),MATCH(N$2,'Data Annex'!$K$1:$AS$1,0)),"") -> 65846.23536 | O41: =IFERROR(INDEX('Data Annex'!$K$1:$AS$6265,MATCH(O$1&"|"&$B41,'Data Annex'!$K$1:$K$6265,0),MATCH(O$2,'Data Annex'!$K$1:$AS$1,0)),"") -> 63774.01241 | P41: =IFERROR(INDEX('Data Annex'!$K$1:$AS$6265,MATCH(P$1&"|"&$B41,'Data Annex'!$K$1:$K$6265,0),MATCH(P$2,'Data Annex'!$K$1:$AS$1,0)),"") -> 7322.119217 | Q41: =IFERROR(INDEX('Data Annex'!$K$1:$AS$6265,MATCH(Q$1&"|"&$B41,'Data Annex'!$K$1:$K$6265,0),MATCH(Q$2,'Data Annex'!$K$1:$AS$1,0)),"") -> 6067.520366 | R41: =IFERROR(INDEX('Data Annex'!$K$1:$AS$6265,MATCH(R$1&"|"&$B41,'Data Annex'!$K$1:$K$6265,0),MATCH(R$2,'Data Annex'!$K$1:$AS$1,0)),"") -> 40073.86744 | S41: =IFERROR(INDEX('Data Annex'!$K$1:$AS$6265,MATCH(S$1&"|"&$B41,'Data Annex'!$K$1:$K$6265,0),MATCH(S$2,'Data Annex'!$K$1:$AS$1,0)),"") -> 38614.09469 | T41: =IFERROR(INDEX('Data Annex'!$K$1:$AS$6265,MATCH(T$1&"|"&$B41,'Data Annex'!$K$1:$K$6265,0),MATCH(T$2,'Data Annex'!$K$1:$AS$1,0)),"") -> 15834.43721 | U41: =IFERROR(INDEX('Data Annex'!$K$1:$AS$6265,MATCH(U$1&"|"&$B41,'Data Annex'!$K$1:$K$6265,0),MATCH(U$2,'Data Annex'!$K$1:$AS$1,0)),"") -> 14380.62763
D43: (1) footnote here if needed
F44: T51_1 | G44: T51_1 | H44: T51_2 | I44: T51_2 | J44: T51_3 | K44: T51_3 | L44: T51_4 | M44: T51_4 | N44: T51_5 | O44: T51_5 | P44: T51_6 | Q44: T51_6 | R44: T51_7 | S44: T51_7 | T44: T05_4 | U44: T05_4 | W44: T52_1 | X44: T52_1 | Y44: T52_2 | Z44: T52_2 | AA44: T52_3 | AB44: T52_3
F45: =TEXT(F50,"YYYYMM")+0 -> 202112 | G45: =TEXT(G50,"YYYYMM")+0 -> 202203 | H45: 202112 | I45: 202203 | J45: 202112 | K45: 202203 | L45: 202112 | M45: 202203 | N45: 202112 | O45: 202203 | P45: 202112 | Q45: 202203 | R45: 202112 | S45: 202203 | W45: =TEXT(W50,"YYYYMM")+0 -> 202112 | X45: =TEXT(X50,"YYYYMM")+0 -> 202203 | Y45: 202112 | Z45: 202203 | AA45: 202112 | AB45: 202203
D46: Breakdown of deposits from Russian counterparts | U46: Off balance sheet exposures towards Russian counterparts
D48: (million EUR) | F48: Deposits | H48: of which:
H49: Central banks | J49: General governments | L49: Credit institutions | N49: Other financial corporations | P49: Non-financial corporations | R49: Households | U49: (million EUR) | W49: Loan commitments | Y49: Financial guarantees | AA49: Other Commitments
F50: =EOMONTH($A$3,-3) -> 2021-12-31 | G50: =$A$3 -> 2022-03-01 | H50: =EOMONTH($A$3,-3) -> 2021-12-31 | I50: =$A$3 -> 2022-03-01 | J50: =EOMONTH($A$3,-3) -> 2021-12-31 | K50: =$A$3 -> 2022-03-01 | L50: =EOMONTH($A$3,-3) -> 2021-12-31 | M50: =$A$3 -> 2022-03-01 | N50: =EOMONTH($A$3,-3) -> 2021-12-31 | O50: =$A$3 -> 2022-03-01 | P50: =EOMONTH($A$3,-3) -> 2021-12-31 | Q50: =$A$3 -> 2022-03-01 | R50: =EOMONTH($A$3,-3) -> 2021-12-31 | S50: =$A$3 -> 2022-03-01 | W50: =EOMONTH($A$3,-3) -> 2021-12-31 | X50: =$A$3 -> 2022-03-01 | Y50: 2021-12-31 | Z50: 2022-03-01 | AA50: 2021-12-31 | AB50: 2022-03-01
A51: 1 | B51: AT | D51: =B51 -> AT | F51: =IFERROR(INDEX('Data Annex'!$K$1:$AS$6265,MATCH(F$44&"|"&$B51,'Data Annex'!$K$1:$K$6265,0),MATCH(F$45,'Data Annex'!$K$1:$AS$1,0)),"") -> 17258.93735 | G51: =IFERROR(INDEX('Data Annex'!$K$1:$AS$6265,MATCH(G$44&"|"&$B51,'Data Annex'!$K$1:$K$6265,0),MATCH(G$45,'Data Annex'!$K$1:$AS$1,0)),"") -> 17464.37913 | H51: =IFERROR(INDEX('Data Annex'!$K$1:$AS$6265,MATCH(H$44&"|"&$B51,'Data Annex'!$K$1:$K$6265,0),MATCH(H$45,'Data Annex'!$K$1:$AS$1,0)),"") -> 0 | I51: =IFERROR(INDEX('Data Annex'!$K$1:$AS$6265,MATCH(I$44&"|"&$B51,'Data Annex'!$K$1:$K$6265,0),MATCH(I$45,'Data Annex'!$K$1:$AS$1,0)),"") -> 0 | J51: =IFERROR(INDEX('Data Annex'!$K$1:$AS$6265,MATCH(J$44&"|"&$B51,'Data Annex'!$K$1:$K$6265,0),MATCH(J$45,'Data Annex'!$K$1:$AS$1,0)),"") -> 1.12322385 | K51: =IFERROR(INDEX('Data Annex'!$K$1:$AS$6265,MATCH(K$44&"|"&$B51,'Data Annex'!$K$1:$K$6265,0),MATCH(K$45,'Data Annex'!$K$1:$AS$1,0)),"") -> 2.337524 | L51: =IFERROR(INDEX('Data Annex'!$K$1:$AS$6265,MATCH(L$44&"|"&$B51,'Data Annex'!$K$1:$K$6265,0),MATCH(L$45,'Data Annex'!$K$1:$AS$1,0)),"") -> 1492.790483 | M51: =IFERROR(INDEX('Data Annex'!$K$1:$AS$6265,MATCH(M$44&"|"&$B51,'Data Annex'!$K$1:$K$6265,0),MATCH(M$45,'Data Annex'!$K$1:$AS$1,0)),"") -> 336.2944757 | N51: =IFERROR(INDEX('Data Annex'!$K$1:$AS$6265,MATCH(N$44&"|"&$B51,'Data Annex'!$K$1:$K$6265,0),MATCH(N$45,'Data Annex'!$K$1:$AS$1,0)),"") -> 380.6055991 | O51: =IFERROR(INDEX('Data Annex'!$K$1:$AS$6265,MATCH(O$44&"|"&$B51,'Data Annex'!$K$1:$K$6265,0),MATCH(O$45,'Data Annex'!$K$1:$AS$1,0)),"") -> 506.7785242 | P51: =IFERROR(INDEX('Data Annex'!$K$1:$AS$6265,MATCH(P$44&"|"&$B51,'Data Annex'!$K$1:$K$6265,0),MATCH(P$45,'Data Annex'!$K$1:$AS$1,0)),"") -> 6131.737157 | Q51: =IFERROR(INDEX('Data Annex'!$K$1:$AS$6265,MATCH(Q$44&"|"&$B51,'Data Annex'!$K$1:$K$6265,0),MATCH(Q$45,'Data Annex'!$K$1:$AS$1,0)),"") -> 8116.91561 | R51: =IFERROR(INDEX('Data Annex'!$K$1:$AS$6265,MATCH(R$44&"|"&$B51,'Data Annex'!$K$1:$K$6265,0),MATCH(R$45,'Data Annex'!$K$1:$AS$1,0)),"") -> 9252.680889 | S51: =IFERROR(INDEX('Data Annex'!$K$1:$AS$6265,MATCH(S$44&"|"&$B51,'Data Annex'!$K$1:$K$6265,0),MATCH(S$45,'Data Annex'!$K$1:$AS$1,0)),"") -> 8502.052998 | U51: =B51 -> AT | W51: =IFERROR(INDEX('Data Annex'!$K$1:$AS$6265,MATCH(W$44&"|"&$B51,'Data Annex'!$K$1:$K$6265,0),MATCH(W$45,'Data Annex'!$K$1:$AS$1,0)),"") -> 7935.019683 | X51: =IFERROR(INDEX('Data Annex'!$K$1:$AS$6265,MATCH(X$44&"|"&$B51,'Data Annex'!$K$1:$K$6265,0),MATCH(X$45,'Data Annex'!$K$1:$AS$1,0)),"") -> 7296.504334 | Y51: =IFERROR(INDEX('Data Annex'!$K$1:$AS$6265,MATCH(Y$44&"|"&$B51,'Data Annex'!$K$1:$K$6265,0),MATCH(Y$45,'Data Annex'!$K$1:$AS$1,0)),"") -> 1971.188571 | Z51: =IFERROR(INDEX('Data Annex'!$K$1:$AS$6265,MATCH(Z$44&"|"&$B51,'Data Annex'!$K$1:$K$6265,0),MATCH(Z$45,'Data Annex'!$K$1:$AS$1,0)),"") -> 1742.072821 | AA51: =IFERROR(INDEX('Data Annex'!$K$1:$AS$6265,MATCH(AA$44&"|"&$B51,'Data Annex'!$K$1:$K$6265,0),MATCH(AA$45,'Data Annex'!$K$1:$AS$1,0)),"") -> 1739.31402 | AB51: =IFERROR(INDEX('Data Annex'!$K$1:$AS$6265,MATCH(AB$44&"|"&$B51,'Data Annex'!$K$1:$K$6265,0),MATCH(AB$45,'Data Annex'!$K$1:$AS$1,0)),"") -> 1336.623988
A52: 2 | B52: BE | D52: =B52 -> BE | F52: =IFERROR(INDEX('Data Annex'!$K$1:$AS$6265,MATCH(F$44&"|"&$B52,'Data Annex'!$K$1:$K$6265,0),MATCH(F$45,'Data Annex'!$K$1:$AS$1,0)),"") -> 2425.26549 | G52: =IFERROR(INDEX('Data Annex'!$K$1:$AS$6265,MATCH(G$44&"|"&$B52,'Data Annex'!$K$1:$K$6265,0),MATCH(G$45,'Data Annex'!$K$1:$AS$1,0)),"") -> 2345.06176 | H52: =IFERROR(INDEX('Data Annex'!$K$1:$AS$6265,MATCH(H$44&"|"&$B52,'Data Annex'!$K$1:$K$6265,0),MATCH(H$45,'Data Annex'!$K$1:$AS$1,0)),"") -> 2045.778 | I52: =IFERROR(INDEX('Data Annex'!$K$1:$AS$6265,MATCH(I$44&"|"&$B52,'Data Annex'!$K$1:$K$6265,0),MATCH(I$45,'Data Annex'!$K$1:$AS$1,0)),"") -> 1960.55 | J52: =IFERROR(INDEX('Data Annex'!$K$1:$AS$6265,MATCH(J$44&"|"&$B52,'Data Annex'!$K$1:$K$6265,0),MATCH(J$45,'Data Annex'!$K$1:$AS$1,0)),"") -> 2.226179 | K52: =IFERROR(INDEX('Data Annex'!$K$1:$AS$6265,MATCH(K$44&"|"&$B52,'Data Annex'!$K$1:$K$6265,0),MATCH(K$45,'Data Annex'!$K$1:$AS$1,0)),"") -> 0.493634 | L52: =IFERROR(INDEX('Data Annex'!$K$1:$AS$6265,MATCH(L$44&"|"&$B52,'Data Annex'!$K$1:$K$6265,0),MATCH(L$45,'Data Annex'!$K$1:$AS$1,0)),"") -> 230.5584068 | M52: =IFERROR(INDEX('Data Annex'!$K$1:$AS$6265,MATCH(M$44&"|"&$B52,'Data Annex'!$K$1:$K$6265,0),MATCH(M$45,'Data Annex'!$K$1:$AS$1,0)),"") -> 231.4180121 | N52: =IFERROR(INDEX('Data Annex'!$K$1:$AS$6265,MATCH(N$44&"|"&$B52,'Data Annex'!$K$1:$K$6265,0),MATCH(N$45,'Data Annex'!$K$1:$AS$1,0)),"") -> 0.003 | O52: =IFERROR(INDEX('Data Annex'!$K$1:$AS$6265,MATCH(O$44&"|"&$B52,'Data Annex'!$K$1:$K$6265,0),MATCH(O$45,'Data Annex'!$K$1:$AS$1,0)),"") -> 0.003 | P52: =IFERROR(INDEX('Data Annex'!$K$1:$AS$6265,MATCH(P$44&"|"&$B52,'Data Annex'!$K$1:$K$6265,0),MATCH(P$45,'Data Annex'!$K$1:$AS$1,0)),"") -> 0.210178 | Q52: =IFERROR(INDEX('Data Annex'!$K$1:$AS$6265,MATCH(Q$44&"|"&$B52,'Data Annex'!$K$1:$K$6265,0),MATCH(Q$45,'Data Annex'!$K$1:$AS$1,0)),"") -> 0.085029 | R52: =IFERROR(INDEX('Data Annex'!$K$1:$AS$6265,MATCH(R$44&"|"&$B52,'Data Annex'!$K$1:$K$6265,0),MATCH(R$45,'Data Annex'!$K$1:$AS$1,0)),"") -> 146.4897265 | S52: =IFERROR(INDEX('Data Annex'!$K$1:$AS$6265,MATCH(S$44&"|"&$B52,'Data Annex'!$K$1:$K$6265,0),MATCH(S$45,'Data Annex'!$K$1:$AS$1,0)),"") -> 152.5120854 | U52: =B52 -> BE | W52: =IFERROR(INDEX('Data Annex'!$K$1:$AS$6265,MATCH(W$44&"|"&$B52,'Data Annex'!$K$1:$K$6265,0),MATCH(W$45,'Data Annex'!$K$1:$AS$1,0)),"") -> 2.039778 | X52: =IFERROR(INDEX('Data Annex'!$K$1:$AS$6265,MATCH(X$44&"|"&$B52,'Data Annex'!$K$1:$K$6265,0),MATCH(X$45,'Data Annex'!$K$1:$AS$1,0)),"") -> 1.888699 | Y52: =IFERROR(INDEX('Data Annex'!$K$1:$AS$6265,MATCH(Y$44&"|"&$B52,'Data Annex'!$K$1:$K$6265,0),MATCH(Y$45,'Data Annex'!$K$1:$AS$1,0)),"") -> 111.54258 | Z52: =IFERROR(INDEX('Data Annex'!$K$1:$AS$6265,MATCH(Z$44&"|"&$B52,'Data Annex'!$K$1:$K$6265,0),MATCH(Z$45,'Data Annex'!$K$1:$AS$1,0)),"") -> 105.011225 | AA52: =IFERROR(INDEX('Data Annex'!$K$1:$AS$6265,MATCH(AA$44&"|"&$B52,'Data Annex'!$K$1:$K$6265,0),MATCH(AA$45,'Data Annex'!$K$1:$AS$1,0)),"") -> 12.061739 | AB52: =IFERROR(INDEX('Data Annex'!$K$1:$AS$6265,MATCH(AB$44&"|"&$B52,'Data Annex'!$K$1:$K$6265,0),MATCH(AB$45,'Data Annex'!$K$1:$AS$1,0)),"") -> 8.374297
A53: 3 | B53: BG | D53: BG | F53: =IFERROR(INDEX('Data Annex'!$K$1:$AS$6265,MATCH(F$44&"|"&$B53,'Data Annex'!$K$1:$K$6265,0),MATCH(F$45,'Data Annex'!$K$1:$AS$1,0)),"") -> 94.98824011 | G53: =IFERROR(INDEX('Data Annex'!$K$1:$AS$6265,MATCH(G$44&"|"&$B53,'Data Annex'!$K$1:$K$6265,0),MATCH(G$45,'Data Annex'!$K$1:$AS$1,0)),"") -> 49.8205338 | H53: =IFERROR(INDEX('Data Annex'!$K$1:$AS$6265,MATCH(H$44&"|"&$B53,'Data Annex'!$K$1:$K$6265,0),MATCH(H$45,'Data Annex'!$K$1:$AS$1,0)),"") -> 0 | I53: =IFERROR(INDEX('Data Annex'!$K$1:$AS$6265,MATCH(I$44&"|"&$B53,'Data Annex'!$K$1:$K$6265,0),MATCH(I$45,'Data Annex'!$K$1:$AS$1,0)),"") -> 0 | J53: =IFERROR(INDEX('Data Annex'!$K$1:$AS$6265,MATCH(J$44&"|"&$B53,'Data Annex'!$K$1:$K$6265,0),MATCH(J$45,'Data Annex'!$K$1:$AS$1,0)),"") -> 0.3343900194 | K53: =IFERROR(INDEX('Data Annex'!$K$1:$AS$6265,MATCH(K$44&"|"&$B53,'Data Annex'!$K$1:$K$6265,0),MATCH(K$45,'Data Annex'!$K$1:$AS$1,0)),"") -> 0.1702628081 | L53: =IFERROR(INDEX('Data Annex'!$K$1:$AS$6265,MATCH(L$44&"|"&$B53,'Data Annex'!$K$1:$K$6265,0),MATCH(L$45,'Data Annex'!$K$1:$AS$1,0)),"") -> 1.265978116 | M53: =IFERROR(INDEX('Data Annex'!$K$1:$AS$6265,MATCH(M$44&"|"&$B53,'Data Annex'!$K$1:$K$6265,0),MATCH(M$45,'Data Annex'!$K$1:$AS$1,0)),"") -> 1.264955517 | N53: =IFERROR(INDEX('Data Annex'!$K$1:$AS$6265,MATCH(N$44&"|"&$B53,'Data Annex'!$K$1:$K$6265,0),MATCH(N$45,'Data Annex'!$K$1:$AS$1,0)),"") -> 0 | O53: =IFERROR(INDEX('Data Annex'!$K$1:$AS$6265,MATCH(O$44&"|"&$B53,'Data Annex'!$K$1:$K$6265,0),MATCH(O$45,'Data Annex'!$K$1:$AS$1,0)),"") -> 0 | P53: =IFERROR(INDEX('Data Annex'!$K$1:$AS$6265,MATCH(P$44&"|"&$B53,'Data Annex'!$K$1:$K$6265,0),MATCH(P$45,'Data Annex'!$K$1:$AS$1,0)),"") -> 0.1533899172 | Q53: =IFERROR(INDEX('Data Annex'!$K$1:$AS$6265,MATCH(Q$44&"|"&$B53,'Data Annex'!$K$1:$K$6265,0),MATCH(Q$45,'Data Annex'!$K$1:$AS$1,0)),"") -> 0.001022599448 | R53: =IFERROR(INDEX('Data Annex'!$K$1:$AS$6265,MATCH(R$44&"|"&$B53,'Data Annex'!$K$1:$K$6265,0),MATCH(R$45,'Data Annex'!$K$1:$AS$1,0)),"") -> 93.23448205 | S53: =IFERROR(INDEX('Data Annex'!$K$1:$AS$6265,MATCH(S$44&"|"&$B53,'Data Annex'!$K$1:$K$6265,0),MATCH(S$45,'Data Annex'!$K$1:$AS$1,0)),"") -> 48.38429287 | U53: BG | W53: =IFERROR(INDEX('Data Annex'!$K$1:$AS$6265,MATCH(W$44&"|"&$B53,'Data Annex'!$K$1:$K$6265,0),MATCH(W$45,'Data Annex'!$K$1:$AS$1,0)),"") -> 1.231721035 | X53: =IFERROR(INDEX('Data Annex'!$K$1:$AS$6265,MATCH(X$44&"|"&$B53,'Data Annex'!$K$1:$K$6265,0),MATCH(X$45,'Data Annex'!$K$1:$AS$1,0)),"") -> 1.069639022 | Y53: =IFERROR(INDEX('Data Annex'!$K$1:$AS$6265,MATCH(Y$44&"|"&$B53,'Data Annex'!$K$1:$K$6265,0),MATCH(Y$45,'Data Annex'!$K$1:$AS$1,0)),"") -> 0 | Z53: =IFERROR(INDEX('Data Annex'!$K$1:$AS$6265,MATCH(Z$44&"|"&$B53,'Data Annex'!$K$1:$K$6265,0),MATCH(Z$45,'Data Annex'!$K$1:$AS$1,0)),"") -> 0 | AA53: =IFERROR(INDEX('Data Annex'!$K$1:$AS$6265,MATCH(AA$44&"|"&$B53,'Data Annex'!$K$1:$K$6265,0),MATCH(AA$45,'Data Annex'!$K$1:$AS$1,0)),"") -> 4.603742714 | AB53: =IFERROR(INDEX('Data Annex'!$K$1:$AS$6265,MATCH(AB$44&"|"&$B53,'Data Annex'!$K$1:$K$6265,0),MATCH(AB$45,'Data Annex'!$K$1:$AS$1,0)),"") -> 2.927190919
A54: 4 | B54: CY | D54: CY | F54: =IFERROR(INDEX('Data Annex'!$K$1:$AS$6265,MATCH(F$44&"|"&$B54,'Data Annex'!$K$1:$K$6265,0),MATCH(F$45,'Data Annex'!$K$1:$AS$1,0)),"") -> 399.384303 | G54: =IFERROR(INDEX('Data Annex'!$K$1:$AS$6265,MATCH(G$44&"|"&$B54,'Data Annex'!$K$1:$K$6265,0),MATCH(G$45,'Data Annex'!$K$1:$AS$1,0)),"") -> 382.605872 | H54: =IFERROR(INDEX('Data Annex'!$K$1:$AS$6265,MATCH(H$44&"|"&$B54,'Data Annex'!$K$1:$K$6265,0),MATCH(H$45,'Data Annex'!$K$1:$AS$1,0)),"") -> 0 | I54: =IFERROR(INDEX('Data Annex'!$K$1:$AS$6265,MATCH(I$44&"|"&$B54,'Data Annex'!$K$1:$K$6265,0),MATCH(I$45,'Data Annex'!$K$1:$AS$1,0)),"") -> 0 | J54: =IFERROR(INDEX('Data Annex'!$K$1:$AS$6265,MATCH(J$44&"|"&$B54,'Data Annex'!$K$1:$K$6265,0),MATCH(J$45,'Data Annex'!$K$1:$AS$1,0)),"") -> 0.121 | K54: =IFERROR(INDEX('Data Annex'!$K$1:$AS$6265,MATCH(K$44&"|"&$B54,'Data Annex'!$K$1:$K$6265,0),MATCH(K$45,'Data Annex'!$K$1:$AS$1,0)),"") -> 0.122 | L54: =IFERROR(INDEX('Data Annex'!$K$1:$AS$6265,MATCH(L$44&"|"&$B54,'Data Annex'!$K$1:$K$6265,0),MATCH(L$45,'Data Annex'!$K$1:$AS$1,0)),"") -> 0.480634 | M54: =IFERROR(INDEX('Data Annex'!$K$1:$AS$6265,MATCH(M$44&"|"&$B54,'Data Annex'!$K$1:$K$6265,0),MATCH(M$45,'Data Annex'!$K$1:$AS$1,0)),"") -> 0 | N54: =IFERROR(INDEX('Data Annex'!$K$1:$AS$6265,MATCH(N$44&"|"&$B54,'Data Annex'!$K$1:$K$6265,0),MATCH(N$45,'Data Annex'!$K$1:$AS$1,0)),"") -> 26.615924 | O54: =IFERROR(INDEX('Data Annex'!$K$1:$AS$6265,MATCH(O$44&"|"&$B54,'Data Annex'!$K$1:$K$6265,0),MATCH(O$45,'Data Annex'!$K$1:$AS$1,0)),"") -> 28.621975 | P54: =IFERROR(INDEX('Data Annex'!$K$1:$AS$6265,MATCH(P$44&"|"&$B54,'Data Annex'!$K$1:$K$6265,0),MATCH(P$45,'Data Annex'!$K$1:$AS$1,0)),"") -> 38.313159 | Q54: =IFERROR(INDEX('Data Annex'!$K$1:$AS$6265,MATCH(Q$44&"|"&$B54,'Data Annex'!$K$1:$K$6265,0),MATCH(Q$45,'Data Annex'!$K$1:$AS$1,0)),"") -> 32.743029 | R54: =IFERROR(INDEX('Data Annex'!$K$1:$AS$6265,MATCH(R$44&"|"&$B54,'Data Annex'!$K$1:$K$6265,0),MATCH(R$45,'Data Annex'!$K$1:$AS$1,0)),"") -> 333.853586 | S54: =IFERROR(INDEX('Data Annex'!$K$1:$AS$6265,MATCH(S$44&"|"&$B54,'Data Annex'!$K$1:$K$6265,0),MATCH(S$45,'Data Annex'!$K$1:$AS$1,0)),"") -> 321.118868 | U54: CY | W54: =IFERROR(INDEX('Data Annex'!$K$1:$AS$6265,MATCH(W$44&"|"&$B54,'Data Annex'!$K$1:$K$6265,0),MATCH(W$45,'Data Annex'!$K$1:$AS$1,0)),"") -> 1.234251 | X54: =IFERROR(INDEX('Data Annex'!$K$1:$AS$6265,MATCH(X$44&"|"&$B54,'Data Annex'!$K$1:$K$6265,0),MATCH(X$45,'Data Annex'!$K$1:$AS$1,0)),"") -> 1.587306 | Y54: =IFERROR(INDEX('Data Annex'!$K$1:$AS$6265,MATCH(Y$44&"|"&$B54,'Data Annex'!$K$1:$K$6265,0),MATCH(Y$45,'Data Annex'!$K$1:$AS$1,0)),"") -> 1.272249 | Z54: =IFERROR(INDEX('Data Annex'!$K$1:$AS$6265,MATCH(Z$44&"|"&$B54,'Data Annex'!$K$1:$K$6265,0),MATCH(Z$45,'Data Annex'!$K$1:$AS$1,0)),"") -> 1.237174 | AA54: =IFERROR(INDEX('Data Annex'!$K$1:$AS$6265,MATCH(AA$44&"|"&$B54,'Data Annex'!$K$1:$K$6265,0),MATCH(AA$45,'Data Annex'!$K$1:$AS$1,0)),"") -> 0.039 | AB54: =IFERROR(INDEX('Data Annex'!$K$1:$AS$6265,MATCH(AB$44&"|"&$B54,'Data Annex'!$K$1:$K$6265,0),MATCH(AB$45,'Data Annex'!$K$1:$AS$1,0)),"") -> 0.039
A55: 5 | B55: CZ | D55: CZ | F55: =IFERROR(INDEX('Data Annex'!$K$1:$AS$6265,MATCH(F$44&"|"&$B55,'Data Annex'!$K$1:$K$6265,0),MATCH(F$45,'Data Annex'!$K$1:$AS$1,0)),"") -> 110.3038884 | G55: =IFERROR(INDEX('Data Annex'!$K$1:$AS$6265,MATCH(G$44&"|"&$B55,'Data Annex'!$K$1:$K$6265,0),MATCH(G$45,'Data Annex'!$K$1:$AS$1,0)),"") -> 104.6332603 | H55: =IFERROR(INDEX('Data Annex'!$K$1:$AS$6265,MATCH(H$44&"|"&$B55,'Data Annex'!$K$1:$K$6265,0),MATCH(H$45,'Data Annex'!$K$1:$AS$1,0)),"") -> 0 | I55: =IFERROR(INDEX('Data Annex'!$K$1:$AS$6265,MATCH(I$44&"|"&$B55,'Data Annex'!$K$1:$K$6265,0),MATCH(I$45,'Data Annex'!$K$1:$AS$1,0)),"") -> 0 | J55: =IFERROR(INDEX('Data Annex'!$K$1:$AS$6265,MATCH(J$44&"|"&$B55,'Data Annex'!$K$1:$K$6265,0),MATCH(J$45,'Data Annex'!$K$1:$AS$1,0)),"") -> 1.724195269 | K55: =IFERROR(INDEX('Data Annex'!$K$1:$AS$6265,MATCH(K$44&"|"&$B55,'Data Annex'!$K$1:$K$6265,0),MATCH(K$45,'Data Annex'!$K$1:$AS$1,0)),"") -> 0.1979470359 | L55: =IFERROR(INDEX('Data Annex'!$K$1:$AS$6265,MATCH(L$44&"|"&$B55,'Data Annex'!$K$1:$K$6265,0),MATCH(L$45,'Data Annex'!$K$1:$AS$1,0)),"") -> 0.02692863464 | M55: =IFERROR(INDEX('Data Annex'!$K$1:$AS$6265,MATCH(M$44&"|"&$B55,'Data Annex'!$K$1:$K$6265,0),MATCH(M$45,'Data Annex'!$K$1:$AS$1,0)),"") -> 0.2131687385 | N55: =IFERROR(INDEX('Data Annex'!$K$1:$AS$6265,MATCH(N$44&"|"&$B55,'Data Annex'!$K$1:$K$6265,0),MATCH(N$45,'Data Annex'!$K$1:$AS$1,0)),"") -> 3.757341701e-05 | O55: =IFERROR(INDEX('Data Annex'!$K$1:$AS$6265,MATCH(O$44&"|"&$B55,'Data Annex'!$K$1:$K$6265,0),MATCH(O$45,'Data Annex'!$K$1:$AS$1,0)),"") -> 3.762051282e-05 | P55: =IFERROR(INDEX('Data Annex'!$K$1:$AS$6265,MATCH(P$44&"|"&$B55,'Data Annex'!$K$1:$K$6265,0),MATCH(P$45,'Data Annex'!$K$1:$AS$1,0)),"") -> 0.05837673988 | Q55: =IFERROR(INDEX('Data Annex'!$K$1:$AS$6265,MATCH(Q$44&"|"&$B55,'Data Annex'!$K$1:$K$6265,0),MATCH(Q$45,'Data Annex'!$K$1:$AS$1,0)),"") -> 0.004199876923 | R55: =IFERROR(INDEX('Data Annex'!$K$1:$AS$6265,MATCH(R$44&"|"&$B55,'Data Annex'!$K$1:$K$6265,0),MATCH(R$45,'Data Annex'!$K$1:$AS$1,0)),"") -> 108.4943503 | S55: =IFERROR(INDEX('Data Annex'!$K$1:$AS$6265,MATCH(S$44&"|"&$B55,'Data Annex'!$K$1:$K$6265,0),MATCH(S$45,'Data Annex'!$K$1:$AS$1,0)),"") -> 104.217907 | U55: CZ | W55: =IFERROR(INDEX('Data Annex'!$K$1:$AS$6265,MATCH(W$44&"|"&$B55,'Data Annex'!$K$1:$K$6265,0),MATCH(W$45,'Data Annex'!$K$1:$AS$1,0)),"") -> 6.433129938 | X55: =IFERROR(INDEX('Data Annex'!$K$1:$AS$6265,MATCH(X$44&"|"&$B55,'Data Annex'!$K$1:$K$6265,0),MATCH(X$45,'Data Annex'!$K$1:$AS$1,0)),"") -> 4.096249149 | Y55: =IFERROR(INDEX('Data Annex'!$K$1:$AS$6265,MATCH(Y$44&"|"&$B55,'Data Annex'!$K$1:$K$6265,0),MATCH(Y$45,'Data Annex'!$K$1:$AS$1,0)),"") -> 0.127749819 | Z55: =IFERROR(INDEX('Data Annex'!$K$1:$AS$6265,MATCH(Z$44&"|"&$B55,'Data Annex'!$K$1:$K$6265,0),MATCH(Z$45,'Data Annex'!$K$1:$AS$1,0)),"") -> 0 | AA55: =IFERROR(INDEX('Data Annex'!$K$1:$AS$6265,MATCH(AA$44&"|"&$B55,'Data Annex'!$K$1:$K$6265,0),MATCH(AA$45,'Data Annex'!$K$1:$AS$1,0)),"") -> 8.811734371 | AB55: =IFERROR(INDEX('Data Annex'!$K$1:$AS$6265,MATCH(AB$44&"|"&$B55,'Data Annex'!$K$1:$K$6265,0),MATCH(AB$45,'Data Annex'!$K$1:$AS$1,0)),"") -> 8.246882092
A56: 6 | B56: DE | D56: DE | F56: =IFERROR(INDEX('Data Annex'!$K$1:$AS$6265,MATCH(F$44&"|"&$B56,'Data Annex'!$K$1:$K$6265,0),MATCH(F$45,'Data Annex'!$K$1:$AS$1,0)),"") -> 3078.304428 | G56: =IFERROR(INDEX('Data Annex'!$K$1:$AS$6265,MATCH(G$44&"|"&$B56,'Data Annex'!$K$1:$K$6265,0),MATCH(G$45,'Data Annex'!$K$1:$AS$1,0)),"") -> 7901.191117 | H56: =IFERROR(INDEX('Data Annex'!$K$1:$AS$6265,MATCH(H$44&"|"&$B56,'Data Annex'!$K$1:$K$6265,0),MATCH(H$45,'Data Annex'!$K$1:$AS$1,0)),"") -> 392.8540418 | I56: =IFERROR(INDEX('Data Annex'!$K$1:$AS$6265,MATCH(I$44&"|"&$B56,'Data Annex'!$K$1:$K$6265,0),MATCH(I$45,'Data Annex'!$K$1:$AS$1,0)),"") -> 201.5352515 | J56: =IFERROR(INDEX('Data Annex'!$K$1:$AS$6265,MATCH(J$44&"|"&$B56,'Data Annex'!$K$1:$K$6265,0),MATCH(J$45,'Data Annex'!$K$1:$AS$1,0)),"") -> 6.89523013 | K56: =IFERROR(INDEX('Data Annex'!$K$1:$AS$6265,MATCH(K$44&"|"&$B56,'Data Annex'!$K$1:$K$6265,0),MATCH(K$45,'Data Annex'!$K$1:$AS$1,0)),"") -> 5.5478452 | L56: =IFERROR(INDEX('Data Annex'!$K$1:$AS$6265,MATCH(L$44&"|"&$B56,'Data Annex'!$K$1:$K$6265,0),MATCH(L$45,'Data Annex'!$K$1:$AS$1,0)),"") -> 595.7999999 | M56: =IFERROR(INDEX('Data Annex'!$K$1:$AS$6265,MATCH(M$44&"|"&$B56,'Data Annex'!$K$1:$K$6265,0),MATCH(M$45,'Data Annex'!$K$1:$AS$1,0)),"") -> 930.4038475 | N56: =IFERROR(INDEX('Data Annex'!$K$1:$AS$6265,MATCH(N$44&"|"&$B56,'Data Annex'!$K$1:$K$6265,0),MATCH(N$45,'Data Annex'!$K$1:$AS$1,0)),"") -> 290.6877762 | O56: =IFERROR(INDEX('Data Annex'!$K$1:$AS$6265,MATCH(O$44&"|"&$B56,'Data Annex'!$K$1:$K$6265,0),MATCH(O$45,'Data Annex'!$K$1:$AS$1,0)),"") -> 3452.600308 | P56: =IFERROR(INDEX('Data Annex'!$K$1:$AS$6265,MATCH(P$44&"|"&$B56,'Data Annex'!$K$1:$K$6265,0),MATCH(P$45,'Data Annex'!$K$1:$AS$1,0)),"") -> 993.7401633 | Q56: =IFERROR(INDEX('Data Annex'!$K$1:$AS$6265,MATCH(Q$44&"|"&$B56,'Data Annex'!$K$1:$K$6265,0),MATCH(Q$45,'Data Annex'!$K$1:$AS$1,0)),"") -> 2510.543731 | R56: =IFERROR(INDEX('Data Annex'!$K$1:$AS$6265,MATCH(R$44&"|"&$B56,'Data Annex'!$K$1:$K$6265,0),MATCH(R$45,'Data Annex'!$K$1:$AS$1,0)),"") -> 798.3272171 | S56: =IFERROR(INDEX('Data Annex'!$K$1:$AS$6265,MATCH(S$44&"|"&$B56,'Data Annex'!$K$1:$K$6265,0),MATCH(S$45,'Data Annex'!$K$1:$AS$1,0)),"") -> 800.5601342 | U56: DE | W56: =IFERROR(INDEX('Data Annex'!$K$1:$AS$6265,MATCH(W$44&"|"&$B56,'Data Annex'!$K$1:$K$6265,0),MATCH(W$45,'Data Annex'!$K$1:$AS$1,0)),"") -> 1425.444388 | X56: =IFERROR(INDEX('Data Annex'!$K$1:$AS$6265,MATCH(X$44&"|"&$B56,'Data Annex'!$K$1:$K$6265,0),MATCH(X$45,'Data Annex'!$K$1:$AS$1,0)),"") -> 1511.638968 | Y56: =IFERROR(INDEX('Data Annex'!$K$1:$AS$6265,MATCH(Y$44&"|"&$B56,'Data Annex'!$K$1:$K$6265,0),MATCH(Y$45,'Data Annex'!$K$1:$AS$1,0)),"") -> 365.869427 | Z56: =IFERROR(INDEX('Data Annex'!$K$1:$AS$6265,MATCH(Z$44&"|"&$B56,'Data Annex'!$K$1:$K$6265,0),MATCH(Z$45,'Data Annex'!$K$1:$AS$1,0)),"") -> 201.8741388 | AA56: =IFERROR(INDEX('Data Annex'!$K$1:$AS$6265,MATCH(AA$44&"|"&$B56,'Data Annex'!$K$1:$K$6265,0),MATCH(AA$45,'Data Annex'!$K$1:$AS$1,0)),"") -> 1002.299541 | AB56: =IFERROR(INDEX('Data Annex'!$K$1:$AS$6265,MATCH(AB$44&"|"&$B56,'Data Annex'!$K$1:$K$6265,0),MATCH(AB$45,'Data Annex'!$K$1:$AS$1,0)),"") -> 677.2576653
A57: 7 | B57: DK | D57: DK | F57: =IFERROR(INDEX('Data Annex'!$K$1:$AS$6265,MATCH(F$44&"|"&$B57,'Data Annex'!$K$1:$K$6265,0),MATCH(F$45,'Data Annex'!$K$1:$AS$1,0)),"") -> 20.10747199 | G57: =IFERROR(INDEX('Data Annex'!$K$1:$AS$6265,MATCH(G$44&"|"&$B57,'Data Annex'!$K$1:$K$6265,0),MATCH(G$45,'Data Annex'!$K$1:$AS$1,0)),"") -> 17.96268528 | H57: =IFERROR(INDEX('Data Annex'!$K$1:$AS$6265,MATCH(H$44&"|"&$B57,'Data Annex'!$K$1:$K$6265,0),MATCH(H$45,'Data Annex'!$K$1:$AS$1,0)),"") ->  | I57: =IFERROR(INDEX('Data Annex'!$K$1:$AS$6265,MATCH(I$44&"|"&$B57,'Data Annex'!$K$1:$K$6265,0),MATCH(I$45,'Data Annex'!$K$1:$AS$1,0)),"") ->  | J57: =IFERROR(INDEX('Data Annex'!$K$1:$AS$6265,MATCH(J$44&"|"&$B57,'Data Annex'!$K$1:$K$6265,0),MATCH(J$45,'Data Annex'!$K$1:$AS$1,0)),"") -> 1.154095125 | K57: =IFERROR(INDEX('Data Annex'!$K$1:$AS$6265,MATCH(K$44&"|"&$B57,'Data Annex'!$K$1:$K$6265,0),MATCH(K$45,'Data Annex'!$K$1:$AS$1,0)),"") -> 1.314539121 | L57: =IFERROR(INDEX('Data Annex'!$K$1:$AS$6265,MATCH(L$44&"|"&$B57,'Data Annex'!$K$1:$K$6265,0),MATCH(L$45,'Data Annex'!$K$1:$AS$1,0)),"") -> 0 | M57: =IFERROR(INDEX('Data Annex'!$K$1:$AS$6265,MATCH(M$44&"|"&$B57,'Data Annex'!$K$1:$K$6265,0),MATCH(M$45,'Data Annex'!$K$1:$AS$1,0)),"") -> 0 | N57: =IFERROR(INDEX('Data Annex'!$K$1:$AS$6265,MATCH(N$44&"|"&$B57,'Data Annex'!$K$1:$K$6265,0),MATCH(N$45,'Data Annex'!$K$1:$AS$1,0)),"") ->  | O57: =IFERROR(INDEX('Data Annex'!$K$1:$AS$6265,MATCH(O$44&"|"&$B57,'Data Annex'!$K$1:$K$6265,0),MATCH(O$45,'Data Annex'!$K$1:$AS$1,0)),"") ->  | P57: =IFERROR(INDEX('Data Annex'!$K$1:$AS$6265,MATCH(P$44&"|"&$B57,'Data Annex'!$K$1:$K$6265,0),MATCH(P$45,'Data Annex'!$K$1:$AS$1,0)),"") -> 0.2669508458 | Q57: =IFERROR(INDEX('Data Annex'!$K$1:$AS$6265,MATCH(Q$44&"|"&$B57,'Data Annex'!$K$1:$K$6265,0),MATCH(Q$45,'Data Annex'!$K$1:$AS$1,0)),"") -> 0.2596242905 | R57: =IFERROR(INDEX('Data Annex'!$K$1:$AS$6265,MATCH(R$44&"|"&$B57,'Data Annex'!$K$1:$K$6265,0),MATCH(R$45,'Data Annex'!$K$1:$AS$1,0)),"") -> 18.68642602 | S57: =IFERROR(INDEX('Data Annex'!$K$1:$AS$6265,MATCH(S$44&"|"&$B57,'Data Annex'!$K$1:$K$6265,0),MATCH(S$45,'Data Annex'!$K$1:$AS$1,0)),"") -> 16.38852186 | U57: DK | W57: =IFERROR(INDEX('Data Annex'!$K$1:$AS$6265,MATCH(W$44&"|"&$B57,'Data Annex'!$K$1:$K$6265,0),MATCH(W$45,'Data Annex'!$K$1:$AS$1,0)),"") -> 25.00151155 | X57: =IFERROR(INDEX('Data Annex'!$K$1:$AS$6265,MATCH(X$44&"|"&$B57,'Data Annex'!$K$1:$K$6265,0),MATCH(X$45,'Data Annex'!$K$1:$AS$1,0)),"") -> 0.5672321583 | Y57: =IFERROR(INDEX('Data Annex'!$K$1:$AS$6265,MATCH(Y$44&"|"&$B57,'Data Annex'!$K$1:$K$6265,0),MATCH(Y$45,'Data Annex'!$K$1:$AS$1,0)),"") -> 13.7840524 | Z57: =IFERROR(INDEX('Data Annex'!$K$1:$AS$6265,MATCH(Z$44&"|"&$B57,'Data Annex'!$K$1:$K$6265,0),MATCH(Z$45,'Data Annex'!$K$1:$AS$1,0)),"") -> 13.83574072 | AA57: =IFERROR(INDEX('Data Annex'!$K$1:$AS$6265,MATCH(AA$44&"|"&$B57,'Data Annex'!$K$1:$K$6265,0),MATCH(AA$45,'Data Annex'!$K$1:$AS$1,0)),"") -> 1.335995912 | AB57: =IFERROR(INDEX('Data Annex'!$K$1:$AS$6265,MATCH(AB$44&"|"&$B57,'Data Annex'!$K$1:$K$6265,0),MATCH(AB$45,'Data Annex'!$K$1:$AS$1,0)),"") -> 1.335726482
A58: 8 | B58: EE | D58: EE | F58: =IFERROR(INDEX('Data Annex'!$K$1:$AS$6265,MATCH(F$44&"|"&$B58,'Data Annex'!$K$1:$K$6265,0),MATCH(F$45,'Data Annex'!$K$1:$AS$1,0)),"") -> 43.97951087 | G58: =IFERROR(INDEX('Data Annex'!$K$1:$AS$6265,MATCH(G$44&"|"&$B58,'Data Annex'!$K$1:$K$6265,0),MATCH(G$45,'Data Annex'!$K$1:$AS$1,0)),"") -> 54.24262416 | H58: =IFERROR(INDEX('Data Annex'!$K$1:$AS$6265,MATCH(H$44&"|"&$B58,'Data Annex'!$K$1:$K$6265,0),MATCH(H$45,'Data Annex'!$K$1:$AS$1,0)),"") -> 0 | I58: =IFERROR(INDEX('Data Annex'!$K$1:$AS$6265,MATCH(I$44&"|"&$B58,'Data Annex'!$K$1:$K$6265,0),MATCH(I$45,'Data Annex'!$K$1:$AS$1,0)),"") -> 0 | J58: =IFERROR(INDEX('Data Annex'!$K$1:$AS$6265,MATCH(J$44&"|"&$B58,'Data Annex'!$K$1:$K$6265,0),MATCH(J$45,'Data Annex'!$K$1:$AS$1,0)),"") -> 0.97216003 | K58: =IFERROR(INDEX('Data Annex'!$K$1:$AS$6265,MATCH(K$44&"|"&$B58,'Data Annex'!$K$1:$K$6265,0),MATCH(K$45,'Data Annex'!$K$1:$AS$1,0)),"") -> 1.23403232 | L58: =IFERROR(INDEX('Data Annex'!$K$1:$AS$6265,MATCH(L$44&"|"&$B58,'Data Annex'!$K$1:$K$6265,0),MATCH(L$45,'Data Annex'!$K$1:$AS$1,0)),"") -> 0.28645 | M58: =IFERROR(INDEX('Data Annex'!$K$1:$AS$6265,MATCH(M$44&"|"&$B58,'Data Annex'!$K$1:$K$6265,0),MATCH(M$45,'Data Annex'!$K$1:$AS$1,0)),"") -> 0.885217956 | N58: =IFERROR(INDEX('Data Annex'!$K$1:$AS$6265,MATCH(N$44&"|"&$B58,'Data Annex'!$K$1:$K$6265,0),MATCH(N$45,'Data Annex'!$K$1:$AS$1,0)),"") -> 0.00201 | O58: =IFERROR(INDEX('Data Annex'!$K$1:$AS$6265,MATCH(O$44&"|"&$B58,'Data Annex'!$K$1:$K$6265,0),MATCH(O$45,'Data Annex'!$K$1:$AS$1,0)),"") -> 0.002286 | P58: =IFERROR(INDEX('Data Annex'!$K$1:$AS$6265,MATCH(P$44&"|"&$B58,'Data Annex'!$K$1:$K$6265,0),MATCH(P$45,'Data Annex'!$K$1:$AS$1,0)),"") -> 0.00017612 | Q58: =IFERROR(INDEX('Data Annex'!$K$1:$AS$6265,MATCH(Q$44&"|"&$B58,'Data Annex'!$K$1:$K$6265,0),MATCH(Q$45,'Data Annex'!$K$1:$AS$1,0)),"") -> 0.00015112 | R58: =IFERROR(INDEX('Data Annex'!$K$1:$AS$6265,MATCH(R$44&"|"&$B58,'Data Annex'!$K$1:$K$6265,0),MATCH(R$45,'Data Annex'!$K$1:$AS$1,0)),"") -> 42.71871472 | S58: =IFERROR(INDEX('Data Annex'!$K$1:$AS$6265,MATCH(S$44&"|"&$B58,'Data Annex'!$K$1:$K$6265,0),MATCH(S$45,'Data Annex'!$K$1:$AS$1,0)),"") -> 52.12093677 | U58: EE | W58: =IFERROR(INDEX('Data Annex'!$K$1:$AS$6265,MATCH(W$44&"|"&$B58,'Data Annex'!$K$1:$K$6265,0),MATCH(W$45,'Data Annex'!$K$1:$AS$1,0)),"") -> 0.07806324 | X58: =IFERROR(INDEX('Data Annex'!$K$1:$AS$6265,MATCH(X$44&"|"&$B58,'Data Annex'!$K$1:$K$6265,0),MATCH(X$45,'Data Annex'!$K$1:$AS$1,0)),"") -> 0.10060009 | Y58: =IFERROR(INDEX('Data Annex'!$K$1:$AS$6265,MATCH(Y$44&"|"&$B58,'Data Annex'!$K$1:$K$6265,0),MATCH(Y$45,'Data Annex'!$K$1:$AS$1,0)),"") -> 0 | Z58: =IFERROR(INDEX('Data Annex'!$K$1:$AS$6265,MATCH(Z$44&"|"&$B58,'Data Annex'!$K$1:$K$6265,0),MATCH(Z$45,'Data Annex'!$K$1:$AS$1,0)),"") -> 0 | AA58: =IFERROR(INDEX('Data Annex'!$K$1:$AS$6265,MATCH(AA$44&"|"&$B58,'Data Annex'!$K$1:$K$6265,0),MATCH(AA$45,'Data Annex'!$K$1:$AS$1,0)),"") -> 0 | AB58: =IFERROR(INDEX('Data Annex'!$K$1:$AS$6265,MATCH(AB$44&"|"&$B58,'Data Annex'!$K$1:$K$6265,0),MATCH(AB$45,'Data Annex'!$K$1:$AS$1,0)),"") -> 0
A59: 9 | B59: ES | D59: ES | F59: =IFERROR(INDEX('Data Annex'!$K$1:$AS$6265,MATCH(F$44&"|"&$B59,'Data Annex'!$K$1:$K$6265,0),MATCH(F$45,'Data Annex'!$K$1:$AS$1,0)),"") -> 954.4203104 | G59: =IFERROR(INDEX('Data Annex'!$K$1:$AS$6265,MATCH(G$44&"|"&$B59,'Data Annex'!$K$1:$K$6265,0),MATCH(G$45,'Data Annex'!$K$1:$AS$1,0)),"") -> 869.7196177 | H59: =IFERROR(INDEX('Data Annex'!$K$1:$AS$6265,MATCH(H$44&"|"&$B59,'Data Annex'!$K$1:$K$6265,0),MATCH(H$45,'Data Annex'!$K$1:$AS$1,0)),"") ->  | I59: =IFERROR(INDEX('Data Annex'!$K$1:$AS$6265,MATCH(I$44&"|"&$B59,'Data Annex'!$K$1:$K$6265,0),MATCH(I$45,'Data Annex'!$K$1:$AS$1,0)),"") ->  | J59: =IFERROR(INDEX('Data Annex'!$K$1:$AS$6265,MATCH(J$44&"|"&$B59,'Data Annex'!$K$1:$K$6265,0),MATCH(J$45,'Data Annex'!$K$1:$AS$1,0)),"") -> 1.672 | K59: =IFERROR(INDEX('Data Annex'!$K$1:$AS$6265,MATCH(K$44&"|"&$B59,'Data Annex'!$K$1:$K$6265,0),MATCH(K$45,'Data Annex'!$K$1:$AS$1,0)),"") -> 1.573 | L59: =IFERROR(INDEX('Data Annex'!$K$1:$AS$6265,MATCH(L$44&"|"&$B59,'Data Annex'!$K$1:$K$6265,0),MATCH(L$45,'Data Annex'!$K$1:$AS$1,0)),"") -> 0.178 | M59: =IFERROR(INDEX('Data Annex'!$K$1:$AS$6265,MATCH(M$44&"|"&$B59,'Data Annex'!$K$1:$K$6265,0),MATCH(M$45,'Data Annex'!$K$1:$AS$1,0)),"") -> 0.128 | N59: =IFERROR(INDEX('Data Annex'!$K$1:$AS$6265,MATCH(N$44&"|"&$B59,'Data Annex'!$K$1:$K$6265,0),MATCH(N$45,'Data Annex'!$K$1:$AS$1,0)),"") -> 4.414 | O59: =IFERROR(INDEX('Data Annex'!$K$1:$AS$6265,MATCH(O$44&"|"&$B59,'Data Annex'!$K$1:$K$6265,0),MATCH(O$45,'Data Annex'!$K$1:$AS$1,0)),"") -> 4.313 | P59: =IFERROR(INDEX('Data Annex'!$K$1:$AS$6265,MATCH(P$44&"|"&$B59,'Data Annex'!$K$1:$K$6265,0),MATCH(P$45,'Data Annex'!$K$1:$AS$1,0)),"") -> 4.193637 | Q59: =IFERROR(INDEX('Data Annex'!$K$1:$AS$6265,MATCH(Q$44&"|"&$B59,'Data Annex'!$K$1:$K$6265,0),MATCH(Q$45,'Data Annex'!$K$1:$AS$1,0)),"") -> 2.550584 | R59: =IFERROR(INDEX('Data Annex'!$K$1:$AS$6265,MATCH(R$44&"|"&$B59,'Data Annex'!$K$1:$K$6265,0),MATCH(R$45,'Data Annex'!$K$1:$AS$1,0)),"") -> 943.9626734 | S59: =IFERROR(INDEX('Data Annex'!$K$1:$AS$6265,MATCH(S$44&"|"&$B59,'Data Annex'!$K$1:$K$6265,0),MATCH(S$45,'Data Annex'!$K$1:$AS$1,0)),"") -> 861.1550336 | U59: ES | W59: =IFERROR(INDEX('Data Annex'!$K$1:$AS$6265,MATCH(W$44&"|"&$B59,'Data Annex'!$K$1:$K$6265,0),MATCH(W$45,'Data Annex'!$K$1:$AS$1,0)),"") -> 23.08006386 | X59: =IFERROR(INDEX('Data Annex'!$K$1:$AS$6265,MATCH(X$44&"|"&$B59,'Data Annex'!$K$1:$K$6265,0),MATCH(X$45,'Data Annex'!$K$1:$AS$1,0)),"") -> 19.79096504 | Y59: =IFERROR(INDEX('Data Annex'!$K$1:$AS$6265,MATCH(Y$44&"|"&$B59,'Data Annex'!$K$1:$K$6265,0),MATCH(Y$45,'Data Annex'!$K$1:$AS$1,0)),"") -> 4.97382955 | Z59: =IFERROR(INDEX('Data Annex'!$K$1:$AS$6265,MATCH(Z$44&"|"&$B59,'Data Annex'!$K$1:$K$6265,0),MATCH(Z$45,'Data Annex'!$K$1:$AS$1,0)),"") -> 4.43082955 | AA59: =IFERROR(INDEX('Data Annex'!$K$1:$AS$6265,MATCH(AA$44&"|"&$B59,'Data Annex'!$K$1:$K$6265,0),MATCH(AA$45,'Data Annex'!$K$1:$AS$1,0)),"") -> 25.388 | AB59: =IFERROR(INDEX('Data Annex'!$K$1:$AS$6265,MATCH(AB$44&"|"&$B59,'Data Annex'!$K$1:$K$6265,0),MATCH(AB$45,'Data Annex'!$K$1:$AS$1,0)),"") -> 24.449
A60: 10 | B60: FI | D60: FI | F60: =IFERROR(INDEX('Data Annex'!$K$1:$AS$6265,MATCH(F$44&"|"&$B60,'Data Annex'!$K$1:$K$6265,0),MATCH(F$45,'Data Annex'!$K$1:$AS$1,0)),"") -> 182.2056331 | G60: =IFERROR(INDEX('Data Annex'!$K$1:$AS$6265,MATCH(G$44&"|"&$B60,'Data Annex'!$K$1:$K$6265,0),MATCH(G$45,'Data Annex'!$K$1:$AS$1,0)),"") -> 80.87810718 | H60: =IFERROR(INDEX('Data Annex'!$K$1:$AS$6265,MATCH(H$44&"|"&$B60,'Data Annex'!$K$1:$K$6265,0),MATCH(H$45,'Data Annex'!$K$1:$AS$1,0)),"") -> 0.011783 | I60: =IFERROR(INDEX('Data Annex'!$K$1:$AS$6265,MATCH(I$44&"|"&$B60,'Data Annex'!$K$1:$K$6265,0),MATCH(I$45,'Data Annex'!$K$1:$AS$1,0)),"") -> 0.011702 | J60: =IFERROR(INDEX('Data Annex'!$K$1:$AS$6265,MATCH(J$44&"|"&$B60,'Data Annex'!$K$1:$K$6265,0),MATCH(J$45,'Data Annex'!$K$1:$AS$1,0)),"") -> 0.003115 | K60: =IFERROR(INDEX('Data Annex'!$K$1:$AS$6265,MATCH(K$44&"|"&$B60,'Data Annex'!$K$1:$K$6265,0),MATCH(K$45,'Data Annex'!$K$1:$AS$1,0)),"") -> 0.008356 | L60: =IFERROR(INDEX('Data Annex'!$K$1:$AS$6265,MATCH(L$44&"|"&$B60,'Data Annex'!$K$1:$K$6265,0),MATCH(L$45,'Data Annex'!$K$1:$AS$1,0)),"") -> 9.135692 | M60: =IFERROR(INDEX('Data Annex'!$K$1:$AS$6265,MATCH(M$44&"|"&$B60,'Data Annex'!$K$1:$K$6265,0),MATCH(M$45,'Data Annex'!$K$1:$AS$1,0)),"") -> 5.265848 | N60: =IFERROR(INDEX('Data Annex'!$K$1:$AS$6265,MATCH(N$44&"|"&$B60,'Data Annex'!$K$1:$K$6265,0),MATCH(N$45,'Data Annex'!$K$1:$AS$1,0)),"") -> 0 | O60: =IFERROR(INDEX('Data Annex'!$K$1:$AS$6265,MATCH(O$44&"|"&$B60,'Data Annex'!$K$1:$K$6265,0),MATCH(O$45,'Data Annex'!$K$1:$AS$1,0)),"") -> 0 | P60: =IFERROR(INDEX('Data Annex'!$K$1:$AS$6265,MATCH(P$44&"|"&$B60,'Data Annex'!$K$1:$K$6265,0),MATCH(P$45,'Data Annex'!$K$1:$AS$1,0)),"") -> 103.5617083 | Q60: =IFERROR(INDEX('Data Annex'!$K$1:$AS$6265,MATCH(Q$44&"|"&$B60,'Data Annex'!$K$1:$K$6265,0),MATCH(Q$45,'Data Annex'!$K$1:$AS$1,0)),"") -> 0.68607364 | R60: =IFERROR(INDEX('Data Annex'!$K$1:$AS$6265,MATCH(R$44&"|"&$B60,'Data Annex'!$K$1:$K$6265,0),MATCH(R$45,'Data Annex'!$K$1:$AS$1,0)),"") -> 69.4933348 | S60: =IFERROR(INDEX('Data Annex'!$K$1:$AS$6265,MATCH(S$44&"|"&$B60,'Data Annex'!$K$1:$K$6265,0),MATCH(S$45,'Data Annex'!$K$1:$AS$1,0)),"") -> 74.90612854 | U60: FI | W60: =IFERROR(INDEX('Data Annex'!$K$1:$AS$6265,MATCH(W$44&"|"&$B60,'Data Annex'!$K$1:$K$6265,0),MATCH(W$45,'Data Annex'!$K$1:$AS$1,0)),"") -> 2.78355796 | X60: =IFERROR(INDEX('Data Annex'!$K$1:$AS$6265,MATCH(X$44&"|"&$B60,'Data Annex'!$K$1:$K$6265,0),MATCH(X$45,'Data Annex'!$K$1:$AS$1,0)),"") -> 1.08312781 | Y60: =IFERROR(INDEX('Data Annex'!$K$1:$AS$6265,MATCH(Y$44&"|"&$B60,'Data Annex'!$K$1:$K$6265,0),MATCH(Y$45,'Data Annex'!$K$1:$AS$1,0)),"") -> 9.547131 | Z60: =IFERROR(INDEX('Data Annex'!$K$1:$AS$6265,MATCH(Z$44&"|"&$B60,'Data Annex'!$K$1:$K$6265,0),MATCH(Z$45,'Data Annex'!$K$1:$AS$1,0)),"") -> 5.875135 | AA60: =IFERROR(INDEX('Data Annex'!$K$1:$AS$6265,MATCH(AA$44&"|"&$B60,'Data Annex'!$K$1:$K$6265,0),MATCH(AA$45,'Data Annex'!$K$1:$AS$1,0)),"") -> 79.28917151 | AB60: =IFERROR(INDEX('Data Annex'!$K$1:$AS$6265,MATCH(AB$44&"|"&$B60,'Data Annex'!$K$1:$K$6265,0),MATCH(AB$45,'Data Annex'!$K$1:$AS$1,0)),"") -> 69.92344098
A61: 11 | B61: FR | D61: FR | F61: =IFERROR(INDEX('Data Annex'!$K$1:$AS$6265,MATCH(F$44&"|"&$B61,'Data Annex'!$K$1:$K$6265,0),MATCH(F$45,'Data Annex'!$K$1:$AS$1,0)),"") -> 31034.19809 | G61: =IFERROR(INDEX('Data Annex'!$K$1:$AS$6265,MATCH(G$44&"|"&$B61,'Data Annex'!$K$1:$K$6265,0),MATCH(G$45,'Data Annex'!$K$1:$AS$1,0)),"") -> 26763.78775 | H61: =IFERROR(INDEX('Data Annex'!$K$1:$AS$6265,MATCH(H$44&"|"&$B61,'Data Annex'!$K$1:$K$6265,0),MATCH(H$45,'Data Annex'!$K$1:$AS$1,0)),"") -> 14824.40596 | I61: =IFERROR(INDEX('Data Annex'!$K$1:$AS$6265,MATCH(I$44&"|"&$B61,'Data Annex'!$K$1:$K$6265,0),MATCH(I$45,'Data Annex'!$K$1:$AS$1,0)),"") -> 10711.66817 | J61: =IFERROR(INDEX('Data Annex'!$K$1:$AS$6265,MATCH(J$44&"|"&$B61,'Data Annex'!$K$1:$K$6265,0),MATCH(J$45,'Data Annex'!$K$1:$AS$1,0)),"") -> 1116.28831 | K61: =IFERROR(INDEX('Data Annex'!$K$1:$AS$6265,MATCH(K$44&"|"&$B61,'Data Annex'!$K$1:$K$6265,0),MATCH(K$45,'Data Annex'!$K$1:$AS$1,0)),"") -> 437.735897 | L61: =IFERROR(INDEX('Data Annex'!$K$1:$AS$6265,MATCH(L$44&"|"&$B61,'Data Annex'!$K$1:$K$6265,0),MATCH(L$45,'Data Annex'!$K$1:$AS$1,0)),"") -> 930.53357 | M61: =IFERROR(INDEX('Data Annex'!$K$1:$AS$6265,MATCH(M$44&"|"&$B61,'Data Annex'!$K$1:$K$6265,0),MATCH(M$45,'Data Annex'!$K$1:$AS$1,0)),"") -> 958.684704 | N61: =IFERROR(INDEX('Data Annex'!$K$1:$AS$6265,MATCH(N$44&"|"&$B61,'Data Annex'!$K$1:$K$6265,0),MATCH(N$45,'Data Annex'!$K$1:$AS$1,0)),"") -> 1406.684412 | O61: =IFERROR(INDEX('Data Annex'!$K$1:$AS$6265,MATCH(O$44&"|"&$B61,'Data Annex'!$K$1:$K$6265,0),MATCH(O$45,'Data Annex'!$K$1:$AS$1,0)),"") -> 846.1859414 | P61: =IFERROR(INDEX('Data Annex'!$K$1:$AS$6265,MATCH(P$44&"|"&$B61,'Data Annex'!$K$1:$K$6265,0),MATCH(P$45,'Data Annex'!$K$1:$AS$1,0)),"") -> 8206.561974 | Q61: =IFERROR(INDEX('Data Annex'!$K$1:$AS$6265,MATCH(Q$44&"|"&$B61,'Data Annex'!$K$1:$K$6265,0),MATCH(Q$45,'Data Annex'!$K$1:$AS$1,0)),"") -> 8272.636954 | R61: =IFERROR(INDEX('Data Annex'!$K$1:$AS$6265,MATCH(R$44&"|"&$B61,'Data Annex'!$K$1:$K$6265,0),MATCH(R$45,'Data Annex'!$K$1:$AS$1,0)),"") -> 4549.723872 | S61: =IFERROR(INDEX('Data Annex'!$K$1:$AS$6265,MATCH(S$44&"|"&$B61,'Data Annex'!$K$1:$K$6265,0),MATCH(S$45,'Data Annex'!$K$1:$AS$1,0)),"") -> 5536.876079 | U61: FR | W61: =IFERROR(INDEX('Data Annex'!$K$1:$AS$6265,MATCH(W$44&"|"&$B61,'Data Annex'!$K$1:$K$6265,0),MATCH(W$45,'Data Annex'!$K$1:$AS$1,0)),"") -> 3578.522274 | X61: =IFERROR(INDEX('Data Annex'!$K$1:$AS$6265,MATCH(X$44&"|"&$B61,'Data Annex'!$K$1:$K$6265,0),MATCH(X$45,'Data Annex'!$K$1:$AS$1,0)),"") -> 3333.899833 | Y61: =IFERROR(INDEX('Data Annex'!$K$1:$AS$6265,MATCH(Y$44&"|"&$B61,'Data Annex'!$K$1:$K$6265,0),MATCH(Y$45,'Data Annex'!$K$1:$AS$1,0)),"") -> 3156.313138 | Z61: =IFERROR(INDEX('Data Annex'!$K$1:$AS$6265,MATCH(Z$44&"|"&$B61,'Data Annex'!$K$1:$K$6265,0),MATCH(Z$45,'Data Annex'!$K$1:$AS$1,0)),"") -> 2219.465394 | AA61: =IFERROR(INDEX('Data Annex'!$K$1:$AS$6265,MATCH(AA$44&"|"&$B61,'Data Annex'!$K$1:$K$6265,0),MATCH(AA$45,'Data Annex'!$K$1:$AS$1,0)),"") -> 189.3706216 | AB61: =IFERROR(INDEX('Data Annex'!$K$1:$AS$6265,MATCH(AB$44&"|"&$B61,'Data Annex'!$K$1:$K$6265,0),MATCH(AB$45,'Data Annex'!$K$1:$AS$1,0)),"") -> 49.25876496
A62: 12 | B62: GR | D62: GR | F62: =IFERROR(INDEX('Data Annex'!$K$1:$AS$6265,MATCH(F$44&"|"&$B62,'Data Annex'!$K$1:$K$6265,0),MATCH(F$45,'Data Annex'!$K$1:$AS$1,0)),"") ->  | G62: =IFERROR(INDEX('Data Annex'!$K$1:$AS$6265,MATCH(G$44&"|"&$B62,'Data Annex'!$K$1:$K$6265,0),MATCH(G$45,'Data Annex'!$K$1:$AS$1,0)),"") ->  | H62: =IFERROR(INDEX('Data Annex'!$K$1:$AS$6265,MATCH(H$44&"|"&$B62,'Data Annex'!$K$1:$K$6265,0),MATCH(H$45,'Data Annex'!$K$1:$AS$1,0)),"") ->  | I62: =IFERROR(INDEX('Data Annex'!$K$1:$AS$6265,MATCH(I$44&"|"&$B62,'Data Annex'!$K$1:$K$6265,0),MATCH(I$45,'Data Annex'!$K$1:$AS$1,0)),"") ->  | J62: =IFERROR(INDEX('Data Annex'!$K$1:$AS$6265,MATCH(J$44&"|"&$B62,'Data Annex'!$K$1:$K$6265,0),MATCH(J$45,'Data Annex'!$K$1:$AS$1,0)),"") ->  | K62: =IFERROR(INDEX('Data Annex'!$K$1:$AS$6265,MATCH(K$44&"|"&$B62,'Data Annex'!$K$1:$K$6265,0),MATCH(K$45,'Data Annex'!$K$1:$AS$1,0)),"") ->  | L62: =IFERROR(INDEX('Data Annex'!$K$1:$AS$6265,MATCH(L$44&"|"&$B62,'Data Annex'!$K$1:$K$6265,0),MATCH(L$45,'Data Annex'!$K$1:$AS$1,0)),"") ->  | M62: =IFERROR(INDEX('Data Annex'!$K$1:$AS$6265,MATCH(M$44&"|"&$B62,'Data Annex'!$K$1:$K$6265,0),MATCH(M$45,'Data Annex'!$K$1:$AS$1,0)),"") ->  | N62: =IFERROR(INDEX('Data Annex'!$K$1:$AS$6265,MATCH(N$44&"|"&$B62,'Data Annex'!$K$1:$K$6265,0),MATCH(N$45,'Data Annex'!$K$1:$AS$1,0)),"") ->  | O62: =IFERROR(INDEX('Data Annex'!$K$1:$AS$6265,MATCH(O$44&"|"&$B62,'Data Annex'!$K$1:$K$6265,0),MATCH(O$45,'Data Annex'!$K$1:$AS$1,0)),"") ->  | P62: =IFERROR(INDEX('Data Annex'!$K$1:$AS$6265,MATCH(P$44&"|"&$B62,'Data Annex'!$K$1:$K$6265,0),MATCH(P$45,'Data Annex'!$K$1:$AS$1,0)),"") ->  | Q62: =IFERROR(INDEX('Data Annex'!$K$1:$AS$6265,MATCH(Q$44&"|"&$B62,'Data Annex'!$K$1:$K$6265,0),MATCH(Q$45,'Data Annex'!$K$1:$AS$1,0)),"") ->  | R62: =IFERROR(INDEX('Data Annex'!$K$1:$AS$6265,MATCH(R$44&"|"&$B62,'Data Annex'!$K$1:$K$6265,0),MATCH(R$45,'Data Annex'!$K$1:$AS$1,0)),"") ->  | S62: =IFERROR(INDEX('Data Annex'!$K$1:$AS$6265,MATCH(S$44&"|"&$B62,'Data Annex'!$K$1:$K$6265,0),MATCH(S$45,'Data Annex'!$K$1:$AS$1,0)),"") ->  | U62: GR | W62: =IFERROR(INDEX('Data Annex'!$K$1:$AS$6265,MATCH(W$44&"|"&$B62,'Data Annex'!$K$1:$K$6265,0),MATCH(W$45,'Data Annex'!$K$1:$AS$1,0)),"") ->  | X62: =IFERROR(INDEX('Data Annex'!$K$1:$AS$6265,MATCH(X$44&"|"&$B62,'Data Annex'!$K$1:$K$6265,0),MATCH(X$45,'Data Annex'!$K$1:$AS$1,0)),"") ->  | Y62: =IFERROR(INDEX('Data Annex'!$K$1:$AS$6265,MATCH(Y$44&"|"&$B62,'Data Annex'!$K$1:$K$6265,0),MATCH(Y$45,'Data Annex'!$K$1:$AS$1,0)),"") ->  | Z62: =IFERROR(INDEX('Data Annex'!$K$1:$AS$6265,MATCH(Z$44&"|"&$B62,'Data Annex'!$K$1:$K$6265,0),MATCH(Z$45,'Data Annex'!$K$1:$AS$1,0)),"") ->  | AA62: =IFERROR(INDEX('Data Annex'!$K$1:$AS$6265,MATCH(AA$44&"|"&$B62,'Data Annex'!$K$1:$K$6265,0),MATCH(AA$45,'Data Annex'!$K$1:$AS$1,0)),"") ->  | AB62: =IFERROR(INDEX('Data Annex'!$K$1:$AS$6265,MATCH(AB$44&"|"&$B62,'Data Annex'!$K$1:$K$6265,0),MATCH(AB$45,'Data Annex'!$K$1:$AS$1,0)),"") -> 
A63: 13 | B63: HR | D63: HR | F63: =IFERROR(INDEX('Data Annex'!$K$1:$AS$6265,MATCH(F$44&"|"&$B63,'Data Annex'!$K$1:$K$6265,0),MATCH(F$45,'Data Annex'!$K$1:$AS$1,0)),"") -> 40.50831383 | G63: =IFERROR(INDEX('Data Annex'!$K$1:$AS$6265,MATCH(G$44&"|"&$B63,'Data Annex'!$K$1:$K$6265,0),MATCH(G$45,'Data Annex'!$K$1:$AS$1,0)),"") -> 29.1830677 | H63: =IFERROR(INDEX('Data Annex'!$K$1:$AS$6265,MATCH(H$44&"|"&$B63,'Data Annex'!$K$1:$K$6265,0),MATCH(H$45,'Data Annex'!$K$1:$AS$1,0)),"") ->  | I63: =IFERROR(INDEX('Data Annex'!$K$1:$AS$6265,MATCH(I$44&"|"&$B63,'Data Annex'!$K$1:$K$6265,0),MATCH(I$45,'Data Annex'!$K$1:$AS$1,0)),"") ->  | J63: =IFERROR(INDEX('Data Annex'!$K$1:$AS$6265,MATCH(J$44&"|"&$B63,'Data Annex'!$K$1:$K$6265,0),MATCH(J$45,'Data Annex'!$K$1:$AS$1,0)),"") -> 0.0008901511523 | K63: =IFERROR(INDEX('Data Annex'!$K$1:$AS$6265,MATCH(K$44&"|"&$B63,'Data Annex'!$K$1:$K$6265,0),MATCH(K$45,'Data Annex'!$K$1:$AS$1,0)),"") -> 7.400316874e-06 | L63: =IFERROR(INDEX('Data Annex'!$K$1:$AS$6265,MATCH(L$44&"|"&$B63,'Data Annex'!$K$1:$K$6265,0),MATCH(L$45,'Data Annex'!$K$1:$AS$1,0)),"") ->  | M63: =IFERROR(INDEX('Data Annex'!$K$1:$AS$6265,MATCH(M$44&"|"&$B63,'Data Annex'!$K$1:$K$6265,0),MATCH(M$45,'Data Annex'!$K$1:$AS$1,0)),"") ->  | N63: =IFERROR(INDEX('Data Annex'!$K$1:$AS$6265,MATCH(N$44&"|"&$B63,'Data Annex'!$K$1:$K$6265,0),MATCH(N$45,'Data Annex'!$K$1:$AS$1,0)),"") ->  | O63: =IFERROR(INDEX('Data Annex'!$K$1:$AS$6265,MATCH(O$44&"|"&$B63,'Data Annex'!$K$1:$K$6265,0),MATCH(O$45,'Data Annex'!$K$1:$AS$1,0)),"") ->  | P63: =IFERROR(INDEX('Data Annex'!$K$1:$AS$6265,MATCH(P$44&"|"&$B63,'Data Annex'!$K$1:$K$6265,0),MATCH(P$45,'Data Annex'!$K$1:$AS$1,0)),"") -> 0.01844670951 | Q63: =IFERROR(INDEX('Data Annex'!$K$1:$AS$6265,MATCH(Q$44&"|"&$B63,'Data Annex'!$K$1:$K$6265,0),MATCH(Q$45,'Data Annex'!$K$1:$AS$1,0)),"") -> 0.01958545551 | R63: =IFERROR(INDEX('Data Annex'!$K$1:$AS$6265,MATCH(R$44&"|"&$B63,'Data Annex'!$K$1:$K$6265,0),MATCH(R$45,'Data Annex'!$K$1:$AS$1,0)),"") -> 40.48897697 | S63: =IFERROR(INDEX('Data Annex'!$K$1:$AS$6265,MATCH(S$44&"|"&$B63,'Data Annex'!$K$1:$K$6265,0),MATCH(S$45,'Data Annex'!$K$1:$AS$1,0)),"") -> 29.16347485 | U63: HR | W63: =IFERROR(INDEX('Data Annex'!$K$1:$AS$6265,MATCH(W$44&"|"&$B63,'Data Annex'!$K$1:$K$6265,0),MATCH(W$45,'Data Annex'!$K$1:$AS$1,0)),"") -> 0.03946067513 | X63: =IFERROR(INDEX('Data Annex'!$K$1:$AS$6265,MATCH(X$44&"|"&$B63,'Data Annex'!$K$1:$K$6265,0),MATCH(X$45,'Data Annex'!$K$1:$AS$1,0)),"") -> 0.02899289675 | Y63: =IFERROR(INDEX('Data Annex'!$K$1:$AS$6265,MATCH(Y$44&"|"&$B63,'Data Annex'!$K$1:$K$6265,0),MATCH(Y$45,'Data Annex'!$K$1:$AS$1,0)),"") -> 1.440319994 | Z63: =IFERROR(INDEX('Data Annex'!$K$1:$AS$6265,MATCH(Z$44&"|"&$B63,'Data Annex'!$K$1:$K$6265,0),MATCH(Z$45,'Data Annex'!$K$1:$AS$1,0)),"") -> 1.44052854 | AA63: =IFERROR(INDEX('Data Annex'!$K$1:$AS$6265,MATCH(AA$44&"|"&$B63,'Data Annex'!$K$1:$K$6265,0),MATCH(AA$45,'Data Annex'!$K$1:$AS$1,0)),"") ->  | AB63: =IFERROR(INDEX('Data Annex'!$K$1:$AS$6265,MATCH(AB$44&"|"&$B63,'Data Annex'!$K$1:$K$6265,0),MATCH(AB$45,'Data Annex'!$K$1:$AS$1,0)),"") -> 
A64: 14 | B64: HU | D64: HU | F64: =IFERROR(INDEX('Data Annex'!$K$1:$AS$6265,MATCH(F$44&"|"&$B64,'Data Annex'!$K$1:$K$6265,0),MATCH(F$45,'Data Annex'!$K$1:$AS$1,0)),"") -> 1381.689844 | G64: =IFERROR(INDEX('Data Annex'!$K$1:$AS$6265,MATCH(G$44&"|"&$B64,'Data Annex'!$K$1:$K$6265,0),MATCH(G$45,'Data Annex'!$K$1:$AS$1,0)),"") -> 1443.501342 | H64: =IFERROR(INDEX('Data Annex'!$K$1:$AS$6265,MATCH(H$44&"|"&$B64,'Data Annex'!$K$1:$K$6265,0),MATCH(H$45,'Data Annex'!$K$1:$AS$1,0)),"") -> 0 | I64: =IFERROR(INDEX('Data Annex'!$K$1:$AS$6265,MATCH(I$44&"|"&$B64,'Data Annex'!$K$1:$K$6265,0),MATCH(I$45,'Data Annex'!$K$1:$AS$1,0)),"") -> 0 | J64: =IFERROR(INDEX('Data Annex'!$K$1:$AS$6265,MATCH(J$44&"|"&$B64,'Data Annex'!$K$1:$K$6265,0),MATCH(J$45,'Data Annex'!$K$1:$AS$1,0)),"") -> 0 | K64: =IFERROR(INDEX('Data Annex'!$K$1:$AS$6265,MATCH(K$44&"|"&$B64,'Data Annex'!$K$1:$K$6265,0),MATCH(K$45,'Data Annex'!$K$1:$AS$1,0)),"") -> 69.51546327 | L64: =IFERROR(INDEX('Data Annex'!$K$1:$AS$6265,MATCH(L$44&"|"&$B64,'Data Annex'!$K$1:$K$6265,0),MATCH(L$45,'Data Annex'!$K$1:$AS$1,0)),"") -> 236.5844146 | M64: =IFERROR(INDEX('Data Annex'!$K$1:$AS$6265,MATCH(M$44&"|"&$B64,'Data Annex'!$K$1:$K$6265,0),MATCH(M$45,'Data Annex'!$K$1:$AS$1,0)),"") -> 227.8845721 | N64: =IFERROR(INDEX('Data Annex'!$K$1:$AS$6265,MATCH(N$44&"|"&$B64,'Data Annex'!$K$1:$K$6265,0),MATCH(N$45,'Data Annex'!$K$1:$AS$1,0)),"") -> 0 | O64: =IFERROR(INDEX('Data Annex'!$K$1:$AS$6265,MATCH(O$44&"|"&$B64,'Data Annex'!$K$1:$K$6265,0),MATCH(O$45,'Data Annex'!$K$1:$AS$1,0)),"") -> 0 | P64: =IFERROR(INDEX('Data Annex'!$K$1:$AS$6265,MATCH(P$44&"|"&$B64,'Data Annex'!$K$1:$K$6265,0),MATCH(P$45,'Data Annex'!$K$1:$AS$1,0)),"") -> 382.3956873 | Q64: =IFERROR(INDEX('Data Annex'!$K$1:$AS$6265,MATCH(Q$44&"|"&$B64,'Data Annex'!$K$1:$K$6265,0),MATCH(Q$45,'Data Annex'!$K$1:$AS$1,0)),"") -> 445.9596536 | R64: =IFERROR(INDEX('Data Annex'!$K$1:$AS$6265,MATCH(R$44&"|"&$B64,'Data Annex'!$K$1:$K$6265,0),MATCH(R$45,'Data Annex'!$K$1:$AS$1,0)),"") -> 762.709742 | S64: =IFERROR(INDEX('Data Annex'!$K$1:$AS$6265,MATCH(S$44&"|"&$B64,'Data Annex'!$K$1:$K$6265,0),MATCH(S$45,'Data Annex'!$K$1:$AS$1,0)),"") -> 700.1416531 | U64: HU | W64: =IFERROR(INDEX('Data Annex'!$K$1:$AS$6265,MATCH(W$44&"|"&$B64,'Data Annex'!$K$1:$K$6265,0),MATCH(W$45,'Data Annex'!$K$1:$AS$1,0)),"") -> 679.5075192 | X64: =IFERROR(INDEX('Data Annex'!$K$1:$AS$6265,MATCH(X$44&"|"&$B64,'Data Annex'!$K$1:$K$6265,0),MATCH(X$45,'Data Annex'!$K$1:$AS$1,0)),"") -> 615.992707 | Y64: =IFERROR(INDEX('Data Annex'!$K$1:$AS$6265,MATCH(Y$44&"|"&$B64,'Data Annex'!$K$1:$K$6265,0),MATCH(Y$45,'Data Annex'!$K$1:$AS$1,0)),"") -> 352.9522892 | Z64: =IFERROR(INDEX('Data Annex'!$K$1:$AS$6265,MATCH(Z$44&"|"&$B64,'Data Annex'!$K$1:$K$6265,0),MATCH(Z$45,'Data Annex'!$K$1:$AS$1,0)),"") -> 303.3646369 | AA64: =IFERROR(INDEX('Data Annex'!$K$1:$AS$6265,MATCH(AA$44&"|"&$B64,'Data Annex'!$K$1:$K$6265,0),MATCH(AA$45,'Data Annex'!$K$1:$AS$1,0)),"") -> 1.495679116 | AB64: =IFERROR(INDEX('Data Annex'!$K$1:$AS$6265,MATCH(AB$44&"|"&$B64,'Data Annex'!$K$1:$K$6265,0),MATCH(AB$45,'Data Annex'!$K$1:$AS$1,0)),"") -> 1.695413711
A65: 15 | B65: IE | D65: IE | F65: =IFERROR(INDEX('Data Annex'!$K$1:$AS$6265,MATCH(F$44&"|"&$B65,'Data Annex'!$K$1:$K$6265,0),MATCH(F$45,'Data Annex'!$K$1:$AS$1,0)),"") -> 219.8701061 | G65: =IFERROR(INDEX('Data Annex'!$K$1:$AS$6265,MATCH(G$44&"|"&$B65,'Data Annex'!$K$1:$K$6265,0),MATCH(G$45,'Data Annex'!$K$1:$AS$1,0)),"") -> 282.9072159 | H65: =IFERROR(INDEX('Data Annex'!$K$1:$AS$6265,MATCH(H$44&"|"&$B65,'Data Annex'!$K$1:$K$6265,0),MATCH(H$45,'Data Annex'!$K$1:$AS$1,0)),"") ->  | I65: =IFERROR(INDEX('Data Annex'!$K$1:$AS$6265,MATCH(I$44&"|"&$B65,'Data Annex'!$K$1:$K$6265,0),MATCH(I$45,'Data Annex'!$K$1:$AS$1,0)),"") ->  | J65: =IFERROR(INDEX('Data Annex'!$K$1:$AS$6265,MATCH(J$44&"|"&$B65,'Data Annex'!$K$1:$K$6265,0),MATCH(J$45,'Data Annex'!$K$1:$AS$1,0)),"") ->  | K65: =IFERROR(INDEX('Data Annex'!$K$1:$AS$6265,MATCH(K$44&"|"&$B65,'Data Annex'!$K$1:$K$6265,0),MATCH(K$45,'Data Annex'!$K$1:$AS$1,0)),"") ->  | L65: =IFERROR(INDEX('Data Annex'!$K$1:$AS$6265,MATCH(L$44&"|"&$B65,'Data Annex'!$K$1:$K$6265,0),MATCH(L$45,'Data Annex'!$K$1:$AS$1,0)),"") -> 184.2803383 | M65: =IFERROR(INDEX('Data Annex'!$K$1:$AS$6265,MATCH(M$44&"|"&$B65,'Data Annex'!$K$1:$K$6265,0),MATCH(M$45,'Data Annex'!$K$1:$AS$1,0)),"") -> 235.1646373 | N65: =IFERROR(INDEX('Data Annex'!$K$1:$AS$6265,MATCH(N$44&"|"&$B65,'Data Annex'!$K$1:$K$6265,0),MATCH(N$45,'Data Annex'!$K$1:$AS$1,0)),"") -> 4.951920786e-05 | O65: =IFERROR(INDEX('Data Annex'!$K$1:$AS$6265,MATCH(O$44&"|"&$B65,'Data Annex'!$K$1:$K$6265,0),MATCH(O$45,'Data Annex'!$K$1:$AS$1,0)),"") -> 5.052308057e-05 | P65: =IFERROR(INDEX('Data Annex'!$K$1:$AS$6265,MATCH(P$44&"|"&$B65,'Data Annex'!$K$1:$K$6265,0),MATCH(P$45,'Data Annex'!$K$1:$AS$1,0)),"") -> 0.21179754 | Q65: =IFERROR(INDEX('Data Annex'!$K$1:$AS$6265,MATCH(Q$44&"|"&$B65,'Data Annex'!$K$1:$K$6265,0),MATCH(Q$45,'Data Annex'!$K$1:$AS$1,0)),"") -> 0.18521586 | R65: =IFERROR(INDEX('Data Annex'!$K$1:$AS$6265,MATCH(R$44&"|"&$B65,'Data Annex'!$K$1:$K$6265,0),MATCH(R$45,'Data Annex'!$K$1:$AS$1,0)),"") -> 35.37792077 | S65: =IFERROR(INDEX('Data Annex'!$K$1:$AS$6265,MATCH(S$44&"|"&$B65,'Data Annex'!$K$1:$K$6265,0),MATCH(S$45,'Data Annex'!$K$1:$AS$1,0)),"") -> 47.55731215 | U65: IE | W65: =IFERROR(INDEX('Data Annex'!$K$1:$AS$6265,MATCH(W$44&"|"&$B65,'Data Annex'!$K$1:$K$6265,0),MATCH(W$45,'Data Annex'!$K$1:$AS$1,0)),"") -> 1.53850462 | X65: =IFERROR(INDEX('Data Annex'!$K$1:$AS$6265,MATCH(X$44&"|"&$B65,'Data Annex'!$K$1:$K$6265,0),MATCH(X$45,'Data Annex'!$K$1:$AS$1,0)),"") -> 0.04207587 | Y65: =IFERROR(INDEX('Data Annex'!$K$1:$AS$6265,MATCH(Y$44&"|"&$B65,'Data Annex'!$K$1:$K$6265,0),MATCH(Y$45,'Data Annex'!$K$1:$AS$1,0)),"") -> 4.98610661 | Z65: =IFERROR(INDEX('Data Annex'!$K$1:$AS$6265,MATCH(Z$44&"|"&$B65,'Data Annex'!$K$1:$K$6265,0),MATCH(Z$45,'Data Annex'!$K$1:$AS$1,0)),"") -> 2.93704211 | AA65: =IFERROR(INDEX('Data Annex'!$K$1:$AS$6265,MATCH(AA$44&"|"&$B65,'Data Annex'!$K$1:$K$6265,0),MATCH(AA$45,'Data Annex'!$K$1:$AS$1,0)),"") -> 180.6379475 | AB65: =IFERROR(INDEX('Data Annex'!$K$1:$AS$6265,MATCH(AB$44&"|"&$B65,'Data Annex'!$K$1:$K$6265,0),MATCH(AB$45,'Data Annex'!$K$1:$AS$1,0)),"") -> 162.3752646
A66: 16 | B66: IS | D66: IS | F66: =IFERROR(INDEX('Data Annex'!$K$1:$AS$6265,MATCH(F$44&"|"&$B66,'Data Annex'!$K$1:$K$6265,0),MATCH(F$45,'Data Annex'!$K$1:$AS$1,0)),"") ->  | G66: =IFERROR(INDEX('Data Annex'!$K$1:$AS$6265,MATCH(G$44&"|"&$B66,'Data Annex'!$K$1:$K$6265,0),MATCH(G$45,'Data Annex'!$K$1:$AS$1,0)),"") ->  | H66: =IFERROR(INDEX('Data Annex'!$K$1:$AS$6265,MATCH(H$44&"|"&$B66,'Data Annex'!$K$1:$K$6265,0),MATCH(H$45,'Data Annex'!$K$1:$AS$1,0)),"") ->  | I66: =IFERROR(INDEX('Data Annex'!$K$1:$AS$6265,MATCH(I$44&"|"&$B66,'Data Annex'!$K$1:$K$6265,0),MATCH(I$45,'Data Annex'!$K$1:$AS$1,0)),"") ->  | J66: =IFERROR(INDEX('Data Annex'!$K$1:$AS$6265,MATCH(J$44&"|"&$B66,'Data Annex'!$K$1:$K$6265,0),MATCH(J$45,'Data Annex'!$K$1:$AS$1,0)),"") ->  | K66: =IFERROR(INDEX('Data Annex'!$K$1:$AS$6265,MATCH(K$44&"|"&$B66,'Data Annex'!$K$1:$K$6265,0),MATCH(K$45,'Data Annex'!$K$1:$AS$1,0)),"") ->  | L66: =IFERROR(INDEX('Data Annex'!$K$1:$AS$6265,MATCH(L$44&"|"&$B66,'Data Annex'!$K$1:$K$6265,0),MATCH(L$45,'Data Annex'!$K$1:$AS$1,0)),"") ->  | M66: =IFERROR(INDEX('Data Annex'!$K$1:$AS$6265,MATCH(M$44&"|"&$B66,'Data Annex'!$K$1:$K$6265,0),MATCH(M$45,'Data Annex'!$K$1:$AS$1,0)),"") ->  | N66: =IFERROR(INDEX('Data Annex'!$K$1:$AS$6265,MATCH(N$44&"|"&$B66,'Data Annex'!$K$1:$K$6265,0),MATCH(N$45,'Data Annex'!$K$1:$AS$1,0)),"") ->  | O66: =IFERROR(INDEX('Data Annex'!$K$1:$AS$6265,MATCH(O$44&"|"&$B66,'Data Annex'!$K$1:$K$6265,0),MATCH(O$45,'Data Annex'!$K$1:$AS$1,0)),"") ->  | P66: =IFERROR(INDEX('Data Annex'!$K$1:$AS$6265,MATCH(P$44&"|"&$B66,'Data Annex'!$K$1:$K$6265,0),MATCH(P$45,'Data Annex'!$K$1:$AS$1,0)),"") ->  | Q66: =IFERROR(INDEX('Data Annex'!$K$1:$AS$6265,MATCH(Q$44&"|"&$B66,'Data Annex'!$K$1:$K$6265,0),MATCH(Q$45,'Data Annex'!$K$1:$AS$1,0)),"") ->  | R66: =IFERROR(INDEX('Data Annex'!$K$1:$AS$6265,MATCH(R$44&"|"&$B66,'Data Annex'!$K$1:$K$6265,0),MATCH(R$45,'Data Annex'!$K$1:$AS$1,0)),"") ->  | S66: =IFERROR(INDEX('Data Annex'!$K$1:$AS$6265,MATCH(S$44&"|"&$B66,'Data Annex'!$K$1:$K$6265,0),MATCH(S$45,'Data Annex'!$K$1:$AS$1,0)),"") ->  | U66: IS | W66: =IFERROR(INDEX('Data Annex'!$K$1:$AS$6265,MATCH(W$44&"|"&$B66,'Data Annex'!$K$1:$K$6265,0),MATCH(W$45,'Data Annex'!$K$1:$AS$1,0)),"") -> 0 | X66: =IFERROR(INDEX('Data Annex'!$K$1:$AS$6265,MATCH(X$44&"|"&$B66,'Data Annex'!$K$1:$K$6265,0),MATCH(X$45,'Data Annex'!$K$1:$AS$1,0)),"") -> 0 | Y66: =IFERROR(INDEX('Data Annex'!$K$1:$AS$6265,MATCH(Y$44&"|"&$B66,'Data Annex'!$K$1:$K$6265,0),MATCH(Y$45,'Data Annex'!$K$1:$AS$1,0)),"") -> 0 | Z66: =IFERROR(INDEX('Data Annex'!$K$1:$AS$6265,MATCH(Z$44&"|"&$B66,'Data Annex'!$K$1:$K$6265,0),MATCH(Z$45,'Data Annex'!$K$1:$AS$1,0)),"") -> 0 | AA66: =IFERROR(INDEX('Data Annex'!$K$1:$AS$6265,MATCH(AA$44&"|"&$B66,'Data Annex'!$K$1:$K$6265,0),MATCH(AA$45,'Data Annex'!$K$1:$AS$1,0)),"") -> 0.001544661247 | AB66: =IFERROR(INDEX('Data Annex'!$K$1:$AS$6265,MATCH(AB$44&"|"&$B66,'Data Annex'!$K$1:$K$6265,0),MATCH(AB$45,'Data Annex'!$K$1:$AS$1,0)),"") -> 0.0005437394366
A67: 17 | B67: IT | D67: IT | F67: =IFERROR(INDEX('Data Annex'!$K$1:$AS$6265,MATCH(F$44&"|"&$B67,'Data Annex'!$K$1:$K$6265,0),MATCH(F$45,'Data Annex'!$K$1:$AS$1,0)),"") -> 12036.49144 | G67: =IFERROR(INDEX('Data Annex'!$K$1:$AS$6265,MATCH(G$44&"|"&$B67,'Data Annex'!$K$1:$K$6265,0),MATCH(G$45,'Data Annex'!$K$1:$AS$1,0)),"") -> 14814.35221 | H67: =IFERROR(INDEX('Data Annex'!$K$1:$AS$6265,MATCH(H$44&"|"&$B67,'Data Annex'!$K$1:$K$6265,0),MATCH(H$45,'Data Annex'!$K$1:$AS$1,0)),"") -> 73.503049 | I67: =IFERROR(INDEX('Data Annex'!$K$1:$AS$6265,MATCH(I$44&"|"&$B67,'Data Annex'!$K$1:$K$6265,0),MATCH(I$45,'Data Annex'!$K$1:$AS$1,0)),"") -> 60.850695 | J67: =IFERROR(INDEX('Data Annex'!$K$1:$AS$6265,MATCH(J$44&"|"&$B67,'Data Annex'!$K$1:$K$6265,0),MATCH(J$45,'Data Annex'!$K$1:$AS$1,0)),"") -> 414.885273 | K67: =IFERROR(INDEX('Data Annex'!$K$1:$AS$6265,MATCH(K$44&"|"&$B67,'Data Annex'!$K$1:$K$6265,0),MATCH(K$45,'Data Annex'!$K$1:$AS$1,0)),"") -> 4.055583 | L67: =IFERROR(INDEX('Data Annex'!$K$1:$AS$6265,MATCH(L$44&"|"&$B67,'Data Annex'!$K$1:$K$6265,0),MATCH(L$45,'Data Annex'!$K$1:$AS$1,0)),"") -> 183.575964 | M67: =IFERROR(INDEX('Data Annex'!$K$1:$AS$6265,MATCH(M$44&"|"&$B67,'Data Annex'!$K$1:$K$6265,0),MATCH(M$45,'Data Annex'!$K$1:$AS$1,0)),"") -> 265.539756 | N67: =IFERROR(INDEX('Data Annex'!$K$1:$AS$6265,MATCH(N$44&"|"&$B67,'Data Annex'!$K$1:$K$6265,0),MATCH(N$45,'Data Annex'!$K$1:$AS$1,0)),"") -> 451.067086 | O67: =IFERROR(INDEX('Data Annex'!$K$1:$AS$6265,MATCH(O$44&"|"&$B67,'Data Annex'!$K$1:$K$6265,0),MATCH(O$45,'Data Annex'!$K$1:$AS$1,0)),"") -> 583.046391 | P67: =IFERROR(INDEX('Data Annex'!$K$1:$AS$6265,MATCH(P$44&"|"&$B67,'Data Annex'!$K$1:$K$6265,0),MATCH(P$45,'Data Annex'!$K$1:$AS$1,0)),"") -> 6761.584819 | Q67: =IFERROR(INDEX('Data Annex'!$K$1:$AS$6265,MATCH(Q$44&"|"&$B67,'Data Annex'!$K$1:$K$6265,0),MATCH(Q$45,'Data Annex'!$K$1:$AS$1,0)),"") -> 10337.546 | R67: =IFERROR(INDEX('Data Annex'!$K$1:$AS$6265,MATCH(R$44&"|"&$B67,'Data Annex'!$K$1:$K$6265,0),MATCH(R$45,'Data Annex'!$K$1:$AS$1,0)),"") -> 4151.87525 | S67: =IFERROR(INDEX('Data Annex'!$K$1:$AS$6265,MATCH(S$44&"|"&$B67,'Data Annex'!$K$1:$K$6265,0),MATCH(S$45,'Data Annex'!$K$1:$AS$1,0)),"") -> 3563.313786 | U67: IT | W67: =IFERROR(INDEX('Data Annex'!$K$1:$AS$6265,MATCH(W$44&"|"&$B67,'Data Annex'!$K$1:$K$6265,0),MATCH(W$45,'Data Annex'!$K$1:$AS$1,0)),"") -> 5595.831046 | X67: =IFERROR(INDEX('Data Annex'!$K$1:$AS$6265,MATCH(X$44&"|"&$B67,'Data Annex'!$K$1:$K$6265,0),MATCH(X$45,'Data Annex'!$K$1:$AS$1,0)),"") -> 5048.101326 | Y67: =IFERROR(INDEX('Data Annex'!$K$1:$AS$6265,MATCH(Y$44&"|"&$B67,'Data Annex'!$K$1:$K$6265,0),MATCH(Y$45,'Data Annex'!$K$1:$AS$1,0)),"") -> 1664.960352 | Z67: =IFERROR(INDEX('Data Annex'!$K$1:$AS$6265,MATCH(Z$44&"|"&$B67,'Data Annex'!$K$1:$K$6265,0),MATCH(Z$45,'Data Annex'!$K$1:$AS$1,0)),"") -> 1650.451316 | AA67: =IFERROR(INDEX('Data Annex'!$K$1:$AS$6265,MATCH(AA$44&"|"&$B67,'Data Annex'!$K$1:$K$6265,0),MATCH(AA$45,'Data Annex'!$K$1:$AS$1,0)),"") -> 6984.290162 | AB67: =IFERROR(INDEX('Data Annex'!$K$1:$AS$6265,MATCH(AB$44&"|"&$B67,'Data Annex'!$K$1:$K$6265,0),MATCH(AB$45,'Data Annex'!$K$1:$AS$1,0)),"") -> 6210.991351
A68: 19 | B68: LT | D68: LT | F68: =IFERROR(INDEX('Data Annex'!$K$1:$AS$6265,MATCH(F$44&"|"&$B68,'Data Annex'!$K$1:$K$6265,0),MATCH(F$45,'Data Annex'!$K$1:$AS$1,0)),"") -> 21.081 | G68: =IFERROR(INDEX('Data Annex'!$K$1:$AS$6265,MATCH(G$44&"|"&$B68,'Data Annex'!$K$1:$K$6265,0),MATCH(G$45,'Data Annex'!$K$1:$AS$1,0)),"") -> 22.208 | H68: =IFERROR(INDEX('Data Annex'!$K$1:$AS$6265,MATCH(H$44&"|"&$B68,'Data Annex'!$K$1:$K$6265,0),MATCH(H$45,'Data Annex'!$K$1:$AS$1,0)),"") ->  | I68: =IFERROR(INDEX('Data Annex'!$K$1:$AS$6265,MATCH(I$44&"|"&$B68,'Data Annex'!$K$1:$K$6265,0),MATCH(I$45,'Data Annex'!$K$1:$AS$1,0)),"") ->  | J68: =IFERROR(INDEX('Data Annex'!$K$1:$AS$6265,MATCH(J$44&"|"&$B68,'Data Annex'!$K$1:$K$6265,0),MATCH(J$45,'Data Annex'!$K$1:$AS$1,0)),"") -> 0.899 | K68: =IFERROR(INDEX('Data Annex'!$K$1:$AS$6265,MATCH(K$44&"|"&$B68,'Data Annex'!$K$1:$K$6265,0),MATCH(K$45,'Data Annex'!$K$1:$AS$1,0)),"") -> 5.624 | L68: =IFERROR(INDEX('Data Annex'!$K$1:$AS$6265,MATCH(L$44&"|"&$B68,'Data Annex'!$K$1:$K$6265,0),MATCH(L$45,'Data Annex'!$K$1:$AS$1,0)),"") -> 0.524 | M68: =IFERROR(INDEX('Data Annex'!$K$1:$AS$6265,MATCH(M$44&"|"&$B68,'Data Annex'!$K$1:$K$6265,0),MATCH(M$45,'Data Annex'!$K$1:$AS$1,0)),"") -> 0 | N68: =IFERROR(INDEX('Data Annex'!$K$1:$AS$6265,MATCH(N$44&"|"&$B68,'Data Annex'!$K$1:$K$6265,0),MATCH(N$45,'Data Annex'!$K$1:$AS$1,0)),"") ->  | O68: =IFERROR(INDEX('Data Annex'!$K$1:$AS$6265,MATCH(O$44&"|"&$B68,'Data Annex'!$K$1:$K$6265,0),MATCH(O$45,'Data Annex'!$K$1:$AS$1,0)),"") ->  | P68: =IFERROR(INDEX('Data Annex'!$K$1:$AS$6265,MATCH(P$44&"|"&$B68,'Data Annex'!$K$1:$K$6265,0),MATCH(P$45,'Data Annex'!$K$1:$AS$1,0)),"") -> 0.004 | Q68: =IFERROR(INDEX('Data Annex'!$K$1:$AS$6265,MATCH(Q$44&"|"&$B68,'Data Annex'!$K$1:$K$6265,0),MATCH(Q$45,'Data Annex'!$K$1:$AS$1,0)),"") -> 0 | R68: =IFERROR(INDEX('Data Annex'!$K$1:$AS$6265,MATCH(R$44&"|"&$B68,'Data Annex'!$K$1:$K$6265,0),MATCH(R$45,'Data Annex'!$K$1:$AS$1,0)),"") -> 19.654 | S68: =IFERROR(INDEX('Data Annex'!$K$1:$AS$6265,MATCH(S$44&"|"&$B68,'Data Annex'!$K$1:$K$6265,0),MATCH(S$45,'Data Annex'!$K$1:$AS$1,0)),"") -> 16.584 | U68: LT | W68: =IFERROR(INDEX('Data Annex'!$K$1:$AS$6265,MATCH(W$44&"|"&$B68,'Data Annex'!$K$1:$K$6265,0),MATCH(W$45,'Data Annex'!$K$1:$AS$1,0)),"") -> 0.011 | X68: =IFERROR(INDEX('Data Annex'!$K$1:$AS$6265,MATCH(X$44&"|"&$B68,'Data Annex'!$K$1:$K$6265,0),MATCH(X$45,'Data Annex'!$K$1:$AS$1,0)),"") -> 0.008 | Y68: =IFERROR(INDEX('Data Annex'!$K$1:$AS$6265,MATCH(Y$44&"|"&$B68,'Data Annex'!$K$1:$K$6265,0),MATCH(Y$45,'Data Annex'!$K$1:$AS$1,0)),"") ->  | Z68: =IFERROR(INDEX('Data Annex'!$K$1:$AS$6265,MATCH(Z$44&"|"&$B68,'Data Annex'!$K$1:$K$6265,0),MATCH(Z$45,'Data Annex'!$K$1:$AS$1,0)),"") ->  | AA68: =IFERROR(INDEX('Data Annex'!$K$1:$AS$6265,MATCH(AA$44&"|"&$B68,'Data Annex'!$K$1:$K$6265,0),MATCH(AA$45,'Data Annex'!$K$1:$AS$1,0)),"") ->  | AB68: =IFERROR(INDEX('Data Annex'!$K$1:$AS$6265,MATCH(AB$44&"|"&$B68,'Data Annex'!$K$1:$K$6265,0),MATCH(AB$45,'Data Annex'!$K$1:$AS$1,0)),"") -> 
A69: 20 | B69: LU | D69: LU | F69: =IFERROR(INDEX('Data Annex'!$K$1:$AS$6265,MATCH(F$44&"|"&$B69,'Data Annex'!$K$1:$K$6265,0),MATCH(F$45,'Data Annex'!$K$1:$AS$1,0)),"") -> 322.5698956 | G69: =IFERROR(INDEX('Data Annex'!$K$1:$AS$6265,MATCH(G$44&"|"&$B69,'Data Annex'!$K$1:$K$6265,0),MATCH(G$45,'Data Annex'!$K$1:$AS$1,0)),"") -> 314.5297479 | H69: =IFERROR(INDEX('Data Annex'!$K$1:$AS$6265,MATCH(H$44&"|"&$B69,'Data Annex'!$K$1:$K$6265,0),MATCH(H$45,'Data Annex'!$K$1:$AS$1,0)),"") -> 0 | I69: =IFERROR(INDEX('Data Annex'!$K$1:$AS$6265,MATCH(I$44&"|"&$B69,'Data Annex'!$K$1:$K$6265,0),MATCH(I$45,'Data Annex'!$K$1:$AS$1,0)),"") -> 0 | J69: =IFERROR(INDEX('Data Annex'!$K$1:$AS$6265,MATCH(J$44&"|"&$B69,'Data Annex'!$K$1:$K$6265,0),MATCH(J$45,'Data Annex'!$K$1:$AS$1,0)),"") -> 0 | K69: =IFERROR(INDEX('Data Annex'!$K$1:$AS$6265,MATCH(K$44&"|"&$B69,'Data Annex'!$K$1:$K$6265,0),MATCH(K$45,'Data Annex'!$K$1:$AS$1,0)),"") -> 0 | L69: =IFERROR(INDEX('Data Annex'!$K$1:$AS$6265,MATCH(L$44&"|"&$B69,'Data Annex'!$K$1:$K$6265,0),MATCH(L$45,'Data Annex'!$K$1:$AS$1,0)),"") -> 0 | M69: =IFERROR(INDEX('Data Annex'!$K$1:$AS$6265,MATCH(M$44&"|"&$B69,'Data Annex'!$K$1:$K$6265,0),MATCH(M$45,'Data Annex'!$K$1:$AS$1,0)),"") -> 0.47993829 | N69: =IFERROR(INDEX('Data Annex'!$K$1:$AS$6265,MATCH(N$44&"|"&$B69,'Data Annex'!$K$1:$K$6265,0),MATCH(N$45,'Data Annex'!$K$1:$AS$1,0)),"") -> 0.003 | O69: =IFERROR(INDEX('Data Annex'!$K$1:$AS$6265,MATCH(O$44&"|"&$B69,'Data Annex'!$K$1:$K$6265,0),MATCH(O$45,'Data Annex'!$K$1:$AS$1,0)),"") -> 0.003 | P69: =IFERROR(INDEX('Data Annex'!$K$1:$AS$6265,MATCH(P$44&"|"&$B69,'Data Annex'!$K$1:$K$6265,0),MATCH(P$45,'Data Annex'!$K$1:$AS$1,0)),"") -> 0.001 | Q69: =IFERROR(INDEX('Data Annex'!$K$1:$AS$6265,MATCH(Q$44&"|"&$B69,'Data Annex'!$K$1:$K$6265,0),MATCH(Q$45,'Data Annex'!$K$1:$AS$1,0)),"") -> 0.001 | R69: =IFERROR(INDEX('Data Annex'!$K$1:$AS$6265,MATCH(R$44&"|"&$B69,'Data Annex'!$K$1:$K$6265,0),MATCH(R$45,'Data Annex'!$K$1:$AS$1,0)),"") -> 322.5658956 | S69: =IFERROR(INDEX('Data Annex'!$K$1:$AS$6265,MATCH(S$44&"|"&$B69,'Data Annex'!$K$1:$K$6265,0),MATCH(S$45,'Data Annex'!$K$1:$AS$1,0)),"") -> 314.0458096 | U69: LU | W69: =IFERROR(INDEX('Data Annex'!$K$1:$AS$6265,MATCH(W$44&"|"&$B69,'Data Annex'!$K$1:$K$6265,0),MATCH(W$45,'Data Annex'!$K$1:$AS$1,0)),"") -> 21.4342452 | X69: =IFERROR(INDEX('Data Annex'!$K$1:$AS$6265,MATCH(X$44&"|"&$B69,'Data Annex'!$K$1:$K$6265,0),MATCH(X$45,'Data Annex'!$K$1:$AS$1,0)),"") -> 19.59330109 | Y69: =IFERROR(INDEX('Data Annex'!$K$1:$AS$6265,MATCH(Y$44&"|"&$B69,'Data Annex'!$K$1:$K$6265,0),MATCH(Y$45,'Data Annex'!$K$1:$AS$1,0)),"") -> 3.54546977 | Z69: =IFERROR(INDEX('Data Annex'!$K$1:$AS$6265,MATCH(Z$44&"|"&$B69,'Data Annex'!$K$1:$K$6265,0),MATCH(Z$45,'Data Annex'!$K$1:$AS$1,0)),"") -> 3.48858331 | AA69: =IFERROR(INDEX('Data Annex'!$K$1:$AS$6265,MATCH(AA$44&"|"&$B69,'Data Annex'!$K$1:$K$6265,0),MATCH(AA$45,'Data Annex'!$K$1:$AS$1,0)),"") -> 0.181 | AB69: =IFERROR(INDEX('Data Annex'!$K$1:$AS$6265,MATCH(AB$44&"|"&$B69,'Data Annex'!$K$1:$K$6265,0),MATCH(AB$45,'Data Annex'!$K$1:$AS$1,0)),"") -> 0
A70: 21 | B70: LV | D70: LV | F70: =IFERROR(INDEX('Data Annex'!$K$1:$AS$6265,MATCH(F$44&"|"&$B70,'Data Annex'!$K$1:$K$6265,0),MATCH(F$45,'Data Annex'!$K$1:$AS$1,0)),"") -> 132.6818858 | G70: =IFERROR(INDEX('Data Annex'!$K$1:$AS$6265,MATCH(G$44&"|"&$B70,'Data Annex'!$K$1:$K$6265,0),MATCH(G$45,'Data Annex'!$K$1:$AS$1,0)),"") -> 125.1940079 | H70: =IFERROR(INDEX('Data Annex'!$K$1:$AS$6265,MATCH(H$44&"|"&$B70,'Data Annex'!$K$1:$K$6265,0),MATCH(H$45,'Data Annex'!$K$1:$AS$1,0)),"") ->  | I70: =IFERROR(INDEX('Data Annex'!$K$1:$AS$6265,MATCH(I$44&"|"&$B70,'Data Annex'!$K$1:$K$6265,0),MATCH(I$45,'Data Annex'!$K$1:$AS$1,0)),"") ->  | J70: =IFERROR(INDEX('Data Annex'!$K$1:$AS$6265,MATCH(J$44&"|"&$B70,'Data Annex'!$K$1:$K$6265,0),MATCH(J$45,'Data Annex'!$K$1:$AS$1,0)),"") -> 3.182089 | K70: =IFERROR(INDEX('Data Annex'!$K$1:$AS$6265,MATCH(K$44&"|"&$B70,'Data Annex'!$K$1:$K$6265,0),MATCH(K$45,'Data Annex'!$K$1:$AS$1,0)),"") -> 14.839742 | L70: =IFERROR(INDEX('Data Annex'!$K$1:$AS$6265,MATCH(L$44&"|"&$B70,'Data Annex'!$K$1:$K$6265,0),MATCH(L$45,'Data Annex'!$K$1:$AS$1,0)),"") -> 0.01137434 | M70: =IFERROR(INDEX('Data Annex'!$K$1:$AS$6265,MATCH(M$44&"|"&$B70,'Data Annex'!$K$1:$K$6265,0),MATCH(M$45,'Data Annex'!$K$1:$AS$1,0)),"") -> 0.012103 | N70: =IFERROR(INDEX('Data Annex'!$K$1:$AS$6265,MATCH(N$44&"|"&$B70,'Data Annex'!$K$1:$K$6265,0),MATCH(N$45,'Data Annex'!$K$1:$AS$1,0)),"") ->  | O70: =IFERROR(INDEX('Data Annex'!$K$1:$AS$6265,MATCH(O$44&"|"&$B70,'Data Annex'!$K$1:$K$6265,0),MATCH(O$45,'Data Annex'!$K$1:$AS$1,0)),"") ->  | P70: =IFERROR(INDEX('Data Annex'!$K$1:$AS$6265,MATCH(P$44&"|"&$B70,'Data Annex'!$K$1:$K$6265,0),MATCH(P$45,'Data Annex'!$K$1:$AS$1,0)),"") -> 0.04965672 | Q70: =IFERROR(INDEX('Data Annex'!$K$1:$AS$6265,MATCH(Q$44&"|"&$B70,'Data Annex'!$K$1:$K$6265,0),MATCH(Q$45,'Data Annex'!$K$1:$AS$1,0)),"") -> 0.02910546 | R70: =IFERROR(INDEX('Data Annex'!$K$1:$AS$6265,MATCH(R$44&"|"&$B70,'Data Annex'!$K$1:$K$6265,0),MATCH(R$45,'Data Annex'!$K$1:$AS$1,0)),"") -> 129.4387657 | S70: =IFERROR(INDEX('Data Annex'!$K$1:$AS$6265,MATCH(S$44&"|"&$B70,'Data Annex'!$K$1:$K$6265,0),MATCH(S$45,'Data Annex'!$K$1:$AS$1,0)),"") -> 110.3130575 | U70: LV | W70: =IFERROR(INDEX('Data Annex'!$K$1:$AS$6265,MATCH(W$44&"|"&$B70,'Data Annex'!$K$1:$K$6265,0),MATCH(W$45,'Data Annex'!$K$1:$AS$1,0)),"") -> 0.16038328 | X70: =IFERROR(INDEX('Data Annex'!$K$1:$AS$6265,MATCH(X$44&"|"&$B70,'Data Annex'!$K$1:$K$6265,0),MATCH(X$45,'Data Annex'!$K$1:$AS$1,0)),"") -> 0.15049369 | Y70: =IFERROR(INDEX('Data Annex'!$K$1:$AS$6265,MATCH(Y$44&"|"&$B70,'Data Annex'!$K$1:$K$6265,0),MATCH(Y$45,'Data Annex'!$K$1:$AS$1,0)),"") -> 0.11199888 | Z70: =IFERROR(INDEX('Data Annex'!$K$1:$AS$6265,MATCH(Z$44&"|"&$B70,'Data Annex'!$K$1:$K$6265,0),MATCH(Z$45,'Data Annex'!$K$1:$AS$1,0)),"") -> 0.08972865 | AA70: =IFERROR(INDEX('Data Annex'!$K$1:$AS$6265,MATCH(AA$44&"|"&$B70,'Data Annex'!$K$1:$K$6265,0),MATCH(AA$45,'Data Annex'!$K$1:$AS$1,0)),"") ->  | AB70: =IFERROR(INDEX('Data Annex'!$K$1:$AS$6265,MATCH(AB$44&"|"&$B70,'Data Annex'!$K$1:$K$6265,0),MATCH(AB$45,'Data Annex'!$K$1:$AS$1,0)),"") -> 
A71: 22 | B71: MT | D71: MT | F71: =IFERROR(INDEX('Data Annex'!$K$1:$AS$6265,MATCH(F$44&"|"&$B71,'Data Annex'!$K$1:$K$6265,0),MATCH(F$45,'Data Annex'!$K$1:$AS$1,0)),"") -> 9.38683812 | G71: =IFERROR(INDEX('Data Annex'!$K$1:$AS$6265,MATCH(G$44&"|"&$B71,'Data Annex'!$K$1:$K$6265,0),MATCH(G$45,'Data Annex'!$K$1:$AS$1,0)),"") -> 9.15800246 | H71: =IFERROR(INDEX('Data Annex'!$K$1:$AS$6265,MATCH(H$44&"|"&$B71,'Data Annex'!$K$1:$K$6265,0),MATCH(H$45,'Data Annex'!$K$1:$AS$1,0)),"") -> 0 | I71: =IFERROR(INDEX('Data Annex'!$K$1:$AS$6265,MATCH(I$44&"|"&$B71,'Data Annex'!$K$1:$K$6265,0),MATCH(I$45,'Data Annex'!$K$1:$AS$1,0)),"") -> 0 | J71: =IFERROR(INDEX('Data Annex'!$K$1:$AS$6265,MATCH(J$44&"|"&$B71,'Data Annex'!$K$1:$K$6265,0),MATCH(J$45,'Data Annex'!$K$1:$AS$1,0)),"") -> 0 | K71: =IFERROR(INDEX('Data Annex'!$K$1:$AS$6265,MATCH(K$44&"|"&$B71,'Data Annex'!$K$1:$K$6265,0),MATCH(K$45,'Data Annex'!$K$1:$AS$1,0)),"") -> 0 | L71: =IFERROR(INDEX('Data Annex'!$K$1:$AS$6265,MATCH(L$44&"|"&$B71,'Data Annex'!$K$1:$K$6265,0),MATCH(L$45,'Data Annex'!$K$1:$AS$1,0)),"") -> 0 | M71: =IFERROR(INDEX('Data Annex'!$K$1:$AS$6265,MATCH(M$44&"|"&$B71,'Data Annex'!$K$1:$K$6265,0),MATCH(M$45,'Data Annex'!$K$1:$AS$1,0)),"") -> 0 | N71: =IFERROR(INDEX('Data Annex'!$K$1:$AS$6265,MATCH(N$44&"|"&$B71,'Data Annex'!$K$1:$K$6265,0),MATCH(N$45,'Data Annex'!$K$1:$AS$1,0)),"") -> 0.165796 | O71: =IFERROR(INDEX('Data Annex'!$K$1:$AS$6265,MATCH(O$44&"|"&$B71,'Data Annex'!$K$1:$K$6265,0),MATCH(O$45,'Data Annex'!$K$1:$AS$1,0)),"") -> 2e-08 | P71: =IFERROR(INDEX('Data Annex'!$K$1:$AS$6265,MATCH(P$44&"|"&$B71,'Data Annex'!$K$1:$K$6265,0),MATCH(P$45,'Data Annex'!$K$1:$AS$1,0)),"") -> 0.00020732 | Q71: =IFERROR(INDEX('Data Annex'!$K$1:$AS$6265,MATCH(Q$44&"|"&$B71,'Data Annex'!$K$1:$K$6265,0),MATCH(Q$45,'Data Annex'!$K$1:$AS$1,0)),"") -> 0.00020732 | R71: =IFERROR(INDEX('Data Annex'!$K$1:$AS$6265,MATCH(R$44&"|"&$B71,'Data Annex'!$K$1:$K$6265,0),MATCH(R$45,'Data Annex'!$K$1:$AS$1,0)),"") -> 9.2208348 | S71: =IFERROR(INDEX('Data Annex'!$K$1:$AS$6265,MATCH(S$44&"|"&$B71,'Data Annex'!$K$1:$K$6265,0),MATCH(S$45,'Data Annex'!$K$1:$AS$1,0)),"") -> 9.15779512 | U71: MT | W71: =IFERROR(INDEX('Data Annex'!$K$1:$AS$6265,MATCH(W$44&"|"&$B71,'Data Annex'!$K$1:$K$6265,0),MATCH(W$45,'Data Annex'!$K$1:$AS$1,0)),"") -> 0.08984617 | X71: =IFERROR(INDEX('Data Annex'!$K$1:$AS$6265,MATCH(X$44&"|"&$B71,'Data Annex'!$K$1:$K$6265,0),MATCH(X$45,'Data Annex'!$K$1:$AS$1,0)),"") -> 0.07178834 | Y71: =IFERROR(INDEX('Data Annex'!$K$1:$AS$6265,MATCH(Y$44&"|"&$B71,'Data Annex'!$K$1:$K$6265,0),MATCH(Y$45,'Data Annex'!$K$1:$AS$1,0)),"") -> 0.001 | Z71: =IFERROR(INDEX('Data Annex'!$K$1:$AS$6265,MATCH(Z$44&"|"&$B71,'Data Annex'!$K$1:$K$6265,0),MATCH(Z$45,'Data Annex'!$K$1:$AS$1,0)),"") -> 0.001 | AA71: =IFERROR(INDEX('Data Annex'!$K$1:$AS$6265,MATCH(AA$44&"|"&$B71,'Data Annex'!$K$1:$K$6265,0),MATCH(AA$45,'Data Annex'!$K$1:$AS$1,0)),"") -> 1.15e-06 | AB71: =IFERROR(INDEX('Data Annex'!$K$1:$AS$6265,MATCH(AB$44&"|"&$B71,'Data Annex'!$K$1:$K$6265,0),MATCH(AB$45,'Data Annex'!$K$1:$AS$1,0)),"") -> 1.15e-06
A72: 23 | B72: NL | D72: NL | F72: =IFERROR(INDEX('Data Annex'!$K$1:$AS$6265,MATCH(F$44&"|"&$B72,'Data Annex'!$K$1:$K$6265,0),MATCH(F$45,'Data Annex'!$K$1:$AS$1,0)),"") -> 1357.206752 | G72: =IFERROR(INDEX('Data Annex'!$K$1:$AS$6265,MATCH(G$44&"|"&$B72,'Data Annex'!$K$1:$K$6265,0),MATCH(G$45,'Data Annex'!$K$1:$AS$1,0)),"") -> 2166.117355 | H72: =IFERROR(INDEX('Data Annex'!$K$1:$AS$6265,MATCH(H$44&"|"&$B72,'Data Annex'!$K$1:$K$6265,0),MATCH(H$45,'Data Annex'!$K$1:$AS$1,0)),"") ->  | I72: =IFERROR(INDEX('Data Annex'!$K$1:$AS$6265,MATCH(I$44&"|"&$B72,'Data Annex'!$K$1:$K$6265,0),MATCH(I$45,'Data Annex'!$K$1:$AS$1,0)),"") ->  | J72: =IFERROR(INDEX('Data Annex'!$K$1:$AS$6265,MATCH(J$44&"|"&$B72,'Data Annex'!$K$1:$K$6265,0),MATCH(J$45,'Data Annex'!$K$1:$AS$1,0)),"") -> 0.673 | K72: =IFERROR(INDEX('Data Annex'!$K$1:$AS$6265,MATCH(K$44&"|"&$B72,'Data Annex'!$K$1:$K$6265,0),MATCH(K$45,'Data Annex'!$K$1:$AS$1,0)),"") -> 2.081 | L72: =IFERROR(INDEX('Data Annex'!$K$1:$AS$6265,MATCH(L$44&"|"&$B72,'Data Annex'!$K$1:$K$6265,0),MATCH(L$45,'Data Annex'!$K$1:$AS$1,0)),"") -> 456.8970647 | M72: =IFERROR(INDEX('Data Annex'!$K$1:$AS$6265,MATCH(M$44&"|"&$B72,'Data Annex'!$K$1:$K$6265,0),MATCH(M$45,'Data Annex'!$K$1:$AS$1,0)),"") -> 264.7286167 | N72: =IFERROR(INDEX('Data Annex'!$K$1:$AS$6265,MATCH(N$44&"|"&$B72,'Data Annex'!$K$1:$K$6265,0),MATCH(N$45,'Data Annex'!$K$1:$AS$1,0)),"") -> 22.835 | O72: =IFERROR(INDEX('Data Annex'!$K$1:$AS$6265,MATCH(O$44&"|"&$B72,'Data Annex'!$K$1:$K$6265,0),MATCH(O$45,'Data Annex'!$K$1:$AS$1,0)),"") -> 20.392 | P72: =IFERROR(INDEX('Data Annex'!$K$1:$AS$6265,MATCH(P$44&"|"&$B72,'Data Annex'!$K$1:$K$6265,0),MATCH(P$45,'Data Annex'!$K$1:$AS$1,0)),"") -> 757.232394 | Q72: =IFERROR(INDEX('Data Annex'!$K$1:$AS$6265,MATCH(Q$44&"|"&$B72,'Data Annex'!$K$1:$K$6265,0),MATCH(Q$45,'Data Annex'!$K$1:$AS$1,0)),"") -> 1767.803745 | R72: =IFERROR(INDEX('Data Annex'!$K$1:$AS$6265,MATCH(R$44&"|"&$B72,'Data Annex'!$K$1:$K$6265,0),MATCH(R$45,'Data Annex'!$K$1:$AS$1,0)),"") -> 119.569293 | S72: =IFERROR(INDEX('Data Annex'!$K$1:$AS$6265,MATCH(S$44&"|"&$B72,'Data Annex'!$K$1:$K$6265,0),MATCH(S$45,'Data Annex'!$K$1:$AS$1,0)),"") -> 111.111994 | U72: NL | W72: =IFERROR(INDEX('Data Annex'!$K$1:$AS$6265,MATCH(W$44&"|"&$B72,'Data Annex'!$K$1:$K$6265,0),MATCH(W$45,'Data Annex'!$K$1:$AS$1,0)),"") -> 1831.909554 | X72: =IFERROR(INDEX('Data Annex'!$K$1:$AS$6265,MATCH(X$44&"|"&$B72,'Data Annex'!$K$1:$K$6265,0),MATCH(X$45,'Data Annex'!$K$1:$AS$1,0)),"") -> 1734.540366 | Y72: =IFERROR(INDEX('Data Annex'!$K$1:$AS$6265,MATCH(Y$44&"|"&$B72,'Data Annex'!$K$1:$K$6265,0),MATCH(Y$45,'Data Annex'!$K$1:$AS$1,0)),"") -> 54.917 | Z72: =IFERROR(INDEX('Data Annex'!$K$1:$AS$6265,MATCH(Z$44&"|"&$B72,'Data Annex'!$K$1:$K$6265,0),MATCH(Z$45,'Data Annex'!$K$1:$AS$1,0)),"") -> 53.108532 | AA72: =IFERROR(INDEX('Data Annex'!$K$1:$AS$6265,MATCH(AA$44&"|"&$B72,'Data Annex'!$K$1:$K$6265,0),MATCH(AA$45,'Data Annex'!$K$1:$AS$1,0)),"") -> 649.9952542 | AB72: =IFERROR(INDEX('Data Annex'!$K$1:$AS$6265,MATCH(AB$44&"|"&$B72,'Data Annex'!$K$1:$K$6265,0),MATCH(AB$45,'Data Annex'!$K$1:$AS$1,0)),"") -> 380.3011029
A73: 24 | B73: NO | D73: NO* | F73: =IFERROR(INDEX('Data Annex'!$K$1:$AS$6265,MATCH(F$44&"|"&$B73,'Data Annex'!$K$1:$K$6265,0),MATCH(F$45,'Data Annex'!$K$1:$AS$1,0)),"") -> n.a. | G73: =IFERROR(INDEX('Data Annex'!$K$1:$AS$6265,MATCH(G$44&"|"&$B73,'Data Annex'!$K$1:$K$6265,0),MATCH(G$45,'Data Annex'!$K$1:$AS$1,0)),"") -> n.a. | H73: n.a. | I73: n.a. | J73: =IFERROR(INDEX('Data Annex'!$K$1:$AS$6265,MATCH(J$44&"|"&$B73,'Data Annex'!$K$1:$K$6265,0),MATCH(J$45,'Data Annex'!$K$1:$AS$1,0)),"") -> n.a. | K73: =IFERROR(INDEX('Data Annex'!$K$1:$AS$6265,MATCH(K$44&"|"&$B73,'Data Annex'!$K$1:$K$6265,0),MATCH(K$45,'Data Annex'!$K$1:$AS$1,0)),"") -> n.a. | L73: =IFERROR(INDEX('Data Annex'!$K$1:$AS$6265,MATCH(L$44&"|"&$B73,'Data Annex'!$K$1:$K$6265,0),MATCH(L$45,'Data Annex'!$K$1:$AS$1,0)),"") -> n.a. | M73: =IFERROR(INDEX('Data Annex'!$K$1:$AS$6265,MATCH(M$44&"|"&$B73,'Data Annex'!$K$1:$K$6265,0),MATCH(M$45,'Data Annex'!$K$1:$AS$1,0)),"") -> n.a. | N73: =IFERROR(INDEX('Data Annex'!$K$1:$AS$6265,MATCH(N$44&"|"&$B73,'Data Annex'!$K$1:$K$6265,0),MATCH(N$45,'Data Annex'!$K$1:$AS$1,0)),"") -> n.a. | O73: =IFERROR(INDEX('Data Annex'!$K$1:$AS$6265,MATCH(O$44&"|"&$B73,'Data Annex'!$K$1:$K$6265,0),MATCH(O$45,'Data Annex'!$K$1:$AS$1,0)),"") -> n.a. | P73: =IFERROR(INDEX('Data Annex'!$K$1:$AS$6265,MATCH(P$44&"|"&$B73,'Data Annex'!$K$1:$K$6265,0),MATCH(P$45,'Data Annex'!$K$1:$AS$1,0)),"") -> n.a. | Q73: =IFERROR(INDEX('Data Annex'!$K$1:$AS$6265,MATCH(Q$44&"|"&$B73,'Data Annex'!$K$1:$K$6265,0),MATCH(Q$45,'Data Annex'!$K$1:$AS$1,0)),"") -> n.a. | R73: =IFERROR(INDEX('Data Annex'!$K$1:$AS$6265,MATCH(R$44&"|"&$B73,'Data Annex'!$K$1:$K$6265,0),MATCH(R$45,'Data Annex'!$K$1:$AS$1,0)),"") -> n.a. | S73: =IFERROR(INDEX('Data Annex'!$K$1:$AS$6265,MATCH(S$44&"|"&$B73,'Data Annex'!$K$1:$K$6265,0),MATCH(S$45,'Data Annex'!$K$1:$AS$1,0)),"") -> n.a. | U73: NO* | W73: =IFERROR(INDEX('Data Annex'!$K$1:$AS$6265,MATCH(W$44&"|"&$B73,'Data Annex'!$K$1:$K$6265,0),MATCH(W$45,'Data Annex'!$K$1:$AS$1,0)),"") -> n.a. | X73: =IFERROR(INDEX('Data Annex'!$K$1:$AS$6265,MATCH(X$44&"|"&$B73,'Data Annex'!$K$1:$K$6265,0),MATCH(X$45,'Data Annex'!$K$1:$AS$1,0)),"") -> n.a. | Y73: n.a. | Z73: n.a. | AA73: n.a. | AB73: n.a.
A74: 25 | B74: PL | D74: =B74 -> PL | F74: =IFERROR(INDEX('Data Annex'!$K$1:$AS$6265,MATCH(F$44&"|"&$B74,'Data Annex'!$K$1:$K$6265,0),MATCH(F$45,'Data Annex'!$K$1:$AS$1,0)),"") ->  | G74: =IFERROR(INDEX('Data Annex'!$K$1:$AS$6265,MATCH(G$44&"|"&$B74,'Data Annex'!$K$1:$K$6265,0),MATCH(G$45,'Data Annex'!$K$1:$AS$1,0)),"") ->  | H74: =IFERROR(INDEX('Data Annex'!$K$1:$AS$6265,MATCH(H$44&"|"&$B74,'Data Annex'!$K$1:$K$6265,0),MATCH(H$45,'Data Annex'!$K$1:$AS$1,0)),"") ->  | I74: =IFERROR(INDEX('Data Annex'!$K$1:$AS$6265,MATCH(I$44&"|"&$B74,'Data Annex'!$K$1:$K$6265,0),MATCH(I$45,'Data Annex'!$K$1:$AS$1,0)),"") ->  | J74: =IFERROR(INDEX('Data Annex'!$K$1:$AS$6265,MATCH(J$44&"|"&$B74,'Data Annex'!$K$1:$K$6265,0),MATCH(J$45,'Data Annex'!$K$1:$AS$1,0)),"") ->  | K74: =IFERROR(INDEX('Data Annex'!$K$1:$AS$6265,MATCH(K$44&"|"&$B74,'Data Annex'!$K$1:$K$6265,0),MATCH(K$45,'Data Annex'!$K$1:$AS$1,0)),"") ->  | L74: =IFERROR(INDEX('Data Annex'!$K$1:$AS$6265,MATCH(L$44&"|"&$B74,'Data Annex'!$K$1:$K$6265,0),MATCH(L$45,'Data Annex'!$K$1:$AS$1,0)),"") ->  | M74: =IFERROR(INDEX('Data Annex'!$K$1:$AS$6265,MATCH(M$44&"|"&$B74,'Data Annex'!$K$1:$K$6265,0),MATCH(M$45,'Data Annex'!$K$1:$AS$1,0)),"") ->  | N74: =IFERROR(INDEX('Data Annex'!$K$1:$AS$6265,MATCH(N$44&"|"&$B74,'Data Annex'!$K$1:$K$6265,0),MATCH(N$45,'Data Annex'!$K$1:$AS$1,0)),"") ->  | O74: =IFERROR(INDEX('Data Annex'!$K$1:$AS$6265,MATCH(O$44&"|"&$B74,'Data Annex'!$K$1:$K$6265,0),MATCH(O$45,'Data Annex'!$K$1:$AS$1,0)),"") ->  | P74: =IFERROR(INDEX('Data Annex'!$K$1:$AS$6265,MATCH(P$44&"|"&$B74,'Data Annex'!$K$1:$K$6265,0),MATCH(P$45,'Data Annex'!$K$1:$AS$1,0)),"") ->  | Q74: =IFERROR(INDEX('Data Annex'!$K$1:$AS$6265,MATCH(Q$44&"|"&$B74,'Data Annex'!$K$1:$K$6265,0),MATCH(Q$45,'Data Annex'!$K$1:$AS$1,0)),"") ->  | R74: =IFERROR(INDEX('Data Annex'!$K$1:$AS$6265,MATCH(R$44&"|"&$B74,'Data Annex'!$K$1:$K$6265,0),MATCH(R$45,'Data Annex'!$K$1:$AS$1,0)),"") ->  | S74: =IFERROR(INDEX('Data Annex'!$K$1:$AS$6265,MATCH(S$44&"|"&$B74,'Data Annex'!$K$1:$K$6265,0),MATCH(S$45,'Data Annex'!$K$1:$AS$1,0)),"") ->  | U74: PL | W74: =IFERROR(INDEX('Data Annex'!$K$1:$AS$6265,MATCH(W$44&"|"&$B74,'Data Annex'!$K$1:$K$6265,0),MATCH(W$45,'Data Annex'!$K$1:$AS$1,0)),"") ->  | X74: =IFERROR(INDEX('Data Annex'!$K$1:$AS$6265,MATCH(X$44&"|"&$B74,'Data Annex'!$K$1:$K$6265,0),MATCH(X$45,'Data Annex'!$K$1:$AS$1,0)),"") ->  | Y74: =IFERROR(INDEX('Data Annex'!$K$1:$AS$6265,MATCH(Y$44&"|"&$B74,'Data Annex'!$K$1:$K$6265,0),MATCH(Y$45,'Data Annex'!$K$1:$AS$1,0)),"") ->  | Z74: =IFERROR(INDEX('Data Annex'!$K$1:$AS$6265,MATCH(Z$44&"|"&$B74,'Data Annex'!$K$1:$K$6265,0),MATCH(Z$45,'Data Annex'!$K$1:$AS$1,0)),"") ->  | AA74: =IFERROR(INDEX('Data Annex'!$K$1:$AS$6265,MATCH(AA$44&"|"&$B74,'Data Annex'!$K$1:$K$6265,0),MATCH(AA$45,'Data Annex'!$K$1:$AS$1,0)),"") ->  | AB74: =IFERROR(INDEX('Data Annex'!$K$1:$AS$6265,MATCH(AB$44&"|"&$B74,'Data Annex'!$K$1:$K$6265,0),MATCH(AB$45,'Data Annex'!$K$1:$AS$1,0)),"") -> 
A75: 26 | B75: PT | D75: PT | F75: =IFERROR(INDEX('Data Annex'!$K$1:$AS$6265,MATCH(F$44&"|"&$B75,'Data Annex'!$K$1:$K$6265,0),MATCH(F$45,'Data Annex'!$K$1:$AS$1,0)),"") -> 105.9202982 | G75: =IFERROR(INDEX('Data Annex'!$K$1:$AS$6265,MATCH(G$44&"|"&$B75,'Data Annex'!$K$1:$K$6265,0),MATCH(G$45,'Data Annex'!$K$1:$AS$1,0)),"") -> 118.9758969 | H75: =IFERROR(INDEX('Data Annex'!$K$1:$AS$6265,MATCH(H$44&"|"&$B75,'Data Annex'!$K$1:$K$6265,0),MATCH(H$45,'Data Annex'!$K$1:$AS$1,0)),"") ->  | I75: =IFERROR(INDEX('Data Annex'!$K$1:$AS$6265,MATCH(I$44&"|"&$B75,'Data Annex'!$K$1:$K$6265,0),MATCH(I$45,'Data Annex'!$K$1:$AS$1,0)),"") ->  | J75: =IFERROR(INDEX('Data Annex'!$K$1:$AS$6265,MATCH(J$44&"|"&$B75,'Data Annex'!$K$1:$K$6265,0),MATCH(J$45,'Data Annex'!$K$1:$AS$1,0)),"") -> 0.42567649 | K75: =IFERROR(INDEX('Data Annex'!$K$1:$AS$6265,MATCH(K$44&"|"&$B75,'Data Annex'!$K$1:$K$6265,0),MATCH(K$45,'Data Annex'!$K$1:$AS$1,0)),"") -> 0.41088695 | L75: =IFERROR(INDEX('Data Annex'!$K$1:$AS$6265,MATCH(L$44&"|"&$B75,'Data Annex'!$K$1:$K$6265,0),MATCH(L$45,'Data Annex'!$K$1:$AS$1,0)),"") -> 0 | M75: =IFERROR(INDEX('Data Annex'!$K$1:$AS$6265,MATCH(M$44&"|"&$B75,'Data Annex'!$K$1:$K$6265,0),MATCH(M$45,'Data Annex'!$K$1:$AS$1,0)),"") -> 0 | N75: =IFERROR(INDEX('Data Annex'!$K$1:$AS$6265,MATCH(N$44&"|"&$B75,'Data Annex'!$K$1:$K$6265,0),MATCH(N$45,'Data Annex'!$K$1:$AS$1,0)),"") ->  | O75: =IFERROR(INDEX('Data Annex'!$K$1:$AS$6265,MATCH(O$44&"|"&$B75,'Data Annex'!$K$1:$K$6265,0),MATCH(O$45,'Data Annex'!$K$1:$AS$1,0)),"") ->  | P75: =IFERROR(INDEX('Data Annex'!$K$1:$AS$6265,MATCH(P$44&"|"&$B75,'Data Annex'!$K$1:$K$6265,0),MATCH(P$45,'Data Annex'!$K$1:$AS$1,0)),"") -> 0.4767745 | Q75: =IFERROR(INDEX('Data Annex'!$K$1:$AS$6265,MATCH(Q$44&"|"&$B75,'Data Annex'!$K$1:$K$6265,0),MATCH(Q$45,'Data Annex'!$K$1:$AS$1,0)),"") -> 0.37934994 | R75: =IFERROR(INDEX('Data Annex'!$K$1:$AS$6265,MATCH(R$44&"|"&$B75,'Data Annex'!$K$1:$K$6265,0),MATCH(R$45,'Data Annex'!$K$1:$AS$1,0)),"") -> 105.0178472 | S75: =IFERROR(INDEX('Data Annex'!$K$1:$AS$6265,MATCH(S$44&"|"&$B75,'Data Annex'!$K$1:$K$6265,0),MATCH(S$45,'Data Annex'!$K$1:$AS$1,0)),"") -> 118.18566 | U75: PT | W75: =IFERROR(INDEX('Data Annex'!$K$1:$AS$6265,MATCH(W$44&"|"&$B75,'Data Annex'!$K$1:$K$6265,0),MATCH(W$45,'Data Annex'!$K$1:$AS$1,0)),"") -> 0.22347182 | X75: =IFERROR(INDEX('Data Annex'!$K$1:$AS$6265,MATCH(X$44&"|"&$B75,'Data Annex'!$K$1:$K$6265,0),MATCH(X$45,'Data Annex'!$K$1:$AS$1,0)),"") -> 0.23180585 | Y75: =IFERROR(INDEX('Data Annex'!$K$1:$AS$6265,MATCH(Y$44&"|"&$B75,'Data Annex'!$K$1:$K$6265,0),MATCH(Y$45,'Data Annex'!$K$1:$AS$1,0)),"") ->  | Z75: =IFERROR(INDEX('Data Annex'!$K$1:$AS$6265,MATCH(Z$44&"|"&$B75,'Data Annex'!$K$1:$K$6265,0),MATCH(Z$45,'Data Annex'!$K$1:$AS$1,0)),"") ->  | AA75: =IFERROR(INDEX('Data Annex'!$K$1:$AS$6265,MATCH(AA$44&"|"&$B75,'Data Annex'!$K$1:$K$6265,0),MATCH(AA$45,'Data Annex'!$K$1:$AS$1,0)),"") -> 0.77345027 | AB75: =IFERROR(INDEX('Data Annex'!$K$1:$AS$6265,MATCH(AB$44&"|"&$B75,'Data Annex'!$K$1:$K$6265,0),MATCH(AB$45,'Data Annex'!$K$1:$AS$1,0)),"") -> 0.72704268
A76: 27 | B76: RO | D76: RO | F76: =IFERROR(INDEX('Data Annex'!$K$1:$AS$6265,MATCH(F$44&"|"&$B76,'Data Annex'!$K$1:$K$6265,0),MATCH(F$45,'Data Annex'!$K$1:$AS$1,0)),"") -> 1.617311174 | G76: =IFERROR(INDEX('Data Annex'!$K$1:$AS$6265,MATCH(G$44&"|"&$B76,'Data Annex'!$K$1:$K$6265,0),MATCH(G$45,'Data Annex'!$K$1:$AS$1,0)),"") -> 1.431954794 | H76: =IFERROR(INDEX('Data Annex'!$K$1:$AS$6265,MATCH(H$44&"|"&$B76,'Data Annex'!$K$1:$K$6265,0),MATCH(H$45,'Data Annex'!$K$1:$AS$1,0)),"") -> 0 | I76: =IFERROR(INDEX('Data Annex'!$K$1:$AS$6265,MATCH(I$44&"|"&$B76,'Data Annex'!$K$1:$K$6265,0),MATCH(I$45,'Data Annex'!$K$1:$AS$1,0)),"") -> 0 | J76: =IFERROR(INDEX('Data Annex'!$K$1:$AS$6265,MATCH(J$44&"|"&$B76,'Data Annex'!$K$1:$K$6265,0),MATCH(J$45,'Data Annex'!$K$1:$AS$1,0)),"") -> 0 | K76: =IFERROR(INDEX('Data Annex'!$K$1:$AS$6265,MATCH(K$44&"|"&$B76,'Data Annex'!$K$1:$K$6265,0),MATCH(K$45,'Data Annex'!$K$1:$AS$1,0)),"") -> 0 | L76: =IFERROR(INDEX('Data Annex'!$K$1:$AS$6265,MATCH(L$44&"|"&$B76,'Data Annex'!$K$1:$K$6265,0),MATCH(L$45,'Data Annex'!$K$1:$AS$1,0)),"") -> 0.1440838553 | M76: =IFERROR(INDEX('Data Annex'!$K$1:$AS$6265,MATCH(M$44&"|"&$B76,'Data Annex'!$K$1:$K$6265,0),MATCH(M$45,'Data Annex'!$K$1:$AS$1,0)),"") -> 0.03475244122 | N76: =IFERROR(INDEX('Data Annex'!$K$1:$AS$6265,MATCH(N$44&"|"&$B76,'Data Annex'!$K$1:$K$6265,0),MATCH(N$45,'Data Annex'!$K$1:$AS$1,0)),"") -> 0 | O76: =IFERROR(INDEX('Data Annex'!$K$1:$AS$6265,MATCH(O$44&"|"&$B76,'Data Annex'!$K$1:$K$6265,0),MATCH(O$45,'Data Annex'!$K$1:$AS$1,0)),"") -> 0 | P76: =IFERROR(INDEX('Data Annex'!$K$1:$AS$6265,MATCH(P$44&"|"&$B76,'Data Annex'!$K$1:$K$6265,0),MATCH(P$45,'Data Annex'!$K$1:$AS$1,0)),"") -> 0.01934996969 | Q76: =IFERROR(INDEX('Data Annex'!$K$1:$AS$6265,MATCH(Q$44&"|"&$B76,'Data Annex'!$K$1:$K$6265,0),MATCH(Q$45,'Data Annex'!$K$1:$AS$1,0)),"") -> 0.07309241251 | R76: =IFERROR(INDEX('Data Annex'!$K$1:$AS$6265,MATCH(R$44&"|"&$B76,'Data Annex'!$K$1:$K$6265,0),MATCH(R$45,'Data Annex'!$K$1:$AS$1,0)),"") -> 1.453877349 | S76: =IFERROR(INDEX('Data Annex'!$K$1:$AS$6265,MATCH(S$44&"|"&$B76,'Data Annex'!$K$1:$K$6265,0),MATCH(S$45,'Data Annex'!$K$1:$AS$1,0)),"") -> 1.324109941 | U76: RO | W76: =IFERROR(INDEX('Data Annex'!$K$1:$AS$6265,MATCH(W$44&"|"&$B76,'Data Annex'!$K$1:$K$6265,0),MATCH(W$45,'Data Annex'!$K$1:$AS$1,0)),"") -> 0.0006009294807 | X76: =IFERROR(INDEX('Data Annex'!$K$1:$AS$6265,MATCH(X$44&"|"&$B76,'Data Annex'!$K$1:$K$6265,0),MATCH(X$45,'Data Annex'!$K$1:$AS$1,0)),"") -> 0.001189778218 | Y76: =IFERROR(INDEX('Data Annex'!$K$1:$AS$6265,MATCH(Y$44&"|"&$B76,'Data Annex'!$K$1:$K$6265,0),MATCH(Y$45,'Data Annex'!$K$1:$AS$1,0)),"") ->  | Z76: =IFERROR(INDEX('Data Annex'!$K$1:$AS$6265,MATCH(Z$44&"|"&$B76,'Data Annex'!$K$1:$K$6265,0),MATCH(Z$45,'Data Annex'!$K$1:$AS$1,0)),"") ->  | AA76: =IFERROR(INDEX('Data Annex'!$K$1:$AS$6265,MATCH(AA$44&"|"&$B76,'Data Annex'!$K$1:$K$6265,0),MATCH(AA$45,'Data Annex'!$K$1:$AS$1,0)),"") ->  | AB76: =IFERROR(INDEX('Data Annex'!$K$1:$AS$6265,MATCH(AB$44&"|"&$B76,'Data Annex'!$K$1:$K$6265,0),MATCH(AB$45,'Data Annex'!$K$1:$AS$1,0)),"") -> 
A77: 28 | B77: SE | D77: SE | F77: =IFERROR(INDEX('Data Annex'!$K$1:$AS$6265,MATCH(F$44&"|"&$B77,'Data Annex'!$K$1:$K$6265,0),MATCH(F$45,'Data Annex'!$K$1:$AS$1,0)),"") -> 663.3711457 | G77: =IFERROR(INDEX('Data Annex'!$K$1:$AS$6265,MATCH(G$44&"|"&$B77,'Data Annex'!$K$1:$K$6265,0),MATCH(G$45,'Data Annex'!$K$1:$AS$1,0)),"") -> 985.0396457 | H77: =IFERROR(INDEX('Data Annex'!$K$1:$AS$6265,MATCH(H$44&"|"&$B77,'Data Annex'!$K$1:$K$6265,0),MATCH(H$45,'Data Annex'!$K$1:$AS$1,0)),"") ->  | I77: =IFERROR(INDEX('Data Annex'!$K$1:$AS$6265,MATCH(I$44&"|"&$B77,'Data Annex'!$K$1:$K$6265,0),MATCH(I$45,'Data Annex'!$K$1:$AS$1,0)),"") ->  | J77: =IFERROR(INDEX('Data Annex'!$K$1:$AS$6265,MATCH(J$44&"|"&$B77,'Data Annex'!$K$1:$K$6265,0),MATCH(J$45,'Data Annex'!$K$1:$AS$1,0)),"") -> 4.267372077 | K77: =IFERROR(INDEX('Data Annex'!$K$1:$AS$6265,MATCH(K$44&"|"&$B77,'Data Annex'!$K$1:$K$6265,0),MATCH(K$45,'Data Annex'!$K$1:$AS$1,0)),"") -> 16.04638725 | L77: =IFERROR(INDEX('Data Annex'!$K$1:$AS$6265,MATCH(L$44&"|"&$B77,'Data Annex'!$K$1:$K$6265,0),MATCH(L$45,'Data Annex'!$K$1:$AS$1,0)),"") -> 86.92117675 | M77: =IFERROR(INDEX('Data Annex'!$K$1:$AS$6265,MATCH(M$44&"|"&$B77,'Data Annex'!$K$1:$K$6265,0),MATCH(M$45,'Data Annex'!$K$1:$AS$1,0)),"") -> 63.04352375 | N77: =IFERROR(INDEX('Data Annex'!$K$1:$AS$6265,MATCH(N$44&"|"&$B77,'Data Annex'!$K$1:$K$6265,0),MATCH(N$45,'Data Annex'!$K$1:$AS$1,0)),"") -> 9.18519858 | O77: =IFERROR(INDEX('Data Annex'!$K$1:$AS$6265,MATCH(O$44&"|"&$B77,'Data Annex'!$K$1:$K$6265,0),MATCH(O$45,'Data Annex'!$K$1:$AS$1,0)),"") -> 3.828309181 | P77: =IFERROR(INDEX('Data Annex'!$K$1:$AS$6265,MATCH(P$44&"|"&$B77,'Data Annex'!$K$1:$K$6265,0),MATCH(P$45,'Data Annex'!$K$1:$AS$1,0)),"") -> 456.6894053 | Q77: =IFERROR(INDEX('Data Annex'!$K$1:$AS$6265,MATCH(Q$44&"|"&$B77,'Data Annex'!$K$1:$K$6265,0),MATCH(Q$45,'Data Annex'!$K$1:$AS$1,0)),"") -> 795.4232551 | R77: =IFERROR(INDEX('Data Annex'!$K$1:$AS$6265,MATCH(R$44&"|"&$B77,'Data Annex'!$K$1:$K$6265,0),MATCH(R$45,'Data Annex'!$K$1:$AS$1,0)),"") -> 106.3079931 | S77: =IFERROR(INDEX('Data Annex'!$K$1:$AS$6265,MATCH(S$44&"|"&$B77,'Data Annex'!$K$1:$K$6265,0),MATCH(S$45,'Data Annex'!$K$1:$AS$1,0)),"") -> 106.6981704 | U77: SE | W77: =IFERROR(INDEX('Data Annex'!$K$1:$AS$6265,MATCH(W$44&"|"&$B77,'Data Annex'!$K$1:$K$6265,0),MATCH(W$45,'Data Annex'!$K$1:$AS$1,0)),"") -> 78.12561545 | X77: =IFERROR(INDEX('Data Annex'!$K$1:$AS$6265,MATCH(X$44&"|"&$B77,'Data Annex'!$K$1:$K$6265,0),MATCH(X$45,'Data Annex'!$K$1:$AS$1,0)),"") -> 30.30014347 | Y77: =IFERROR(INDEX('Data Annex'!$K$1:$AS$6265,MATCH(Y$44&"|"&$B77,'Data Annex'!$K$1:$K$6265,0),MATCH(Y$45,'Data Annex'!$K$1:$AS$1,0)),"") -> 43.8076388 | Z77: =IFERROR(INDEX('Data Annex'!$K$1:$AS$6265,MATCH(Z$44&"|"&$B77,'Data Annex'!$K$1:$K$6265,0),MATCH(Z$45,'Data Annex'!$K$1:$AS$1,0)),"") -> 36.19280217 | AA77: =IFERROR(INDEX('Data Annex'!$K$1:$AS$6265,MATCH(AA$44&"|"&$B77,'Data Annex'!$K$1:$K$6265,0),MATCH(AA$45,'Data Annex'!$K$1:$AS$1,0)),"") -> 131.5522593 | AB77: =IFERROR(INDEX('Data Annex'!$K$1:$AS$6265,MATCH(AB$44&"|"&$B77,'Data Annex'!$K$1:$K$6265,0),MATCH(AB$45,'Data Annex'!$K$1:$AS$1,0)),"") -> 125.7201298
A78: 29 | B78: SI | D78: SI | F78: =IFERROR(INDEX('Data Annex'!$K$1:$AS$6265,MATCH(F$44&"|"&$B78,'Data Annex'!$K$1:$K$6265,0),MATCH(F$45,'Data Annex'!$K$1:$AS$1,0)),"") -> 40.109 | G78: =IFERROR(INDEX('Data Annex'!$K$1:$AS$6265,MATCH(G$44&"|"&$B78,'Data Annex'!$K$1:$K$6265,0),MATCH(G$45,'Data Annex'!$K$1:$AS$1,0)),"") -> 44.34604255 | H78: =IFERROR(INDEX('Data Annex'!$K$1:$AS$6265,MATCH(H$44&"|"&$B78,'Data Annex'!$K$1:$K$6265,0),MATCH(H$45,'Data Annex'!$K$1:$AS$1,0)),"") ->  | I78: =IFERROR(INDEX('Data Annex'!$K$1:$AS$6265,MATCH(I$44&"|"&$B78,'Data Annex'!$K$1:$K$6265,0),MATCH(I$45,'Data Annex'!$K$1:$AS$1,0)),"") ->  | J78: =IFERROR(INDEX('Data Annex'!$K$1:$AS$6265,MATCH(J$44&"|"&$B78,'Data Annex'!$K$1:$K$6265,0),MATCH(J$45,'Data Annex'!$K$1:$AS$1,0)),"") -> 0 | K78: =IFERROR(INDEX('Data Annex'!$K$1:$AS$6265,MATCH(K$44&"|"&$B78,'Data Annex'!$K$1:$K$6265,0),MATCH(K$45,'Data Annex'!$K$1:$AS$1,0)),"") -> 0.181 | L78: =IFERROR(INDEX('Data Annex'!$K$1:$AS$6265,MATCH(L$44&"|"&$B78,'Data Annex'!$K$1:$K$6265,0),MATCH(L$45,'Data Annex'!$K$1:$AS$1,0)),"") -> 0 | M78: =IFERROR(INDEX('Data Annex'!$K$1:$AS$6265,MATCH(M$44&"|"&$B78,'Data Annex'!$K$1:$K$6265,0),MATCH(M$45,'Data Annex'!$K$1:$AS$1,0)),"") -> 0.21673453 | N78: =IFERROR(INDEX('Data Annex'!$K$1:$AS$6265,MATCH(N$44&"|"&$B78,'Data Annex'!$K$1:$K$6265,0),MATCH(N$45,'Data Annex'!$K$1:$AS$1,0)),"") ->  | O78: =IFERROR(INDEX('Data Annex'!$K$1:$AS$6265,MATCH(O$44&"|"&$B78,'Data Annex'!$K$1:$K$6265,0),MATCH(O$45,'Data Annex'!$K$1:$AS$1,0)),"") ->  | P78: =IFERROR(INDEX('Data Annex'!$K$1:$AS$6265,MATCH(P$44&"|"&$B78,'Data Annex'!$K$1:$K$6265,0),MATCH(P$45,'Data Annex'!$K$1:$AS$1,0)),"") -> 0.013 | Q78: =IFERROR(INDEX('Data Annex'!$K$1:$AS$6265,MATCH(Q$44&"|"&$B78,'Data Annex'!$K$1:$K$6265,0),MATCH(Q$45,'Data Annex'!$K$1:$AS$1,0)),"") -> 0.09283955 | R78: =IFERROR(INDEX('Data Annex'!$K$1:$AS$6265,MATCH(R$44&"|"&$B78,'Data Annex'!$K$1:$K$6265,0),MATCH(R$45,'Data Annex'!$K$1:$AS$1,0)),"") -> 40.096 | S78: =IFERROR(INDEX('Data Annex'!$K$1:$AS$6265,MATCH(S$44&"|"&$B78,'Data Annex'!$K$1:$K$6265,0),MATCH(S$45,'Data Annex'!$K$1:$AS$1,0)),"") -> 43.85546847 | U78: SI | W78: =IFERROR(INDEX('Data Annex'!$K$1:$AS$6265,MATCH(W$44&"|"&$B78,'Data Annex'!$K$1:$K$6265,0),MATCH(W$45,'Data Annex'!$K$1:$AS$1,0)),"") -> 0.137 | X78: =IFERROR(INDEX('Data Annex'!$K$1:$AS$6265,MATCH(X$44&"|"&$B78,'Data Annex'!$K$1:$K$6265,0),MATCH(X$45,'Data Annex'!$K$1:$AS$1,0)),"") -> 1.65335807 | Y78: =IFERROR(INDEX('Data Annex'!$K$1:$AS$6265,MATCH(Y$44&"|"&$B78,'Data Annex'!$K$1:$K$6265,0),MATCH(Y$45,'Data Annex'!$K$1:$AS$1,0)),"") ->  | Z78: =IFERROR(INDEX('Data Annex'!$K$1:$AS$6265,MATCH(Z$44&"|"&$B78,'Data Annex'!$K$1:$K$6265,0),MATCH(Z$45,'Data Annex'!$K$1:$AS$1,0)),"") ->  | AA78: =IFERROR(INDEX('Data Annex'!$K$1:$AS$6265,MATCH(AA$44&"|"&$B78,'Data Annex'!$K$1:$K$6265,0),MATCH(AA$45,'Data Annex'!$K$1:$AS$1,0)),"") ->  | AB78: =IFERROR(INDEX('Data Annex'!$K$1:$AS$6265,MATCH(AB$44&"|"&$B78,'Data Annex'!$K$1:$K$6265,0),MATCH(AB$45,'Data Annex'!$K$1:$AS$1,0)),"") -> 
A79: 30 | B79: SK | D79: SK | F79: =IFERROR(INDEX('Data Annex'!$K$1:$AS$6265,MATCH(F$44&"|"&$B79,'Data Annex'!$K$1:$K$6265,0),MATCH(F$45,'Data Annex'!$K$1:$AS$1,0)),"") -> 2.873534 | G79: =IFERROR(INDEX('Data Annex'!$K$1:$AS$6265,MATCH(G$44&"|"&$B79,'Data Annex'!$K$1:$K$6265,0),MATCH(G$45,'Data Annex'!$K$1:$AS$1,0)),"") -> 2.655113 | H79: =IFERROR(INDEX('Data Annex'!$K$1:$AS$6265,MATCH(H$44&"|"&$B79,'Data Annex'!$K$1:$K$6265,0),MATCH(H$45,'Data Annex'!$K$1:$AS$1,0)),"") -> 0 | I79: =IFERROR(INDEX('Data Annex'!$K$1:$AS$6265,MATCH(I$44&"|"&$B79,'Data Annex'!$K$1:$K$6265,0),MATCH(I$45,'Data Annex'!$K$1:$AS$1,0)),"") -> 0 | J79: =IFERROR(INDEX('Data Annex'!$K$1:$AS$6265,MATCH(J$44&"|"&$B79,'Data Annex'!$K$1:$K$6265,0),MATCH(J$45,'Data Annex'!$K$1:$AS$1,0)),"") -> 0 | K79: =IFERROR(INDEX('Data Annex'!$K$1:$AS$6265,MATCH(K$44&"|"&$B79,'Data Annex'!$K$1:$K$6265,0),MATCH(K$45,'Data Annex'!$K$1:$AS$1,0)),"") -> 0 | L79: =IFERROR(INDEX('Data Annex'!$K$1:$AS$6265,MATCH(L$44&"|"&$B79,'Data Annex'!$K$1:$K$6265,0),MATCH(L$45,'Data Annex'!$K$1:$AS$1,0)),"") -> 0 | M79: =IFERROR(INDEX('Data Annex'!$K$1:$AS$6265,MATCH(M$44&"|"&$B79,'Data Annex'!$K$1:$K$6265,0),MATCH(M$45,'Data Annex'!$K$1:$AS$1,0)),"") -> 0 | N79: =IFERROR(INDEX('Data Annex'!$K$1:$AS$6265,MATCH(N$44&"|"&$B79,'Data Annex'!$K$1:$K$6265,0),MATCH(N$45,'Data Annex'!$K$1:$AS$1,0)),"") -> 0 | O79: =IFERROR(INDEX('Data Annex'!$K$1:$AS$6265,MATCH(O$44&"|"&$B79,'Data Annex'!$K$1:$K$6265,0),MATCH(O$45,'Data Annex'!$K$1:$AS$1,0)),"") -> 0 | P79: =IFERROR(INDEX('Data Annex'!$K$1:$AS$6265,MATCH(P$44&"|"&$B79,'Data Annex'!$K$1:$K$6265,0),MATCH(P$45,'Data Annex'!$K$1:$AS$1,0)),"") -> 0 | Q79: =IFERROR(INDEX('Data Annex'!$K$1:$AS$6265,MATCH(Q$44&"|"&$B79,'Data Annex'!$K$1:$K$6265,0),MATCH(Q$45,'Data Annex'!$K$1:$AS$1,0)),"") -> 0 | R79: =IFERROR(INDEX('Data Annex'!$K$1:$AS$6265,MATCH(R$44&"|"&$B79,'Data Annex'!$K$1:$K$6265,0),MATCH(R$45,'Data Annex'!$K$1:$AS$1,0)),"") -> 2.873534 | S79: =IFERROR(INDEX('Data Annex'!$K$1:$AS$6265,MATCH(S$44&"|"&$B79,'Data Annex'!$K$1:$K$6265,0),MATCH(S$45,'Data Annex'!$K$1:$AS$1,0)),"") -> 2.655113 | U79: SK | W79: =IFERROR(INDEX('Data Annex'!$K$1:$AS$6265,MATCH(W$44&"|"&$B79,'Data Annex'!$K$1:$K$6265,0),MATCH(W$45,'Data Annex'!$K$1:$AS$1,0)),"") -> 0.168489 | X79: =IFERROR(INDEX('Data Annex'!$K$1:$AS$6265,MATCH(X$44&"|"&$B79,'Data Annex'!$K$1:$K$6265,0),MATCH(X$45,'Data Annex'!$K$1:$AS$1,0)),"") -> 0.111351 | Y79: =IFERROR(INDEX('Data Annex'!$K$1:$AS$6265,MATCH(Y$44&"|"&$B79,'Data Annex'!$K$1:$K$6265,0),MATCH(Y$45,'Data Annex'!$K$1:$AS$1,0)),"") -> 0 | Z79: =IFERROR(INDEX('Data Annex'!$K$1:$AS$6265,MATCH(Z$44&"|"&$B79,'Data Annex'!$K$1:$K$6265,0),MATCH(Z$45,'Data Annex'!$K$1:$AS$1,0)),"") -> 0 | AA79: =IFERROR(INDEX('Data Annex'!$K$1:$AS$6265,MATCH(AA$44&"|"&$B79,'Data Annex'!$K$1:$K$6265,0),MATCH(AA$45,'Data Annex'!$K$1:$AS$1,0)),"") -> 0 | AB79: =IFERROR(INDEX('Data Annex'!$K$1:$AS$6265,MATCH(AB$44&"|"&$B79,'Data Annex'!$K$1:$K$6265,0),MATCH(AB$45,'Data Annex'!$K$1:$AS$1,0)),"") -> 0
A80: 99 | B80: EU | D80: EU/EEA | F80: =IFERROR(INDEX('Data Annex'!$K$1:$AS$6265,MATCH(F$44&"|"&$B80,'Data Annex'!$K$1:$K$6265,0),MATCH(F$45,'Data Annex'!$K$1:$AS$1,0)),"") -> 68557.12401 | G80: =IFERROR(INDEX('Data Annex'!$K$1:$AS$6265,MATCH(G$44&"|"&$B80,'Data Annex'!$K$1:$K$6265,0),MATCH(G$45,'Data Annex'!$K$1:$AS$1,0)),"") -> 73014.49434 | H80: =IFERROR(INDEX('Data Annex'!$K$1:$AS$6265,MATCH(H$44&"|"&$B80,'Data Annex'!$K$1:$K$6265,0),MATCH(H$45,'Data Annex'!$K$1:$AS$1,0)),"") -> 15290.77483 | I80: =IFERROR(INDEX('Data Annex'!$K$1:$AS$6265,MATCH(I$44&"|"&$B80,'Data Annex'!$K$1:$K$6265,0),MATCH(I$45,'Data Annex'!$K$1:$AS$1,0)),"") -> 10974.06582 | J80: =IFERROR(INDEX('Data Annex'!$K$1:$AS$6265,MATCH(J$44&"|"&$B80,'Data Annex'!$K$1:$K$6265,0),MATCH(J$45,'Data Annex'!$K$1:$AS$1,0)),"") -> 1548.860776 | K80: =IFERROR(INDEX('Data Annex'!$K$1:$AS$6265,MATCH(K$44&"|"&$B80,'Data Annex'!$K$1:$K$6265,0),MATCH(K$45,'Data Annex'!$K$1:$AS$1,0)),"") -> 539.0943738 | L80: =IFERROR(INDEX('Data Annex'!$K$1:$AS$6265,MATCH(L$44&"|"&$B80,'Data Annex'!$K$1:$K$6265,0),MATCH(L$45,'Data Annex'!$K$1:$AS$1,0)),"") -> 4176.356989 | M80: =IFERROR(INDEX('Data Annex'!$K$1:$AS$6265,MATCH(M$44&"|"&$B80,'Data Annex'!$K$1:$K$6265,0),MATCH(M$45,'Data Annex'!$K$1:$AS$1,0)),"") -> 3278.60566 | N80: =IFERROR(INDEX('Data Annex'!$K$1:$AS$6265,MATCH(N$44&"|"&$B80,'Data Annex'!$K$1:$K$6265,0),MATCH(N$45,'Data Annex'!$K$1:$AS$1,0)),"") -> 2592.260841 | O80: =IFERROR(INDEX('Data Annex'!$K$1:$AS$6265,MATCH(O$44&"|"&$B80,'Data Annex'!$K$1:$K$6265,0),MATCH(O$45,'Data Annex'!$K$1:$AS$1,0)),"") -> 5445.766499 | P80: =IFERROR(INDEX('Data Annex'!$K$1:$AS$6265,MATCH(P$44&"|"&$B80,'Data Annex'!$K$1:$K$6265,0),MATCH(P$45,'Data Annex'!$K$1:$AS$1,0)),"") -> 23792.26393 | Q80: =IFERROR(INDEX('Data Annex'!$K$1:$AS$6265,MATCH(Q$44&"|"&$B80,'Data Annex'!$K$1:$K$6265,0),MATCH(Q$45,'Data Annex'!$K$1:$AS$1,0)),"") -> 32245.79659 | R80: =IFERROR(INDEX('Data Annex'!$K$1:$AS$6265,MATCH(R$44&"|"&$B80,'Data Annex'!$K$1:$K$6265,0),MATCH(R$45,'Data Annex'!$K$1:$AS$1,0)),"") -> 21156.60664 | S80: =IFERROR(INDEX('Data Annex'!$K$1:$AS$6265,MATCH(S$44&"|"&$B80,'Data Annex'!$K$1:$K$6265,0),MATCH(S$45,'Data Annex'!$K$1:$AS$1,0)),"") -> 20531.16539 | U80: EU | W80: =IFERROR(INDEX('Data Annex'!$K$1:$AS$6265,MATCH(W$44&"|"&$B80,'Data Annex'!$K$1:$K$6265,0),MATCH(W$45,'Data Annex'!$K$1:$AS$1,0)),"") -> 21180.48501 | X80: =IFERROR(INDEX('Data Annex'!$K$1:$AS$6265,MATCH(X$44&"|"&$B80,'Data Annex'!$K$1:$K$6265,0),MATCH(X$45,'Data Annex'!$K$1:$AS$1,0)),"") -> 19489.69758 | Y80: =IFERROR(INDEX('Data Annex'!$K$1:$AS$6265,MATCH(Y$44&"|"&$B80,'Data Annex'!$K$1:$K$6265,0),MATCH(Y$45,'Data Annex'!$K$1:$AS$1,0)),"") -> 7650.201696 | Z80: =IFERROR(INDEX('Data Annex'!$K$1:$AS$6265,MATCH(Z$44&"|"&$B80,'Data Annex'!$K$1:$K$6265,0),MATCH(Z$45,'Data Annex'!$K$1:$AS$1,0)),"") -> 6234.293536 | AA80: =IFERROR(INDEX('Data Annex'!$K$1:$AS$6265,MATCH(AA$44&"|"&$B80,'Data Annex'!$K$1:$K$6265,0),MATCH(AA$45,'Data Annex'!$K$1:$AS$1,0)),"") -> 10915.10995 | AB80: =IFERROR(INDEX('Data Annex'!$K$1:$AS$6265,MATCH(AB$44&"|"&$B80,'Data Annex'!$K$1:$K$6265,0),MATCH(AB$45,'Data Annex'!$K$1:$AS$1,0)),"") -> 8995.955419
D82: Individual country data includes subsidiaries, which are excluded from EU aggregate. For example, at country level the subsidiary in country X of a bank domiciled in country Y is included both in data for countries X and Y (for the latter as part of the consolidated entity). In the EU aggregate, only the consolidated entity domiciled in country Y is considered. The sample of banks is unbalanced and reviewed annually. Being an unbalanced sample, the number of reporting banks per country can display minor variations between quarters, which might accordingly affect quarterly changes in absolute and relative figures. As of Q1 2020 onwards UK banks are removed from the EU/EEA aggregate and subsidiaries of UK banks in EU member states are used instead.
D83: * Norwegian banks have not implemented yet the reporting framework based on CRR2/CRD5. Therefore, Norwegian figures are included in the EBA Risk dashboard only until March 2021.
D84: * To ensure confidentiality, figures by country are only disclosed if there are at least 3 institutions potentially reporting data, unless institutions provide explicit consent for the publication of country aggregates with less than 3 institutions.

Sheet UA Exposures (hidden)
F1: T53_1 | G1: T53_1 | H1: T53_2 | I1: T53_2 | J1: T53_3 | K1: T53_3 | L1: T53_4 | M1: T53_4 | N1: T53_5 | O1: T53_5 | P1: T53_6 | Q1: T53_6 | R1: T53_7 | S1: T53_7 | T1: T53_8 | U1: T53_8
A2: ='Reference Dates'!$C$8 -> 202203 | F2: =TEXT(F11,"YYYYMM")+0 -> 202112 | G2: 202203 | H2: 202112 | I2: 202203 | J2: 202112 | K2: 202203 | L2: =TEXT(J11,"YYYYMM")+0 -> 202112 | M2: =TEXT(K11,"YYYYMM")+0 -> 202203 | N2: =TEXT(J11,"YYYYMM")+0 -> 202112 | O2: =TEXT(K11,"YYYYMM")+0 -> 202203 | P2: =TEXT(L11,"YYYYMM")+0 -> 202112 | Q2: 202203 | R2: 202112 | S2: 202203 | T2: 202112 | U2: 202203
A3: =DATE(LEFT(A2,4),RIGHT(A2,2),1) -> 2022-03-01 | D3: Statistical Annex
D4: Exposures to Ukrainian counterparts
B7: CH_1 | D7: Breakdown of exposures towards Ukrainian counterparts
D9: (million EUR) | F9: Exposures towards Ukrainian counterparts | H9: Cash balances at central banks and other demand deposits | J9: Debt securities | L9: of which: | N9: Loans and advances | P9: of which:
L10: Central banks and general governments | P10: Credit institutions and other financial corporations | R10: Non-financial corporations | T10: Households
F11: =EOMONTH($A$3,-3) -> 2021-12-31 | G11: =$A$3 -> 2022-03-01 | H11: =EOMONTH($A$3,-3) -> 2021-12-31 | I11: =$A$3 -> 2022-03-01 | J11: =EOMONTH($A$3,-3) -> 2021-12-31 | K11: =$A$3 -> 2022-03-01 | L11: =EOMONTH($A$3,-3) -> 2021-12-31 | M11: =$A$3 -> 2022-03-01 | N11: =EOMONTH($A$3,-3) -> 2021-12-31 | O11: =$A$3 -> 2022-03-01 | P11: =EOMONTH($A$3,-3) -> 2021-12-31 | Q11: =$A$3 -> 2022-03-01 | R11: =EOMONTH($A$3,-3) -> 2021-12-31 | S11: =$A$3 -> 2022-03-01 | T11: =EOMONTH($A$3,-3) -> 2021-12-31 | U11: =$A$3 -> 2022-03-01
A12: 1 | B12: AT | D12: =B12 -> AT | F12: =IFERROR(INDEX('Data Annex'!$K$1:$AS$6265,MATCH(F$1&"|"&$B12,'Data Annex'!$K$1:$K$6265,0),MATCH(F$2,'Data Annex'!$K$1:$AS$1,0)),"") -> 3708.47476 | G12: =IFERROR(INDEX('Data Annex'!$K$1:$AS$6265,MATCH(G$1&"|"&$B12,'Data Annex'!$K$1:$K$6265,0),MATCH(G$2,'Data Annex'!$K$1:$AS$1,0)),"") -> 3787.064273 | H12: =IFERROR(INDEX('Data Annex'!$K$1:$AS$6265,MATCH(H$1&"|"&$B12,'Data Annex'!$K$1:$K$6265,0),MATCH(H$2,'Data Annex'!$K$1:$AS$1,0)),"") -> 115.1175839 | I12: =IFERROR(INDEX('Data Annex'!$K$1:$AS$6265,MATCH(I$1&"|"&$B12,'Data Annex'!$K$1:$K$6265,0),MATCH(I$2,'Data Annex'!$K$1:$AS$1,0)),"") -> 81.18839821 | J12: =IFERROR(INDEX('Data Annex'!$K$1:$AS$6265,MATCH(J$1&"|"&$B12,'Data Annex'!$K$1:$K$6265,0),MATCH(J$2,'Data Annex'!$K$1:$AS$1,0)),"") -> 520.199601 | K12: =IFERROR(INDEX('Data Annex'!$K$1:$AS$6265,MATCH(K$1&"|"&$B12,'Data Annex'!$K$1:$K$6265,0),MATCH(K$2,'Data Annex'!$K$1:$AS$1,0)),"") -> 481.3423811 | L12: =IFERROR(INDEX('Data Annex'!$K$1:$AS$6265,MATCH(L$1&"|"&$B12,'Data Annex'!$K$1:$K$6265,0),MATCH(L$2,'Data Annex'!$K$1:$AS$1,0)),"") -> 520.199601 | M12: =IFERROR(INDEX('Data Annex'!$K$1:$AS$6265,MATCH(M$1&"|"&$B12,'Data Annex'!$K$1:$K$6265,0),MATCH(M$2,'Data Annex'!$K$1:$AS$1,0)),"") -> 481.3423811 | N12: =IFERROR(INDEX('Data Annex'!$K$1:$AS$6265,MATCH(N$1&"|"&$B12,'Data Annex'!$K$1:$K$6265,0),MATCH(N$2,'Data Annex'!$K$1:$AS$1,0)),"") -> 3073.028849 | O12: =IFERROR(INDEX('Data Annex'!$K$1:$AS$6265,MATCH(O$1&"|"&$B12,'Data Annex'!$K$1:$K$6265,0),MATCH(O$2,'Data Annex'!$K$1:$AS$1,0)),"") -> 3224.415574 | P12: =IFERROR(INDEX('Data Annex'!$K$1:$AS$6265,MATCH(P$1&"|"&$B12,'Data Annex'!$K$1:$K$6265,0),MATCH(P$2,'Data Annex'!$K$1:$AS$1,0)),"") -> 101.6805095 | Q12: =IFERROR(INDEX('Data Annex'!$K$1:$AS$6265,MATCH(Q$1&"|"&$B12,'Data Annex'!$K$1:$K$6265,0),MATCH(Q$2,'Data Annex'!$K$1:$AS$1,0)),"") -> 87.47133313 | R12: =IFERROR(INDEX('Data Annex'!$K$1:$AS$6265,MATCH(R$1&"|"&$B12,'Data Annex'!$K$1:$K$6265,0),MATCH(R$2,'Data Annex'!$K$1:$AS$1,0)),"") -> 2294.225557 | S12: =IFERROR(INDEX('Data Annex'!$K$1:$AS$6265,MATCH(S$1&"|"&$B12,'Data Annex'!$K$1:$K$6265,0),MATCH(S$2,'Data Annex'!$K$1:$AS$1,0)),"") -> 2369.815076 | T12: =IFERROR(INDEX('Data Annex'!$K$1:$AS$6265,MATCH(T$1&"|"&$B12,'Data Annex'!$K$1:$K$6265,0),MATCH(T$2,'Data Annex'!$K$1:$AS$1,0)),"") -> 392.8403552 | U12: =IFERROR(INDEX('Data Annex'!$K$1:$AS$6265,MATCH(U$1&"|"&$B12,'Data Annex'!$K$1:$K$6265,0),MATCH(U$2,'Data Annex'!$K$1:$AS$1,0)),"") -> 377.0677517
A13: 2 | B13: BE | D13: =B13 -> BE | F13: =IFERROR(INDEX('Data Annex'!$K$1:$AS$6265,MATCH(F$1&"|"&$B13,'Data Annex'!$K$1:$K$6265,0),MATCH(F$2,'Data Annex'!$K$1:$AS$1,0)),"") -> 13.9678732 | G13: =IFERROR(INDEX('Data Annex'!$K$1:$AS$6265,MATCH(G$1&"|"&$B13,'Data Annex'!$K$1:$K$6265,0),MATCH(G$2,'Data Annex'!$K$1:$AS$1,0)),"") -> 13.79603078 | H13: =IFERROR(INDEX('Data Annex'!$K$1:$AS$6265,MATCH(H$1&"|"&$B13,'Data Annex'!$K$1:$K$6265,0),MATCH(H$2,'Data Annex'!$K$1:$AS$1,0)),"") -> 1.947796876e-05 | I13: =IFERROR(INDEX('Data Annex'!$K$1:$AS$6265,MATCH(I$1&"|"&$B13,'Data Annex'!$K$1:$K$6265,0),MATCH(I$2,'Data Annex'!$K$1:$AS$1,0)),"") -> 1.840144679e-05 | J13: =IFERROR(INDEX('Data Annex'!$K$1:$AS$6265,MATCH(J$1&"|"&$B13,'Data Annex'!$K$1:$K$6265,0),MATCH(J$2,'Data Annex'!$K$1:$AS$1,0)),"") ->  | K13: =IFERROR(INDEX('Data Annex'!$K$1:$AS$6265,MATCH(K$1&"|"&$B13,'Data Annex'!$K$1:$K$6265,0),MATCH(K$2,'Data Annex'!$K$1:$AS$1,0)),"") ->  | L13: =IFERROR(INDEX('Data Annex'!$K$1:$AS$6265,MATCH(L$1&"|"&$B13,'Data Annex'!$K$1:$K$6265,0),MATCH(L$2,'Data Annex'!$K$1:$AS$1,0)),"") ->  | M13: =IFERROR(INDEX('Data Annex'!$K$1:$AS$6265,MATCH(M$1&"|"&$B13,'Data Annex'!$K$1:$K$6265,0),MATCH(M$2,'Data Annex'!$K$1:$AS$1,0)),"") ->  | N13: =IFERROR(INDEX('Data Annex'!$K$1:$AS$6265,MATCH(N$1&"|"&$B13,'Data Annex'!$K$1:$K$6265,0),MATCH(N$2,'Data Annex'!$K$1:$AS$1,0)),"") -> 13.96785372 | O13: =IFERROR(INDEX('Data Annex'!$K$1:$AS$6265,MATCH(O$1&"|"&$B13,'Data Annex'!$K$1:$K$6265,0),MATCH(O$2,'Data Annex'!$K$1:$AS$1,0)),"") -> 13.79601238 | P13: =IFERROR(INDEX('Data Annex'!$K$1:$AS$6265,MATCH(P$1&"|"&$B13,'Data Annex'!$K$1:$K$6265,0),MATCH(P$2,'Data Annex'!$K$1:$AS$1,0)),"") -> 0 | Q13: =IFERROR(INDEX('Data Annex'!$K$1:$AS$6265,MATCH(Q$1&"|"&$B13,'Data Annex'!$K$1:$K$6265,0),MATCH(Q$2,'Data Annex'!$K$1:$AS$1,0)),"") -> 0 | R13: =IFERROR(INDEX('Data Annex'!$K$1:$AS$6265,MATCH(R$1&"|"&$B13,'Data Annex'!$K$1:$K$6265,0),MATCH(R$2,'Data Annex'!$K$1:$AS$1,0)),"") -> 4.176861 | S13: =IFERROR(INDEX('Data Annex'!$K$1:$AS$6265,MATCH(S$1&"|"&$B13,'Data Annex'!$K$1:$K$6265,0),MATCH(S$2,'Data Annex'!$K$1:$AS$1,0)),"") -> 3.987776 | T13: =IFERROR(INDEX('Data Annex'!$K$1:$AS$6265,MATCH(T$1&"|"&$B13,'Data Annex'!$K$1:$K$6265,0),MATCH(T$2,'Data Annex'!$K$1:$AS$1,0)),"") -> 9.79099272 | U13: =IFERROR(INDEX('Data Annex'!$K$1:$AS$6265,MATCH(U$1&"|"&$B13,'Data Annex'!$K$1:$K$6265,0),MATCH(U$2,'Data Annex'!$K$1:$AS$1,0)),"") -> 9.80823638
A14: 3 | B14: BG | D14: BG | F14: =IFERROR(INDEX('Data Annex'!$K$1:$AS$6265,MATCH(F$1&"|"&$B14,'Data Annex'!$K$1:$K$6265,0),MATCH(F$2,'Data Annex'!$K$1:$AS$1,0)),"") -> 1.118212496 | G14: =IFERROR(INDEX('Data Annex'!$K$1:$AS$6265,MATCH(G$1&"|"&$B14,'Data Annex'!$K$1:$K$6265,0),MATCH(G$2,'Data Annex'!$K$1:$AS$1,0)),"") -> 1.123836793 | H14: =IFERROR(INDEX('Data Annex'!$K$1:$AS$6265,MATCH(H$1&"|"&$B14,'Data Annex'!$K$1:$K$6265,0),MATCH(H$2,'Data Annex'!$K$1:$AS$1,0)),"") -> 0 | I14: =IFERROR(INDEX('Data Annex'!$K$1:$AS$6265,MATCH(I$1&"|"&$B14,'Data Annex'!$K$1:$K$6265,0),MATCH(I$2,'Data Annex'!$K$1:$AS$1,0)),"") -> 0 | J14: =IFERROR(INDEX('Data Annex'!$K$1:$AS$6265,MATCH(J$1&"|"&$B14,'Data Annex'!$K$1:$K$6265,0),MATCH(J$2,'Data Annex'!$K$1:$AS$1,0)),"") -> 0 | K14: =IFERROR(INDEX('Data Annex'!$K$1:$AS$6265,MATCH(K$1&"|"&$B14,'Data Annex'!$K$1:$K$6265,0),MATCH(K$2,'Data Annex'!$K$1:$AS$1,0)),"") -> 0 | L14: =IFERROR(INDEX('Data Annex'!$K$1:$AS$6265,MATCH(L$1&"|"&$B14,'Data Annex'!$K$1:$K$6265,0),MATCH(L$2,'Data Annex'!$K$1:$AS$1,0)),"") -> 0 | M14: =IFERROR(INDEX('Data Annex'!$K$1:$AS$6265,MATCH(M$1&"|"&$B14,'Data Annex'!$K$1:$K$6265,0),MATCH(M$2,'Data Annex'!$K$1:$AS$1,0)),"") -> 0 | N14: =IFERROR(INDEX('Data Annex'!$K$1:$AS$6265,MATCH(N$1&"|"&$B14,'Data Annex'!$K$1:$K$6265,0),MATCH(N$2,'Data Annex'!$K$1:$AS$1,0)),"") -> 1.118212496 | O14: =IFERROR(INDEX('Data Annex'!$K$1:$AS$6265,MATCH(O$1&"|"&$B14,'Data Annex'!$K$1:$K$6265,0),MATCH(O$2,'Data Annex'!$K$1:$AS$1,0)),"") -> 1.123836793 | P14: =IFERROR(INDEX('Data Annex'!$K$1:$AS$6265,MATCH(P$1&"|"&$B14,'Data Annex'!$K$1:$K$6265,0),MATCH(P$2,'Data Annex'!$K$1:$AS$1,0)),"") -> 0 | Q14: =IFERROR(INDEX('Data Annex'!$K$1:$AS$6265,MATCH(Q$1&"|"&$B14,'Data Annex'!$K$1:$K$6265,0),MATCH(Q$2,'Data Annex'!$K$1:$AS$1,0)),"") -> 0 | R14: =IFERROR(INDEX('Data Annex'!$K$1:$AS$6265,MATCH(R$1&"|"&$B14,'Data Annex'!$K$1:$K$6265,0),MATCH(R$2,'Data Annex'!$K$1:$AS$1,0)),"") -> 0 | S14: =IFERROR(INDEX('Data Annex'!$K$1:$AS$6265,MATCH(S$1&"|"&$B14,'Data Annex'!$K$1:$K$6265,0),MATCH(S$2,'Data Annex'!$K$1:$AS$1,0)),"") -> 0 | T14: =IFERROR(INDEX('Data Annex'!$K$1:$AS$6265,MATCH(T$1&"|"&$B14,'Data Annex'!$K$1:$K$6265,0),MATCH(T$2,'Data Annex'!$K$1:$AS$1,0)),"") -> 1.118212496 | U14: =IFERROR(INDEX('Data Annex'!$K$1:$AS$6265,MATCH(U$1&"|"&$B14,'Data Annex'!$K$1:$K$6265,0),MATCH(U$2,'Data Annex'!$K$1:$AS$1,0)),"") -> 1.123836793
A15: 4 | B15: CY | D15: CY | F15: =IFERROR(INDEX('Data Annex'!$K$1:$AS$6265,MATCH(F$1&"|"&$B15,'Data Annex'!$K$1:$K$6265,0),MATCH(F$2,'Data Annex'!$K$1:$AS$1,0)),"") -> 6.815932 | G15: =IFERROR(INDEX('Data Annex'!$K$1:$AS$6265,MATCH(G$1&"|"&$B15,'Data Annex'!$K$1:$K$6265,0),MATCH(G$2,'Data Annex'!$K$1:$AS$1,0)),"") -> 6.709286 | H15: =IFERROR(INDEX('Data Annex'!$K$1:$AS$6265,MATCH(H$1&"|"&$B15,'Data Annex'!$K$1:$K$6265,0),MATCH(H$2,'Data Annex'!$K$1:$AS$1,0)),"") -> 0 | I15: =IFERROR(INDEX('Data Annex'!$K$1:$AS$6265,MATCH(I$1&"|"&$B15,'Data Annex'!$K$1:$K$6265,0),MATCH(I$2,'Data Annex'!$K$1:$AS$1,0)),"") -> 0 | J15: =IFERROR(INDEX('Data Annex'!$K$1:$AS$6265,MATCH(J$1&"|"&$B15,'Data Annex'!$K$1:$K$6265,0),MATCH(J$2,'Data Annex'!$K$1:$AS$1,0)),"") -> 0 | K15: =IFERROR(INDEX('Data Annex'!$K$1:$AS$6265,MATCH(K$1&"|"&$B15,'Data Annex'!$K$1:$K$6265,0),MATCH(K$2,'Data Annex'!$K$1:$AS$1,0)),"") -> 0 | L15: =IFERROR(INDEX('Data Annex'!$K$1:$AS$6265,MATCH(L$1&"|"&$B15,'Data Annex'!$K$1:$K$6265,0),MATCH(L$2,'Data Annex'!$K$1:$AS$1,0)),"") -> 0 | M15: =IFERROR(INDEX('Data Annex'!$K$1:$AS$6265,MATCH(M$1&"|"&$B15,'Data Annex'!$K$1:$K$6265,0),MATCH(M$2,'Data Annex'!$K$1:$AS$1,0)),"") -> 0 | N15: =IFERROR(INDEX('Data Annex'!$K$1:$AS$6265,MATCH(N$1&"|"&$B15,'Data Annex'!$K$1:$K$6265,0),MATCH(N$2,'Data Annex'!$K$1:$AS$1,0)),"") -> 6.815932 | O15: =IFERROR(INDEX('Data Annex'!$K$1:$AS$6265,MATCH(O$1&"|"&$B15,'Data Annex'!$K$1:$K$6265,0),MATCH(O$2,'Data Annex'!$K$1:$AS$1,0)),"") -> 6.709286 | P15: =IFERROR(INDEX('Data Annex'!$K$1:$AS$6265,MATCH(P$1&"|"&$B15,'Data Annex'!$K$1:$K$6265,0),MATCH(P$2,'Data Annex'!$K$1:$AS$1,0)),"") -> 4e-05 | Q15: =IFERROR(INDEX('Data Annex'!$K$1:$AS$6265,MATCH(Q$1&"|"&$B15,'Data Annex'!$K$1:$K$6265,0),MATCH(Q$2,'Data Annex'!$K$1:$AS$1,0)),"") -> 0 | R15: =IFERROR(INDEX('Data Annex'!$K$1:$AS$6265,MATCH(R$1&"|"&$B15,'Data Annex'!$K$1:$K$6265,0),MATCH(R$2,'Data Annex'!$K$1:$AS$1,0)),"") -> 2.946915 | S15: =IFERROR(INDEX('Data Annex'!$K$1:$AS$6265,MATCH(S$1&"|"&$B15,'Data Annex'!$K$1:$K$6265,0),MATCH(S$2,'Data Annex'!$K$1:$AS$1,0)),"") -> 3.023142 | T15: =IFERROR(INDEX('Data Annex'!$K$1:$AS$6265,MATCH(T$1&"|"&$B15,'Data Annex'!$K$1:$K$6265,0),MATCH(T$2,'Data Annex'!$K$1:$AS$1,0)),"") -> 3.868977 | U15: =IFERROR(INDEX('Data Annex'!$K$1:$AS$6265,MATCH(U$1&"|"&$B15,'Data Annex'!$K$1:$K$6265,0),MATCH(U$2,'Data Annex'!$K$1:$AS$1,0)),"") -> 3.686144
A16: 5 | B16: CZ | D16: CZ | F16: =IFERROR(INDEX('Data Annex'!$K$1:$AS$6265,MATCH(F$1&"|"&$B16,'Data Annex'!$K$1:$K$6265,0),MATCH(F$2,'Data Annex'!$K$1:$AS$1,0)),"") -> 29.16933309 | G16: =IFERROR(INDEX('Data Annex'!$K$1:$AS$6265,MATCH(G$1&"|"&$B16,'Data Annex'!$K$1:$K$6265,0),MATCH(G$2,'Data Annex'!$K$1:$AS$1,0)),"") -> 29.34297776 | H16: =IFERROR(INDEX('Data Annex'!$K$1:$AS$6265,MATCH(H$1&"|"&$B16,'Data Annex'!$K$1:$K$6265,0),MATCH(H$2,'Data Annex'!$K$1:$AS$1,0)),"") -> 0 | I16: =IFERROR(INDEX('Data Annex'!$K$1:$AS$6265,MATCH(I$1&"|"&$B16,'Data Annex'!$K$1:$K$6265,0),MATCH(I$2,'Data Annex'!$K$1:$AS$1,0)),"") -> 0 | J16: =IFERROR(INDEX('Data Annex'!$K$1:$AS$6265,MATCH(J$1&"|"&$B16,'Data Annex'!$K$1:$K$6265,0),MATCH(J$2,'Data Annex'!$K$1:$AS$1,0)),"") -> 0 | K16: =IFERROR(INDEX('Data Annex'!$K$1:$AS$6265,MATCH(K$1&"|"&$B16,'Data Annex'!$K$1:$K$6265,0),MATCH(K$2,'Data Annex'!$K$1:$AS$1,0)),"") -> 0 | L16: =IFERROR(INDEX('Data Annex'!$K$1:$AS$6265,MATCH(L$1&"|"&$B16,'Data Annex'!$K$1:$K$6265,0),MATCH(L$2,'Data Annex'!$K$1:$AS$1,0)),"") -> 0 | M16: =IFERROR(INDEX('Data Annex'!$K$1:$AS$6265,MATCH(M$1&"|"&$B16,'Data Annex'!$K$1:$K$6265,0),MATCH(M$2,'Data Annex'!$K$1:$AS$1,0)),"") -> 0 | N16: =IFERROR(INDEX('Data Annex'!$K$1:$AS$6265,MATCH(N$1&"|"&$B16,'Data Annex'!$K$1:$K$6265,0),MATCH(N$2,'Data Annex'!$K$1:$AS$1,0)),"") -> 29.16933309 | O16: =IFERROR(INDEX('Data Annex'!$K$1:$AS$6265,MATCH(O$1&"|"&$B16,'Data Annex'!$K$1:$K$6265,0),MATCH(O$2,'Data Annex'!$K$1:$AS$1,0)),"") -> 29.34297776 | P16: =IFERROR(INDEX('Data Annex'!$K$1:$AS$6265,MATCH(P$1&"|"&$B16,'Data Annex'!$K$1:$K$6265,0),MATCH(P$2,'Data Annex'!$K$1:$AS$1,0)),"") -> 0 | Q16: =IFERROR(INDEX('Data Annex'!$K$1:$AS$6265,MATCH(Q$1&"|"&$B16,'Data Annex'!$K$1:$K$6265,0),MATCH(Q$2,'Data Annex'!$K$1:$AS$1,0)),"") -> 0 | R16: =IFERROR(INDEX('Data Annex'!$K$1:$AS$6265,MATCH(R$1&"|"&$B16,'Data Annex'!$K$1:$K$6265,0),MATCH(R$2,'Data Annex'!$K$1:$AS$1,0)),"") -> 4.131838523 | S16: =IFERROR(INDEX('Data Annex'!$K$1:$AS$6265,MATCH(S$1&"|"&$B16,'Data Annex'!$K$1:$K$6265,0),MATCH(S$2,'Data Annex'!$K$1:$AS$1,0)),"") -> 3.955995077 | T16: =IFERROR(INDEX('Data Annex'!$K$1:$AS$6265,MATCH(T$1&"|"&$B16,'Data Annex'!$K$1:$K$6265,0),MATCH(T$2,'Data Annex'!$K$1:$AS$1,0)),"") -> 25.03749461 | U16: =IFERROR(INDEX('Data Annex'!$K$1:$AS$6265,MATCH(U$1&"|"&$B16,'Data Annex'!$K$1:$K$6265,0),MATCH(U$2,'Data Annex'!$K$1:$AS$1,0)),"") -> 25.38698269
A17: 6 | B17: DE | D17: DE | F17: =IFERROR(INDEX('Data Annex'!$K$1:$AS$6265,MATCH(F$1&"|"&$B17,'Data Annex'!$K$1:$K$6265,0),MATCH(F$2,'Data Annex'!$K$1:$AS$1,0)),"") -> 779.2310636 | G17: =IFERROR(INDEX('Data Annex'!$K$1:$AS$6265,MATCH(G$1&"|"&$B17,'Data Annex'!$K$1:$K$6265,0),MATCH(G$2,'Data Annex'!$K$1:$AS$1,0)),"") -> 585.9200332 | H17: =IFERROR(INDEX('Data Annex'!$K$1:$AS$6265,MATCH(H$1&"|"&$B17,'Data Annex'!$K$1:$K$6265,0),MATCH(H$2,'Data Annex'!$K$1:$AS$1,0)),"") -> 64.18578431 | I17: =IFERROR(INDEX('Data Annex'!$K$1:$AS$6265,MATCH(I$1&"|"&$B17,'Data Annex'!$K$1:$K$6265,0),MATCH(I$2,'Data Annex'!$K$1:$AS$1,0)),"") -> 24.21481354 | J17: =IFERROR(INDEX('Data Annex'!$K$1:$AS$6265,MATCH(J$1&"|"&$B17,'Data Annex'!$K$1:$K$6265,0),MATCH(J$2,'Data Annex'!$K$1:$AS$1,0)),"") -> 31.16596281 | K17: =IFERROR(INDEX('Data Annex'!$K$1:$AS$6265,MATCH(K$1&"|"&$B17,'Data Annex'!$K$1:$K$6265,0),MATCH(K$2,'Data Annex'!$K$1:$AS$1,0)),"") -> 13.54635591 | L17: =IFERROR(INDEX('Data Annex'!$K$1:$AS$6265,MATCH(L$1&"|"&$B17,'Data Annex'!$K$1:$K$6265,0),MATCH(L$2,'Data Annex'!$K$1:$AS$1,0)),"") -> 31.16596281 | M17: =IFERROR(INDEX('Data Annex'!$K$1:$AS$6265,MATCH(M$1&"|"&$B17,'Data Annex'!$K$1:$K$6265,0),MATCH(M$2,'Data Annex'!$K$1:$AS$1,0)),"") -> 13.54635591 | N17: =IFERROR(INDEX('Data Annex'!$K$1:$AS$6265,MATCH(N$1&"|"&$B17,'Data Annex'!$K$1:$K$6265,0),MATCH(N$2,'Data Annex'!$K$1:$AS$1,0)),"") -> 683.8793163 | O17: =IFERROR(INDEX('Data Annex'!$K$1:$AS$6265,MATCH(O$1&"|"&$B17,'Data Annex'!$K$1:$K$6265,0),MATCH(O$2,'Data Annex'!$K$1:$AS$1,0)),"") -> 548.1588636 | P17: =IFERROR(INDEX('Data Annex'!$K$1:$AS$6265,MATCH(P$1&"|"&$B17,'Data Annex'!$K$1:$K$6265,0),MATCH(P$2,'Data Annex'!$K$1:$AS$1,0)),"") -> 43.02406119 | Q17: =IFERROR(INDEX('Data Annex'!$K$1:$AS$6265,MATCH(Q$1&"|"&$B17,'Data Annex'!$K$1:$K$6265,0),MATCH(Q$2,'Data Annex'!$K$1:$AS$1,0)),"") -> 45.76519255 | R17: =IFERROR(INDEX('Data Annex'!$K$1:$AS$6265,MATCH(R$1&"|"&$B17,'Data Annex'!$K$1:$K$6265,0),MATCH(R$2,'Data Annex'!$K$1:$AS$1,0)),"") -> 142.3318173 | S17: =IFERROR(INDEX('Data Annex'!$K$1:$AS$6265,MATCH(S$1&"|"&$B17,'Data Annex'!$K$1:$K$6265,0),MATCH(S$2,'Data Annex'!$K$1:$AS$1,0)),"") -> 160.6631911 | T17: =IFERROR(INDEX('Data Annex'!$K$1:$AS$6265,MATCH(T$1&"|"&$B17,'Data Annex'!$K$1:$K$6265,0),MATCH(T$2,'Data Annex'!$K$1:$AS$1,0)),"") -> 4.016539582 | U17: =IFERROR(INDEX('Data Annex'!$K$1:$AS$6265,MATCH(U$1&"|"&$B17,'Data Annex'!$K$1:$K$6265,0),MATCH(U$2,'Data Annex'!$K$1:$AS$1,0)),"") -> 3.89894609
A18: 7 | B18: DK | D18: DK | F18: =IFERROR(INDEX('Data Annex'!$K$1:$AS$6265,MATCH(F$1&"|"&$B18,'Data Annex'!$K$1:$K$6265,0),MATCH(F$2,'Data Annex'!$K$1:$AS$1,0)),"") -> 5.721458477 | G18: =IFERROR(INDEX('Data Annex'!$K$1:$AS$6265,MATCH(G$1&"|"&$B18,'Data Annex'!$K$1:$K$6265,0),MATCH(G$2,'Data Annex'!$K$1:$AS$1,0)),"") -> 5.542610394 | H18: =IFERROR(INDEX('Data Annex'!$K$1:$AS$6265,MATCH(H$1&"|"&$B18,'Data Annex'!$K$1:$K$6265,0),MATCH(H$2,'Data Annex'!$K$1:$AS$1,0)),"") ->  | I18: =IFERROR(INDEX('Data Annex'!$K$1:$AS$6265,MATCH(I$1&"|"&$B18,'Data Annex'!$K$1:$K$6265,0),MATCH(I$2,'Data Annex'!$K$1:$AS$1,0)),"") ->  | J18: =IFERROR(INDEX('Data Annex'!$K$1:$AS$6265,MATCH(J$1&"|"&$B18,'Data Annex'!$K$1:$K$6265,0),MATCH(J$2,'Data Annex'!$K$1:$AS$1,0)),"") ->  | K18: =IFERROR(INDEX('Data Annex'!$K$1:$AS$6265,MATCH(K$1&"|"&$B18,'Data Annex'!$K$1:$K$6265,0),MATCH(K$2,'Data Annex'!$K$1:$AS$1,0)),"") ->  | L18: =IFERROR(INDEX('Data Annex'!$K$1:$AS$6265,MATCH(L$1&"|"&$B18,'Data Annex'!$K$1:$K$6265,0),MATCH(L$2,'Data Annex'!$K$1:$AS$1,0)),"") ->  | M18: =IFERROR(INDEX('Data Annex'!$K$1:$AS$6265,MATCH(M$1&"|"&$B18,'Data Annex'!$K$1:$K$6265,0),MATCH(M$2,'Data Annex'!$K$1:$AS$1,0)),"") ->  | N18: =IFERROR(INDEX('Data Annex'!$K$1:$AS$6265,MATCH(N$1&"|"&$B18,'Data Annex'!$K$1:$K$6265,0),MATCH(N$2,'Data Annex'!$K$1:$AS$1,0)),"") -> 5.721458477 | O18: =IFERROR(INDEX('Data Annex'!$K$1:$AS$6265,MATCH(O$1&"|"&$B18,'Data Annex'!$K$1:$K$6265,0),MATCH(O$2,'Data Annex'!$K$1:$AS$1,0)),"") -> 5.542610394 | P18: =IFERROR(INDEX('Data Annex'!$K$1:$AS$6265,MATCH(P$1&"|"&$B18,'Data Annex'!$K$1:$K$6265,0),MATCH(P$2,'Data Annex'!$K$1:$AS$1,0)),"") -> 2.513123285 | Q18: =IFERROR(INDEX('Data Annex'!$K$1:$AS$6265,MATCH(Q$1&"|"&$B18,'Data Annex'!$K$1:$K$6265,0),MATCH(Q$2,'Data Annex'!$K$1:$AS$1,0)),"") -> 2.567141935 | R18: =IFERROR(INDEX('Data Annex'!$K$1:$AS$6265,MATCH(R$1&"|"&$B18,'Data Annex'!$K$1:$K$6265,0),MATCH(R$2,'Data Annex'!$K$1:$AS$1,0)),"") -> 0 | S18: =IFERROR(INDEX('Data Annex'!$K$1:$AS$6265,MATCH(S$1&"|"&$B18,'Data Annex'!$K$1:$K$6265,0),MATCH(S$2,'Data Annex'!$K$1:$AS$1,0)),"") -> 4.246090967e-05 | T18: =IFERROR(INDEX('Data Annex'!$K$1:$AS$6265,MATCH(T$1&"|"&$B18,'Data Annex'!$K$1:$K$6265,0),MATCH(T$2,'Data Annex'!$K$1:$AS$1,0)),"") -> 3.208335192 | U18: =IFERROR(INDEX('Data Annex'!$K$1:$AS$6265,MATCH(U$1&"|"&$B18,'Data Annex'!$K$1:$K$6265,0),MATCH(U$2,'Data Annex'!$K$1:$AS$1,0)),"") -> 2.975425998
A19: 8 | B19: EE | D19: EE | F19: =IFERROR(INDEX('Data Annex'!$K$1:$AS$6265,MATCH(F$1&"|"&$B19,'Data Annex'!$K$1:$K$6265,0),MATCH(F$2,'Data Annex'!$K$1:$AS$1,0)),"") -> 0.514767128 | G19: =IFERROR(INDEX('Data Annex'!$K$1:$AS$6265,MATCH(G$1&"|"&$B19,'Data Annex'!$K$1:$K$6265,0),MATCH(G$2,'Data Annex'!$K$1:$AS$1,0)),"") -> 0.6442816737 | H19: =IFERROR(INDEX('Data Annex'!$K$1:$AS$6265,MATCH(H$1&"|"&$B19,'Data Annex'!$K$1:$K$6265,0),MATCH(H$2,'Data Annex'!$K$1:$AS$1,0)),"") ->  | I19: =IFERROR(INDEX('Data Annex'!$K$1:$AS$6265,MATCH(I$1&"|"&$B19,'Data Annex'!$K$1:$K$6265,0),MATCH(I$2,'Data Annex'!$K$1:$AS$1,0)),"") ->  | J19: =IFERROR(INDEX('Data Annex'!$K$1:$AS$6265,MATCH(J$1&"|"&$B19,'Data Annex'!$K$1:$K$6265,0),MATCH(J$2,'Data Annex'!$K$1:$AS$1,0)),"") ->  | K19: =IFERROR(INDEX('Data Annex'!$K$1:$AS$6265,MATCH(K$1&"|"&$B19,'Data Annex'!$K$1:$K$6265,0),MATCH(K$2,'Data Annex'!$K$1:$AS$1,0)),"") ->  | L19: =IFERROR(INDEX('Data Annex'!$K$1:$AS$6265,MATCH(L$1&"|"&$B19,'Data Annex'!$K$1:$K$6265,0),MATCH(L$2,'Data Annex'!$K$1:$AS$1,0)),"") ->  | M19: =IFERROR(INDEX('Data Annex'!$K$1:$AS$6265,MATCH(M$1&"|"&$B19,'Data Annex'!$K$1:$K$6265,0),MATCH(M$2,'Data Annex'!$K$1:$AS$1,0)),"") ->  | N19: =IFERROR(INDEX('Data Annex'!$K$1:$AS$6265,MATCH(N$1&"|"&$B19,'Data Annex'!$K$1:$K$6265,0),MATCH(N$2,'Data Annex'!$K$1:$AS$1,0)),"") -> 0.514767128 | O19: =IFERROR(INDEX('Data Annex'!$K$1:$AS$6265,MATCH(O$1&"|"&$B19,'Data Annex'!$K$1:$K$6265,0),MATCH(O$2,'Data Annex'!$K$1:$AS$1,0)),"") -> 0.6442816737 | P19: =IFERROR(INDEX('Data Annex'!$K$1:$AS$6265,MATCH(P$1&"|"&$B19,'Data Annex'!$K$1:$K$6265,0),MATCH(P$2,'Data Annex'!$K$1:$AS$1,0)),"") ->  | Q19: =IFERROR(INDEX('Data Annex'!$K$1:$AS$6265,MATCH(Q$1&"|"&$B19,'Data Annex'!$K$1:$K$6265,0),MATCH(Q$2,'Data Annex'!$K$1:$AS$1,0)),"") ->  | R19: =IFERROR(INDEX('Data Annex'!$K$1:$AS$6265,MATCH(R$1&"|"&$B19,'Data Annex'!$K$1:$K$6265,0),MATCH(R$2,'Data Annex'!$K$1:$AS$1,0)),"") -> 0 | S19: =IFERROR(INDEX('Data Annex'!$K$1:$AS$6265,MATCH(S$1&"|"&$B19,'Data Annex'!$K$1:$K$6265,0),MATCH(S$2,'Data Annex'!$K$1:$AS$1,0)),"") -> 0 | T19: =IFERROR(INDEX('Data Annex'!$K$1:$AS$6265,MATCH(T$1&"|"&$B19,'Data Annex'!$K$1:$K$6265,0),MATCH(T$2,'Data Annex'!$K$1:$AS$1,0)),"") -> 0.514767128 | U19: =IFERROR(INDEX('Data Annex'!$K$1:$AS$6265,MATCH(U$1&"|"&$B19,'Data Annex'!$K$1:$K$6265,0),MATCH(U$2,'Data Annex'!$K$1:$AS$1,0)),"") -> 0.6442816737
A20: 9 | B20: ES | D20: ES | F20: =IFERROR(INDEX('Data Annex'!$K$1:$AS$6265,MATCH(F$1&"|"&$B20,'Data Annex'!$K$1:$K$6265,0),MATCH(F$2,'Data Annex'!$K$1:$AS$1,0)),"") -> 48.52608774 | G20: =IFERROR(INDEX('Data Annex'!$K$1:$AS$6265,MATCH(G$1&"|"&$B20,'Data Annex'!$K$1:$K$6265,0),MATCH(G$2,'Data Annex'!$K$1:$AS$1,0)),"") -> 44.96491108 | H20: =IFERROR(INDEX('Data Annex'!$K$1:$AS$6265,MATCH(H$1&"|"&$B20,'Data Annex'!$K$1:$K$6265,0),MATCH(H$2,'Data Annex'!$K$1:$AS$1,0)),"") -> 0 | I20: =IFERROR(INDEX('Data Annex'!$K$1:$AS$6265,MATCH(I$1&"|"&$B20,'Data Annex'!$K$1:$K$6265,0),MATCH(I$2,'Data Annex'!$K$1:$AS$1,0)),"") -> 0 | J20: =IFERROR(INDEX('Data Annex'!$K$1:$AS$6265,MATCH(J$1&"|"&$B20,'Data Annex'!$K$1:$K$6265,0),MATCH(J$2,'Data Annex'!$K$1:$AS$1,0)),"") -> 0 | K20: =IFERROR(INDEX('Data Annex'!$K$1:$AS$6265,MATCH(K$1&"|"&$B20,'Data Annex'!$K$1:$K$6265,0),MATCH(K$2,'Data Annex'!$K$1:$AS$1,0)),"") -> 0 | L20: =IFERROR(INDEX('Data Annex'!$K$1:$AS$6265,MATCH(L$1&"|"&$B20,'Data Annex'!$K$1:$K$6265,0),MATCH(L$2,'Data Annex'!$K$1:$AS$1,0)),"") -> 0 | M20: =IFERROR(INDEX('Data Annex'!$K$1:$AS$6265,MATCH(M$1&"|"&$B20,'Data Annex'!$K$1:$K$6265,0),MATCH(M$2,'Data Annex'!$K$1:$AS$1,0)),"") -> 0 | N20: =IFERROR(INDEX('Data Annex'!$K$1:$AS$6265,MATCH(N$1&"|"&$B20,'Data Annex'!$K$1:$K$6265,0),MATCH(N$2,'Data Annex'!$K$1:$AS$1,0)),"") -> 48.52608774 | O20: =IFERROR(INDEX('Data Annex'!$K$1:$AS$6265,MATCH(O$1&"|"&$B20,'Data Annex'!$K$1:$K$6265,0),MATCH(O$2,'Data Annex'!$K$1:$AS$1,0)),"") -> 44.96491108 | P20: =IFERROR(INDEX('Data Annex'!$K$1:$AS$6265,MATCH(P$1&"|"&$B20,'Data Annex'!$K$1:$K$6265,0),MATCH(P$2,'Data Annex'!$K$1:$AS$1,0)),"") -> 0 | Q20: =IFERROR(INDEX('Data Annex'!$K$1:$AS$6265,MATCH(Q$1&"|"&$B20,'Data Annex'!$K$1:$K$6265,0),MATCH(Q$2,'Data Annex'!$K$1:$AS$1,0)),"") -> 0 | R20: =IFERROR(INDEX('Data Annex'!$K$1:$AS$6265,MATCH(R$1&"|"&$B20,'Data Annex'!$K$1:$K$6265,0),MATCH(R$2,'Data Annex'!$K$1:$AS$1,0)),"") -> 1.42 | S20: =IFERROR(INDEX('Data Annex'!$K$1:$AS$6265,MATCH(S$1&"|"&$B20,'Data Annex'!$K$1:$K$6265,0),MATCH(S$2,'Data Annex'!$K$1:$AS$1,0)),"") -> 0.447 | T20: =IFERROR(INDEX('Data Annex'!$K$1:$AS$6265,MATCH(T$1&"|"&$B20,'Data Annex'!$K$1:$K$6265,0),MATCH(T$2,'Data Annex'!$K$1:$AS$1,0)),"") -> 47.10608774 | U20: =IFERROR(INDEX('Data Annex'!$K$1:$AS$6265,MATCH(U$1&"|"&$B20,'Data Annex'!$K$1:$K$6265,0),MATCH(U$2,'Data Annex'!$K$1:$AS$1,0)),"") -> 44.51791108
A21: 10 | B21: FI | D21: FI | F21: =IFERROR(INDEX('Data Annex'!$K$1:$AS$6265,MATCH(F$1&"|"&$B21,'Data Annex'!$K$1:$K$6265,0),MATCH(F$2,'Data Annex'!$K$1:$AS$1,0)),"") -> 0.68431155 | G21: =IFERROR(INDEX('Data Annex'!$K$1:$AS$6265,MATCH(G$1&"|"&$B21,'Data Annex'!$K$1:$K$6265,0),MATCH(G$2,'Data Annex'!$K$1:$AS$1,0)),"") -> 0.71952288 | H21: =IFERROR(INDEX('Data Annex'!$K$1:$AS$6265,MATCH(H$1&"|"&$B21,'Data Annex'!$K$1:$K$6265,0),MATCH(H$2,'Data Annex'!$K$1:$AS$1,0)),"") ->  | I21: =IFERROR(INDEX('Data Annex'!$K$1:$AS$6265,MATCH(I$1&"|"&$B21,'Data Annex'!$K$1:$K$6265,0),MATCH(I$2,'Data Annex'!$K$1:$AS$1,0)),"") ->  | J21: =IFERROR(INDEX('Data Annex'!$K$1:$AS$6265,MATCH(J$1&"|"&$B21,'Data Annex'!$K$1:$K$6265,0),MATCH(J$2,'Data Annex'!$K$1:$AS$1,0)),"") ->  | K21: =IFERROR(INDEX('Data Annex'!$K$1:$AS$6265,MATCH(K$1&"|"&$B21,'Data Annex'!$K$1:$K$6265,0),MATCH(K$2,'Data Annex'!$K$1:$AS$1,0)),"") ->  | L21: =IFERROR(INDEX('Data Annex'!$K$1:$AS$6265,MATCH(L$1&"|"&$B21,'Data Annex'!$K$1:$K$6265,0),MATCH(L$2,'Data Annex'!$K$1:$AS$1,0)),"") ->  | M21: =IFERROR(INDEX('Data Annex'!$K$1:$AS$6265,MATCH(M$1&"|"&$B21,'Data Annex'!$K$1:$K$6265,0),MATCH(M$2,'Data Annex'!$K$1:$AS$1,0)),"") ->  | N21: =IFERROR(INDEX('Data Annex'!$K$1:$AS$6265,MATCH(N$1&"|"&$B21,'Data Annex'!$K$1:$K$6265,0),MATCH(N$2,'Data Annex'!$K$1:$AS$1,0)),"") -> 0.68431155 | O21: =IFERROR(INDEX('Data Annex'!$K$1:$AS$6265,MATCH(O$1&"|"&$B21,'Data Annex'!$K$1:$K$6265,0),MATCH(O$2,'Data Annex'!$K$1:$AS$1,0)),"") -> 0.71952288 | P21: =IFERROR(INDEX('Data Annex'!$K$1:$AS$6265,MATCH(P$1&"|"&$B21,'Data Annex'!$K$1:$K$6265,0),MATCH(P$2,'Data Annex'!$K$1:$AS$1,0)),"") ->  | Q21: =IFERROR(INDEX('Data Annex'!$K$1:$AS$6265,MATCH(Q$1&"|"&$B21,'Data Annex'!$K$1:$K$6265,0),MATCH(Q$2,'Data Annex'!$K$1:$AS$1,0)),"") ->  | R21: =IFERROR(INDEX('Data Annex'!$K$1:$AS$6265,MATCH(R$1&"|"&$B21,'Data Annex'!$K$1:$K$6265,0),MATCH(R$2,'Data Annex'!$K$1:$AS$1,0)),"") ->  | S21: =IFERROR(INDEX('Data Annex'!$K$1:$AS$6265,MATCH(S$1&"|"&$B21,'Data Annex'!$K$1:$K$6265,0),MATCH(S$2,'Data Annex'!$K$1:$AS$1,0)),"") ->  | T21: =IFERROR(INDEX('Data Annex'!$K$1:$AS$6265,MATCH(T$1&"|"&$B21,'Data Annex'!$K$1:$K$6265,0),MATCH(T$2,'Data Annex'!$K$1:$AS$1,0)),"") -> 0.68431155 | U21: =IFERROR(INDEX('Data Annex'!$K$1:$AS$6265,MATCH(U$1&"|"&$B21,'Data Annex'!$K$1:$K$6265,0),MATCH(U$2,'Data Annex'!$K$1:$AS$1,0)),"") -> 0.71952288
A22: 11 | B22: FR | D22: FR | F22: =IFERROR(INDEX('Data Annex'!$K$1:$AS$6265,MATCH(F$1&"|"&$B22,'Data Annex'!$K$1:$K$6265,0),MATCH(F$2,'Data Annex'!$K$1:$AS$1,0)),"") -> 3282.080497 | G22: =IFERROR(INDEX('Data Annex'!$K$1:$AS$6265,MATCH(G$1&"|"&$B22,'Data Annex'!$K$1:$K$6265,0),MATCH(G$2,'Data Annex'!$K$1:$AS$1,0)),"") -> 2031.545048 | H22: =IFERROR(INDEX('Data Annex'!$K$1:$AS$6265,MATCH(H$1&"|"&$B22,'Data Annex'!$K$1:$K$6265,0),MATCH(H$2,'Data Annex'!$K$1:$AS$1,0)),"") -> 139.3355422 | I22: =IFERROR(INDEX('Data Annex'!$K$1:$AS$6265,MATCH(I$1&"|"&$B22,'Data Annex'!$K$1:$K$6265,0),MATCH(I$2,'Data Annex'!$K$1:$AS$1,0)),"") -> 69.40368454 | J22: =IFERROR(INDEX('Data Annex'!$K$1:$AS$6265,MATCH(J$1&"|"&$B22,'Data Annex'!$K$1:$K$6265,0),MATCH(J$2,'Data Annex'!$K$1:$AS$1,0)),"") -> 734.6154722 | K22: =IFERROR(INDEX('Data Annex'!$K$1:$AS$6265,MATCH(K$1&"|"&$B22,'Data Annex'!$K$1:$K$6265,0),MATCH(K$2,'Data Annex'!$K$1:$AS$1,0)),"") -> 393.3151485 | L22: =IFERROR(INDEX('Data Annex'!$K$1:$AS$6265,MATCH(L$1&"|"&$B22,'Data Annex'!$K$1:$K$6265,0),MATCH(L$2,'Data Annex'!$K$1:$AS$1,0)),"") -> 733.8457432 | M22: =IFERROR(INDEX('Data Annex'!$K$1:$AS$6265,MATCH(M$1&"|"&$B22,'Data Annex'!$K$1:$K$6265,0),MATCH(M$2,'Data Annex'!$K$1:$AS$1,0)),"") -> 392.7720625 | N22: =IFERROR(INDEX('Data Annex'!$K$1:$AS$6265,MATCH(N$1&"|"&$B22,'Data Annex'!$K$1:$K$6265,0),MATCH(N$2,'Data Annex'!$K$1:$AS$1,0)),"") -> 2407.715783 | O22: =IFERROR(INDEX('Data Annex'!$K$1:$AS$6265,MATCH(O$1&"|"&$B22,'Data Annex'!$K$1:$K$6265,0),MATCH(O$2,'Data Annex'!$K$1:$AS$1,0)),"") -> 1568.456498 | P22: =IFERROR(INDEX('Data Annex'!$K$1:$AS$6265,MATCH(P$1&"|"&$B22,'Data Annex'!$K$1:$K$6265,0),MATCH(P$2,'Data Annex'!$K$1:$AS$1,0)),"") -> 39.53640303 | Q22: =IFERROR(INDEX('Data Annex'!$K$1:$AS$6265,MATCH(Q$1&"|"&$B22,'Data Annex'!$K$1:$K$6265,0),MATCH(Q$2,'Data Annex'!$K$1:$AS$1,0)),"") -> 12.13721194 | R22: =IFERROR(INDEX('Data Annex'!$K$1:$AS$6265,MATCH(R$1&"|"&$B22,'Data Annex'!$K$1:$K$6265,0),MATCH(R$2,'Data Annex'!$K$1:$AS$1,0)),"") -> 1778.849965 | S22: =IFERROR(INDEX('Data Annex'!$K$1:$AS$6265,MATCH(S$1&"|"&$B22,'Data Annex'!$K$1:$K$6265,0),MATCH(S$2,'Data Annex'!$K$1:$AS$1,0)),"") -> 1160.170759 | T22: =IFERROR(INDEX('Data Annex'!$K$1:$AS$6265,MATCH(T$1&"|"&$B22,'Data Annex'!$K$1:$K$6265,0),MATCH(T$2,'Data Annex'!$K$1:$AS$1,0)),"") -> 448.113826 | U22: =IFERROR(INDEX('Data Annex'!$K$1:$AS$6265,MATCH(U$1&"|"&$B22,'Data Annex'!$K$1:$K$6265,0),MATCH(U$2,'Data Annex'!$K$1:$AS$1,0)),"") -> 202.6090476
A23: 12 | B23: GR | D23: GR | F23: =IFERROR(INDEX('Data Annex'!$K$1:$AS$6265,MATCH(F$1&"|"&$B23,'Data Annex'!$K$1:$K$6265,0),MATCH(F$2,'Data Annex'!$K$1:$AS$1,0)),"") ->  | G23: =IFERROR(INDEX('Data Annex'!$K$1:$AS$6265,MATCH(G$1&"|"&$B23,'Data Annex'!$K$1:$K$6265,0),MATCH(G$2,'Data Annex'!$K$1:$AS$1,0)),"") ->  | H23: =IFERROR(INDEX('Data Annex'!$K$1:$AS$6265,MATCH(H$1&"|"&$B23,'Data Annex'!$K$1:$K$6265,0),MATCH(H$2,'Data Annex'!$K$1:$AS$1,0)),"") ->  | I23: =IFERROR(INDEX('Data Annex'!$K$1:$AS$6265,MATCH(I$1&"|"&$B23,'Data Annex'!$K$1:$K$6265,0),MATCH(I$2,'Data Annex'!$K$1:$AS$1,0)),"") ->  | J23: =IFERROR(INDEX('Data Annex'!$K$1:$AS$6265,MATCH(J$1&"|"&$B23,'Data Annex'!$K$1:$K$6265,0),MATCH(J$2,'Data Annex'!$K$1:$AS$1,0)),"") ->  | K23: =IFERROR(INDEX('Data Annex'!$K$1:$AS$6265,MATCH(K$1&"|"&$B23,'Data Annex'!$K$1:$K$6265,0),MATCH(K$2,'Data Annex'!$K$1:$AS$1,0)),"") ->  | L23: =IFERROR(INDEX('Data Annex'!$K$1:$AS$6265,MATCH(L$1&"|"&$B23,'Data Annex'!$K$1:$K$6265,0),MATCH(L$2,'Data Annex'!$K$1:$AS$1,0)),"") ->  | M23: =IFERROR(INDEX('Data Annex'!$K$1:$AS$6265,MATCH(M$1&"|"&$B23,'Data Annex'!$K$1:$K$6265,0),MATCH(M$2,'Data Annex'!$K$1:$AS$1,0)),"") ->  | N23: =IFERROR(INDEX('Data Annex'!$K$1:$AS$6265,MATCH(N$1&"|"&$B23,'Data Annex'!$K$1:$K$6265,0),MATCH(N$2,'Data Annex'!$K$1:$AS$1,0)),"") ->  | O23: =IFERROR(INDEX('Data Annex'!$K$1:$AS$6265,MATCH(O$1&"|"&$B23,'Data Annex'!$K$1:$K$6265,0),MATCH(O$2,'Data Annex'!$K$1:$AS$1,0)),"") ->  | P23: =IFERROR(INDEX('Data Annex'!$K$1:$AS$6265,MATCH(P$1&"|"&$B23,'Data Annex'!$K$1:$K$6265,0),MATCH(P$2,'Data Annex'!$K$1:$AS$1,0)),"") ->  | Q23: =IFERROR(INDEX('Data Annex'!$K$1:$AS$6265,MATCH(Q$1&"|"&$B23,'Data Annex'!$K$1:$K$6265,0),MATCH(Q$2,'Data Annex'!$K$1:$AS$1,0)),"") ->  | R23: =IFERROR(INDEX('Data Annex'!$K$1:$AS$6265,MATCH(R$1&"|"&$B23,'Data Annex'!$K$1:$K$6265,0),MATCH(R$2,'Data Annex'!$K$1:$AS$1,0)),"") ->  | S23: =IFERROR(INDEX('Data Annex'!$K$1:$AS$6265,MATCH(S$1&"|"&$B23,'Data Annex'!$K$1:$K$6265,0),MATCH(S$2,'Data Annex'!$K$1:$AS$1,0)),"") ->  | T23: =IFERROR(INDEX('Data Annex'!$K$1:$AS$6265,MATCH(T$1&"|"&$B23,'Data Annex'!$K$1:$K$6265,0),MATCH(T$2,'Data Annex'!$K$1:$AS$1,0)),"") ->  | U23: =IFERROR(INDEX('Data Annex'!$K$1:$AS$6265,MATCH(U$1&"|"&$B23,'Data Annex'!$K$1:$K$6265,0),MATCH(U$2,'Data Annex'!$K$1:$AS$1,0)),"") -> 
A24: 13 | B24: HR | D24: HR | F24: =IFERROR(INDEX('Data Annex'!$K$1:$AS$6265,MATCH(F$1&"|"&$B24,'Data Annex'!$K$1:$K$6265,0),MATCH(F$2,'Data Annex'!$K$1:$AS$1,0)),"") -> 0.1422592009 | G24: =IFERROR(INDEX('Data Annex'!$K$1:$AS$6265,MATCH(G$1&"|"&$B24,'Data Annex'!$K$1:$K$6265,0),MATCH(G$2,'Data Annex'!$K$1:$AS$1,0)),"") -> 0.1394322023 | H24: =IFERROR(INDEX('Data Annex'!$K$1:$AS$6265,MATCH(H$1&"|"&$B24,'Data Annex'!$K$1:$K$6265,0),MATCH(H$2,'Data Annex'!$K$1:$AS$1,0)),"") ->  | I24: =IFERROR(INDEX('Data Annex'!$K$1:$AS$6265,MATCH(I$1&"|"&$B24,'Data Annex'!$K$1:$K$6265,0),MATCH(I$2,'Data Annex'!$K$1:$AS$1,0)),"") ->  | J24: =IFERROR(INDEX('Data Annex'!$K$1:$AS$6265,MATCH(J$1&"|"&$B24,'Data Annex'!$K$1:$K$6265,0),MATCH(J$2,'Data Annex'!$K$1:$AS$1,0)),"") ->  | K24: =IFERROR(INDEX('Data Annex'!$K$1:$AS$6265,MATCH(K$1&"|"&$B24,'Data Annex'!$K$1:$K$6265,0),MATCH(K$2,'Data Annex'!$K$1:$AS$1,0)),"") ->  | L24: =IFERROR(INDEX('Data Annex'!$K$1:$AS$6265,MATCH(L$1&"|"&$B24,'Data Annex'!$K$1:$K$6265,0),MATCH(L$2,'Data Annex'!$K$1:$AS$1,0)),"") ->  | M24: =IFERROR(INDEX('Data Annex'!$K$1:$AS$6265,MATCH(M$1&"|"&$B24,'Data Annex'!$K$1:$K$6265,0),MATCH(M$2,'Data Annex'!$K$1:$AS$1,0)),"") ->  | N24: =IFERROR(INDEX('Data Annex'!$K$1:$AS$6265,MATCH(N$1&"|"&$B24,'Data Annex'!$K$1:$K$6265,0),MATCH(N$2,'Data Annex'!$K$1:$AS$1,0)),"") -> 0.1422592009 | O24: =IFERROR(INDEX('Data Annex'!$K$1:$AS$6265,MATCH(O$1&"|"&$B24,'Data Annex'!$K$1:$K$6265,0),MATCH(O$2,'Data Annex'!$K$1:$AS$1,0)),"") -> 0.1394322023 | P24: =IFERROR(INDEX('Data Annex'!$K$1:$AS$6265,MATCH(P$1&"|"&$B24,'Data Annex'!$K$1:$K$6265,0),MATCH(P$2,'Data Annex'!$K$1:$AS$1,0)),"") -> 0.0001200050562 | Q24: =IFERROR(INDEX('Data Annex'!$K$1:$AS$6265,MATCH(Q$1&"|"&$B24,'Data Annex'!$K$1:$K$6265,0),MATCH(Q$2,'Data Annex'!$K$1:$AS$1,0)),"") -> 0.0001200224452 | R24: =IFERROR(INDEX('Data Annex'!$K$1:$AS$6265,MATCH(R$1&"|"&$B24,'Data Annex'!$K$1:$K$6265,0),MATCH(R$2,'Data Annex'!$K$1:$AS$1,0)),"") ->  | S24: =IFERROR(INDEX('Data Annex'!$K$1:$AS$6265,MATCH(S$1&"|"&$B24,'Data Annex'!$K$1:$K$6265,0),MATCH(S$2,'Data Annex'!$K$1:$AS$1,0)),"") ->  | T24: =IFERROR(INDEX('Data Annex'!$K$1:$AS$6265,MATCH(T$1&"|"&$B24,'Data Annex'!$K$1:$K$6265,0),MATCH(T$2,'Data Annex'!$K$1:$AS$1,0)),"") -> 0.142108022 | U24: =IFERROR(INDEX('Data Annex'!$K$1:$AS$6265,MATCH(U$1&"|"&$B24,'Data Annex'!$K$1:$K$6265,0),MATCH(U$2,'Data Annex'!$K$1:$AS$1,0)),"") -> 0.1392068379
A25: 14 | B25: HU | D25: HU | F25: =IFERROR(INDEX('Data Annex'!$K$1:$AS$6265,MATCH(F$1&"|"&$B25,'Data Annex'!$K$1:$K$6265,0),MATCH(F$2,'Data Annex'!$K$1:$AS$1,0)),"") -> 2435.099706 | G25: =IFERROR(INDEX('Data Annex'!$K$1:$AS$6265,MATCH(G$1&"|"&$B25,'Data Annex'!$K$1:$K$6265,0),MATCH(G$2,'Data Annex'!$K$1:$AS$1,0)),"") -> 2514.760332 | H25: =IFERROR(INDEX('Data Annex'!$K$1:$AS$6265,MATCH(H$1&"|"&$B25,'Data Annex'!$K$1:$K$6265,0),MATCH(H$2,'Data Annex'!$K$1:$AS$1,0)),"") -> 84.32326597 | I25: =IFERROR(INDEX('Data Annex'!$K$1:$AS$6265,MATCH(I$1&"|"&$B25,'Data Annex'!$K$1:$K$6265,0),MATCH(I$2,'Data Annex'!$K$1:$AS$1,0)),"") -> 63.49102129 | J25: =IFERROR(INDEX('Data Annex'!$K$1:$AS$6265,MATCH(J$1&"|"&$B25,'Data Annex'!$K$1:$K$6265,0),MATCH(J$2,'Data Annex'!$K$1:$AS$1,0)),"") -> 475.7227328 | K25: =IFERROR(INDEX('Data Annex'!$K$1:$AS$6265,MATCH(K$1&"|"&$B25,'Data Annex'!$K$1:$K$6265,0),MATCH(K$2,'Data Annex'!$K$1:$AS$1,0)),"") -> 489.6081209 | L25: =IFERROR(INDEX('Data Annex'!$K$1:$AS$6265,MATCH(L$1&"|"&$B25,'Data Annex'!$K$1:$K$6265,0),MATCH(L$2,'Data Annex'!$K$1:$AS$1,0)),"") -> 473.5263833 | M25: =IFERROR(INDEX('Data Annex'!$K$1:$AS$6265,MATCH(M$1&"|"&$B25,'Data Annex'!$K$1:$K$6265,0),MATCH(M$2,'Data Annex'!$K$1:$AS$1,0)),"") -> 488.0935528 | N25: =IFERROR(INDEX('Data Annex'!$K$1:$AS$6265,MATCH(N$1&"|"&$B25,'Data Annex'!$K$1:$K$6265,0),MATCH(N$2,'Data Annex'!$K$1:$AS$1,0)),"") -> 1875.042073 | O25: =IFERROR(INDEX('Data Annex'!$K$1:$AS$6265,MATCH(O$1&"|"&$B25,'Data Annex'!$K$1:$K$6265,0),MATCH(O$2,'Data Annex'!$K$1:$AS$1,0)),"") -> 1961.650236 | P25: =IFERROR(INDEX('Data Annex'!$K$1:$AS$6265,MATCH(P$1&"|"&$B25,'Data Annex'!$K$1:$K$6265,0),MATCH(P$2,'Data Annex'!$K$1:$AS$1,0)),"") -> 46.66425086 | Q25: =IFERROR(INDEX('Data Annex'!$K$1:$AS$6265,MATCH(Q$1&"|"&$B25,'Data Annex'!$K$1:$K$6265,0),MATCH(Q$2,'Data Annex'!$K$1:$AS$1,0)),"") -> 104.3909221 | R25: =IFERROR(INDEX('Data Annex'!$K$1:$AS$6265,MATCH(R$1&"|"&$B25,'Data Annex'!$K$1:$K$6265,0),MATCH(R$2,'Data Annex'!$K$1:$AS$1,0)),"") -> 1447.933096 | S25: =IFERROR(INDEX('Data Annex'!$K$1:$AS$6265,MATCH(S$1&"|"&$B25,'Data Annex'!$K$1:$K$6265,0),MATCH(S$2,'Data Annex'!$K$1:$AS$1,0)),"") -> 1502.120002 | T25: =IFERROR(INDEX('Data Annex'!$K$1:$AS$6265,MATCH(T$1&"|"&$B25,'Data Annex'!$K$1:$K$6265,0),MATCH(T$2,'Data Annex'!$K$1:$AS$1,0)),"") -> 380.4447246 | U25: =IFERROR(INDEX('Data Annex'!$K$1:$AS$6265,MATCH(U$1&"|"&$B25,'Data Annex'!$K$1:$K$6265,0),MATCH(U$2,'Data Annex'!$K$1:$AS$1,0)),"") -> 355.1392627
A26: 15 | B26: IE | D26: IE | F26: =IFERROR(INDEX('Data Annex'!$K$1:$AS$6265,MATCH(F$1&"|"&$B26,'Data Annex'!$K$1:$K$6265,0),MATCH(F$2,'Data Annex'!$K$1:$AS$1,0)),"") -> 5.00054225 | G26: =IFERROR(INDEX('Data Annex'!$K$1:$AS$6265,MATCH(G$1&"|"&$B26,'Data Annex'!$K$1:$K$6265,0),MATCH(G$2,'Data Annex'!$K$1:$AS$1,0)),"") -> 4.33875759 | H26: =IFERROR(INDEX('Data Annex'!$K$1:$AS$6265,MATCH(H$1&"|"&$B26,'Data Annex'!$K$1:$K$6265,0),MATCH(H$2,'Data Annex'!$K$1:$AS$1,0)),"") ->  | I26: =IFERROR(INDEX('Data Annex'!$K$1:$AS$6265,MATCH(I$1&"|"&$B26,'Data Annex'!$K$1:$K$6265,0),MATCH(I$2,'Data Annex'!$K$1:$AS$1,0)),"") ->  | J26: =IFERROR(INDEX('Data Annex'!$K$1:$AS$6265,MATCH(J$1&"|"&$B26,'Data Annex'!$K$1:$K$6265,0),MATCH(J$2,'Data Annex'!$K$1:$AS$1,0)),"") -> 0 | K26: =IFERROR(INDEX('Data Annex'!$K$1:$AS$6265,MATCH(K$1&"|"&$B26,'Data Annex'!$K$1:$K$6265,0),MATCH(K$2,'Data Annex'!$K$1:$AS$1,0)),"") -> 0 | L26: =IFERROR(INDEX('Data Annex'!$K$1:$AS$6265,MATCH(L$1&"|"&$B26,'Data Annex'!$K$1:$K$6265,0),MATCH(L$2,'Data Annex'!$K$1:$AS$1,0)),"") ->  | M26: =IFERROR(INDEX('Data Annex'!$K$1:$AS$6265,MATCH(M$1&"|"&$B26,'Data Annex'!$K$1:$K$6265,0),MATCH(M$2,'Data Annex'!$K$1:$AS$1,0)),"") ->  | N26: =IFERROR(INDEX('Data Annex'!$K$1:$AS$6265,MATCH(N$1&"|"&$B26,'Data Annex'!$K$1:$K$6265,0),MATCH(N$2,'Data Annex'!$K$1:$AS$1,0)),"") -> 5.00054225 | O26: =IFERROR(INDEX('Data Annex'!$K$1:$AS$6265,MATCH(O$1&"|"&$B26,'Data Annex'!$K$1:$K$6265,0),MATCH(O$2,'Data Annex'!$K$1:$AS$1,0)),"") -> 4.33875759 | P26: =IFERROR(INDEX('Data Annex'!$K$1:$AS$6265,MATCH(P$1&"|"&$B26,'Data Annex'!$K$1:$K$6265,0),MATCH(P$2,'Data Annex'!$K$1:$AS$1,0)),"") -> 0 | Q26: =IFERROR(INDEX('Data Annex'!$K$1:$AS$6265,MATCH(Q$1&"|"&$B26,'Data Annex'!$K$1:$K$6265,0),MATCH(Q$2,'Data Annex'!$K$1:$AS$1,0)),"") -> 0 | R26: =IFERROR(INDEX('Data Annex'!$K$1:$AS$6265,MATCH(R$1&"|"&$B26,'Data Annex'!$K$1:$K$6265,0),MATCH(R$2,'Data Annex'!$K$1:$AS$1,0)),"") -> 4.5560168 | S26: =IFERROR(INDEX('Data Annex'!$K$1:$AS$6265,MATCH(S$1&"|"&$B26,'Data Annex'!$K$1:$K$6265,0),MATCH(S$2,'Data Annex'!$K$1:$AS$1,0)),"") -> 4.02902022 | T26: =IFERROR(INDEX('Data Annex'!$K$1:$AS$6265,MATCH(T$1&"|"&$B26,'Data Annex'!$K$1:$K$6265,0),MATCH(T$2,'Data Annex'!$K$1:$AS$1,0)),"") -> 0.44452545 | U26: =IFERROR(INDEX('Data Annex'!$K$1:$AS$6265,MATCH(U$1&"|"&$B26,'Data Annex'!$K$1:$K$6265,0),MATCH(U$2,'Data Annex'!$K$1:$AS$1,0)),"") -> 0.30973737
A27: 16 | B27: IS | D27: IS | F27: =IFERROR(INDEX('Data Annex'!$K$1:$AS$6265,MATCH(F$1&"|"&$B27,'Data Annex'!$K$1:$K$6265,0),MATCH(F$2,'Data Annex'!$K$1:$AS$1,0)),"") -> 9.195799458e-05 | G27: =IFERROR(INDEX('Data Annex'!$K$1:$AS$6265,MATCH(G$1&"|"&$B27,'Data Annex'!$K$1:$K$6265,0),MATCH(G$2,'Data Annex'!$K$1:$AS$1,0)),"") -> 0.0001108450704 | H27: =IFERROR(INDEX('Data Annex'!$K$1:$AS$6265,MATCH(H$1&"|"&$B27,'Data Annex'!$K$1:$K$6265,0),MATCH(H$2,'Data Annex'!$K$1:$AS$1,0)),"") ->  | I27: =IFERROR(INDEX('Data Annex'!$K$1:$AS$6265,MATCH(I$1&"|"&$B27,'Data Annex'!$K$1:$K$6265,0),MATCH(I$2,'Data Annex'!$K$1:$AS$1,0)),"") ->  | J27: =IFERROR(INDEX('Data Annex'!$K$1:$AS$6265,MATCH(J$1&"|"&$B27,'Data Annex'!$K$1:$K$6265,0),MATCH(J$2,'Data Annex'!$K$1:$AS$1,0)),"") ->  | K27: =IFERROR(INDEX('Data Annex'!$K$1:$AS$6265,MATCH(K$1&"|"&$B27,'Data Annex'!$K$1:$K$6265,0),MATCH(K$2,'Data Annex'!$K$1:$AS$1,0)),"") ->  | L27: =IFERROR(INDEX('Data Annex'!$K$1:$AS$6265,MATCH(L$1&"|"&$B27,'Data Annex'!$K$1:$K$6265,0),MATCH(L$2,'Data Annex'!$K$1:$AS$1,0)),"") ->  | M27: =IFERROR(INDEX('Data Annex'!$K$1:$AS$6265,MATCH(M$1&"|"&$B27,'Data Annex'!$K$1:$K$6265,0),MATCH(M$2,'Data Annex'!$K$1:$AS$1,0)),"") ->  | N27: =IFERROR(INDEX('Data Annex'!$K$1:$AS$6265,MATCH(N$1&"|"&$B27,'Data Annex'!$K$1:$K$6265,0),MATCH(N$2,'Data Annex'!$K$1:$AS$1,0)),"") -> 9.195799458e-05 | O27: =IFERROR(INDEX('Data Annex'!$K$1:$AS$6265,MATCH(O$1&"|"&$B27,'Data Annex'!$K$1:$K$6265,0),MATCH(O$2,'Data Annex'!$K$1:$AS$1,0)),"") -> 0.0001108450704 | P27: =IFERROR(INDEX('Data Annex'!$K$1:$AS$6265,MATCH(P$1&"|"&$B27,'Data Annex'!$K$1:$K$6265,0),MATCH(P$2,'Data Annex'!$K$1:$AS$1,0)),"") -> 0 | Q27: =IFERROR(INDEX('Data Annex'!$K$1:$AS$6265,MATCH(Q$1&"|"&$B27,'Data Annex'!$K$1:$K$6265,0),MATCH(Q$2,'Data Annex'!$K$1:$AS$1,0)),"") -> 0 | R27: =IFERROR(INDEX('Data Annex'!$K$1:$AS$6265,MATCH(R$1&"|"&$B27,'Data Annex'!$K$1:$K$6265,0),MATCH(R$2,'Data Annex'!$K$1:$AS$1,0)),"") -> 0 | S27: =IFERROR(INDEX('Data Annex'!$K$1:$AS$6265,MATCH(S$1&"|"&$B27,'Data Annex'!$K$1:$K$6265,0),MATCH(S$2,'Data Annex'!$K$1:$AS$1,0)),"") -> 0 | T27: =IFERROR(INDEX('Data Annex'!$K$1:$AS$6265,MATCH(T$1&"|"&$B27,'Data Annex'!$K$1:$K$6265,0),MATCH(T$2,'Data Annex'!$K$1:$AS$1,0)),"") -> 9.195799458e-05 | U27: =IFERROR(INDEX('Data Annex'!$K$1:$AS$6265,MATCH(U$1&"|"&$B27,'Data Annex'!$K$1:$K$6265,0),MATCH(U$2,'Data Annex'!$K$1:$AS$1,0)),"") -> 0.0001108450704
A28: 17 | B28: IT | D28: IT | F28: =IFERROR(INDEX('Data Annex'!$K$1:$AS$6265,MATCH(F$1&"|"&$B28,'Data Annex'!$K$1:$K$6265,0),MATCH(F$2,'Data Annex'!$K$1:$AS$1,0)),"") -> 389.616737 | G28: =IFERROR(INDEX('Data Annex'!$K$1:$AS$6265,MATCH(G$1&"|"&$B28,'Data Annex'!$K$1:$K$6265,0),MATCH(G$2,'Data Annex'!$K$1:$AS$1,0)),"") -> 380.976724 | H28: =IFERROR(INDEX('Data Annex'!$K$1:$AS$6265,MATCH(H$1&"|"&$B28,'Data Annex'!$K$1:$K$6265,0),MATCH(H$2,'Data Annex'!$K$1:$AS$1,0)),"") -> 3.832963 | I28: =IFERROR(INDEX('Data Annex'!$K$1:$AS$6265,MATCH(I$1&"|"&$B28,'Data Annex'!$K$1:$K$6265,0),MATCH(I$2,'Data Annex'!$K$1:$AS$1,0)),"") -> 3.655561 | J28: =IFERROR(INDEX('Data Annex'!$K$1:$AS$6265,MATCH(J$1&"|"&$B28,'Data Annex'!$K$1:$K$6265,0),MATCH(J$2,'Data Annex'!$K$1:$AS$1,0)),"") -> 47.464099 | K28: =IFERROR(INDEX('Data Annex'!$K$1:$AS$6265,MATCH(K$1&"|"&$B28,'Data Annex'!$K$1:$K$6265,0),MATCH(K$2,'Data Annex'!$K$1:$AS$1,0)),"") -> 45.1929 | L28: =IFERROR(INDEX('Data Annex'!$K$1:$AS$6265,MATCH(L$1&"|"&$B28,'Data Annex'!$K$1:$K$6265,0),MATCH(L$2,'Data Annex'!$K$1:$AS$1,0)),"") -> 47.464099 | M28: =IFERROR(INDEX('Data Annex'!$K$1:$AS$6265,MATCH(M$1&"|"&$B28,'Data Annex'!$K$1:$K$6265,0),MATCH(M$2,'Data Annex'!$K$1:$AS$1,0)),"") -> 45.1929 | N28: =IFERROR(INDEX('Data Annex'!$K$1:$AS$6265,MATCH(N$1&"|"&$B28,'Data Annex'!$K$1:$K$6265,0),MATCH(N$2,'Data Annex'!$K$1:$AS$1,0)),"") -> 338.319675 | O28: =IFERROR(INDEX('Data Annex'!$K$1:$AS$6265,MATCH(O$1&"|"&$B28,'Data Annex'!$K$1:$K$6265,0),MATCH(O$2,'Data Annex'!$K$1:$AS$1,0)),"") -> 332.128263 | P28: =IFERROR(INDEX('Data Annex'!$K$1:$AS$6265,MATCH(P$1&"|"&$B28,'Data Annex'!$K$1:$K$6265,0),MATCH(P$2,'Data Annex'!$K$1:$AS$1,0)),"") -> 27.822915 | Q28: =IFERROR(INDEX('Data Annex'!$K$1:$AS$6265,MATCH(Q$1&"|"&$B28,'Data Annex'!$K$1:$K$6265,0),MATCH(Q$2,'Data Annex'!$K$1:$AS$1,0)),"") -> 29.118915 | R28: =IFERROR(INDEX('Data Annex'!$K$1:$AS$6265,MATCH(R$1&"|"&$B28,'Data Annex'!$K$1:$K$6265,0),MATCH(R$2,'Data Annex'!$K$1:$AS$1,0)),"") -> 143.338709 | S28: =IFERROR(INDEX('Data Annex'!$K$1:$AS$6265,MATCH(S$1&"|"&$B28,'Data Annex'!$K$1:$K$6265,0),MATCH(S$2,'Data Annex'!$K$1:$AS$1,0)),"") -> 137.520518 | T28: =IFERROR(INDEX('Data Annex'!$K$1:$AS$6265,MATCH(T$1&"|"&$B28,'Data Annex'!$K$1:$K$6265,0),MATCH(T$2,'Data Annex'!$K$1:$AS$1,0)),"") -> 110.542675 | U28: =IFERROR(INDEX('Data Annex'!$K$1:$AS$6265,MATCH(U$1&"|"&$B28,'Data Annex'!$K$1:$K$6265,0),MATCH(U$2,'Data Annex'!$K$1:$AS$1,0)),"") -> 111.576459
A29: 19 | B29: LT | D29: LT | F29: =IFERROR(INDEX('Data Annex'!$K$1:$AS$6265,MATCH(F$1&"|"&$B29,'Data Annex'!$K$1:$K$6265,0),MATCH(F$2,'Data Annex'!$K$1:$AS$1,0)),"") -> 0.939 | G29: =IFERROR(INDEX('Data Annex'!$K$1:$AS$6265,MATCH(G$1&"|"&$B29,'Data Annex'!$K$1:$K$6265,0),MATCH(G$2,'Data Annex'!$K$1:$AS$1,0)),"") -> 0.505 | H29: =IFERROR(INDEX('Data Annex'!$K$1:$AS$6265,MATCH(H$1&"|"&$B29,'Data Annex'!$K$1:$K$6265,0),MATCH(H$2,'Data Annex'!$K$1:$AS$1,0)),"") -> 0.31 | I29: =IFERROR(INDEX('Data Annex'!$K$1:$AS$6265,MATCH(I$1&"|"&$B29,'Data Annex'!$K$1:$K$6265,0),MATCH(I$2,'Data Annex'!$K$1:$AS$1,0)),"") -> 0 | J29: =IFERROR(INDEX('Data Annex'!$K$1:$AS$6265,MATCH(J$1&"|"&$B29,'Data Annex'!$K$1:$K$6265,0),MATCH(J$2,'Data Annex'!$K$1:$AS$1,0)),"") ->  | K29: =IFERROR(INDEX('Data Annex'!$K$1:$AS$6265,MATCH(K$1&"|"&$B29,'Data Annex'!$K$1:$K$6265,0),MATCH(K$2,'Data Annex'!$K$1:$AS$1,0)),"") ->  | L29: =IFERROR(INDEX('Data Annex'!$K$1:$AS$6265,MATCH(L$1&"|"&$B29,'Data Annex'!$K$1:$K$6265,0),MATCH(L$2,'Data Annex'!$K$1:$AS$1,0)),"") ->  | M29: =IFERROR(INDEX('Data Annex'!$K$1:$AS$6265,MATCH(M$1&"|"&$B29,'Data Annex'!$K$1:$K$6265,0),MATCH(M$2,'Data Annex'!$K$1:$AS$1,0)),"") ->  | N29: =IFERROR(INDEX('Data Annex'!$K$1:$AS$6265,MATCH(N$1&"|"&$B29,'Data Annex'!$K$1:$K$6265,0),MATCH(N$2,'Data Annex'!$K$1:$AS$1,0)),"") -> 0.629 | O29: =IFERROR(INDEX('Data Annex'!$K$1:$AS$6265,MATCH(O$1&"|"&$B29,'Data Annex'!$K$1:$K$6265,0),MATCH(O$2,'Data Annex'!$K$1:$AS$1,0)),"") -> 0.505 | P29: =IFERROR(INDEX('Data Annex'!$K$1:$AS$6265,MATCH(P$1&"|"&$B29,'Data Annex'!$K$1:$K$6265,0),MATCH(P$2,'Data Annex'!$K$1:$AS$1,0)),"") -> 0 | Q29: =IFERROR(INDEX('Data Annex'!$K$1:$AS$6265,MATCH(Q$1&"|"&$B29,'Data Annex'!$K$1:$K$6265,0),MATCH(Q$2,'Data Annex'!$K$1:$AS$1,0)),"") -> 0 | R29: =IFERROR(INDEX('Data Annex'!$K$1:$AS$6265,MATCH(R$1&"|"&$B29,'Data Annex'!$K$1:$K$6265,0),MATCH(R$2,'Data Annex'!$K$1:$AS$1,0)),"") ->  | S29: =IFERROR(INDEX('Data Annex'!$K$1:$AS$6265,MATCH(S$1&"|"&$B29,'Data Annex'!$K$1:$K$6265,0),MATCH(S$2,'Data Annex'!$K$1:$AS$1,0)),"") ->  | T29: =IFERROR(INDEX('Data Annex'!$K$1:$AS$6265,MATCH(T$1&"|"&$B29,'Data Annex'!$K$1:$K$6265,0),MATCH(T$2,'Data Annex'!$K$1:$AS$1,0)),"") -> 0.629 | U29: =IFERROR(INDEX('Data Annex'!$K$1:$AS$6265,MATCH(U$1&"|"&$B29,'Data Annex'!$K$1:$K$6265,0),MATCH(U$2,'Data Annex'!$K$1:$AS$1,0)),"") -> 0.505
A30: 20 | B30: LU | D30: LU | F30: =IFERROR(INDEX('Data Annex'!$K$1:$AS$6265,MATCH(F$1&"|"&$B30,'Data Annex'!$K$1:$K$6265,0),MATCH(F$2,'Data Annex'!$K$1:$AS$1,0)),"") -> 15.63518564 | G30: =IFERROR(INDEX('Data Annex'!$K$1:$AS$6265,MATCH(G$1&"|"&$B30,'Data Annex'!$K$1:$K$6265,0),MATCH(G$2,'Data Annex'!$K$1:$AS$1,0)),"") -> 13.28465784 | H30: =IFERROR(INDEX('Data Annex'!$K$1:$AS$6265,MATCH(H$1&"|"&$B30,'Data Annex'!$K$1:$K$6265,0),MATCH(H$2,'Data Annex'!$K$1:$AS$1,0)),"") -> 2.47441111 | I30: =IFERROR(INDEX('Data Annex'!$K$1:$AS$6265,MATCH(I$1&"|"&$B30,'Data Annex'!$K$1:$K$6265,0),MATCH(I$2,'Data Annex'!$K$1:$AS$1,0)),"") -> 0 | J30: =IFERROR(INDEX('Data Annex'!$K$1:$AS$6265,MATCH(J$1&"|"&$B30,'Data Annex'!$K$1:$K$6265,0),MATCH(J$2,'Data Annex'!$K$1:$AS$1,0)),"") -> 0 | K30: =IFERROR(INDEX('Data Annex'!$K$1:$AS$6265,MATCH(K$1&"|"&$B30,'Data Annex'!$K$1:$K$6265,0),MATCH(K$2,'Data Annex'!$K$1:$AS$1,0)),"") -> 0 | L30: =IFERROR(INDEX('Data Annex'!$K$1:$AS$6265,MATCH(L$1&"|"&$B30,'Data Annex'!$K$1:$K$6265,0),MATCH(L$2,'Data Annex'!$K$1:$AS$1,0)),"") -> 0 | M30: =IFERROR(INDEX('Data Annex'!$K$1:$AS$6265,MATCH(M$1&"|"&$B30,'Data Annex'!$K$1:$K$6265,0),MATCH(M$2,'Data Annex'!$K$1:$AS$1,0)),"") -> 0 | N30: =IFERROR(INDEX('Data Annex'!$K$1:$AS$6265,MATCH(N$1&"|"&$B30,'Data Annex'!$K$1:$K$6265,0),MATCH(N$2,'Data Annex'!$K$1:$AS$1,0)),"") -> 13.16077453 | O30: =IFERROR(INDEX('Data Annex'!$K$1:$AS$6265,MATCH(O$1&"|"&$B30,'Data Annex'!$K$1:$K$6265,0),MATCH(O$2,'Data Annex'!$K$1:$AS$1,0)),"") -> 13.28465784 | P30: =IFERROR(INDEX('Data Annex'!$K$1:$AS$6265,MATCH(P$1&"|"&$B30,'Data Annex'!$K$1:$K$6265,0),MATCH(P$2,'Data Annex'!$K$1:$AS$1,0)),"") -> 0 | Q30: =IFERROR(INDEX('Data Annex'!$K$1:$AS$6265,MATCH(Q$1&"|"&$B30,'Data Annex'!$K$1:$K$6265,0),MATCH(Q$2,'Data Annex'!$K$1:$AS$1,0)),"") -> 0 | R30: =IFERROR(INDEX('Data Annex'!$K$1:$AS$6265,MATCH(R$1&"|"&$B30,'Data Annex'!$K$1:$K$6265,0),MATCH(R$2,'Data Annex'!$K$1:$AS$1,0)),"") -> 0 | S30: =IFERROR(INDEX('Data Annex'!$K$1:$AS$6265,MATCH(S$1&"|"&$B30,'Data Annex'!$K$1:$K$6265,0),MATCH(S$2,'Data Annex'!$K$1:$AS$1,0)),"") -> 0 | T30: =IFERROR(INDEX('Data Annex'!$K$1:$AS$6265,MATCH(T$1&"|"&$B30,'Data Annex'!$K$1:$K$6265,0),MATCH(T$2,'Data Annex'!$K$1:$AS$1,0)),"") -> 13.16077453 | U30: =IFERROR(INDEX('Data Annex'!$K$1:$AS$6265,MATCH(U$1&"|"&$B30,'Data Annex'!$K$1:$K$6265,0),MATCH(U$2,'Data Annex'!$K$1:$AS$1,0)),"") -> 13.28465784
A31: 21 | B31: LV | D31: LV | F31: =IFERROR(INDEX('Data Annex'!$K$1:$AS$6265,MATCH(F$1&"|"&$B31,'Data Annex'!$K$1:$K$6265,0),MATCH(F$2,'Data Annex'!$K$1:$AS$1,0)),"") -> 2.14433171 | G31: =IFERROR(INDEX('Data Annex'!$K$1:$AS$6265,MATCH(G$1&"|"&$B31,'Data Annex'!$K$1:$K$6265,0),MATCH(G$2,'Data Annex'!$K$1:$AS$1,0)),"") -> 1.15643978 | H31: =IFERROR(INDEX('Data Annex'!$K$1:$AS$6265,MATCH(H$1&"|"&$B31,'Data Annex'!$K$1:$K$6265,0),MATCH(H$2,'Data Annex'!$K$1:$AS$1,0)),"") -> 0 | I31: =IFERROR(INDEX('Data Annex'!$K$1:$AS$6265,MATCH(I$1&"|"&$B31,'Data Annex'!$K$1:$K$6265,0),MATCH(I$2,'Data Annex'!$K$1:$AS$1,0)),"") -> 9.66e-06 | J31: =IFERROR(INDEX('Data Annex'!$K$1:$AS$6265,MATCH(J$1&"|"&$B31,'Data Annex'!$K$1:$K$6265,0),MATCH(J$2,'Data Annex'!$K$1:$AS$1,0)),"") -> 1.02572751 | K31: =IFERROR(INDEX('Data Annex'!$K$1:$AS$6265,MATCH(K$1&"|"&$B31,'Data Annex'!$K$1:$K$6265,0),MATCH(K$2,'Data Annex'!$K$1:$AS$1,0)),"") -> 0 | L31: =IFERROR(INDEX('Data Annex'!$K$1:$AS$6265,MATCH(L$1&"|"&$B31,'Data Annex'!$K$1:$K$6265,0),MATCH(L$2,'Data Annex'!$K$1:$AS$1,0)),"") ->  | M31: =IFERROR(INDEX('Data Annex'!$K$1:$AS$6265,MATCH(M$1&"|"&$B31,'Data Annex'!$K$1:$K$6265,0),MATCH(M$2,'Data Annex'!$K$1:$AS$1,0)),"") ->  | N31: =IFERROR(INDEX('Data Annex'!$K$1:$AS$6265,MATCH(N$1&"|"&$B31,'Data Annex'!$K$1:$K$6265,0),MATCH(N$2,'Data Annex'!$K$1:$AS$1,0)),"") -> 1.1186042 | O31: =IFERROR(INDEX('Data Annex'!$K$1:$AS$6265,MATCH(O$1&"|"&$B31,'Data Annex'!$K$1:$K$6265,0),MATCH(O$2,'Data Annex'!$K$1:$AS$1,0)),"") -> 1.15643012 | P31: =IFERROR(INDEX('Data Annex'!$K$1:$AS$6265,MATCH(P$1&"|"&$B31,'Data Annex'!$K$1:$K$6265,0),MATCH(P$2,'Data Annex'!$K$1:$AS$1,0)),"") -> 0 | Q31: =IFERROR(INDEX('Data Annex'!$K$1:$AS$6265,MATCH(Q$1&"|"&$B31,'Data Annex'!$K$1:$K$6265,0),MATCH(Q$2,'Data Annex'!$K$1:$AS$1,0)),"") -> 0 | R31: =IFERROR(INDEX('Data Annex'!$K$1:$AS$6265,MATCH(R$1&"|"&$B31,'Data Annex'!$K$1:$K$6265,0),MATCH(R$2,'Data Annex'!$K$1:$AS$1,0)),"") ->  | S31: =IFERROR(INDEX('Data Annex'!$K$1:$AS$6265,MATCH(S$1&"|"&$B31,'Data Annex'!$K$1:$K$6265,0),MATCH(S$2,'Data Annex'!$K$1:$AS$1,0)),"") ->  | T31: =IFERROR(INDEX('Data Annex'!$K$1:$AS$6265,MATCH(T$1&"|"&$B31,'Data Annex'!$K$1:$K$6265,0),MATCH(T$2,'Data Annex'!$K$1:$AS$1,0)),"") -> 1.1186042 | U31: =IFERROR(INDEX('Data Annex'!$K$1:$AS$6265,MATCH(U$1&"|"&$B31,'Data Annex'!$K$1:$K$6265,0),MATCH(U$2,'Data Annex'!$K$1:$AS$1,0)),"") -> 1.15643012
A32: 22 | B32: MT | D32: MT | F32: =IFERROR(INDEX('Data Annex'!$K$1:$AS$6265,MATCH(F$1&"|"&$B32,'Data Annex'!$K$1:$K$6265,0),MATCH(F$2,'Data Annex'!$K$1:$AS$1,0)),"") -> 0 | G32: =IFERROR(INDEX('Data Annex'!$K$1:$AS$6265,MATCH(G$1&"|"&$B32,'Data Annex'!$K$1:$K$6265,0),MATCH(G$2,'Data Annex'!$K$1:$AS$1,0)),"") -> 0.001 | H32: =IFERROR(INDEX('Data Annex'!$K$1:$AS$6265,MATCH(H$1&"|"&$B32,'Data Annex'!$K$1:$K$6265,0),MATCH(H$2,'Data Annex'!$K$1:$AS$1,0)),"") -> 0 | I32: =IFERROR(INDEX('Data Annex'!$K$1:$AS$6265,MATCH(I$1&"|"&$B32,'Data Annex'!$K$1:$K$6265,0),MATCH(I$2,'Data Annex'!$K$1:$AS$1,0)),"") -> 0 | J32: =IFERROR(INDEX('Data Annex'!$K$1:$AS$6265,MATCH(J$1&"|"&$B32,'Data Annex'!$K$1:$K$6265,0),MATCH(J$2,'Data Annex'!$K$1:$AS$1,0)),"") -> 0 | K32: =IFERROR(INDEX('Data Annex'!$K$1:$AS$6265,MATCH(K$1&"|"&$B32,'Data Annex'!$K$1:$K$6265,0),MATCH(K$2,'Data Annex'!$K$1:$AS$1,0)),"") -> 0 | L32: =IFERROR(INDEX('Data Annex'!$K$1:$AS$6265,MATCH(L$1&"|"&$B32,'Data Annex'!$K$1:$K$6265,0),MATCH(L$2,'Data Annex'!$K$1:$AS$1,0)),"") -> 0 | M32: =IFERROR(INDEX('Data Annex'!$K$1:$AS$6265,MATCH(M$1&"|"&$B32,'Data Annex'!$K$1:$K$6265,0),MATCH(M$2,'Data Annex'!$K$1:$AS$1,0)),"") -> 0 | N32: =IFERROR(INDEX('Data Annex'!$K$1:$AS$6265,MATCH(N$1&"|"&$B32,'Data Annex'!$K$1:$K$6265,0),MATCH(N$2,'Data Annex'!$K$1:$AS$1,0)),"") -> 0 | O32: =IFERROR(INDEX('Data Annex'!$K$1:$AS$6265,MATCH(O$1&"|"&$B32,'Data Annex'!$K$1:$K$6265,0),MATCH(O$2,'Data Annex'!$K$1:$AS$1,0)),"") -> 0.001 | P32: =IFERROR(INDEX('Data Annex'!$K$1:$AS$6265,MATCH(P$1&"|"&$B32,'Data Annex'!$K$1:$K$6265,0),MATCH(P$2,'Data Annex'!$K$1:$AS$1,0)),"") -> 0 | Q32: =IFERROR(INDEX('Data Annex'!$K$1:$AS$6265,MATCH(Q$1&"|"&$B32,'Data Annex'!$K$1:$K$6265,0),MATCH(Q$2,'Data Annex'!$K$1:$AS$1,0)),"") -> 0 | R32: =IFERROR(INDEX('Data Annex'!$K$1:$AS$6265,MATCH(R$1&"|"&$B32,'Data Annex'!$K$1:$K$6265,0),MATCH(R$2,'Data Annex'!$K$1:$AS$1,0)),"") -> 0 | S32: =IFERROR(INDEX('Data Annex'!$K$1:$AS$6265,MATCH(S$1&"|"&$B32,'Data Annex'!$K$1:$K$6265,0),MATCH(S$2,'Data Annex'!$K$1:$AS$1,0)),"") -> 0 | T32: =IFERROR(INDEX('Data Annex'!$K$1:$AS$6265,MATCH(T$1&"|"&$B32,'Data Annex'!$K$1:$K$6265,0),MATCH(T$2,'Data Annex'!$K$1:$AS$1,0)),"") -> 0 | U32: =IFERROR(INDEX('Data Annex'!$K$1:$AS$6265,MATCH(U$1&"|"&$B32,'Data Annex'!$K$1:$K$6265,0),MATCH(U$2,'Data Annex'!$K$1:$AS$1,0)),"") -> 0.001
A33: 23 | B33: NL | D33: NL | F33: =IFERROR(INDEX('Data Annex'!$K$1:$AS$6265,MATCH(F$1&"|"&$B33,'Data Annex'!$K$1:$K$6265,0),MATCH(F$2,'Data Annex'!$K$1:$AS$1,0)),"") -> 706.118408 | G33: =IFERROR(INDEX('Data Annex'!$K$1:$AS$6265,MATCH(G$1&"|"&$B33,'Data Annex'!$K$1:$K$6265,0),MATCH(G$2,'Data Annex'!$K$1:$AS$1,0)),"") -> 603.802965 | H33: =IFERROR(INDEX('Data Annex'!$K$1:$AS$6265,MATCH(H$1&"|"&$B33,'Data Annex'!$K$1:$K$6265,0),MATCH(H$2,'Data Annex'!$K$1:$AS$1,0)),"") -> 34.738 | I33: =IFERROR(INDEX('Data Annex'!$K$1:$AS$6265,MATCH(I$1&"|"&$B33,'Data Annex'!$K$1:$K$6265,0),MATCH(I$2,'Data Annex'!$K$1:$AS$1,0)),"") -> 174.021 | J33: =IFERROR(INDEX('Data Annex'!$K$1:$AS$6265,MATCH(J$1&"|"&$B33,'Data Annex'!$K$1:$K$6265,0),MATCH(J$2,'Data Annex'!$K$1:$AS$1,0)),"") -> 22.58 | K33: =IFERROR(INDEX('Data Annex'!$K$1:$AS$6265,MATCH(K$1&"|"&$B33,'Data Annex'!$K$1:$K$6265,0),MATCH(K$2,'Data Annex'!$K$1:$AS$1,0)),"") -> 0.183 | L33: =IFERROR(INDEX('Data Annex'!$K$1:$AS$6265,MATCH(L$1&"|"&$B33,'Data Annex'!$K$1:$K$6265,0),MATCH(L$2,'Data Annex'!$K$1:$AS$1,0)),"") -> 21.36 | M33: =IFERROR(INDEX('Data Annex'!$K$1:$AS$6265,MATCH(M$1&"|"&$B33,'Data Annex'!$K$1:$K$6265,0),MATCH(M$2,'Data Annex'!$K$1:$AS$1,0)),"") -> 0 | N33: =IFERROR(INDEX('Data Annex'!$K$1:$AS$6265,MATCH(N$1&"|"&$B33,'Data Annex'!$K$1:$K$6265,0),MATCH(N$2,'Data Annex'!$K$1:$AS$1,0)),"") -> 648.800408 | O33: =IFERROR(INDEX('Data Annex'!$K$1:$AS$6265,MATCH(O$1&"|"&$B33,'Data Annex'!$K$1:$K$6265,0),MATCH(O$2,'Data Annex'!$K$1:$AS$1,0)),"") -> 429.598965 | P33: =IFERROR(INDEX('Data Annex'!$K$1:$AS$6265,MATCH(P$1&"|"&$B33,'Data Annex'!$K$1:$K$6265,0),MATCH(P$2,'Data Annex'!$K$1:$AS$1,0)),"") -> 0 | Q33: =IFERROR(INDEX('Data Annex'!$K$1:$AS$6265,MATCH(Q$1&"|"&$B33,'Data Annex'!$K$1:$K$6265,0),MATCH(Q$2,'Data Annex'!$K$1:$AS$1,0)),"") -> 0 | R33: =IFERROR(INDEX('Data Annex'!$K$1:$AS$6265,MATCH(R$1&"|"&$B33,'Data Annex'!$K$1:$K$6265,0),MATCH(R$2,'Data Annex'!$K$1:$AS$1,0)),"") -> 519.685294 | S33: =IFERROR(INDEX('Data Annex'!$K$1:$AS$6265,MATCH(S$1&"|"&$B33,'Data Annex'!$K$1:$K$6265,0),MATCH(S$2,'Data Annex'!$K$1:$AS$1,0)),"") -> 426.837288 | T33: =IFERROR(INDEX('Data Annex'!$K$1:$AS$6265,MATCH(T$1&"|"&$B33,'Data Annex'!$K$1:$K$6265,0),MATCH(T$2,'Data Annex'!$K$1:$AS$1,0)),"") -> 2.797114 | U33: =IFERROR(INDEX('Data Annex'!$K$1:$AS$6265,MATCH(U$1&"|"&$B33,'Data Annex'!$K$1:$K$6265,0),MATCH(U$2,'Data Annex'!$K$1:$AS$1,0)),"") -> 2.761677
A34: 24 | B34: NO | D34: NO* | F34: =IFERROR(INDEX('Data Annex'!$K$1:$AS$6265,MATCH(F$1&"|"&$B34,'Data Annex'!$K$1:$K$6265,0),MATCH(F$2,'Data Annex'!$K$1:$AS$1,0)),"") -> n.a. | G34: =IFERROR(INDEX('Data Annex'!$K$1:$AS$6265,MATCH(G$1&"|"&$B34,'Data Annex'!$K$1:$K$6265,0),MATCH(G$2,'Data Annex'!$K$1:$AS$1,0)),"") -> n.a. | H34: n.a. | I34: n.a. | J34: n.a. | K34: n.a. | L34: n.a. | M34: n.a. | N34: =IFERROR(INDEX('Data Annex'!$K$1:$AS$6265,MATCH(N$1&"|"&$B34,'Data Annex'!$K$1:$K$6265,0),MATCH(N$2,'Data Annex'!$K$1:$AS$1,0)),"") -> n.a. | O34: =IFERROR(INDEX('Data Annex'!$K$1:$AS$6265,MATCH(O$1&"|"&$B34,'Data Annex'!$K$1:$K$6265,0),MATCH(O$2,'Data Annex'!$K$1:$AS$1,0)),"") -> n.a. | P34: n.a. | Q34: n.a. | R34: n.a. | S34: n.a. | T34: =IFERROR(INDEX('Data Annex'!$K$1:$AS$6265,MATCH(T$1&"|"&$B34,'Data Annex'!$K$1:$K$6265,0),MATCH(T$2,'Data Annex'!$K$1:$AS$1,0)),"") -> n.a. | U34: =IFERROR(INDEX('Data Annex'!$K$1:$AS$6265,MATCH(U$1&"|"&$B34,'Data Annex'!$K$1:$K$6265,0),MATCH(U$2,'Data Annex'!$K$1:$AS$1,0)),"") -> n.a.
A35: 25 | B35: PL | D35: PL | F35: =IFERROR(INDEX('Data Annex'!$K$1:$AS$6265,MATCH(F$1&"|"&$B35,'Data Annex'!$K$1:$K$6265,0),MATCH(F$2,'Data Annex'!$K$1:$AS$1,0)),"") ->  | G35: =IFERROR(INDEX('Data Annex'!$K$1:$AS$6265,MATCH(G$1&"|"&$B35,'Data Annex'!$K$1:$K$6265,0),MATCH(G$2,'Data Annex'!$K$1:$AS$1,0)),"") ->  | H35: =IFERROR(INDEX('Data Annex'!$K$1:$AS$6265,MATCH(H$1&"|"&$B35,'Data Annex'!$K$1:$K$6265,0),MATCH(H$2,'Data Annex'!$K$1:$AS$1,0)),"") ->  | I35: =IFERROR(INDEX('Data Annex'!$K$1:$AS$6265,MATCH(I$1&"|"&$B35,'Data Annex'!$K$1:$K$6265,0),MATCH(I$2,'Data Annex'!$K$1:$AS$1,0)),"") ->  | J35: =IFERROR(INDEX('Data Annex'!$K$1:$AS$6265,MATCH(J$1&"|"&$B35,'Data Annex'!$K$1:$K$6265,0),MATCH(J$2,'Data Annex'!$K$1:$AS$1,0)),"") ->  | K35: =IFERROR(INDEX('Data Annex'!$K$1:$AS$6265,MATCH(K$1&"|"&$B35,'Data Annex'!$K$1:$K$6265,0),MATCH(K$2,'Data Annex'!$K$1:$AS$1,0)),"") ->  | L35: =IFERROR(INDEX('Data Annex'!$K$1:$AS$6265,MATCH(L$1&"|"&$B35,'Data Annex'!$K$1:$K$6265,0),MATCH(L$2,'Data Annex'!$K$1:$AS$1,0)),"") ->  | M35: =IFERROR(INDEX('Data Annex'!$K$1:$AS$6265,MATCH(M$1&"|"&$B35,'Data Annex'!$K$1:$K$6265,0),MATCH(M$2,'Data Annex'!$K$1:$AS$1,0)),"") ->  | N35: =IFERROR(INDEX('Data Annex'!$K$1:$AS$6265,MATCH(N$1&"|"&$B35,'Data Annex'!$K$1:$K$6265,0),MATCH(N$2,'Data Annex'!$K$1:$AS$1,0)),"") ->  | O35: =IFERROR(INDEX('Data Annex'!$K$1:$AS$6265,MATCH(O$1&"|"&$B35,'Data Annex'!$K$1:$K$6265,0),MATCH(O$2,'Data Annex'!$K$1:$AS$1,0)),"") ->  | P35: =IFERROR(INDEX('Data Annex'!$K$1:$AS$6265,MATCH(P$1&"|"&$B35,'Data Annex'!$K$1:$K$6265,0),MATCH(P$2,'Data Annex'!$K$1:$AS$1,0)),"") ->  | Q35: =IFERROR(INDEX('Data Annex'!$K$1:$AS$6265,MATCH(Q$1&"|"&$B35,'Data Annex'!$K$1:$K$6265,0),MATCH(Q$2,'Data Annex'!$K$1:$AS$1,0)),"") ->  | R35: =IFERROR(INDEX('Data Annex'!$K$1:$AS$6265,MATCH(R$1&"|"&$B35,'Data Annex'!$K$1:$K$6265,0),MATCH(R$2,'Data Annex'!$K$1:$AS$1,0)),"") ->  | S35: =IFERROR(INDEX('Data Annex'!$K$1:$AS$6265,MATCH(S$1&"|"&$B35,'Data Annex'!$K$1:$K$6265,0),MATCH(S$2,'Data Annex'!$K$1:$AS$1,0)),"") ->  | T35: =IFERROR(INDEX('Data Annex'!$K$1:$AS$6265,MATCH(T$1&"|"&$B35,'Data Annex'!$K$1:$K$6265,0),MATCH(T$2,'Data Annex'!$K$1:$AS$1,0)),"") ->  | U35: =IFERROR(INDEX('Data Annex'!$K$1:$AS$6265,MATCH(U$1&"|"&$B35,'Data Annex'!$K$1:$K$6265,0),MATCH(U$2,'Data Annex'!$K$1:$AS$1,0)),"") -> 
A36: 26 | B36: PT | D36: PT | F36: =IFERROR(INDEX('Data Annex'!$K$1:$AS$6265,MATCH(F$1&"|"&$B36,'Data Annex'!$K$1:$K$6265,0),MATCH(F$2,'Data Annex'!$K$1:$AS$1,0)),"") -> 4.22851272 | G36: =IFERROR(INDEX('Data Annex'!$K$1:$AS$6265,MATCH(G$1&"|"&$B36,'Data Annex'!$K$1:$K$6265,0),MATCH(G$2,'Data Annex'!$K$1:$AS$1,0)),"") -> 3.0998496 | H36: =IFERROR(INDEX('Data Annex'!$K$1:$AS$6265,MATCH(H$1&"|"&$B36,'Data Annex'!$K$1:$K$6265,0),MATCH(H$2,'Data Annex'!$K$1:$AS$1,0)),"") ->  | I36: =IFERROR(INDEX('Data Annex'!$K$1:$AS$6265,MATCH(I$1&"|"&$B36,'Data Annex'!$K$1:$K$6265,0),MATCH(I$2,'Data Annex'!$K$1:$AS$1,0)),"") ->  | J36: =IFERROR(INDEX('Data Annex'!$K$1:$AS$6265,MATCH(J$1&"|"&$B36,'Data Annex'!$K$1:$K$6265,0),MATCH(J$2,'Data Annex'!$K$1:$AS$1,0)),"") ->  | K36: =IFERROR(INDEX('Data Annex'!$K$1:$AS$6265,MATCH(K$1&"|"&$B36,'Data Annex'!$K$1:$K$6265,0),MATCH(K$2,'Data Annex'!$K$1:$AS$1,0)),"") ->  | L36: =IFERROR(INDEX('Data Annex'!$K$1:$AS$6265,MATCH(L$1&"|"&$B36,'Data Annex'!$K$1:$K$6265,0),MATCH(L$2,'Data Annex'!$K$1:$AS$1,0)),"") ->  | M36: =IFERROR(INDEX('Data Annex'!$K$1:$AS$6265,MATCH(M$1&"|"&$B36,'Data Annex'!$K$1:$K$6265,0),MATCH(M$2,'Data Annex'!$K$1:$AS$1,0)),"") ->  | N36: =IFERROR(INDEX('Data Annex'!$K$1:$AS$6265,MATCH(N$1&"|"&$B36,'Data Annex'!$K$1:$K$6265,0),MATCH(N$2,'Data Annex'!$K$1:$AS$1,0)),"") -> 4.22851272 | O36: =IFERROR(INDEX('Data Annex'!$K$1:$AS$6265,MATCH(O$1&"|"&$B36,'Data Annex'!$K$1:$K$6265,0),MATCH(O$2,'Data Annex'!$K$1:$AS$1,0)),"") -> 3.0998496 | P36: =IFERROR(INDEX('Data Annex'!$K$1:$AS$6265,MATCH(P$1&"|"&$B36,'Data Annex'!$K$1:$K$6265,0),MATCH(P$2,'Data Annex'!$K$1:$AS$1,0)),"") ->  | Q36: =IFERROR(INDEX('Data Annex'!$K$1:$AS$6265,MATCH(Q$1&"|"&$B36,'Data Annex'!$K$1:$K$6265,0),MATCH(Q$2,'Data Annex'!$K$1:$AS$1,0)),"") ->  | R36: =IFERROR(INDEX('Data Annex'!$K$1:$AS$6265,MATCH(R$1&"|"&$B36,'Data Annex'!$K$1:$K$6265,0),MATCH(R$2,'Data Annex'!$K$1:$AS$1,0)),"") ->  | S36: =IFERROR(INDEX('Data Annex'!$K$1:$AS$6265,MATCH(S$1&"|"&$B36,'Data Annex'!$K$1:$K$6265,0),MATCH(S$2,'Data Annex'!$K$1:$AS$1,0)),"") ->  | T36: =IFERROR(INDEX('Data Annex'!$K$1:$AS$6265,MATCH(T$1&"|"&$B36,'Data Annex'!$K$1:$K$6265,0),MATCH(T$2,'Data Annex'!$K$1:$AS$1,0)),"") -> 4.22851272 | U36: =IFERROR(INDEX('Data Annex'!$K$1:$AS$6265,MATCH(U$1&"|"&$B36,'Data Annex'!$K$1:$K$6265,0),MATCH(U$2,'Data Annex'!$K$1:$AS$1,0)),"") -> 3.0998496
A37: 27 | B37: RO | D37: RO | F37: =IFERROR(INDEX('Data Annex'!$K$1:$AS$6265,MATCH(F$1&"|"&$B37,'Data Annex'!$K$1:$K$6265,0),MATCH(F$2,'Data Annex'!$K$1:$AS$1,0)),"") -> 0.4688023843 | G37: =IFERROR(INDEX('Data Annex'!$K$1:$AS$6265,MATCH(G$1&"|"&$B37,'Data Annex'!$K$1:$K$6265,0),MATCH(G$2,'Data Annex'!$K$1:$AS$1,0)),"") -> 0.4692295251 | H37: =IFERROR(INDEX('Data Annex'!$K$1:$AS$6265,MATCH(H$1&"|"&$B37,'Data Annex'!$K$1:$K$6265,0),MATCH(H$2,'Data Annex'!$K$1:$AS$1,0)),"") -> 0 | I37: =IFERROR(INDEX('Data Annex'!$K$1:$AS$6265,MATCH(I$1&"|"&$B37,'Data Annex'!$K$1:$K$6265,0),MATCH(I$2,'Data Annex'!$K$1:$AS$1,0)),"") -> 0 | J37: =IFERROR(INDEX('Data Annex'!$K$1:$AS$6265,MATCH(J$1&"|"&$B37,'Data Annex'!$K$1:$K$6265,0),MATCH(J$2,'Data Annex'!$K$1:$AS$1,0)),"") -> 0 | K37: =IFERROR(INDEX('Data Annex'!$K$1:$AS$6265,MATCH(K$1&"|"&$B37,'Data Annex'!$K$1:$K$6265,0),MATCH(K$2,'Data Annex'!$K$1:$AS$1,0)),"") -> 0 | L37: =IFERROR(INDEX('Data Annex'!$K$1:$AS$6265,MATCH(L$1&"|"&$B37,'Data Annex'!$K$1:$K$6265,0),MATCH(L$2,'Data Annex'!$K$1:$AS$1,0)),"") -> 0 | M37: =IFERROR(INDEX('Data Annex'!$K$1:$AS$6265,MATCH(M$1&"|"&$B37,'Data Annex'!$K$1:$K$6265,0),MATCH(M$2,'Data Annex'!$K$1:$AS$1,0)),"") -> 0 | N37: =IFERROR(INDEX('Data Annex'!$K$1:$AS$6265,MATCH(N$1&"|"&$B37,'Data Annex'!$K$1:$K$6265,0),MATCH(N$2,'Data Annex'!$K$1:$AS$1,0)),"") -> 0.4688023843 | O37: =IFERROR(INDEX('Data Annex'!$K$1:$AS$6265,MATCH(O$1&"|"&$B37,'Data Annex'!$K$1:$K$6265,0),MATCH(O$2,'Data Annex'!$K$1:$AS$1,0)),"") -> 0.4692295251 | P37: =IFERROR(INDEX('Data Annex'!$K$1:$AS$6265,MATCH(P$1&"|"&$B37,'Data Annex'!$K$1:$K$6265,0),MATCH(P$2,'Data Annex'!$K$1:$AS$1,0)),"") -> 0 | Q37: =IFERROR(INDEX('Data Annex'!$K$1:$AS$6265,MATCH(Q$1&"|"&$B37,'Data Annex'!$K$1:$K$6265,0),MATCH(Q$2,'Data Annex'!$K$1:$AS$1,0)),"") -> 0 | R37: =IFERROR(INDEX('Data Annex'!$K$1:$AS$6265,MATCH(R$1&"|"&$B37,'Data Annex'!$K$1:$K$6265,0),MATCH(R$2,'Data Annex'!$K$1:$AS$1,0)),"") -> 4.910082845e-05 | S37: =IFERROR(INDEX('Data Annex'!$K$1:$AS$6265,MATCH(S$1&"|"&$B37,'Data Annex'!$K$1:$K$6265,0),MATCH(S$2,'Data Annex'!$K$1:$AS$1,0)),"") -> 5.579928431e-05 | T37: =IFERROR(INDEX('Data Annex'!$K$1:$AS$6265,MATCH(T$1&"|"&$B37,'Data Annex'!$K$1:$K$6265,0),MATCH(T$2,'Data Annex'!$K$1:$AS$1,0)),"") -> 0.4687532835 | U37: =IFERROR(INDEX('Data Annex'!$K$1:$AS$6265,MATCH(U$1&"|"&$B37,'Data Annex'!$K$1:$K$6265,0),MATCH(U$2,'Data Annex'!$K$1:$AS$1,0)),"") -> 0.4691737258
A38: 28 | B38: SE | D38: SE | F38: =IFERROR(INDEX('Data Annex'!$K$1:$AS$6265,MATCH(F$1&"|"&$B38,'Data Annex'!$K$1:$K$6265,0),MATCH(F$2,'Data Annex'!$K$1:$AS$1,0)),"") -> 91.94444771 | G38: =IFERROR(INDEX('Data Annex'!$K$1:$AS$6265,MATCH(G$1&"|"&$B38,'Data Annex'!$K$1:$K$6265,0),MATCH(G$2,'Data Annex'!$K$1:$AS$1,0)),"") -> 49.73299236 | H38: =IFERROR(INDEX('Data Annex'!$K$1:$AS$6265,MATCH(H$1&"|"&$B38,'Data Annex'!$K$1:$K$6265,0),MATCH(H$2,'Data Annex'!$K$1:$AS$1,0)),"") -> 1.703805059 | I38: =IFERROR(INDEX('Data Annex'!$K$1:$AS$6265,MATCH(I$1&"|"&$B38,'Data Annex'!$K$1:$K$6265,0),MATCH(I$2,'Data Annex'!$K$1:$AS$1,0)),"") -> 2.301629196 | J38: =IFERROR(INDEX('Data Annex'!$K$1:$AS$6265,MATCH(J$1&"|"&$B38,'Data Annex'!$K$1:$K$6265,0),MATCH(J$2,'Data Annex'!$K$1:$AS$1,0)),"") -> 74.56160151 | K38: =IFERROR(INDEX('Data Annex'!$K$1:$AS$6265,MATCH(K$1&"|"&$B38,'Data Annex'!$K$1:$K$6265,0),MATCH(K$2,'Data Annex'!$K$1:$AS$1,0)),"") -> 31.0657122 | L38: =IFERROR(INDEX('Data Annex'!$K$1:$AS$6265,MATCH(L$1&"|"&$B38,'Data Annex'!$K$1:$K$6265,0),MATCH(L$2,'Data Annex'!$K$1:$AS$1,0)),"") -> 74.56160151 | M38: =IFERROR(INDEX('Data Annex'!$K$1:$AS$6265,MATCH(M$1&"|"&$B38,'Data Annex'!$K$1:$K$6265,0),MATCH(M$2,'Data Annex'!$K$1:$AS$1,0)),"") -> 31.0657123 | N38: =IFERROR(INDEX('Data Annex'!$K$1:$AS$6265,MATCH(N$1&"|"&$B38,'Data Annex'!$K$1:$K$6265,0),MATCH(N$2,'Data Annex'!$K$1:$AS$1,0)),"") -> 15.67904113 | O38: =IFERROR(INDEX('Data Annex'!$K$1:$AS$6265,MATCH(O$1&"|"&$B38,'Data Annex'!$K$1:$K$6265,0),MATCH(O$2,'Data Annex'!$K$1:$AS$1,0)),"") -> 16.36565096 | P38: =IFERROR(INDEX('Data Annex'!$K$1:$AS$6265,MATCH(P$1&"|"&$B38,'Data Annex'!$K$1:$K$6265,0),MATCH(P$2,'Data Annex'!$K$1:$AS$1,0)),"") -> 0.1851390691 | Q38: =IFERROR(INDEX('Data Annex'!$K$1:$AS$6265,MATCH(Q$1&"|"&$B38,'Data Annex'!$K$1:$K$6265,0),MATCH(Q$2,'Data Annex'!$K$1:$AS$1,0)),"") -> 0.1029205766 | R38: =IFERROR(INDEX('Data Annex'!$K$1:$AS$6265,MATCH(R$1&"|"&$B38,'Data Annex'!$K$1:$K$6265,0),MATCH(R$2,'Data Annex'!$K$1:$AS$1,0)),"") -> 14.26591388 | S38: =IFERROR(INDEX('Data Annex'!$K$1:$AS$6265,MATCH(S$1&"|"&$B38,'Data Annex'!$K$1:$K$6265,0),MATCH(S$2,'Data Annex'!$K$1:$AS$1,0)),"") -> 14.67029215 | T38: =IFERROR(INDEX('Data Annex'!$K$1:$AS$6265,MATCH(T$1&"|"&$B38,'Data Annex'!$K$1:$K$6265,0),MATCH(T$2,'Data Annex'!$K$1:$AS$1,0)),"") -> 1.227988189 | U38: =IFERROR(INDEX('Data Annex'!$K$1:$AS$6265,MATCH(U$1&"|"&$B38,'Data Annex'!$K$1:$K$6265,0),MATCH(U$2,'Data Annex'!$K$1:$AS$1,0)),"") -> 1.592438232
A39: 29 | B39: SI | D39: SI | F39: =IFERROR(INDEX('Data Annex'!$K$1:$AS$6265,MATCH(F$1&"|"&$B39,'Data Annex'!$K$1:$K$6265,0),MATCH(F$2,'Data Annex'!$K$1:$AS$1,0)),"") -> 0.125 | G39: =IFERROR(INDEX('Data Annex'!$K$1:$AS$6265,MATCH(G$1&"|"&$B39,'Data Annex'!$K$1:$K$6265,0),MATCH(G$2,'Data Annex'!$K$1:$AS$1,0)),"") -> 2.1697197 | H39: =IFERROR(INDEX('Data Annex'!$K$1:$AS$6265,MATCH(H$1&"|"&$B39,'Data Annex'!$K$1:$K$6265,0),MATCH(H$2,'Data Annex'!$K$1:$AS$1,0)),"") ->  | I39: =IFERROR(INDEX('Data Annex'!$K$1:$AS$6265,MATCH(I$1&"|"&$B39,'Data Annex'!$K$1:$K$6265,0),MATCH(I$2,'Data Annex'!$K$1:$AS$1,0)),"") ->  | J39: =IFERROR(INDEX('Data Annex'!$K$1:$AS$6265,MATCH(J$1&"|"&$B39,'Data Annex'!$K$1:$K$6265,0),MATCH(J$2,'Data Annex'!$K$1:$AS$1,0)),"") -> 0 | K39: =IFERROR(INDEX('Data Annex'!$K$1:$AS$6265,MATCH(K$1&"|"&$B39,'Data Annex'!$K$1:$K$6265,0),MATCH(K$2,'Data Annex'!$K$1:$AS$1,0)),"") -> 0 | L39: =IFERROR(INDEX('Data Annex'!$K$1:$AS$6265,MATCH(L$1&"|"&$B39,'Data Annex'!$K$1:$K$6265,0),MATCH(L$2,'Data Annex'!$K$1:$AS$1,0)),"") ->  | M39: =IFERROR(INDEX('Data Annex'!$K$1:$AS$6265,MATCH(M$1&"|"&$B39,'Data Annex'!$K$1:$K$6265,0),MATCH(M$2,'Data Annex'!$K$1:$AS$1,0)),"") ->  | N39: =IFERROR(INDEX('Data Annex'!$K$1:$AS$6265,MATCH(N$1&"|"&$B39,'Data Annex'!$K$1:$K$6265,0),MATCH(N$2,'Data Annex'!$K$1:$AS$1,0)),"") -> 0.125 | O39: =IFERROR(INDEX('Data Annex'!$K$1:$AS$6265,MATCH(O$1&"|"&$B39,'Data Annex'!$K$1:$K$6265,0),MATCH(O$2,'Data Annex'!$K$1:$AS$1,0)),"") -> 2.1697197 | P39: =IFERROR(INDEX('Data Annex'!$K$1:$AS$6265,MATCH(P$1&"|"&$B39,'Data Annex'!$K$1:$K$6265,0),MATCH(P$2,'Data Annex'!$K$1:$AS$1,0)),"") -> 0 | Q39: =IFERROR(INDEX('Data Annex'!$K$1:$AS$6265,MATCH(Q$1&"|"&$B39,'Data Annex'!$K$1:$K$6265,0),MATCH(Q$2,'Data Annex'!$K$1:$AS$1,0)),"") -> 0 | R39: =IFERROR(INDEX('Data Annex'!$K$1:$AS$6265,MATCH(R$1&"|"&$B39,'Data Annex'!$K$1:$K$6265,0),MATCH(R$2,'Data Annex'!$K$1:$AS$1,0)),"") -> 0 | S39: =IFERROR(INDEX('Data Annex'!$K$1:$AS$6265,MATCH(S$1&"|"&$B39,'Data Annex'!$K$1:$K$6265,0),MATCH(S$2,'Data Annex'!$K$1:$AS$1,0)),"") -> 2.04840472 | T39: =IFERROR(INDEX('Data Annex'!$K$1:$AS$6265,MATCH(T$1&"|"&$B39,'Data Annex'!$K$1:$K$6265,0),MATCH(T$2,'Data Annex'!$K$1:$AS$1,0)),"") -> 0.125 | U39: =IFERROR(INDEX('Data Annex'!$K$1:$AS$6265,MATCH(U$1&"|"&$B39,'Data Annex'!$K$1:$K$6265,0),MATCH(U$2,'Data Annex'!$K$1:$AS$1,0)),"") -> 0.12131498
A40: 30 | B40: SK | D40: SK | F40: =IFERROR(INDEX('Data Annex'!$K$1:$AS$6265,MATCH(F$1&"|"&$B40,'Data Annex'!$K$1:$K$6265,0),MATCH(F$2,'Data Annex'!$K$1:$AS$1,0)),"") -> 51.339115 | G40: =IFERROR(INDEX('Data Annex'!$K$1:$AS$6265,MATCH(G$1&"|"&$B40,'Data Annex'!$K$1:$K$6265,0),MATCH(G$2,'Data Annex'!$K$1:$AS$1,0)),"") -> 55.461939 | H40: =IFERROR(INDEX('Data Annex'!$K$1:$AS$6265,MATCH(H$1&"|"&$B40,'Data Annex'!$K$1:$K$6265,0),MATCH(H$2,'Data Annex'!$K$1:$AS$1,0)),"") -> 0 | I40: =IFERROR(INDEX('Data Annex'!$K$1:$AS$6265,MATCH(I$1&"|"&$B40,'Data Annex'!$K$1:$K$6265,0),MATCH(I$2,'Data Annex'!$K$1:$AS$1,0)),"") -> 0 | J40: =IFERROR(INDEX('Data Annex'!$K$1:$AS$6265,MATCH(J$1&"|"&$B40,'Data Annex'!$K$1:$K$6265,0),MATCH(J$2,'Data Annex'!$K$1:$AS$1,0)),"") -> 0 | K40: =IFERROR(INDEX('Data Annex'!$K$1:$AS$6265,MATCH(K$1&"|"&$B40,'Data Annex'!$K$1:$K$6265,0),MATCH(K$2,'Data Annex'!$K$1:$AS$1,0)),"") -> 0 | L40: =IFERROR(INDEX('Data Annex'!$K$1:$AS$6265,MATCH(L$1&"|"&$B40,'Data Annex'!$K$1:$K$6265,0),MATCH(L$2,'Data Annex'!$K$1:$AS$1,0)),"") -> 0 | M40: =IFERROR(INDEX('Data Annex'!$K$1:$AS$6265,MATCH(M$1&"|"&$B40,'Data Annex'!$K$1:$K$6265,0),MATCH(M$2,'Data Annex'!$K$1:$AS$1,0)),"") -> 0 | N40: =IFERROR(INDEX('Data Annex'!$K$1:$AS$6265,MATCH(N$1&"|"&$B40,'Data Annex'!$K$1:$K$6265,0),MATCH(N$2,'Data Annex'!$K$1:$AS$1,0)),"") -> 51.339115 | O40: =IFERROR(INDEX('Data Annex'!$K$1:$AS$6265,MATCH(O$1&"|"&$B40,'Data Annex'!$K$1:$K$6265,0),MATCH(O$2,'Data Annex'!$K$1:$AS$1,0)),"") -> 55.461939 | P40: =IFERROR(INDEX('Data Annex'!$K$1:$AS$6265,MATCH(P$1&"|"&$B40,'Data Annex'!$K$1:$K$6265,0),MATCH(P$2,'Data Annex'!$K$1:$AS$1,0)),"") -> 0 | Q40: =IFERROR(INDEX('Data Annex'!$K$1:$AS$6265,MATCH(Q$1&"|"&$B40,'Data Annex'!$K$1:$K$6265,0),MATCH(Q$2,'Data Annex'!$K$1:$AS$1,0)),"") -> 0 | R40: =IFERROR(INDEX('Data Annex'!$K$1:$AS$6265,MATCH(R$1&"|"&$B40,'Data Annex'!$K$1:$K$6265,0),MATCH(R$2,'Data Annex'!$K$1:$AS$1,0)),"") -> 0 | S40: =IFERROR(INDEX('Data Annex'!$K$1:$AS$6265,MATCH(S$1&"|"&$B40,'Data Annex'!$K$1:$K$6265,0),MATCH(S$2,'Data Annex'!$K$1:$AS$1,0)),"") -> 0 | T40: =IFERROR(INDEX('Data Annex'!$K$1:$AS$6265,MATCH(T$1&"|"&$B40,'Data Annex'!$K$1:$K$6265,0),MATCH(T$2,'Data Annex'!$K$1:$AS$1,0)),"") -> 51.339115 | U40: =IFERROR(INDEX('Data Annex'!$K$1:$AS$6265,MATCH(U$1&"|"&$B40,'Data Annex'!$K$1:$K$6265,0),MATCH(U$2,'Data Annex'!$K$1:$AS$1,0)),"") -> 55.461939
A41: 99 | B41: EU | D41: EU/EEA | F41: =IFERROR(INDEX('Data Annex'!$K$1:$AS$6265,MATCH(F$1&"|"&$B41,'Data Annex'!$K$1:$K$6265,0),MATCH(F$2,'Data Annex'!$K$1:$AS$1,0)),"") -> 11479.49214 | G41: =IFERROR(INDEX('Data Annex'!$K$1:$AS$6265,MATCH(G$1&"|"&$B41,'Data Annex'!$K$1:$K$6265,0),MATCH(G$2,'Data Annex'!$K$1:$AS$1,0)),"") -> 10033.78567 | H41: =IFERROR(INDEX('Data Annex'!$K$1:$AS$6265,MATCH(H$1&"|"&$B41,'Data Annex'!$K$1:$K$6265,0),MATCH(H$2,'Data Annex'!$K$1:$AS$1,0)),"") -> 444.893375 | I41: =IFERROR(INDEX('Data Annex'!$K$1:$AS$6265,MATCH(I$1&"|"&$B41,'Data Annex'!$K$1:$K$6265,0),MATCH(I$2,'Data Annex'!$K$1:$AS$1,0)),"") -> 417.4911358 | J41: =IFERROR(INDEX('Data Annex'!$K$1:$AS$6265,MATCH(J$1&"|"&$B41,'Data Annex'!$K$1:$K$6265,0),MATCH(J$2,'Data Annex'!$K$1:$AS$1,0)),"") -> 1907.335197 | K41: =IFERROR(INDEX('Data Annex'!$K$1:$AS$6265,MATCH(K$1&"|"&$B41,'Data Annex'!$K$1:$K$6265,0),MATCH(K$2,'Data Annex'!$K$1:$AS$1,0)),"") -> 1454.253619 | L41: =IFERROR(INDEX('Data Annex'!$K$1:$AS$6265,MATCH(L$1&"|"&$B41,'Data Annex'!$K$1:$K$6265,0),MATCH(L$2,'Data Annex'!$K$1:$AS$1,0)),"") -> 1902.123391 | M41: =IFERROR(INDEX('Data Annex'!$K$1:$AS$6265,MATCH(M$1&"|"&$B41,'Data Annex'!$K$1:$K$6265,0),MATCH(M$2,'Data Annex'!$K$1:$AS$1,0)),"") -> 1452.012965 | N41: =IFERROR(INDEX('Data Annex'!$K$1:$AS$6265,MATCH(N$1&"|"&$B41,'Data Annex'!$K$1:$K$6265,0),MATCH(N$2,'Data Annex'!$K$1:$AS$1,0)),"") -> 9126.709509 | O41: =IFERROR(INDEX('Data Annex'!$K$1:$AS$6265,MATCH(O$1&"|"&$B41,'Data Annex'!$K$1:$K$6265,0),MATCH(O$2,'Data Annex'!$K$1:$AS$1,0)),"") -> 8161.54232 | P41: =IFERROR(INDEX('Data Annex'!$K$1:$AS$6265,MATCH(P$1&"|"&$B41,'Data Annex'!$K$1:$K$6265,0),MATCH(P$2,'Data Annex'!$K$1:$AS$1,0)),"") -> 261.4264419 | Q41: =IFERROR(INDEX('Data Annex'!$K$1:$AS$6265,MATCH(Q$1&"|"&$B41,'Data Annex'!$K$1:$K$6265,0),MATCH(Q$2,'Data Annex'!$K$1:$AS$1,0)),"") -> 281.5536372 | R41: =IFERROR(INDEX('Data Annex'!$K$1:$AS$6265,MATCH(R$1&"|"&$B41,'Data Annex'!$K$1:$K$6265,0),MATCH(R$2,'Data Annex'!$K$1:$AS$1,0)),"") -> 6353.272748 | S41: =IFERROR(INDEX('Data Annex'!$K$1:$AS$6265,MATCH(S$1&"|"&$B41,'Data Annex'!$K$1:$K$6265,0),MATCH(S$2,'Data Annex'!$K$1:$AS$1,0)),"") -> 5785.076108 | T41: =IFERROR(INDEX('Data Annex'!$K$1:$AS$6265,MATCH(T$1&"|"&$B41,'Data Annex'!$K$1:$K$6265,0),MATCH(T$2,'Data Annex'!$K$1:$AS$1,0)),"") -> 1409.072028 | U41: =IFERROR(INDEX('Data Annex'!$K$1:$AS$6265,MATCH(U$1&"|"&$B41,'Data Annex'!$K$1:$K$6265,0),MATCH(U$2,'Data Annex'!$K$1:$AS$1,0)),"") -> 1119.56773
D43: (1) footnote here if needed
F44: T54_1 | G44: T54_1 | H44: T54_2 | I44: T54_2 | J44: T54_3 | K44: T54_3 | L44: T54_4 | M44: T54_4 | N44: T54_5 | O44: T54_5 | P44: T54_6 | Q44: T54_6 | R44: T54_7 | S44: T54_7 | U44: T05_4 | W44: T55_1 | X44: T55_1 | Y44: T55_2 | Z44: T55_2 | AA44: T55_3 | AB44: T55_3
F45: =TEXT(F50,"YYYYMM")+0 -> 202112 | G45: =TEXT(G50,"YYYYMM")+0 -> 202203 | H45: 202112 | I45: 202203 | J45: 202112 | K45: 202203 | L45: 202112 | M45: 202203 | N45: 202112 | O45: 202203 | P45: 202112 | Q45: 202203 | R45: 202112 | S45: 202203 | W45: =TEXT(W50,"YYYYMM")+0 -> 202112 | X45: =TEXT(X50,"YYYYMM")+0 -> 202203 | Y45: 202112 | Z45: 202203 | AA45: 202112 | AB45: 202203
D46: Breakdown of deposits from Ukrainian counterparts | U46: Off balance sheet exposures towards Ukrainian counterparts
D48: (million EUR) | F48: Deposits | H48: of which:
H49: Central banks | J49: General governments | L49: Credit institutions | N49: Other financial corporations | P49: Non-financial corporations | R49: Households | U49: (million EUR) | W49: Loan commitments | Y49: Financial guarantees | AA49: Other Commitments
F50: =EOMONTH($A$3,-3) -> 2021-12-31 | G50: =$A$3 -> 2022-03-01 | H50: =EOMONTH($A$3,-3) -> 2021-12-31 | I50: =$A$3 -> 2022-03-01 | J50: =EOMONTH($A$3,-3) -> 2021-12-31 | K50: =$A$3 -> 2022-03-01 | L50: =EOMONTH($A$3,-3) -> 2021-12-31 | M50: =$A$3 -> 2022-03-01 | N50: =EOMONTH($A$3,-3) -> 2021-12-31 | O50: =$A$3 -> 2022-03-01 | P50: =EOMONTH($A$3,-3) -> 2021-12-31 | Q50: =$A$3 -> 2022-03-01 | R50: =EOMONTH($A$3,-3) -> 2021-12-31 | S50: =$A$3 -> 2022-03-01 | W50: =EOMONTH($A$3,-3) -> 2021-12-31 | X50: =$A$3 -> 2022-03-01 | Y50: 2021-12-31 | Z50: 2022-03-01 | AA50: 2021-12-31 | AB50: 2022-03-01
A51: 1 | B51: AT | D51: =B51 -> AT | F51: =IFERROR(INDEX('Data Annex'!$K$1:$AS$6265,MATCH(F$44&"|"&$B51,'Data Annex'!$K$1:$K$6265,0),MATCH(F$45,'Data Annex'!$K$1:$AS$1,0)),"") -> 4136.762075 | G51: =IFERROR(INDEX('Data Annex'!$K$1:$AS$6265,MATCH(G$44&"|"&$B51,'Data Annex'!$K$1:$K$6265,0),MATCH(G$45,'Data Annex'!$K$1:$AS$1,0)),"") -> 4369.20351 | H51: =IFERROR(INDEX('Data Annex'!$K$1:$AS$6265,MATCH(H$44&"|"&$B51,'Data Annex'!$K$1:$K$6265,0),MATCH(H$45,'Data Annex'!$K$1:$AS$1,0)),"") -> 12.934332 | I51: =IFERROR(INDEX('Data Annex'!$K$1:$AS$6265,MATCH(I$44&"|"&$B51,'Data Annex'!$K$1:$K$6265,0),MATCH(I$45,'Data Annex'!$K$1:$AS$1,0)),"") -> 12.273305 | J51: =IFERROR(INDEX('Data Annex'!$K$1:$AS$6265,MATCH(J$44&"|"&$B51,'Data Annex'!$K$1:$K$6265,0),MATCH(J$45,'Data Annex'!$K$1:$AS$1,0)),"") -> 25.3035606 | K51: =IFERROR(INDEX('Data Annex'!$K$1:$AS$6265,MATCH(K$44&"|"&$B51,'Data Annex'!$K$1:$K$6265,0),MATCH(K$45,'Data Annex'!$K$1:$AS$1,0)),"") -> 28.33645385 | L51: =IFERROR(INDEX('Data Annex'!$K$1:$AS$6265,MATCH(L$44&"|"&$B51,'Data Annex'!$K$1:$K$6265,0),MATCH(L$45,'Data Annex'!$K$1:$AS$1,0)),"") -> 279.5721559 | M51: =IFERROR(INDEX('Data Annex'!$K$1:$AS$6265,MATCH(M$44&"|"&$B51,'Data Annex'!$K$1:$K$6265,0),MATCH(M$45,'Data Annex'!$K$1:$AS$1,0)),"") -> 376.4607293 | N51: =IFERROR(INDEX('Data Annex'!$K$1:$AS$6265,MATCH(N$44&"|"&$B51,'Data Annex'!$K$1:$K$6265,0),MATCH(N$45,'Data Annex'!$K$1:$AS$1,0)),"") -> 55.663107 | O51: =IFERROR(INDEX('Data Annex'!$K$1:$AS$6265,MATCH(O$44&"|"&$B51,'Data Annex'!$K$1:$K$6265,0),MATCH(O$45,'Data Annex'!$K$1:$AS$1,0)),"") -> 73.128319 | P51: =IFERROR(INDEX('Data Annex'!$K$1:$AS$6265,MATCH(P$44&"|"&$B51,'Data Annex'!$K$1:$K$6265,0),MATCH(P$45,'Data Annex'!$K$1:$AS$1,0)),"") -> 1853.053098 | Q51: =IFERROR(INDEX('Data Annex'!$K$1:$AS$6265,MATCH(Q$44&"|"&$B51,'Data Annex'!$K$1:$K$6265,0),MATCH(Q$45,'Data Annex'!$K$1:$AS$1,0)),"") -> 1807.136387 | R51: =IFERROR(INDEX('Data Annex'!$K$1:$AS$6265,MATCH(R$44&"|"&$B51,'Data Annex'!$K$1:$K$6265,0),MATCH(R$45,'Data Annex'!$K$1:$AS$1,0)),"") -> 1910.235821 | S51: =IFERROR(INDEX('Data Annex'!$K$1:$AS$6265,MATCH(S$44&"|"&$B51,'Data Annex'!$K$1:$K$6265,0),MATCH(S$45,'Data Annex'!$K$1:$AS$1,0)),"") -> 2071.868316 | U51: =B51 -> AT | W51: =IFERROR(INDEX('Data Annex'!$K$1:$AS$6265,MATCH(W$44&"|"&$B51,'Data Annex'!$K$1:$K$6265,0),MATCH(W$45,'Data Annex'!$K$1:$AS$1,0)),"") -> 1083.614456 | X51: =IFERROR(INDEX('Data Annex'!$K$1:$AS$6265,MATCH(X$44&"|"&$B51,'Data Annex'!$K$1:$K$6265,0),MATCH(X$45,'Data Annex'!$K$1:$AS$1,0)),"") -> 767.409909 | Y51: =IFERROR(INDEX('Data Annex'!$K$1:$AS$6265,MATCH(Y$44&"|"&$B51,'Data Annex'!$K$1:$K$6265,0),MATCH(Y$45,'Data Annex'!$K$1:$AS$1,0)),"") -> 195.3416306 | Z51: =IFERROR(INDEX('Data Annex'!$K$1:$AS$6265,MATCH(Z$44&"|"&$B51,'Data Annex'!$K$1:$K$6265,0),MATCH(Z$45,'Data Annex'!$K$1:$AS$1,0)),"") -> 205.1746776 | AA51: =IFERROR(INDEX('Data Annex'!$K$1:$AS$6265,MATCH(AA$44&"|"&$B51,'Data Annex'!$K$1:$K$6265,0),MATCH(AA$45,'Data Annex'!$K$1:$AS$1,0)),"") -> 18.60818852 | AB51: =IFERROR(INDEX('Data Annex'!$K$1:$AS$6265,MATCH(AB$44&"|"&$B51,'Data Annex'!$K$1:$K$6265,0),MATCH(AB$45,'Data Annex'!$K$1:$AS$1,0)),"") -> 13.71574164
A52: 2 | B52: BE | D52: =B52 -> BE | F52: =IFERROR(INDEX('Data Annex'!$K$1:$AS$6265,MATCH(F$44&"|"&$B52,'Data Annex'!$K$1:$K$6265,0),MATCH(F$45,'Data Annex'!$K$1:$AS$1,0)),"") -> 211.0569996 | G52: =IFERROR(INDEX('Data Annex'!$K$1:$AS$6265,MATCH(G$44&"|"&$B52,'Data Annex'!$K$1:$K$6265,0),MATCH(G$45,'Data Annex'!$K$1:$AS$1,0)),"") -> 187.7262976 | H52: =IFERROR(INDEX('Data Annex'!$K$1:$AS$6265,MATCH(H$44&"|"&$B52,'Data Annex'!$K$1:$K$6265,0),MATCH(H$45,'Data Annex'!$K$1:$AS$1,0)),"") ->  | I52: =IFERROR(INDEX('Data Annex'!$K$1:$AS$6265,MATCH(I$44&"|"&$B52,'Data Annex'!$K$1:$K$6265,0),MATCH(I$45,'Data Annex'!$K$1:$AS$1,0)),"") ->  | J52: =IFERROR(INDEX('Data Annex'!$K$1:$AS$6265,MATCH(J$44&"|"&$B52,'Data Annex'!$K$1:$K$6265,0),MATCH(J$45,'Data Annex'!$K$1:$AS$1,0)),"") -> 1.008916 | K52: =IFERROR(INDEX('Data Annex'!$K$1:$AS$6265,MATCH(K$44&"|"&$B52,'Data Annex'!$K$1:$K$6265,0),MATCH(K$45,'Data Annex'!$K$1:$AS$1,0)),"") -> 8.460001 | L52: =IFERROR(INDEX('Data Annex'!$K$1:$AS$6265,MATCH(L$44&"|"&$B52,'Data Annex'!$K$1:$K$6265,0),MATCH(L$45,'Data Annex'!$K$1:$AS$1,0)),"") -> 118.620487 | M52: =IFERROR(INDEX('Data Annex'!$K$1:$AS$6265,MATCH(M$44&"|"&$B52,'Data Annex'!$K$1:$K$6265,0),MATCH(M$45,'Data Annex'!$K$1:$AS$1,0)),"") -> 62.785114 | N52: =IFERROR(INDEX('Data Annex'!$K$1:$AS$6265,MATCH(N$44&"|"&$B52,'Data Annex'!$K$1:$K$6265,0),MATCH(N$45,'Data Annex'!$K$1:$AS$1,0)),"") -> 0 | O52: =IFERROR(INDEX('Data Annex'!$K$1:$AS$6265,MATCH(O$44&"|"&$B52,'Data Annex'!$K$1:$K$6265,0),MATCH(O$45,'Data Annex'!$K$1:$AS$1,0)),"") -> 1e-06 | P52: =IFERROR(INDEX('Data Annex'!$K$1:$AS$6265,MATCH(P$44&"|"&$B52,'Data Annex'!$K$1:$K$6265,0),MATCH(P$45,'Data Annex'!$K$1:$AS$1,0)),"") -> 26.916525 | Q52: =IFERROR(INDEX('Data Annex'!$K$1:$AS$6265,MATCH(Q$44&"|"&$B52,'Data Annex'!$K$1:$K$6265,0),MATCH(Q$45,'Data Annex'!$K$1:$AS$1,0)),"") -> 26.776382 | R52: =IFERROR(INDEX('Data Annex'!$K$1:$AS$6265,MATCH(R$44&"|"&$B52,'Data Annex'!$K$1:$K$6265,0),MATCH(R$45,'Data Annex'!$K$1:$AS$1,0)),"") -> 64.51107155 | S52: =IFERROR(INDEX('Data Annex'!$K$1:$AS$6265,MATCH(S$44&"|"&$B52,'Data Annex'!$K$1:$K$6265,0),MATCH(S$45,'Data Annex'!$K$1:$AS$1,0)),"") -> 89.7047996 | U52: =B52 -> BE | W52: =IFERROR(INDEX('Data Annex'!$K$1:$AS$6265,MATCH(W$44&"|"&$B52,'Data Annex'!$K$1:$K$6265,0),MATCH(W$45,'Data Annex'!$K$1:$AS$1,0)),"") -> 5.099967 | X52: =IFERROR(INDEX('Data Annex'!$K$1:$AS$6265,MATCH(X$44&"|"&$B52,'Data Annex'!$K$1:$K$6265,0),MATCH(X$45,'Data Annex'!$K$1:$AS$1,0)),"") -> 1.264871 | Y52: =IFERROR(INDEX('Data Annex'!$K$1:$AS$6265,MATCH(Y$44&"|"&$B52,'Data Annex'!$K$1:$K$6265,0),MATCH(Y$45,'Data Annex'!$K$1:$AS$1,0)),"") -> 52.947411 | Z52: =IFERROR(INDEX('Data Annex'!$K$1:$AS$6265,MATCH(Z$44&"|"&$B52,'Data Annex'!$K$1:$K$6265,0),MATCH(Z$45,'Data Annex'!$K$1:$AS$1,0)),"") -> 53.916543 | AA52: =IFERROR(INDEX('Data Annex'!$K$1:$AS$6265,MATCH(AA$44&"|"&$B52,'Data Annex'!$K$1:$K$6265,0),MATCH(AA$45,'Data Annex'!$K$1:$AS$1,0)),"") -> 5 | AB52: =IFERROR(INDEX('Data Annex'!$K$1:$AS$6265,MATCH(AB$44&"|"&$B52,'Data Annex'!$K$1:$K$6265,0),MATCH(AB$45,'Data Annex'!$K$1:$AS$1,0)),"") -> 5
